Workbook

Sheet Instructions
A1: Missouri NRCS Seed Calculator Instructions Quick Guide
A3: This seed calculator file has been created so that planners have a very flexible tool to design seed mixes in several different ways and provide the customer with a job sheet that covers all requirements to complete the planting of the seed mix. It also allows the planner to refine the species list so that they can make an informed decision and create high quality, diverse mixes to meet a variety of needs.
A4: This page only provides a cursory explanation of using the Calculator worksheet. For a full guide on the Calculator use, along with how to complete the Seeding Plan, use the Plant Name Synonyms worksheet, and some frequently asked questions / troubleshooting solutions, please use one of the following hyperlinks:
A5: NRCS: Complete Guide to Using the Missouri Seed Calculator (eFOTG)
A6: MDC: Complete Guide to Using the Missouri Seed Calculator (MDC Sharepoint)
A7: IMPORTANT NOTES: 1.) This seed calculator has a very comprehensive list of plant species. Some species may not be in production at this time or available for purchase, and therefore, should not be included in any formulated seed mix. Also, even though some species are present in the seed calculator, does not mean it is an approved grass or forb for use in USDA cost-shared programs. If the formulated seed mix is in completion of a contract involving USDA cost-share, refer to the most current version of the Native Forb Information Sheet (IS-MO643Native Forb) located in section IV of the NRCS electronic field office technical guide (eFOTG) for a list of all approved native forbs and any restrictions. 2.) Costs for each species are included in the calculator purely to assist planners in formulating mixes (for example, determining which species of grass and/or forbs are more expensive and reducing their amount to make the mix more economical). THESE COSTS SHOULD NOT BE CONVEYED TO ANY CUSTOMER. Seed costs can change on a monthly, even weekly or daily, basis due to demand, supply, time of year, recent production, etc. COSTS IN THE CALCULATOR WILL NOT BE REGULARLY UPDATED TO REFLECT THE MOST CURRENT PRICES. Costs should be considered an average. CUSTOMERS ARE RESPONSIBLE FOR OBTAINING BIDS FOR SEED MIXES.
A9: FILTERS
A10: Filters allow the planner to select only those species applicable to a conservation standard, landowner objective or project. Only 1 filter from each section may be selected and they build on each other, meaning the list of available species will decrease as you select more filter options. Select a filter by clicking on the check box to the left of the filter name.
A15: WHAT DO EACH OF THE FILTERS MEAN?
A16: Section 1: The most general filter, but probably the most important for significantly removing species from the available list that won’t be utilized. For most mixes, the suggested selection should be Commonly Used. If Commercially Available or All Species is selected, be aware that not all species have a published value for number of pure live seeds per pound, so the formulas will not work.
A18: Section 2: Select from Grasses Only or Forbs/Legumes Only. For most situations, the best selection is Show All since most will have both grasses and forbs/legumes in the final mix, but each one can be used individually to plan that part of the mix (use the Grasses Only filter to plan the grasses, then re-select the filters and choose Forbs/Legumes Only to plan the forbs.
A20: Section 3: Select from viewing Native Species Only or Introduced Species Only. Some native plantings do include introduced legumes, so the best selection for this filter is situation dependent.
A22: Section 4, Moisture Regime -OR- Habitat: This filter allows the planner to pick between narrowing down the list of available species either by site specific conditions OR habitat type. Only one filter in this section may be selected. This filter is best if the site conditions are well known or restoration of a natural community is the objective.
A24: Section 5, Pollinator: This filter allows for the selection of forb/legume species that have been shown to benefit a wide range of Pollinators, or to narrow down to the specific species of Monarch or Bee (honey bee).
A26: Section 6, Bloom Period: This filter allows for the selection of forbs and legumes that bloom either during Spring (1 - late March / April / May), Summer (2 - June / July / August), or Fall (3 - September / October / early November). The use of this filter helps to meet standards and specifications for certain practices.
A28: Section 7, Bloom Color: This filter allows for the selection of a specific bloom color to add diversity to a mix and meet a wide range of needs for many wildlife and invertebrate species by including a variety of different bloom colors spread throughout all bloom periods (spring, summer, fall).
A31: WAYS TO DESIGN A MIXTURE
A32: This seed calculator has 4 options for designing a seed mix, providing greater flexibility to the planner. Some options may be familiar to most planners, others options may not. Through repeated use of this calculator, planners can become familiar with all options because when completing a seed mixture, all other options are automatically populated to determine how that affects the seed mixture.
A34: DESIGN OPTIONS
A52: The screenshot above shows the design mixture options and their corresponding column where the information is filled in by the planner (shaded area). As information is filled into the shaded area, the corresponding calculations are completed for the other options to the right in white (if applicable). When an option is selected, the other options collapse and are hidden.
A53: Option 1: PLS lbs/Acre
A54: - Seed mix will be designed by pounds of pure live seed per acre (Example: 0.300 PLS lbs of Big Bluestem, 1.400 PLS lbs of Little Bluestem). - PLS/ft2 and % of Mix by PLS/ft2 will automatically fill in within the white section to the right. - For small seeded forb species, amounts down the thousandths can be planned.
A56: Option 2: PLS/ft2
A57: - Seed mix will be designed by pure live seeds per square foot (Example: 1.136 PLS/ft2 of Big Bluestem, 7.713 PLS/ft2 of Little Bluestem). - PLS lbs/acre and % of Mix by PLS/ft2 will automatically fill in within the white section to the right.
A59: Option 3: % of Mix by PLS/ft2
A60: - Seed mix will be designed based on a percentage of a known target PLS/ft2 total for the whole mix. - PLS lbs/acre and PLS/ft2 will automatically fill in within the white section to the right. - The goal PLS/ft2 is entered into the "Target" box in the upper left-hand corner. THIS METHOD OF DESIGNING A MIX IS THE ONLY TIME THE "TARGET" BOX IS UTILIZED. - A percentage of the mix is then entered into the shaded column until 100% is reached. For example, if a mix has a target of 25 PLS/ft2, 25 would be entered into the "Target" box. If half of the mix needs to be Big Bluestem, then 50 would be entered in the shaded column, and the calculations would show that 12.5 PLS/ft2 would be planned (50% of 25 = 12.5) which is also 3.300 PLS lbs/acre.
A62: Option 4: % of Mix by Base Rate
A63: - Seed mix will be designed based on the Base Rate (in PLS lbs / acre) for that particular species as shown in the Missouri 723 specification of the eFOTG. - Not all species have a Base Rate assigned. Those that do have that data are shown in the "Missouri Base Rate" column (see the blue circles in the screenshot above). Mixes using this method are constrained to only those species with a base rate assigned. - If one of the forb options where there is a set amount of pounds is used (for example, Forbs / Legumes (3.0 lbs)), then the total percentage will be a multiple of 100%, such as 200% or 300%. Grasses will equal 100%, and then any added set forb/legumes will be an additional 100%.
A65: USE OF DESIGN OPTIONS
A66: 1.) After selecting a design option, the other options collapse and are not displayed. By selecting "Show All", the other options can be displayed again. The greatest benefit of this is the summary of the mix in the upper right can be more easily displayed on-screen.
A67: 2.) It is suggested that one option is chosen and the entire mix planned using that one option, but the calculator does have the ability to utilize multiple options to plan a seed mix. If multiple options are used, do not put values in more than one for the same species.
A69: STEPS TO CREATE A SEED MIX
B73: If known, fill in the number of acres for the seeding. This number will be needed to properly calculate the total amount of seed needed for the seeding on the Seeding Plan worksheet. Fill in the Target PLS/ft2 ONLY IF the design option used with be % of Mix by PLS/ft2. Otherwise, leave this blank.
B75: Click the white checkbox next to a filter selection in each section. A check will appear in the box of each selected filter. Remember to always select in order. Note: Steps #2 and #3 may be interchanged in the order they are completed.
B77: Click the white box next to the Design Mixture Option that will be used to design the mix. The shaded boxes in step 4 will collapse to only show the selected design option. A design option does not have to be selected, but remember to try to only use one design option. Note: Steps #2 and #3 may be interchanged in the order they are completed.
B79: In the shaded boxes, fill in the information for each species that will be in the final seed mix. PLS lbs/acre and PLS/ft2 go out to the thousandths place (0.000), while % of Mix by PLS/ft2 and % of Mix by Base Rate go out to the hundredths (0.00). Please note that all grass and sedge species are listed first, followed by all forb/legume species. They are listed in alphabetical order by common name.
B81: Utilize the options in this section to help refine the seed mix that has been built by clicking the white box next to each option.
C82: Reset Filters: Resets all selected filters but does not erase any information filled out in step 4.
C83: Clear Mixture: Clears all information for every species that was filled out in Step 4.
C84: Lock Header / Unlock Header: Normally, rows 1 through 10 (Filters, Design Mixture By, Summary, etc.) are always shown on screen when scrolling down the list of plant species. If more room is needed to see the plant species, the Unlock Header button can be selected and then the top section will not remain on screen. The Lock Header button can then be used to re-lock the top section to remain on-screen. BE CAREFUL!!! After the Unlock Header option has been selected, the boxes in the top section can be moved around, which should be avoided. Also, make sure to scroll ALL THE WAY TO THE TOP, before turning this option off by selecting Lock Header, otherwise, only part of that section may be visible.
C85: Show Mixture: Collapses the species list to only those that have a value filled in during Step 4. This is probably one of the most useful macros as it allows review of the entire mix without having to scroll or with very little scrolling. Filters will need to be re-selected to add additional species to the mix.
B89: Summary Section: Utilize this section to keep track of the seed mix being planned, including Total PLS lbs, % of mix by grasses and forbs/legumes, number of species in the mix (species richness), and number of flowering species in each bloom period. This ensures that the final seed mix will be standards and specifications for USDA and MDC programs.
B91: Click the white box next to the action that needs to be completed. If this is for a one time unique seeding, then Transfer Mix to Seeding may be selected to send the mix in the Calculator into the Seeding Plan worksheet. A similar button is also available on the Seeding Plan worksheet named Use Calculator Mix. The Use Calculator Mix button is actually a better choice if nothing on the Seeding Plan has been completed. County, standard being followed, and other choices influence what information will be filled in on the Planned Seed Mix table, such as Acceptable Cultivars. Until all needed information is filled in on the Seed Plan, the table won’t format the rows to the correct height, meaning the mix will need to be cleared and then transferred in again. If this is a mix that will be utilized on a regular basis, it can be transferred and 'saved' by selecting Transfer Mix to Favorite Mix 1, 2, or 3. By saving the Seed Calculator excel file on a hard drive or other media, it can then be opened and one of the three favorite mixes can be transferred into the Seeding Plan worksheet. NOTE: Favorite mixes cannot be brought back into the calculator for editing. Additionally, as updates are made to the Seed Calculator, please be sure to always use the most recent version and re-create any favorite mixes in the new version.

Sheet Calculator
C1: Acres | P1: PLS lbs/acre | AR1: PLS/ft2 | AS1: % of Mix by PLS/ft2 | AT1: % of Mix by Base Rate | AU1: Species Richness | AV1: Estimated Cost per Acre | AY1: Mixture
C2: Target | O2: Grasses: | P2: =SUMIF($Q$13:$Q$562,"Grass",$T$13:$T$562) -> 0 | AR2: =SUMIF($Q$13:$Q$562,"Grass",$U$13:$U$562) -> 0 | AS2: =SUMIF(TypeRange,"Grass",$V$13:$V$562) ->  | AT2: =SUMIF($Q$13:$Q$562,"Grass",$G$13:$G$562) -> 0 | AU2: =COUNTIFS(PLSCalc,">0",TypeRange,"Grass") -> 0 | AV2: =SUMIFS(EstCostPerAcRange,TypeRange,"Grass",PLSCalc,">0") -> 0 | AY2: X
O3: Forbs/Legumes: | P3: =SUMIF($Q$13:$Q$562,"Forb",$T$13:$T$562) -> 0 | AR3: =SUMIF($Q$13:$Q$562,"Forb",$U$13:$U$562) -> 0 | AS3: =SUMIF($Q$13:$Q$562,"Forb",$V$13:$V$562) ->  | AT3: =SUMIF($Q$13:$Q$562,"Forb",$G$13:$G$562) -> 0 | AU3: =COUNTIFS(PLSCalc,">0",TypeRange,"Forb") -> 0 | AV3: =SUMIFS(EstCostPerAcRange,TypeRange,"Forb",PLSCalc,">0") -> 0
D4: TRUE | P4: =SUBTOTAL(9,P2:P3) -> 0 | AR4: =SUM(AR2:AR3) -> 0 | AS4: =SUM(AS2:AS3) ->  | AT4: =SUBTOTAL(9,AT2:AT3) -> 0 | AU4: =SUM(AU2:AU3) -> 0 | AV4: =SUBTOTAL(9,AV2:AV3) -> 0 | BC4: FALSE | BD4: FALSE | BE4: FALSE | BF4: FALSE
D5: TRUE | E5: FALSE | BD5: FALSE | BE5: FALSE | BF5: FALSE
P6: Bloom Period | AR6: # of Species | AS6: % of Mix by PLS/ft2 | BC6: FALSE | BD6: FALSE | BE6: FALSE | BF6: FALSE
P7: Spring | AR7: =COUNTIFS(BloomPeriodRange,"1",PLSCalc,">0") -> 0 | AS7: =SUMIF($L$13:$L$562,"1",$J$13:$J$562) ->  | BC7: FALSE | BD7: FALSE | BE7: FALSE | BF7: FALSE | BG7: FALSE | BH7: FALSE | BI7: FALSE | BJ7: FALSE | BK7: FALSE | BL7: FALSE | BM7: FALSE | BN7: FALSE | BO7: FALSE
D8: FALSE | P8: Summer | AR8: =COUNTIFS(BloomPeriodRange,"2",PLSCalc,">0") -> 0 | AS8: =SUMIF($L$13:$L$562,"2",$J$13:$J$562) ->  | BD8: FALSE | BE8: FALSE | BF8: FALSE | BG8: FALSE
P9: Fall | AR9: =COUNTIFS(BloomPeriodRange,"3",PLSCalc,">0") -> 0 | AS9: =SUMIF($L$13:$L$562,"3",$J$13:$J$562) ->  | BD9: FALSE | BE9: FALSE | BF9: FALSE | BG9: FALSE
D10: FALSE | F10: FALSE | BD10: FALSE | BE10: FALSE | BF10: FALSE | BG10: FALSE | BH10: FALSE | BI10: FALSE | BJ10: FALSE
B11: Common Name | C11: Scientific Name | D11: PLS lbs/acre | E11: PLS/ft2 | F11: % of Mix by PLS/ft2 | G11: % of Mix by Base Rate | H11: PLS lbs/acre | I11: PLS/ft2 | J11: % of Mix by PLS/ft2 | K11: Missouri Base Rate | L11: Bloom Period | M11: (COC) | N11: Estimated Retail Price per PLS lb | O11: Estimated Retail Cost per Acre | P11: Functional Group | Q11: Type Lookup | R11: Pure Live Seeds per sq ft at 1 lb/ac (DNC - formula) | S11: Base Rate Calc | T11: PLS Calc | U11: PLS/ft2 Calc | V11: % of Mix by PLS/ft2 | W11: PLS lbs/ac | X11: Commercially Available | Y11: Native/Introduced | Z11: Dry | AA11: Medium | AB11: Wet | AC11: Dry Prairie | AD11: Mesic Prairie | AE11: Wet Prairie | AF11: Sand Prairie | AG11: Oak Savanna | AH11: Glade | AI11: Riparian | AJ11: Wetland | AK11: Woodland | AL11: Acceptable Flowering Period (1 = spring, 2 = summer, 3 = fall) | AM11: Flower Color | AN11: Commonly Used | AO11: Pollinator | AP11: Bee | AQ11: Monarch | AR11: Mixture
B12: Common Name | C12: Scientific Name | D12: PLS lbs/acre | E12: PLS/ft2 | F12: % of Mix by PLS/ft2 | G12: % of Mix by Base Rate | H12: PLS lbs/acre | I12: PLS/ft2 | J12: % of Mix by PLS/ft2 | K12: Missouri Base Rate | L12: Bloom Period | M12: Coefficient of Conservatism (COC) | N12: Estimated Retail Price per PLS lb | O12: Estimated Retail Cost per Acre | P12: Functional Group | Q12: Type Lookup | R12: Pure Live Seeds per sq ft at 1 lb/ac (DNC - formula) | S12: Base Rate Calc | T12: PLS Calc | U12: PLS/ft2 Calc | V12: % of Mix by PLS/ft2 | W12: PLS lbs/ac | X12: Commercially Available | Y12: Native/Introduced | Z12: Dry | AA12: Medium | AB12: Wet | AC12: Dry Prairie | AD12: Mesic Prairie | AE12: Wet Prairie | AF12: Sand Prairie | AG12: Oak Savanna | AH12: Glade | AI12: Riparian | AJ12: Wetland | AK12: Woodland | AL12: Acceptable Flowering Period (1 = spring, 2 = summer, 3 = fall) | AM12: Flower Color | AN12: Commonly Used | AO12: Pollinator | AQ12: Monarch | AR12: Mixture
B13: =Species!$B3 -> American Beakgrain | C13: =HYPERLINK(AY13,AZ13) -> Diarrhena americana, Diarrhena obovata | H13: =BC13 -> 0 | I13: =IF((D13>0)<>(F13>0)<>(G13>0),((D13*R13)+(F13*B$2)+S13),"0.00") -> 0.00 | J13: =IF((F13<0.001),((E13+I13)/(PLSft2Total1+PLSft2Total2)),"0.00") ->  | K13: =VLOOKUP(B13,Species!B$3:Y$552,24,FALSE) -> 0 | L13: =VLOOKUP(B13,Species!B$3:AJ$552,35,FALSE) -> 0 | M13: =VLOOKUP(B13,Species!B$3:AD$552,29,FALSE) -> 9 | N13: =VLOOKUP(B13,Species!B$3:AB$552,27,FALSE) -> 174.6666667 | O13: =((N13*(D13+H13))) -> 0 | P13: =VLOOKUP(B13,Species!B$3:AF$552,31,FALSE) -> Perennial Warm Season Grass | Q13: =VLOOKUP(B13,Species!B$3:D$552,3,FALSE) -> Grass | R13: =VLOOKUP(B13,Species!B$3:W$552,22,FALSE) -> 0 | S13: =(G13*K13)*R13 -> 0 | T13: =D13+H13 -> 0 | U13: =I13+E13 -> 0 | V13: =J13+F13 ->  | W13: =H13+D13 -> 0 | X13: =VLOOKUP(B13,Species!B$3:F$552,5,FALSE) -> No | Y13: =VLOOKUP(B13,Species!B$3:AC$552,28,FALSE) -> Native | Z13: =VLOOKUP(B13,Species!B$3:AC$552,9,FALSE) ->  | AA13: =VLOOKUP(B13,Species!B$3:AC$552,10,FALSE) -> X | AB13: =VLOOKUP(B13,Species!B$3:AC$552,11,FALSE) ->  | AC13: =VLOOKUP(B13,Species!B$3:AC$552,12,FALSE) -> 0 | AD13: =VLOOKUP(B13,Species!B$3:AC$552,13,FALSE) -> 0 | AE13: =VLOOKUP(B13,Species!B$3:AC$552,14,FALSE) -> 0 | AF13: =VLOOKUP(B13,Species!B$3:AC$552,15,FALSE) -> 0 | AG13: =VLOOKUP(B13,Species!B$3:AC$552,16,FALSE) ->  | AH13: =VLOOKUP(B13,Species!B$3:AC$552,17,FALSE) -> 0 | AI13: =VLOOKUP(B13,Species!B$3:AC$552,18,FALSE) -> 0 | AJ13: =VLOOKUP(B13,Species!B$3:AC$552,19,FALSE) ->  | AK13: =VLOOKUP(B13,Species!B$3:AC$552,20,FALSE) -> X | AL13: =VLOOKUP(B13,Species!B$3:AJ$552,35,FALSE) -> 0 | AM13: =VLOOKUP(B13,Species!B$3:AH$552,33,FALSE) -> 0 | AN13: =VLOOKUP(B13,Species!B$3:I$552,8,FALSE) -> No | AO13: =VLOOKUP(B13,Species!B$3:BC$552,54,FALSE) -> 0 | AP13: =VLOOKUP(B13,Species!B$3:BE$552,55,FALSE) -> 0 | AQ13: =VLOOKUP(B13,Species!B$3:BE$552,56,FALSE) -> 0 | AR13: =IF(OR(D13>0,E13>0,F13>0,G13>0),"X","") ->  | AY13: =HYPERLINK(VLOOKUP(B13,Species!B$3:BF$552,57,FALSE)) -> http://plants.usda.gov/java/profile?symbol=DIAM | AZ13: =VLOOKUP(B13,Species!B$3:C$552,2,FALSE) -> Diarrhena americana, Diarrhena obovata | BA13: =IF((G13>0),(K13*G13),0) -> 0 | BB13: =IF((E13>0)<>(F13>0),((U13/R13)+(K13*G13)),"0.000") -> 0.000 | BC13: =SUM(BA13:BB13) -> 0
B14: =Species!$B4 -> Bald Spikerush | C14: =HYPERLINK(AY14,AZ14) -> Eleocharis erythropoda | H14: =BC14 -> 0 | I14: =IF((D14>0)<>(F14>0)<>(G14>0),((D14*R14)+(F14*B$2)+S14),"0.00") -> 0.00 | J14: =IF((F14<0.001),((E14+I14)/(PLSft2Total1+PLSft2Total2)),"0.00") ->  | K14: =VLOOKUP(B14,Species!B$3:Y$552,24,FALSE) -> 0 | L14: =VLOOKUP(B14,Species!B$3:AJ$552,35,FALSE) -> 0 | M14: =VLOOKUP(B14,Species!B$3:AD$552,29,FALSE) -> 4 | N14: =VLOOKUP(B14,Species!B$3:AB$552,27,FALSE) -> 400 | O14: 0 | P14: =VLOOKUP(B14,Species!B$3:AF$552,31,FALSE) -> Perennial Cool Season Sedge | Q14: =VLOOKUP(B14,Species!B$3:D$552,3,FALSE) -> Grass | R14: =VLOOKUP(B14,Species!B$3:W$552,22,FALSE) -> 0 | S14: =(G14*K14)*R14 -> 0 | T14: =D14+H14 -> 0 | U14: =I14+E14 -> 0 | V14: =J14+F14 ->  | W14: =H14+D14 -> 0 | X14: =VLOOKUP(B14,Species!B$3:F$552,5,FALSE) -> No | Y14: =VLOOKUP(B14,Species!B$3:AC$552,28,FALSE) -> Native | Z14: =VLOOKUP(B14,Species!B$3:AC$552,9,FALSE) ->  | AA14: =VLOOKUP(B14,Species!B$3:AC$552,10,FALSE) ->  | AB14: =VLOOKUP(B14,Species!B$3:AC$552,11,FALSE) -> X | AC14: =VLOOKUP(B14,Species!B$3:AC$552,12,FALSE) -> 0 | AD14: =VLOOKUP(B14,Species!B$3:AC$552,13,FALSE) -> 0 | AE14: =VLOOKUP(B14,Species!B$3:AC$552,14,FALSE) -> X | AF14: =VLOOKUP(B14,Species!B$3:AC$552,15,FALSE) -> 0 | AG14: =VLOOKUP(B14,Species!B$3:AC$552,16,FALSE) -> 0 | AH14: =VLOOKUP(B14,Species!B$3:AC$552,17,FALSE) -> 0 | AI14: =VLOOKUP(B14,Species!B$3:AC$552,18,FALSE) -> 0 | AJ14: =VLOOKUP(B14,Species!B$3:AC$552,19,FALSE) -> X | AK14: =VLOOKUP(B14,Species!B$3:AC$552,20,FALSE) ->  | AL14: =VLOOKUP(B14,Species!B$3:AJ$552,35,FALSE) -> 0 | AM14: =VLOOKUP(B14,Species!B$3:AH$552,33,FALSE) -> 0 | AN14: =VLOOKUP(B14,Species!B$3:I$552,8,FALSE) -> No | AO14: =VLOOKUP(B14,Species!B$3:BC$552,54,FALSE) -> 0 | AP14: =VLOOKUP(B14,Species!B$3:BE$552,55,FALSE) -> 0 | AQ14: =VLOOKUP(B14,Species!B$3:BE$552,56,FALSE) -> 0 | AY14: =HYPERLINK(VLOOKUP(B14,Species!B$3:BF$552,57,FALSE)) ->  | AZ14: =VLOOKUP(B14,Species!B$3:C$552,2,FALSE) -> Eleocharis erythropoda | BA14: =IF((G14>0),(K14*G14),0) -> 0 | BB14: =IF((E14>0)<>(F14>0),((U14/R14)+(K14*G14)),"0.000") -> 0.000 | BC14: =SUM(BA14:BB14) -> 0
B15: =Species!$B5 -> Baltic Rush | C15: =HYPERLINK(AY15,AZ15) -> Juncus balticus | H15: =BC15 -> 0 | I15: =IF((D15>0)<>(F15>0)<>(G15>0),((D15*R15)+(F15*B$2)+S15),"0.00") -> 0.00 | J15: =IF((F15<0.001),((E15+I15)/(PLSft2Total1+PLSft2Total2)),"0.00") ->  | K15: =VLOOKUP(B15,Species!B$3:Y$552,24,FALSE) -> 0 | L15: =VLOOKUP(B15,Species!B$3:AJ$552,35,FALSE) -> 0 | M15: =VLOOKUP(B15,Species!B$3:AD$552,29,FALSE) -> 6 | N15: =VLOOKUP(B15,Species!B$3:AB$552,27,FALSE) -> 480 | O15: 0 | P15: =VLOOKUP(B15,Species!B$3:AF$552,31,FALSE) -> Perennial Cool Season Sedge | Q15: =VLOOKUP(B15,Species!B$3:D$552,3,FALSE) -> Grass | R15: =VLOOKUP(B15,Species!B$3:W$552,22,FALSE) -> 0 | S15: 0 | T15: 0 | U15: 0 | W15: 0 | X15: =VLOOKUP(B15,Species!B$3:F$552,5,FALSE) -> No | Y15: =VLOOKUP(B15,Species!B$3:AC$552,28,FALSE) -> Native | Z15: =VLOOKUP(B15,Species!B$3:AC$552,9,FALSE) ->  | AA15: =VLOOKUP(B15,Species!B$3:AC$552,10,FALSE) -> X | AB15: =VLOOKUP(B15,Species!B$3:AC$552,11,FALSE) -> X | AC15: =VLOOKUP(B15,Species!B$3:AC$552,12,FALSE) -> X | AD15: =VLOOKUP(B15,Species!B$3:AC$552,13,FALSE) -> 0 | AE15: =VLOOKUP(B15,Species!B$3:AC$552,14,FALSE) -> 0 | AF15: =VLOOKUP(B15,Species!B$3:AC$552,15,FALSE) -> 0 | AG15: =VLOOKUP(B15,Species!B$3:AC$552,16,FALSE) ->  | AH15: =VLOOKUP(B15,Species!B$3:AC$552,17,FALSE) -> 0 | AI15: =VLOOKUP(B15,Species!B$3:AC$552,18,FALSE) -> 0 | AJ15: =VLOOKUP(B15,Species!B$3:AC$552,19,FALSE) -> X | AK15: =VLOOKUP(B15,Species!B$3:AC$552,20,FALSE) ->  | AL15: =VLOOKUP(B15,Species!B$3:AJ$552,35,FALSE) -> 0 | AM15: =VLOOKUP(B15,Species!B$3:AH$552,33,FALSE) -> 0 | AN15: =VLOOKUP(B15,Species!B$3:I$552,8,FALSE) -> No | AO15: =VLOOKUP(B15,Species!B$3:BC$552,54,FALSE) -> 0 | AP15: =VLOOKUP(B15,Species!B$3:BE$552,55,FALSE) -> 0 | AQ15: =VLOOKUP(B15,Species!B$3:BE$552,56,FALSE) -> 0 | AY15: =HYPERLINK(VLOOKUP(B15,Species!B$3:BF$552,57,FALSE)) -> http://plants.usda.gov/java/profile?symbol=JUARL | AZ15: =VLOOKUP(B15,Species!B$3:C$552,2,FALSE) -> Juncus balticus | BA15: 0 | BB15: 0.000 | BC15: 0
B16: =Species!$B6 -> Bermudagrass | C16: =HYPERLINK(AY16,AZ16) -> Cynodon dactylon | H16: 0 | I16: =IF((D16>0)<>(F16>0)<>(G16>0),((D16*R16)+(F16*B$2)+S16),"0.00") -> 0.00 | K16: =VLOOKUP(B16,Species!B$3:Y$552,24,FALSE) -> 2.1 | L16: =VLOOKUP(B16,Species!B$3:AJ$552,35,FALSE) -> 0 | M16: =VLOOKUP(B16,Species!B$3:AD$552,29,FALSE) -> N/A | N16: =VLOOKUP(B16,Species!B$3:AB$552,27,FALSE) -> 0 | O16: 0 | P16: =VLOOKUP(B16,Species!B$3:AF$552,31,FALSE) -> Perennial Warm Season Grass | Q16: =VLOOKUP(B16,Species!B$3:D$552,3,FALSE) -> Grass | R16: =VLOOKUP(B16,Species!B$3:W$552,22,FALSE) -> 47.54637282 | S16: 0 | T16: 0 | U16: 0 | W16: 0 | X16: =VLOOKUP(B16,Species!B$3:F$552,5,FALSE) -> Yes | Y16: =VLOOKUP(B16,Species!B$3:AC$552,28,FALSE) -> Introduced | Z16: =VLOOKUP(B16,Species!B$3:AC$552,9,FALSE) -> X | AA16: =VLOOKUP(B16,Species!B$3:AC$552,10,FALSE) -> X | AB16: =VLOOKUP(B16,Species!B$3:AC$552,11,FALSE) -> 0 | AC16: =VLOOKUP(B16,Species!B$3:AC$552,12,FALSE) -> 0 | AD16: =VLOOKUP(B16,Species!B$3:AC$552,13,FALSE) -> 0 | AE16: =VLOOKUP(B16,Species!B$3:AC$552,14,FALSE) -> 0 | AF16: =VLOOKUP(B16,Species!B$3:AC$552,15,FALSE) -> 0 | AG16: =VLOOKUP(B16,Species!B$3:AC$552,16,FALSE) -> 0 | AH16: =VLOOKUP(B16,Species!B$3:AC$552,17,FALSE) -> 0 | AI16: =VLOOKUP(B16,Species!B$3:AC$552,18,FALSE) -> 0 | AJ16: =VLOOKUP(B16,Species!B$3:AC$552,19,FALSE) -> 0 | AK16: =VLOOKUP(B16,Species!B$3:AC$552,20,FALSE) -> 0 | AL16: =VLOOKUP(B16,Species!B$3:AJ$552,35,FALSE) -> 0 | AM16: =VLOOKUP(B16,Species!B$3:AH$552,33,FALSE) -> 0 | AN16: =VLOOKUP(B16,Species!B$3:I$552,8,FALSE) -> No | AO16: =VLOOKUP(B16,Species!B$3:BC$552,54,FALSE) -> 0 | AP16: =VLOOKUP(B16,Species!B$3:BE$552,55,FALSE) -> 0 | AQ16: =VLOOKUP(B16,Species!B$3:BE$552,56,FALSE) -> 0 | AY16: =HYPERLINK(VLOOKUP(B16,Species!B$3:BF$552,57,FALSE)) -> http://plants.usda.gov/core/profile?symbol=CYDA | AZ16: =VLOOKUP(B16,Species!B$3:C$552,2,FALSE) -> Cynodon dactylon | BA16: 0 | BB16: 0.000 | BC16: 0
B17: =Species!$B7 -> Bicknell's Sedge | C17: Carex bicknellii | H17: 0 | I17: =IF((D17>0)<>(F17>0)<>(G17>0),((D17*R17)+(F17*B$2)+S17),"0.00") -> 0.00 | J17: =IF((F17<0.001),((E17+I17)/(PLSft2Total1+PLSft2Total2)),"0.00") ->  | K17: =VLOOKUP(B17,Species!B$3:Y$552,24,FALSE) -> 0 | L17: =VLOOKUP(B17,Species!B$3:AJ$552,35,FALSE) -> 0 | M17: =VLOOKUP(B17,Species!B$3:AD$552,29,FALSE) -> 8 | N17: =VLOOKUP(B17,Species!B$3:AB$552,27,FALSE) -> 320 | O17: 0 | P17: =VLOOKUP(B17,Species!B$3:AF$552,31,FALSE) -> Perennial Cool Season Sedge | Q17: =VLOOKUP(B17,Species!B$3:D$552,3,FALSE) -> Grass | R17: =VLOOKUP(B17,Species!B$3:W$552,22,FALSE) -> 0 | S17: =(G17*K17)*R17 -> 0 | T17: =D17+H17 -> 0 | U17: =I17+E17 -> 0 | V17: =J17+F17 ->  | W17: =H17+D17 -> 0 | X17: =VLOOKUP(B17,Species!B$3:F$552,5,FALSE) -> No | Y17: =VLOOKUP(B17,Species!B$3:AC$552,28,FALSE) -> Native | Z17: =VLOOKUP(B17,Species!B$3:AC$552,9,FALSE) ->  | AA17: =VLOOKUP(B17,Species!B$3:AC$552,10,FALSE) -> X | AB17: =VLOOKUP(B17,Species!B$3:AC$552,11,FALSE) -> X | AC17: =VLOOKUP(B17,Species!B$3:AC$552,12,FALSE) -> X | AD17: =VLOOKUP(B17,Species!B$3:AC$552,13,FALSE) -> 0 | AE17: =VLOOKUP(B17,Species!B$3:AC$552,14,FALSE) -> 0 | AF17: =VLOOKUP(B17,Species!B$3:AC$552,15,FALSE) -> 0 | AG17: =VLOOKUP(B17,Species!B$3:AC$552,16,FALSE) -> X | AH17: =VLOOKUP(B17,Species!B$3:AC$552,17,FALSE) -> 0 | AI17: =VLOOKUP(B17,Species!B$3:AC$552,18,FALSE) -> 0 | AJ17: =VLOOKUP(B17,Species!B$3:AC$552,19,FALSE) -> X | AK17: =VLOOKUP(B17,Species!B$3:AC$552,20,FALSE) ->  | AL17: =VLOOKUP(B17,Species!B$3:AJ$552,35,FALSE) -> 0 | AM17: =VLOOKUP(B17,Species!B$3:AH$552,33,FALSE) -> 0 | AN17: =VLOOKUP(B17,Species!B$3:I$552,8,FALSE) -> No | AO17: =VLOOKUP(B17,Species!B$3:BC$552,54,FALSE) -> 0 | AP17: =VLOOKUP(B17,Species!B$3:BE$552,55,FALSE) -> 0 | AQ17: =VLOOKUP(B17,Species!B$3:BE$552,56,FALSE) -> 0 | AR17: =IF(OR(D17>0,E17>0,F17>0,G17>0),"X","") ->  | AY17: =HYPERLINK(VLOOKUP(B17,Species!B$3:BF$552,57,FALSE)) -> http://plants.usda.gov/java/profile?symbol=CABI3 | AZ17: =VLOOKUP(B17,Species!B$3:C$552,2,FALSE) -> Carex bicknellii | BA17: 0 | BB17: 0.000 | BC17: 0
B18: =Species!$B8 -> Big Bluestem | C18: Andropogon gerardii | H18: 0 | I18: =IF((D18>0)<>(F18>0)<>(G18>0),((D18*R18)+(F18*B$2)+S18),"0.00") -> 0.00 | K18: =VLOOKUP(B18,Species!B$3:Y$552,24,FALSE) -> 8 | L18: =VLOOKUP(B18,Species!B$3:AJ$552,35,FALSE) -> 0 | M18: =VLOOKUP(B18,Species!B$3:AD$552,29,FALSE) -> 5 | N18: =VLOOKUP(B18,Species!B$3:AB$552,27,FALSE) -> 13.092 | O18: =((N18*(D18+H18))) -> 0 | P18: =VLOOKUP(B18,Species!B$3:AF$552,31,FALSE) -> Perennial Warm Season Grass | Q18: =VLOOKUP(B18,Species!B$3:D$552,3,FALSE) -> Grass | R18: =VLOOKUP(B18,Species!B$3:W$552,22,FALSE) -> 3.787878788 | S18: =(G18*K18)*R18 -> 0 | T18: 0 | U18: =I18+E18 -> 0 | W18: 0 | X18: =VLOOKUP(B18,Species!B$3:F$552,5,FALSE) -> Yes | Y18: =VLOOKUP(B18,Species!B$3:AC$552,28,FALSE) -> Native | Z18: =VLOOKUP(B18,Species!B$3:AC$552,9,FALSE) -> X | AA18: =VLOOKUP(B18,Species!B$3:AC$552,10,FALSE) -> X | AB18: =VLOOKUP(B18,Species!B$3:AC$552,11,FALSE) -> X | AC18: =VLOOKUP(B18,Species!B$3:AC$552,12,FALSE) -> X | AD18: =VLOOKUP(B18,Species!B$3:AC$552,13,FALSE) -> X | AE18: =VLOOKUP(B18,Species!B$3:AC$552,14,FALSE) -> X | AF18: =VLOOKUP(B18,Species!B$3:AC$552,15,FALSE) -> 0 | AG18: =VLOOKUP(B18,Species!B$3:AC$552,16,FALSE) -> X | AH18: =VLOOKUP(B18,Species!B$3:AC$552,17,FALSE) -> X | AI18: =VLOOKUP(B18,Species!B$3:AC$552,18,FALSE) -> 0 | AJ18: =VLOOKUP(B18,Species!B$3:AC$552,19,FALSE) -> X | AK18: =VLOOKUP(B18,Species!B$3:AC$552,20,FALSE) ->  | AL18: =VLOOKUP(B18,Species!B$3:AJ$552,35,FALSE) -> 0 | AM18: =VLOOKUP(B18,Species!B$3:AH$552,33,FALSE) -> 0 | AN18: =VLOOKUP(B18,Species!B$3:I$552,8,FALSE) -> Yes | AO18: =VLOOKUP(B18,Species!B$3:BC$552,54,FALSE) -> 0 | AP18: =VLOOKUP(B18,Species!B$3:BE$552,55,FALSE) -> 0 | AQ18: =VLOOKUP(B18,Species!B$3:BE$552,56,FALSE) -> 0 | AY18: =HYPERLINK(VLOOKUP(B18,Species!B$3:BF$552,57,FALSE)) -> http://plants.usda.gov/java/profile?symbol=ANGE | AZ18: =VLOOKUP(B18,Species!B$3:C$552,2,FALSE) -> Andropogon gerardii | BA18: 0 | BB18: 0.000 | BC18: 0
B19: =Species!$B9 -> Blister Sedge | C19: Carex vesicaria | H19: 0 | I19: 0.00 | K19: =VLOOKUP(B19,Species!B$3:Y$552,24,FALSE) -> 0 | L19: =VLOOKUP(B19,Species!B$3:AJ$552,35,FALSE) -> 0 | M19: =VLOOKUP(B19,Species!B$3:AD$552,29,FALSE) -> 0 | N19: =VLOOKUP(B19,Species!B$3:AB$552,27,FALSE) -> 640 | O19: 0 | P19: =VLOOKUP(B19,Species!B$3:AF$552,31,FALSE) -> Perennial Cool Season Sedge | Q19: =VLOOKUP(B19,Species!B$3:D$552,3,FALSE) -> Grass | R19: =VLOOKUP(B19,Species!B$3:W$552,22,FALSE) -> 0 | S19: 0 | T19: 0 | U19: 0 | W19: 0 | X19: =VLOOKUP(B19,Species!B$3:F$552,5,FALSE) -> No | Y19: =VLOOKUP(B19,Species!B$3:AC$552,28,FALSE) -> Native | Z19: =VLOOKUP(B19,Species!B$3:AC$552,9,FALSE) ->  | AA19: =VLOOKUP(B19,Species!B$3:AC$552,10,FALSE) ->  | AB19: =VLOOKUP(B19,Species!B$3:AC$552,11,FALSE) -> X | AC19: =VLOOKUP(B19,Species!B$3:AC$552,12,FALSE) -> 0 | AD19: =VLOOKUP(B19,Species!B$3:AC$552,13,FALSE) -> 0 | AE19: =VLOOKUP(B19,Species!B$3:AC$552,14,FALSE) -> X | AF19: =VLOOKUP(B19,Species!B$3:AC$552,15,FALSE) -> 0 | AG19: =VLOOKUP(B19,Species!B$3:AC$552,16,FALSE) -> X | AH19: =VLOOKUP(B19,Species!B$3:AC$552,17,FALSE) -> 0 | AI19: =VLOOKUP(B19,Species!B$3:AC$552,18,FALSE) -> 0 | AJ19: =VLOOKUP(B19,Species!B$3:AC$552,19,FALSE) -> X | AK19: =VLOOKUP(B19,Species!B$3:AC$552,20,FALSE) ->  | AL19: =VLOOKUP(B19,Species!B$3:AJ$552,35,FALSE) -> 0 | AM19: =VLOOKUP(B19,Species!B$3:AH$552,33,FALSE) -> 0 | AN19: =VLOOKUP(B19,Species!B$3:I$552,8,FALSE) -> No | AO19: =VLOOKUP(B19,Species!B$3:BC$552,54,FALSE) -> 0 | AP19: =VLOOKUP(B19,Species!B$3:BE$552,55,FALSE) -> 0 | AQ19: =VLOOKUP(B19,Species!B$3:BE$552,56,FALSE) -> 0 | AY19: =HYPERLINK(VLOOKUP(B19,Species!B$3:BF$552,57,FALSE)) -> http://plants.usda.gov/java/profile?symbol=CAVE6 | AZ19: =VLOOKUP(B19,Species!B$3:C$552,2,FALSE) -> Carex vesicaria | BA19: 0 | BB19: 0.000 | BC19: 0
B20: =Species!$B10 -> Blue Grama | C20: Bouteloua gracilis | H20: 0 | I20: =IF((D20>0)<>(F20>0)<>(G20>0),((D20*R20)+(F20*B$2)+S20),"0.00") -> 0.00 | K20: =VLOOKUP(B20,Species!B$3:Y$552,24,FALSE) -> 0 | L20: =VLOOKUP(B20,Species!B$3:AJ$552,35,FALSE) -> 0 | M20: =VLOOKUP(B20,Species!B$3:AD$552,29,FALSE) -> 8 | N20: =VLOOKUP(B20,Species!B$3:AB$552,27,FALSE) -> 17.57 | O20: 0 | P20: =VLOOKUP(B20,Species!B$3:AF$552,31,FALSE) -> Perennial Warm Season Grass | Q20: =VLOOKUP(B20,Species!B$3:D$552,3,FALSE) -> Grass | R20: =VLOOKUP(B20,Species!B$3:W$552,22,FALSE) -> 16.62993572 | S20: =(G20*K20)*R20 -> 0 | T20: 0 | U20: =I20+E20 -> 0 | W20: 0 | X20: =VLOOKUP(B20,Species!B$3:F$552,5,FALSE) -> Yes | Y20: =VLOOKUP(B20,Species!B$3:AC$552,28,FALSE) -> Native | Z20: =VLOOKUP(B20,Species!B$3:AC$552,9,FALSE) -> X | AA20: =VLOOKUP(B20,Species!B$3:AC$552,10,FALSE) ->  | AB20: =VLOOKUP(B20,Species!B$3:AC$552,11,FALSE) ->  | AC20: =VLOOKUP(B20,Species!B$3:AC$552,12,FALSE) -> X | AD20: =VLOOKUP(B20,Species!B$3:AC$552,13,FALSE) -> 0 | AE20: =VLOOKUP(B20,Species!B$3:AC$552,14,FALSE) -> 0 | AF20: =VLOOKUP(B20,Species!B$3:AC$552,15,FALSE) -> 0 | AG20: =VLOOKUP(B20,Species!B$3:AC$552,16,FALSE) -> X | AH20: =VLOOKUP(B20,Species!B$3:AC$552,17,FALSE) -> 0 | AI20: =VLOOKUP(B20,Species!B$3:AC$552,18,FALSE) -> 0 | AJ20: =VLOOKUP(B20,Species!B$3:AC$552,19,FALSE) ->  | AK20: =VLOOKUP(B20,Species!B$3:AC$552,20,FALSE) ->  | AL20: =VLOOKUP(B20,Species!B$3:AJ$552,35,FALSE) -> 0 | AM20: =VLOOKUP(B20,Species!B$3:AH$552,33,FALSE) -> 0 | AN20: =VLOOKUP(B20,Species!B$3:I$552,8,FALSE) -> No | AO20: =VLOOKUP(B20,Species!B$3:BC$552,54,FALSE) -> 0 | AP20: =VLOOKUP(B20,Species!B$3:BE$552,55,FALSE) -> 0 | AQ20: =VLOOKUP(B20,Species!B$3:BE$552,56,FALSE) -> 0 | AY20: =HYPERLINK(VLOOKUP(B20,Species!B$3:BF$552,57,FALSE)) -> http://plants.usda.gov/java/profile?symbol=BOGR2 | AZ20: =VLOOKUP(B20,Species!B$3:C$552,2,FALSE) -> Bouteloua gracilis | BA20: 0 | BB20: 0.000 | BC20: 0
B21: =Species!$B11 -> Bluejoint | C21: Calamagrostis canadensis | H21: 0 | I21: 0.00 | K21: =VLOOKUP(B21,Species!B$3:Y$552,24,FALSE) -> 0 | L21: =VLOOKUP(B21,Species!B$3:AJ$552,35,FALSE) -> 0 | M21: =VLOOKUP(B21,Species!B$3:AD$552,29,FALSE) -> 0 | N21: =VLOOKUP(B21,Species!B$3:AB$552,27,FALSE) -> 589.05 | O21: 0 | P21: =VLOOKUP(B21,Species!B$3:AF$552,31,FALSE) -> Perennial Cool Season Grass | Q21: =VLOOKUP(B21,Species!B$3:D$552,3,FALSE) -> Grass | R21: =VLOOKUP(B21,Species!B$3:W$552,22,FALSE) -> 88.09623508 | S21: 0 | T21: 0 | U21: 0 | W21: 0 | X21: =VLOOKUP(B21,Species!B$3:F$552,5,FALSE) -> Yes | Y21: =VLOOKUP(B21,Species!B$3:AC$552,28,FALSE) -> Native | Z21: =VLOOKUP(B21,Species!B$3:AC$552,9,FALSE) ->  | AA21: =VLOOKUP(B21,Species!B$3:AC$552,10,FALSE) ->  | AB21: =VLOOKUP(B21,Species!B$3:AC$552,11,FALSE) -> X | AC21: =VLOOKUP(B21,Species!B$3:AC$552,12,FALSE) -> X | AD21: =VLOOKUP(B21,Species!B$3:AC$552,13,FALSE) -> 0 | AE21: =VLOOKUP(B21,Species!B$3:AC$552,14,FALSE) -> 0 | AF21: =VLOOKUP(B21,Species!B$3:AC$552,15,FALSE) -> 0 | AG21: =VLOOKUP(B21,Species!B$3:AC$552,16,FALSE) -> X | AH21: =VLOOKUP(B21,Species!B$3:AC$552,17,FALSE) -> 0 | AI21: =VLOOKUP(B21,Species!B$3:AC$552,18,FALSE) -> 0 | AJ21: =VLOOKUP(B21,Species!B$3:AC$552,19,FALSE) -> X | AK21: =VLOOKUP(B21,Species!B$3:AC$552,20,FALSE) ->  | AL21: =VLOOKUP(B21,Species!B$3:AJ$552,35,FALSE) -> 0 | AM21: =VLOOKUP(B21,Species!B$3:AH$552,33,FALSE) -> 0 | AN21: =VLOOKUP(B21,Species!B$3:I$552,8,FALSE) -> No | AO21: =VLOOKUP(B21,Species!B$3:BC$552,54,FALSE) -> 0 | AP21: =VLOOKUP(B21,Species!B$3:BE$552,55,FALSE) -> 0 | AQ21: =VLOOKUP(B21,Species!B$3:BE$552,56,FALSE) -> 0 | AY21: =HYPERLINK(VLOOKUP(B21,Species!B$3:BF$552,57,FALSE)) -> http://plants.usda.gov/java/profile?symbol=CACA4 | AZ21: =VLOOKUP(B21,Species!B$3:C$552,2,FALSE) -> Calamagrostis canadensis | BA21: 0 | BB21: 0.000 | BC21: 0
B22: =Species!$B12 -> Blunt Broom Sedge | C22: Carex tribuloides | H22: 0 | I22: =IF((D22>0)<>(F22>0)<>(G22>0),((D22*R22)+(F22*B$2)+S22),"0.00") -> 0.00 | K22: =VLOOKUP(B22,Species!B$3:Y$552,24,FALSE) -> 0 | L22: =VLOOKUP(B22,Species!B$3:AJ$552,35,FALSE) -> 0 | M22: =VLOOKUP(B22,Species!B$3:AD$552,29,FALSE) -> 0 | N22: =VLOOKUP(B22,Species!B$3:AB$552,27,FALSE) -> 640 | O22: =((N22*(D22+H22))) -> 0 | P22: =VLOOKUP(B22,Species!B$3:AF$552,31,FALSE) -> Perennial Cool Season Sedge | Q22: =VLOOKUP(B22,Species!B$3:D$552,3,FALSE) -> Grass | R22: =VLOOKUP(B22,Species!B$3:W$552,22,FALSE) -> 0 | S22: =(G22*K22)*R22 -> 0 | T22: =D22+H22 -> 0 | U22: =I22+E22 -> 0 | V22: =J22+F22 ->  | W22: =H22+D22 -> 0 | X22: =VLOOKUP(B22,Species!B$3:F$552,5,FALSE) -> No | Y22: =VLOOKUP(B22,Species!B$3:AC$552,28,FALSE) -> Native | Z22: =VLOOKUP(B22,Species!B$3:AC$552,9,FALSE) ->  | AA22: =VLOOKUP(B22,Species!B$3:AC$552,10,FALSE) ->  | AB22: =VLOOKUP(B22,Species!B$3:AC$552,11,FALSE) -> X | AC22: =VLOOKUP(B22,Species!B$3:AC$552,12,FALSE) -> 0 | AD22: =VLOOKUP(B22,Species!B$3:AC$552,13,FALSE) -> 0 | AE22: =VLOOKUP(B22,Species!B$3:AC$552,14,FALSE) -> X | AF22: =VLOOKUP(B22,Species!B$3:AC$552,15,FALSE) -> 0 | AG22: =VLOOKUP(B22,Species!B$3:AC$552,16,FALSE) -> 0 | AH22: =VLOOKUP(B22,Species!B$3:AC$552,17,FALSE) -> 0 | AI22: =VLOOKUP(B22,Species!B$3:AC$552,18,FALSE) -> 0 | AJ22: =VLOOKUP(B22,Species!B$3:AC$552,19,FALSE) -> X | AK22: =VLOOKUP(B22,Species!B$3:AC$552,20,FALSE) ->  | AL22: =VLOOKUP(B22,Species!B$3:AJ$552,35,FALSE) -> 0 | AM22: =VLOOKUP(B22,Species!B$3:AH$552,33,FALSE) -> 0 | AN22: =VLOOKUP(B22,Species!B$3:I$552,8,FALSE) -> No | AO22: =VLOOKUP(B22,Species!B$3:BC$552,54,FALSE) -> 0 | AP22: =VLOOKUP(B22,Species!B$3:BE$552,55,FALSE) -> 0 | AQ22: =VLOOKUP(B22,Species!B$3:BE$552,56,FALSE) -> 0 | AY22: =HYPERLINK(VLOOKUP(B22,Species!B$3:BF$552,57,FALSE)) -> http://plants.usda.gov/java/profile?symbol=CATR7 | AZ22: =VLOOKUP(B22,Species!B$3:C$552,2,FALSE) -> Carex tribuloides | BA22: 0 | BB22: 0.000 | BC22: 0
B23: =Species!$B13 -> Blunt Spikerush | C23: Eleocharis obtusa | H23: 0 | I23: 0.00 | K23: =VLOOKUP(B23,Species!B$3:Y$552,24,FALSE) -> 0 | L23: =VLOOKUP(B23,Species!B$3:AJ$552,35,FALSE) -> 0 | M23: =VLOOKUP(B23,Species!B$3:AD$552,29,FALSE) -> 0 | N23: =VLOOKUP(B23,Species!B$3:AB$552,27,FALSE) -> 480 | O23: 0 | P23: =VLOOKUP(B23,Species!B$3:AF$552,31,FALSE) -> Annual Cool Season Sedge | Q23: =VLOOKUP(B23,Species!B$3:D$552,3,FALSE) -> Grass | R23: =VLOOKUP(B23,Species!B$3:W$552,22,FALSE) -> 0 | S23: 0 | T23: 0 | U23: 0 | W23: 0 | X23: =VLOOKUP(B23,Species!B$3:F$552,5,FALSE) -> No | Y23: =VLOOKUP(B23,Species!B$3:AC$552,28,FALSE) -> Native | Z23: =VLOOKUP(B23,Species!B$3:AC$552,9,FALSE) ->  | AA23: =VLOOKUP(B23,Species!B$3:AC$552,10,FALSE) ->  | AB23: =VLOOKUP(B23,Species!B$3:AC$552,11,FALSE) -> X | AC23: =VLOOKUP(B23,Species!B$3:AC$552,12,FALSE) -> X | AD23: =VLOOKUP(B23,Species!B$3:AC$552,13,FALSE) -> 0 | AE23: =VLOOKUP(B23,Species!B$3:AC$552,14,FALSE) -> 0 | AF23: =VLOOKUP(B23,Species!B$3:AC$552,15,FALSE) -> 0 | AG23: =VLOOKUP(B23,Species!B$3:AC$552,16,FALSE) ->  | AH23: =VLOOKUP(B23,Species!B$3:AC$552,17,FALSE) -> 0 | AI23: =VLOOKUP(B23,Species!B$3:AC$552,18,FALSE) -> 0 | AJ23: =VLOOKUP(B23,Species!B$3:AC$552,19,FALSE) -> X | AK23: =VLOOKUP(B23,Species!B$3:AC$552,20,FALSE) ->  | AL23: =VLOOKUP(B23,Species!B$3:AJ$552,35,FALSE) -> 0 | AM23: =VLOOKUP(B23,Species!B$3:AH$552,33,FALSE) -> 0 | AN23: =VLOOKUP(B23,Species!B$3:I$552,8,FALSE) -> No | AO23: =VLOOKUP(B23,Species!B$3:BC$552,54,FALSE) -> 0 | AP23: =VLOOKUP(B23,Species!B$3:BE$552,55,FALSE) -> 0 | AQ23: =VLOOKUP(B23,Species!B$3:BE$552,56,FALSE) -> 0 | AY23: =HYPERLINK(VLOOKUP(B23,Species!B$3:BF$552,57,FALSE)) -> http://plants.usda.gov/java/profile?symbol=ELOB2 | AZ23: =VLOOKUP(B23,Species!B$3:C$552,2,FALSE) -> Eleocharis obtusa | BA23: 0 | BB23: 0.000 | BC23: 0
B24: =Species!$B14 -> Bottlebrush Sedge | C24: Carex hystericina | H24: 0 | I24: 0.00 | K24: =VLOOKUP(B24,Species!B$3:Y$552,24,FALSE) -> 0 | L24: =VLOOKUP(B24,Species!B$3:AJ$552,35,FALSE) -> 0 | M24: =VLOOKUP(B24,Species!B$3:AD$552,29,FALSE) -> 7 | N24: =VLOOKUP(B24,Species!B$3:AB$552,27,FALSE) -> 150 | O24: 0 | P24: =VLOOKUP(B24,Species!B$3:AF$552,31,FALSE) -> Perennial Cool Season Sedge | Q24: =VLOOKUP(B24,Species!B$3:D$552,3,FALSE) -> Grass | R24: =VLOOKUP(B24,Species!B$3:W$552,22,FALSE) -> 0 | S24: 0 | T24: 0 | U24: 0 | W24: 0 | X24: =VLOOKUP(B24,Species!B$3:F$552,5,FALSE) -> No | Y24: =VLOOKUP(B24,Species!B$3:AC$552,28,FALSE) -> Native | Z24: =VLOOKUP(B24,Species!B$3:AC$552,9,FALSE) ->  | AA24: =VLOOKUP(B24,Species!B$3:AC$552,10,FALSE) ->  | AB24: =VLOOKUP(B24,Species!B$3:AC$552,11,FALSE) -> X | AC24: =VLOOKUP(B24,Species!B$3:AC$552,12,FALSE) -> 0 | AD24: =VLOOKUP(B24,Species!B$3:AC$552,13,FALSE) -> 0 | AE24: =VLOOKUP(B24,Species!B$3:AC$552,14,FALSE) -> 0 | AF24: =VLOOKUP(B24,Species!B$3:AC$552,15,FALSE) -> 0 | AG24: =VLOOKUP(B24,Species!B$3:AC$552,16,FALSE) -> 0 | AH24: =VLOOKUP(B24,Species!B$3:AC$552,17,FALSE) -> 0 | AI24: =VLOOKUP(B24,Species!B$3:AC$552,18,FALSE) -> 0 | AJ24: =VLOOKUP(B24,Species!B$3:AC$552,19,FALSE) -> X | AK24: =VLOOKUP(B24,Species!B$3:AC$552,20,FALSE) -> 0 | AL24: =VLOOKUP(B24,Species!B$3:AJ$552,35,FALSE) -> 0 | AM24: =VLOOKUP(B24,Species!B$3:AH$552,33,FALSE) -> 0 | AN24: =VLOOKUP(B24,Species!B$3:I$552,8,FALSE) -> No | AO24: =VLOOKUP(B24,Species!B$3:BC$552,54,FALSE) -> 0 | AP24: =VLOOKUP(B24,Species!B$3:BE$552,55,FALSE) -> 0 | AQ24: =VLOOKUP(B24,Species!B$3:BE$552,56,FALSE) -> 0 | AY24: =HYPERLINK(VLOOKUP(B24,Species!B$3:BF$552,57,FALSE)) -> http://plants.usda.gov/java/profile?symbol=CAHY4 | AZ24: =VLOOKUP(B24,Species!B$3:C$552,2,FALSE) -> Carex hystericina | BA24: 0 | BB24: 0.000 | BC24: 0
B25: =Species!$B15 -> Bristlystalked Sedge | C25: Carex leptalea | H25: 0 | I25: 0.00 | K25: =VLOOKUP(B25,Species!B$3:Y$552,24,FALSE) -> 0 | L25: =VLOOKUP(B25,Species!B$3:AJ$552,35,FALSE) -> 0 | M25: =VLOOKUP(B25,Species!B$3:AD$552,29,FALSE) -> 0 | N25: =VLOOKUP(B25,Species!B$3:AB$552,27,FALSE) -> 800 | O25: 0 | P25: =VLOOKUP(B25,Species!B$3:AF$552,31,FALSE) -> Perennial Cool Season Sedge | Q25: =VLOOKUP(B25,Species!B$3:D$552,3,FALSE) -> Grass | R25: =VLOOKUP(B25,Species!B$3:W$552,22,FALSE) -> 0 | S25: 0 | T25: 0 | U25: 0 | W25: 0 | X25: =VLOOKUP(B25,Species!B$3:F$552,5,FALSE) -> No | Y25: =VLOOKUP(B25,Species!B$3:AC$552,28,FALSE) -> Native | Z25: =VLOOKUP(B25,Species!B$3:AC$552,9,FALSE) ->  | AA25: =VLOOKUP(B25,Species!B$3:AC$552,10,FALSE) ->  | AB25: =VLOOKUP(B25,Species!B$3:AC$552,11,FALSE) -> X | AC25: =VLOOKUP(B25,Species!B$3:AC$552,12,FALSE) -> 0 | AD25: =VLOOKUP(B25,Species!B$3:AC$552,13,FALSE) -> 0 | AE25: =VLOOKUP(B25,Species!B$3:AC$552,14,FALSE) -> 0 | AF25: =VLOOKUP(B25,Species!B$3:AC$552,15,FALSE) -> 0 | AG25: =VLOOKUP(B25,Species!B$3:AC$552,16,FALSE) -> 0 | AH25: =VLOOKUP(B25,Species!B$3:AC$552,17,FALSE) -> 0 | AI25: =VLOOKUP(B25,Species!B$3:AC$552,18,FALSE) -> 0 | AJ25: =VLOOKUP(B25,Species!B$3:AC$552,19,FALSE) -> X | AK25: =VLOOKUP(B25,Species!B$3:AC$552,20,FALSE) ->  | AL25: =VLOOKUP(B25,Species!B$3:AJ$552,35,FALSE) -> 0 | AM25: =VLOOKUP(B25,Species!B$3:AH$552,33,FALSE) -> 0 | AN25: =VLOOKUP(B25,Species!B$3:I$552,8,FALSE) -> No | AO25: =VLOOKUP(B25,Species!B$3:BC$552,54,FALSE) -> 0 | AP25: =VLOOKUP(B25,Species!B$3:BE$552,55,FALSE) -> 0 | AQ25: =VLOOKUP(B25,Species!B$3:BE$552,56,FALSE) -> 0 | AY25: =HYPERLINK(VLOOKUP(B25,Species!B$3:BF$552,57,FALSE)) ->  | AZ25: =VLOOKUP(B25,Species!B$3:C$552,2,FALSE) -> Carex leptalea | BA25: 0 | BB25: 0.000 | BC25: 0
B26: =Species!$B16 -> Broomsedge (Bluestem) | C26: Andropogon virginicus | H26: 0 | I26: 0.00 | K26: =VLOOKUP(B26,Species!B$3:Y$552,24,FALSE) -> 0 | L26: =VLOOKUP(B26,Species!B$3:AJ$552,35,FALSE) -> 0 | M26: =VLOOKUP(B26,Species!B$3:AD$552,29,FALSE) -> 2 | N26: =VLOOKUP(B26,Species!B$3:AB$552,27,FALSE) -> 92.75 | O26: 0 | P26: =VLOOKUP(B26,Species!B$3:AF$552,31,FALSE) -> Perennial Warm Season Grass | Q26: =VLOOKUP(B26,Species!B$3:D$552,3,FALSE) -> Grass | R26: =VLOOKUP(B26,Species!B$3:W$552,22,FALSE) -> 18.36547291 | S26: 0 | T26: 0 | U26: 0 | W26: 0 | X26: =VLOOKUP(B26,Species!B$3:F$552,5,FALSE) -> Yes | Y26: =VLOOKUP(B26,Species!B$3:AC$552,28,FALSE) -> Native | Z26: =VLOOKUP(B26,Species!B$3:AC$552,9,FALSE) -> X | AA26: =VLOOKUP(B26,Species!B$3:AC$552,10,FALSE) -> X | AB26: =VLOOKUP(B26,Species!B$3:AC$552,11,FALSE) -> X | AC26: =VLOOKUP(B26,Species!B$3:AC$552,12,FALSE) -> X | AD26: =VLOOKUP(B26,Species!B$3:AC$552,13,FALSE) -> X | AE26: =VLOOKUP(B26,Species!B$3:AC$552,14,FALSE) -> X | AF26: =VLOOKUP(B26,Species!B$3:AC$552,15,FALSE) -> X | AG26: =VLOOKUP(B26,Species!B$3:AC$552,16,FALSE) -> X | AH26: =VLOOKUP(B26,Species!B$3:AC$552,17,FALSE) -> X | AI26: =VLOOKUP(B26,Species!B$3:AC$552,18,FALSE) -> 0 | AJ26: =VLOOKUP(B26,Species!B$3:AC$552,19,FALSE) -> 0 | AK26: =VLOOKUP(B26,Species!B$3:AC$552,20,FALSE) -> 0 | AL26: =VLOOKUP(B26,Species!B$3:AJ$552,35,FALSE) -> 0 | AM26: =VLOOKUP(B26,Species!B$3:AH$552,33,FALSE) -> 0 | AN26: =VLOOKUP(B26,Species!B$3:I$552,8,FALSE) -> Yes | AO26: =VLOOKUP(B26,Species!B$3:BC$552,54,FALSE) -> 0 | AP26: =VLOOKUP(B26,Species!B$3:BE$552,55,FALSE) -> 0 | AQ26: =VLOOKUP(B26,Species!B$3:BE$552,56,FALSE) -> 0 | AY26: =HYPERLINK(VLOOKUP(B26,Species!B$3:BF$552,57,FALSE)) -> http://plants.usda.gov/core/profile?symbol=ANVI2 | AZ26: =VLOOKUP(B26,Species!B$3:C$552,2,FALSE) -> Andropogon virginicus | BA26: 0 | BB26: 0.000 | BC26: 0
B27: =Species!$B17 -> Bur-reed Sedge | C27: Carex sparganioides | H27: 0 | I27: 0.00 | K27: =VLOOKUP(B27,Species!B$3:Y$552,24,FALSE) -> 0 | L27: =VLOOKUP(B27,Species!B$3:AJ$552,35,FALSE) -> 0 | M27: =VLOOKUP(B27,Species!B$3:AD$552,29,FALSE) -> 0 | N27: =VLOOKUP(B27,Species!B$3:AB$552,27,FALSE) -> 640 | O27: 0 | P27: =VLOOKUP(B27,Species!B$3:AF$552,31,FALSE) -> Perennial Cool Season Sedge | Q27: =VLOOKUP(B27,Species!B$3:D$552,3,FALSE) -> Grass | R27: =VLOOKUP(B27,Species!B$3:W$552,22,FALSE) -> 0 | S27: 0 | T27: 0 | U27: 0 | W27: 0 | X27: =VLOOKUP(B27,Species!B$3:F$552,5,FALSE) -> No | Y27: =VLOOKUP(B27,Species!B$3:AC$552,28,FALSE) -> Native | Z27: =VLOOKUP(B27,Species!B$3:AC$552,9,FALSE) ->  | AA27: =VLOOKUP(B27,Species!B$3:AC$552,10,FALSE) -> 0 | AB27: =VLOOKUP(B27,Species!B$3:AC$552,11,FALSE) -> X | AC27: =VLOOKUP(B27,Species!B$3:AC$552,12,FALSE) ->  | AD27: =VLOOKUP(B27,Species!B$3:AC$552,13,FALSE) -> X | AE27: =VLOOKUP(B27,Species!B$3:AC$552,14,FALSE) -> X | AF27: =VLOOKUP(B27,Species!B$3:AC$552,15,FALSE) -> 0 | AG27: =VLOOKUP(B27,Species!B$3:AC$552,16,FALSE) -> 0 | AH27: =VLOOKUP(B27,Species!B$3:AC$552,17,FALSE) -> 0 | AI27: =VLOOKUP(B27,Species!B$3:AC$552,18,FALSE) -> 0 | AJ27: =VLOOKUP(B27,Species!B$3:AC$552,19,FALSE) -> X | AK27: =VLOOKUP(B27,Species!B$3:AC$552,20,FALSE) -> 0 | AL27: =VLOOKUP(B27,Species!B$3:AJ$552,35,FALSE) -> 0 | AM27: =VLOOKUP(B27,Species!B$3:AH$552,33,FALSE) -> 0 | AN27: =VLOOKUP(B27,Species!B$3:I$552,8,FALSE) -> No | AO27: =VLOOKUP(B27,Species!B$3:BC$552,54,FALSE) -> 0 | AP27: =VLOOKUP(B27,Species!B$3:BE$552,55,FALSE) -> 0 | AQ27: =VLOOKUP(B27,Species!B$3:BE$552,56,FALSE) -> 0 | AY27: =HYPERLINK(VLOOKUP(B27,Species!B$3:BF$552,57,FALSE)) -> http://plants.usda.gov/java/profile?symbol=CASP3 | AZ27: =VLOOKUP(B27,Species!B$3:C$552,2,FALSE) -> Carex sparganioides | BA27: 0 | BB27: 0.000 | BC27: 0
B28: =Species!$B18 -> Bush's Sedge | C28: Carex bushii | H28: 0 | I28: 0.00 | K28: =VLOOKUP(B28,Species!B$3:Y$552,24,FALSE) -> 0 | L28: =VLOOKUP(B28,Species!B$3:AJ$552,35,FALSE) -> 0 | M28: =VLOOKUP(B28,Species!B$3:AD$552,29,FALSE) -> 0 | N28: =VLOOKUP(B28,Species!B$3:AB$552,27,FALSE) -> 75 | O28: 0 | P28: =VLOOKUP(B28,Species!B$3:AF$552,31,FALSE) -> Perennial Cool Season Sedge | Q28: =VLOOKUP(B28,Species!B$3:D$552,3,FALSE) -> Grass | R28: =VLOOKUP(B28,Species!B$3:W$552,22,FALSE) -> 0 | S28: 0 | T28: 0 | U28: 0 | W28: 0 | X28: =VLOOKUP(B28,Species!B$3:F$552,5,FALSE) -> No | Y28: =VLOOKUP(B28,Species!B$3:AC$552,28,FALSE) -> Native | Z28: =VLOOKUP(B28,Species!B$3:AC$552,9,FALSE) -> 0 | AA28: =VLOOKUP(B28,Species!B$3:AC$552,10,FALSE) -> 0 | AB28: =VLOOKUP(B28,Species!B$3:AC$552,11,FALSE) -> 0 | AC28: =VLOOKUP(B28,Species!B$3:AC$552,12,FALSE) -> 0 | AD28: =VLOOKUP(B28,Species!B$3:AC$552,13,FALSE) -> 0 | AE28: =VLOOKUP(B28,Species!B$3:AC$552,14,FALSE) -> 0 | AF28: =VLOOKUP(B28,Species!B$3:AC$552,15,FALSE) -> 0 | AG28: =VLOOKUP(B28,Species!B$3:AC$552,16,FALSE) -> 0 | AH28: =VLOOKUP(B28,Species!B$3:AC$552,17,FALSE) -> 0 | AI28: =VLOOKUP(B28,Species!B$3:AC$552,18,FALSE) -> 0 | AJ28: =VLOOKUP(B28,Species!B$3:AC$552,19,FALSE) -> 0 | AK28: =VLOOKUP(B28,Species!B$3:AC$552,20,FALSE) -> 0 | AL28: =VLOOKUP(B28,Species!B$3:AJ$552,35,FALSE) -> 0 | AM28: =VLOOKUP(B28,Species!B$3:AH$552,33,FALSE) -> 0 | AN28: =VLOOKUP(B28,Species!B$3:I$552,8,FALSE) -> No | AO28: =VLOOKUP(B28,Species!B$3:BC$552,54,FALSE) -> 0 | AP28: =VLOOKUP(B28,Species!B$3:BE$552,55,FALSE) -> 0 | AQ28: =VLOOKUP(B28,Species!B$3:BE$552,56,FALSE) -> 0 | AY28: =HYPERLINK(VLOOKUP(B28,Species!B$3:BF$552,57,FALSE)) ->  | AZ28: =VLOOKUP(B28,Species!B$3:C$552,2,FALSE) -> Carex bushii | BA28: 0 | BB28: 0.000 | BC28: 0
B29: =Species!$B19 -> Buxbaum's Sedge | C29: Carex buxbaumii | H29: 0 | I29: 0.00 | K29: =VLOOKUP(B29,Species!B$3:Y$552,24,FALSE) -> 0 | L29: =VLOOKUP(B29,Species!B$3:AJ$552,35,FALSE) -> 0 | M29: =VLOOKUP(B29,Species!B$3:AD$552,29,FALSE) -> 0 | N29: =VLOOKUP(B29,Species!B$3:AB$552,27,FALSE) -> 1920 | O29: 0 | P29: =VLOOKUP(B29,Species!B$3:AF$552,31,FALSE) -> Perennial Cool Season Sedge | Q29: =VLOOKUP(B29,Species!B$3:D$552,3,FALSE) -> Grass | R29: =VLOOKUP(B29,Species!B$3:W$552,22,FALSE) -> 0 | S29: 0 | T29: 0 | U29: 0 | W29: 0 | X29: =VLOOKUP(B29,Species!B$3:F$552,5,FALSE) -> No | Y29: =VLOOKUP(B29,Species!B$3:AC$552,28,FALSE) -> Native | Z29: =VLOOKUP(B29,Species!B$3:AC$552,9,FALSE) ->  | AA29: =VLOOKUP(B29,Species!B$3:AC$552,10,FALSE) ->  | AB29: =VLOOKUP(B29,Species!B$3:AC$552,11,FALSE) -> X | AC29: =VLOOKUP(B29,Species!B$3:AC$552,12,FALSE) -> 0 | AD29: =VLOOKUP(B29,Species!B$3:AC$552,13,FALSE) -> X | AE29: =VLOOKUP(B29,Species!B$3:AC$552,14,FALSE) -> X | AF29: =VLOOKUP(B29,Species!B$3:AC$552,15,FALSE) -> 0 | AG29: =VLOOKUP(B29,Species!B$3:AC$552,16,FALSE) -> 0 | AH29: =VLOOKUP(B29,Species!B$3:AC$552,17,FALSE) -> 0 | AI29: =VLOOKUP(B29,Species!B$3:AC$552,18,FALSE) -> 0 | AJ29: =VLOOKUP(B29,Species!B$3:AC$552,19,FALSE) -> X | AK29: =VLOOKUP(B29,Species!B$3:AC$552,20,FALSE) ->  | AL29: =VLOOKUP(B29,Species!B$3:AJ$552,35,FALSE) -> 0 | AM29: =VLOOKUP(B29,Species!B$3:AH$552,33,FALSE) -> 0 | AN29: =VLOOKUP(B29,Species!B$3:I$552,8,FALSE) -> No | AO29: =VLOOKUP(B29,Species!B$3:BC$552,54,FALSE) -> 0 | AP29: =VLOOKUP(B29,Species!B$3:BE$552,55,FALSE) -> 0 | AQ29: =VLOOKUP(B29,Species!B$3:BE$552,56,FALSE) -> 0 | AY29: =HYPERLINK(VLOOKUP(B29,Species!B$3:BF$552,57,FALSE)) ->  | AZ29: =VLOOKUP(B29,Species!B$3:C$552,2,FALSE) -> Carex buxbaumii | BA29: 0 | BB29: 0.000 | BC29: 0
B30: =Species!$B20 -> Canada Brome | C30: Bromus pubescens | H30: 0 | I30: 0.00 | K30: =VLOOKUP(B30,Species!B$3:Y$552,24,FALSE) -> 0 | L30: =VLOOKUP(B30,Species!B$3:AJ$552,35,FALSE) -> 0 | M30: =VLOOKUP(B30,Species!B$3:AD$552,29,FALSE) -> 0 | N30: =VLOOKUP(B30,Species!B$3:AB$552,27,FALSE) -> 120 | O30: 0 | P30: =VLOOKUP(B30,Species!B$3:AF$552,31,FALSE) -> Perennial Cool Season Grass | Q30: =VLOOKUP(B30,Species!B$3:D$552,3,FALSE) -> Grass | R30: =VLOOKUP(B30,Species!B$3:W$552,22,FALSE) -> 0 | S30: 0 | T30: 0 | U30: 0 | W30: 0 | X30: =VLOOKUP(B30,Species!B$3:F$552,5,FALSE) -> No | Y30: =VLOOKUP(B30,Species!B$3:AC$552,28,FALSE) -> Native | Z30: =VLOOKUP(B30,Species!B$3:AC$552,9,FALSE) -> X | AA30: =VLOOKUP(B30,Species!B$3:AC$552,10,FALSE) -> X | AB30: =VLOOKUP(B30,Species!B$3:AC$552,11,FALSE) ->  | AC30: =VLOOKUP(B30,Species!B$3:AC$552,12,FALSE) ->  | AD30: =VLOOKUP(B30,Species!B$3:AC$552,13,FALSE) -> 0 | AE30: =VLOOKUP(B30,Species!B$3:AC$552,14,FALSE) -> 0 | AF30: =VLOOKUP(B30,Species!B$3:AC$552,15,FALSE) -> 0 | AG30: =VLOOKUP(B30,Species!B$3:AC$552,16,FALSE) ->  | AH30: =VLOOKUP(B30,Species!B$3:AC$552,17,FALSE) -> 0 | AI30: =VLOOKUP(B30,Species!B$3:AC$552,18,FALSE) -> 0 | AJ30: =VLOOKUP(B30,Species!B$3:AC$552,19,FALSE) ->  | AK30: =VLOOKUP(B30,Species!B$3:AC$552,20,FALSE) -> X | AL30: =VLOOKUP(B30,Species!B$3:AJ$552,35,FALSE) -> 0 | AM30: =VLOOKUP(B30,Species!B$3:AH$552,33,FALSE) -> 0 | AN30: =VLOOKUP(B30,Species!B$3:I$552,8,FALSE) -> No | AO30: =VLOOKUP(B30,Species!B$3:BC$552,54,FALSE) -> 0 | AP30: =VLOOKUP(B30,Species!B$3:BE$552,55,FALSE) -> 0 | AQ30: =VLOOKUP(B30,Species!B$3:BE$552,56,FALSE) -> 0 | AY30: =HYPERLINK(VLOOKUP(B30,Species!B$3:BF$552,57,FALSE)) -> http://plants.usda.gov/core/profile?symbol=BRPU6 | AZ30: =VLOOKUP(B30,Species!B$3:C$552,2,FALSE) -> Bromus pubescens | BA30: 0 | BB30: 0.000 | BC30: 0
B31: =Species!$B21 -> Canada Wildrye | C31: Elymus canadensis | H31: 0 | I31: 0.00 | K31: =VLOOKUP(B31,Species!B$3:Y$552,24,FALSE) -> 15.3 | L31: =VLOOKUP(B31,Species!B$3:AJ$552,35,FALSE) -> 0 | M31: =VLOOKUP(B31,Species!B$3:AD$552,29,FALSE) -> 5 | N31: =VLOOKUP(B31,Species!B$3:AB$552,27,FALSE) -> 15.8975 | O31: 0 | P31: =VLOOKUP(B31,Species!B$3:AF$552,31,FALSE) -> Perennial Cool Season Grass | Q31: =VLOOKUP(B31,Species!B$3:D$552,3,FALSE) -> Grass | R31: =VLOOKUP(B31,Species!B$3:W$552,22,FALSE) -> 2.61707989 | S31: 0 | T31: 0 | U31: 0 | W31: 0 | X31: =VLOOKUP(B31,Species!B$3:F$552,5,FALSE) -> Yes | Y31: =VLOOKUP(B31,Species!B$3:AC$552,28,FALSE) -> Native | Z31: =VLOOKUP(B31,Species!B$3:AC$552,9,FALSE) -> 0 | AA31: =VLOOKUP(B31,Species!B$3:AC$552,10,FALSE) -> X | AB31: =VLOOKUP(B31,Species!B$3:AC$552,11,FALSE) -> X | AC31: =VLOOKUP(B31,Species!B$3:AC$552,12,FALSE) -> 0 | AD31: =VLOOKUP(B31,Species!B$3:AC$552,13,FALSE) -> X | AE31: =VLOOKUP(B31,Species!B$3:AC$552,14,FALSE) -> X | AF31: =VLOOKUP(B31,Species!B$3:AC$552,15,FALSE) -> 0 | AG31: =VLOOKUP(B31,Species!B$3:AC$552,16,FALSE) -> X | AH31: =VLOOKUP(B31,Species!B$3:AC$552,17,FALSE) -> 0 | AI31: =VLOOKUP(B31,Species!B$3:AC$552,18,FALSE) -> 0 | AJ31: =VLOOKUP(B31,Species!B$3:AC$552,19,FALSE) -> X | AK31: =VLOOKUP(B31,Species!B$3:AC$552,20,FALSE) -> X | AL31: =VLOOKUP(B31,Species!B$3:AJ$552,35,FALSE) -> 0 | AM31: =VLOOKUP(B31,Species!B$3:AH$552,33,FALSE) -> 0 | AN31: =VLOOKUP(B31,Species!B$3:I$552,8,FALSE) -> Yes | AO31: =VLOOKUP(B31,Species!B$3:BC$552,54,FALSE) -> 0 | AP31: =VLOOKUP(B31,Species!B$3:BE$552,55,FALSE) -> 0 | AQ31: =VLOOKUP(B31,Species!B$3:BE$552,56,FALSE) -> 0 | AY31: =HYPERLINK(VLOOKUP(B31,Species!B$3:BF$552,57,FALSE)) -> http://plants.usda.gov/java/profile?symbol=ELCA4 | AZ31: =VLOOKUP(B31,Species!B$3:C$552,2,FALSE) -> Elymus canadensis | BA31: 0 | BB31: 0.000 | BC31: 0
B32: =Species!$B22 -> Canadian Rush | C32: Juncus canadensis | H32: 0 | I32: 0.00 | K32: =VLOOKUP(B32,Species!B$3:Y$552,24,FALSE) -> 0 | L32: =VLOOKUP(B32,Species!B$3:AJ$552,35,FALSE) -> 0 | M32: =VLOOKUP(B32,Species!B$3:AD$552,29,FALSE) -> 0 | N32: =VLOOKUP(B32,Species!B$3:AB$552,27,FALSE) -> 640 | O32: 0 | P32: =VLOOKUP(B32,Species!B$3:AF$552,31,FALSE) -> Perennial Cool Season Rush | Q32: =VLOOKUP(B32,Species!B$3:D$552,3,FALSE) -> Grass | R32: =VLOOKUP(B32,Species!B$3:W$552,22,FALSE) -> 0 | S32: 0 | T32: 0 | U32: 0 | W32: 0 | X32: =VLOOKUP(B32,Species!B$3:F$552,5,FALSE) -> No | Y32: =VLOOKUP(B32,Species!B$3:AC$552,28,FALSE) -> Native | Z32: =VLOOKUP(B32,Species!B$3:AC$552,9,FALSE) ->  | AA32: =VLOOKUP(B32,Species!B$3:AC$552,10,FALSE) ->  | AB32: =VLOOKUP(B32,Species!B$3:AC$552,11,FALSE) -> X | AC32: =VLOOKUP(B32,Species!B$3:AC$552,12,FALSE) -> X | AD32: =VLOOKUP(B32,Species!B$3:AC$552,13,FALSE) -> 0 | AE32: =VLOOKUP(B32,Species!B$3:AC$552,14,FALSE) -> 0 | AF32: =VLOOKUP(B32,Species!B$3:AC$552,15,FALSE) -> 0 | AG32: =VLOOKUP(B32,Species!B$3:AC$552,16,FALSE) ->  | AH32: =VLOOKUP(B32,Species!B$3:AC$552,17,FALSE) -> 0 | AI32: =VLOOKUP(B32,Species!B$3:AC$552,18,FALSE) -> 0 | AJ32: =VLOOKUP(B32,Species!B$3:AC$552,19,FALSE) -> X | AK32: =VLOOKUP(B32,Species!B$3:AC$552,20,FALSE) ->  | AL32: =VLOOKUP(B32,Species!B$3:AJ$552,35,FALSE) -> 0 | AM32: =VLOOKUP(B32,Species!B$3:AH$552,33,FALSE) -> 0 | AN32: =VLOOKUP(B32,Species!B$3:I$552,8,FALSE) -> No | AO32: =VLOOKUP(B32,Species!B$3:BC$552,54,FALSE) -> 0 | AP32: =VLOOKUP(B32,Species!B$3:BE$552,55,FALSE) -> 0 | AQ32: =VLOOKUP(B32,Species!B$3:BE$552,56,FALSE) -> 0 | AY32: =HYPERLINK(VLOOKUP(B32,Species!B$3:BF$552,57,FALSE)) -> http://plants.usda.gov/java/profile?symbol=JUCA3 | AZ32: =VLOOKUP(B32,Species!B$3:C$552,2,FALSE) -> Juncus canadensis | BA32: 0 | BB32: 0.000 | BC32: 0
B33: =Species!$B23 -> Catchfly Grass | C33: Leersia lenticularis | H33: 0 | I33: 0.00 | K33: =VLOOKUP(B33,Species!B$3:Y$552,24,FALSE) -> 0 | L33: =VLOOKUP(B33,Species!B$3:AJ$552,35,FALSE) -> 0 | M33: =VLOOKUP(B33,Species!B$3:AD$552,29,FALSE) -> 0 | N33: =VLOOKUP(B33,Species!B$3:AB$552,27,FALSE) -> 480 | O33: 0 | P33: =VLOOKUP(B33,Species!B$3:AF$552,31,FALSE) -> Perennial Cool Season Grass | Q33: =VLOOKUP(B33,Species!B$3:D$552,3,FALSE) -> Grass | R33: =VLOOKUP(B33,Species!B$3:W$552,22,FALSE) -> 0 | S33: 0 | T33: 0 | U33: 0 | W33: 0 | X33: =VLOOKUP(B33,Species!B$3:F$552,5,FALSE) -> No | Y33: =VLOOKUP(B33,Species!B$3:AC$552,28,FALSE) -> Native | Z33: =VLOOKUP(B33,Species!B$3:AC$552,9,FALSE) ->  | AA33: =VLOOKUP(B33,Species!B$3:AC$552,10,FALSE) -> X | AB33: =VLOOKUP(B33,Species!B$3:AC$552,11,FALSE) -> X | AC33: =VLOOKUP(B33,Species!B$3:AC$552,12,FALSE) ->  | AD33: =VLOOKUP(B33,Species!B$3:AC$552,13,FALSE) -> 0 | AE33: =VLOOKUP(B33,Species!B$3:AC$552,14,FALSE) -> 0 | AF33: =VLOOKUP(B33,Species!B$3:AC$552,15,FALSE) -> 0 | AG33: =VLOOKUP(B33,Species!B$3:AC$552,16,FALSE) ->  | AH33: =VLOOKUP(B33,Species!B$3:AC$552,17,FALSE) -> 0 | AI33: =VLOOKUP(B33,Species!B$3:AC$552,18,FALSE) -> 0 | AJ33: =VLOOKUP(B33,Species!B$3:AC$552,19,FALSE) ->  | AK33: =VLOOKUP(B33,Species!B$3:AC$552,20,FALSE) -> X | AL33: =VLOOKUP(B33,Species!B$3:AJ$552,35,FALSE) -> 0 | AM33: =VLOOKUP(B33,Species!B$3:AH$552,33,FALSE) -> 0 | AN33: =VLOOKUP(B33,Species!B$3:I$552,8,FALSE) -> No | AO33: =VLOOKUP(B33,Species!B$3:BC$552,54,FALSE) -> 0 | AP33: =VLOOKUP(B33,Species!B$3:BE$552,55,FALSE) -> 0 | AQ33: =VLOOKUP(B33,Species!B$3:BE$552,56,FALSE) -> 0 | AY33: =HYPERLINK(VLOOKUP(B33,Species!B$3:BF$552,57,FALSE)) -> http://plants.usda.gov/core/profile?symbol=LELE2 | AZ33: =VLOOKUP(B33,Species!B$3:C$552,2,FALSE) -> Leersia lenticularis | BA33: 0 | BB33: 0.000 | BC33: 0
B34: =Species!$B24 -> Cattail Sedge | C34: Carex typhina | H34: 0 | I34: 0.00 | K34: =VLOOKUP(B34,Species!B$3:Y$552,24,FALSE) -> 0 | L34: =VLOOKUP(B34,Species!B$3:AJ$552,35,FALSE) -> 0 | M34: =VLOOKUP(B34,Species!B$3:AD$552,29,FALSE) -> 0 | N34: =VLOOKUP(B34,Species!B$3:AB$552,27,FALSE) -> 300 | O34: 0 | P34: =VLOOKUP(B34,Species!B$3:AF$552,31,FALSE) -> Perennial Cool Season Sedge | Q34: =VLOOKUP(B34,Species!B$3:D$552,3,FALSE) -> Grass | R34: =VLOOKUP(B34,Species!B$3:W$552,22,FALSE) -> 0 | S34: 0 | T34: 0 | U34: 0 | W34: 0 | X34: =VLOOKUP(B34,Species!B$3:F$552,5,FALSE) -> No | Y34: =VLOOKUP(B34,Species!B$3:AC$552,28,FALSE) -> Native | Z34: =VLOOKUP(B34,Species!B$3:AC$552,9,FALSE) ->  | AA34: =VLOOKUP(B34,Species!B$3:AC$552,10,FALSE) ->  | AB34: =VLOOKUP(B34,Species!B$3:AC$552,11,FALSE) -> X | AC34: =VLOOKUP(B34,Species!B$3:AC$552,12,FALSE) ->  | AD34: =VLOOKUP(B34,Species!B$3:AC$552,13,FALSE) -> 0 | AE34: =VLOOKUP(B34,Species!B$3:AC$552,14,FALSE) -> X | AF34: =VLOOKUP(B34,Species!B$3:AC$552,15,FALSE) -> 0 | AG34: =VLOOKUP(B34,Species!B$3:AC$552,16,FALSE) ->  | AH34: =VLOOKUP(B34,Species!B$3:AC$552,17,FALSE) -> 0 | AI34: =VLOOKUP(B34,Species!B$3:AC$552,18,FALSE) -> 0 | AJ34: =VLOOKUP(B34,Species!B$3:AC$552,19,FALSE) -> X | AK34: =VLOOKUP(B34,Species!B$3:AC$552,20,FALSE) -> 0 | AL34: =VLOOKUP(B34,Species!B$3:AJ$552,35,FALSE) -> 0 | AM34: =VLOOKUP(B34,Species!B$3:AH$552,33,FALSE) -> 0 | AN34: =VLOOKUP(B34,Species!B$3:I$552,8,FALSE) -> No | AO34: =VLOOKUP(B34,Species!B$3:BC$552,54,FALSE) -> 0 | AP34: =VLOOKUP(B34,Species!B$3:BE$552,55,FALSE) -> 0 | AQ34: =VLOOKUP(B34,Species!B$3:BE$552,56,FALSE) -> 0 | AY34: =HYPERLINK(VLOOKUP(B34,Species!B$3:BF$552,57,FALSE)) -> http://plants.usda.gov/java/profile?symbol=CATY | AZ34: =VLOOKUP(B34,Species!B$3:C$552,2,FALSE) -> Carex typhina | BA34: 0 | BB34: 0.000 | BC34: 0
B35: =Species!$B25 -> Caucasion (Oldworld) Bluestem | C35: Bothriochloa bladhii | H35: 0 | I35: 0.00 | K35: =VLOOKUP(B35,Species!B$3:Y$552,24,FALSE) -> 2.5 | L35: =VLOOKUP(B35,Species!B$3:AJ$552,35,FALSE) -> 0 | M35: =VLOOKUP(B35,Species!B$3:AD$552,29,FALSE) -> N/A | N35: =VLOOKUP(B35,Species!B$3:AB$552,27,FALSE) -> 0 | O35: 0 | P35: =VLOOKUP(B35,Species!B$3:AF$552,31,FALSE) -> Perennial Warm Season Grass | Q35: =VLOOKUP(B35,Species!B$3:D$552,3,FALSE) -> Grass | R35: =VLOOKUP(B35,Species!B$3:W$552,22,FALSE) -> 19.74288338 | S35: 0 | T35: 0 | U35: 0 | W35: 0 | X35: =VLOOKUP(B35,Species!B$3:F$552,5,FALSE) -> Yes | Y35: =VLOOKUP(B35,Species!B$3:AC$552,28,FALSE) -> Introduced | Z35: =VLOOKUP(B35,Species!B$3:AC$552,9,FALSE) -> X | AA35: =VLOOKUP(B35,Species!B$3:AC$552,10,FALSE) -> X | AB35: =VLOOKUP(B35,Species!B$3:AC$552,11,FALSE) -> 0 | AC35: =VLOOKUP(B35,Species!B$3:AC$552,12,FALSE) -> 0 | AD35: =VLOOKUP(B35,Species!B$3:AC$552,13,FALSE) -> 0 | AE35: =VLOOKUP(B35,Species!B$3:AC$552,14,FALSE) -> 0 | AF35: =VLOOKUP(B35,Species!B$3:AC$552,15,FALSE) -> 0 | AG35: =VLOOKUP(B35,Species!B$3:AC$552,16,FALSE) -> 0 | AH35: =VLOOKUP(B35,Species!B$3:AC$552,17,FALSE) -> 0 | AI35: =VLOOKUP(B35,Species!B$3:AC$552,18,FALSE) -> 0 | AJ35: =VLOOKUP(B35,Species!B$3:AC$552,19,FALSE) -> 0 | AK35: =VLOOKUP(B35,Species!B$3:AC$552,20,FALSE) -> 0 | AL35: =VLOOKUP(B35,Species!B$3:AJ$552,35,FALSE) -> 0 | AM35: =VLOOKUP(B35,Species!B$3:AH$552,33,FALSE) -> 0 | AN35: =VLOOKUP(B35,Species!B$3:I$552,8,FALSE) -> No | AO35: =VLOOKUP(B35,Species!B$3:BC$552,54,FALSE) -> 0 | AP35: =VLOOKUP(B35,Species!B$3:BE$552,55,FALSE) -> 0 | AQ35: =VLOOKUP(B35,Species!B$3:BE$552,56,FALSE) -> 0 | AY35: =HYPERLINK(VLOOKUP(B35,Species!B$3:BF$552,57,FALSE)) -> http://plants.usda.gov/core/profile?symbol=BOBL | AZ35: =VLOOKUP(B35,Species!B$3:C$552,2,FALSE) -> Bothriochloa bladhii | BA35: 0 | BB35: 0.000 | BC35: 0
B36: =Species!$B26 -> Cluster Fescue | C36: Festuca paradoxa | H36: 0 | I36: 0.00 | K36: =VLOOKUP(B36,Species!B$3:Y$552,24,FALSE) -> 0 | L36: =VLOOKUP(B36,Species!B$3:AJ$552,35,FALSE) -> 0 | M36: =VLOOKUP(B36,Species!B$3:AD$552,29,FALSE) -> 0 | N36: =VLOOKUP(B36,Species!B$3:AB$552,27,FALSE) -> 168 | O36: 0 | P36: =VLOOKUP(B36,Species!B$3:AF$552,31,FALSE) -> Perennial Cool Season Grass | Q36: =VLOOKUP(B36,Species!B$3:D$552,3,FALSE) -> Grass | R36: =VLOOKUP(B36,Species!B$3:W$552,22,FALSE) -> 8.448117539 | S36: 0 | T36: 0 | U36: 0 | W36: 0 | X36: =VLOOKUP(B36,Species!B$3:F$552,5,FALSE) -> No | Y36: =VLOOKUP(B36,Species!B$3:AC$552,28,FALSE) -> Native | Z36: =VLOOKUP(B36,Species!B$3:AC$552,9,FALSE) -> X | AA36: =VLOOKUP(B36,Species!B$3:AC$552,10,FALSE) -> X | AB36: =VLOOKUP(B36,Species!B$3:AC$552,11,FALSE) -> X | AC36: =VLOOKUP(B36,Species!B$3:AC$552,12,FALSE) -> X | AD36: =VLOOKUP(B36,Species!B$3:AC$552,13,FALSE) -> X | AE36: =VLOOKUP(B36,Species!B$3:AC$552,14,FALSE) -> X | AF36: =VLOOKUP(B36,Species!B$3:AC$552,15,FALSE) -> 0 | AG36: =VLOOKUP(B36,Species!B$3:AC$552,16,FALSE) -> X | AH36: =VLOOKUP(B36,Species!B$3:AC$552,17,FALSE) -> X | AI36: =VLOOKUP(B36,Species!B$3:AC$552,18,FALSE) -> 0 | AJ36: =VLOOKUP(B36,Species!B$3:AC$552,19,FALSE) -> 0 | AK36: =VLOOKUP(B36,Species!B$3:AC$552,20,FALSE) -> X | AL36: =VLOOKUP(B36,Species!B$3:AJ$552,35,FALSE) -> 0 | AM36: =VLOOKUP(B36,Species!B$3:AH$552,33,FALSE) -> 0 | AN36: =VLOOKUP(B36,Species!B$3:I$552,8,FALSE) -> No | AO36: =VLOOKUP(B36,Species!B$3:BC$552,54,FALSE) -> 0 | AP36: =VLOOKUP(B36,Species!B$3:BE$552,55,FALSE) -> 0 | AQ36: =VLOOKUP(B36,Species!B$3:BE$552,56,FALSE) -> 0 | AY36: =HYPERLINK(VLOOKUP(B36,Species!B$3:BF$552,57,FALSE)) -> http://plants.usda.gov/core/profile?symbol=FEPA2 | AZ36: =VLOOKUP(B36,Species!B$3:C$552,2,FALSE) -> Festuca paradoxa | BA36: 0 | BB36: 0.000 | BC36: 0
B37: =Species!$B27 -> Common Rush | C37: Juncus effusus | H37: 0 | I37: 0.00 | K37: =VLOOKUP(B37,Species!B$3:Y$552,24,FALSE) -> 0 | L37: =VLOOKUP(B37,Species!B$3:AJ$552,35,FALSE) -> 0 | M37: =VLOOKUP(B37,Species!B$3:AD$552,29,FALSE) -> 0 | N37: =VLOOKUP(B37,Species!B$3:AB$552,27,FALSE) -> 347.5 | O37: 0 | P37: =VLOOKUP(B37,Species!B$3:AF$552,31,FALSE) -> Perennial Cool Season Rush | Q37: =VLOOKUP(B37,Species!B$3:D$552,3,FALSE) -> Grass | R37: =VLOOKUP(B37,Species!B$3:W$552,22,FALSE) -> 1041.304913 | S37: 0 | T37: 0 | U37: 0 | W37: 0 | X37: =VLOOKUP(B37,Species!B$3:F$552,5,FALSE) -> Yes | Y37: =VLOOKUP(B37,Species!B$3:AC$552,28,FALSE) -> Native | Z37: =VLOOKUP(B37,Species!B$3:AC$552,9,FALSE) ->  | AA37: =VLOOKUP(B37,Species!B$3:AC$552,10,FALSE) ->  | AB37: =VLOOKUP(B37,Species!B$3:AC$552,11,FALSE) -> X | AC37: =VLOOKUP(B37,Species!B$3:AC$552,12,FALSE) -> X | AD37: =VLOOKUP(B37,Species!B$3:AC$552,13,FALSE) -> 0 | AE37: =VLOOKUP(B37,Species!B$3:AC$552,14,FALSE) -> 0 | AF37: =VLOOKUP(B37,Species!B$3:AC$552,15,FALSE) -> 0 | AG37: =VLOOKUP(B37,Species!B$3:AC$552,16,FALSE) -> X | AH37: =VLOOKUP(B37,Species!B$3:AC$552,17,FALSE) -> 0 | AI37: =VLOOKUP(B37,Species!B$3:AC$552,18,FALSE) -> 0 | AJ37: =VLOOKUP(B37,Species!B$3:AC$552,19,FALSE) -> X | AK37: =VLOOKUP(B37,Species!B$3:AC$552,20,FALSE) -> X | AL37: =VLOOKUP(B37,Species!B$3:AJ$552,35,FALSE) -> 0 | AM37: =VLOOKUP(B37,Species!B$3:AH$552,33,FALSE) -> 0 | AN37: =VLOOKUP(B37,Species!B$3:I$552,8,FALSE) -> No | AO37: =VLOOKUP(B37,Species!B$3:BC$552,54,FALSE) -> 0 | AP37: =VLOOKUP(B37,Species!B$3:BE$552,55,FALSE) -> 0 | AQ37: =VLOOKUP(B37,Species!B$3:BE$552,56,FALSE) -> 0 | AY37: =HYPERLINK(VLOOKUP(B37,Species!B$3:BF$552,57,FALSE)) -> http://plants.usda.gov/java/profile?symbol=JUEF | AZ37: =VLOOKUP(B37,Species!B$3:C$552,2,FALSE) -> Juncus effusus | BA37: 0 | BB37: 0.000 | BC37: 0
B38: =Species!$B28 -> Common Spikerush | C38: Eleocharis palustris | H38: 0 | I38: 0.00 | K38: =VLOOKUP(B38,Species!B$3:Y$552,24,FALSE) -> 0 | L38: =VLOOKUP(B38,Species!B$3:AJ$552,35,FALSE) -> 0 | M38: =VLOOKUP(B38,Species!B$3:AD$552,29,FALSE) -> 0 | N38: =VLOOKUP(B38,Species!B$3:AB$552,27,FALSE) -> 247.5 | O38: 0 | P38: =VLOOKUP(B38,Species!B$3:AF$552,31,FALSE) -> Perennial Cool Season Sedge | Q38: =VLOOKUP(B38,Species!B$3:D$552,3,FALSE) -> Grass | R38: =VLOOKUP(B38,Species!B$3:W$552,22,FALSE) -> 0 | S38: 0 | T38: 0 | U38: 0 | W38: 0 | X38: =VLOOKUP(B38,Species!B$3:F$552,5,FALSE) -> No | Y38: =VLOOKUP(B38,Species!B$3:AC$552,28,FALSE) -> Native | Z38: =VLOOKUP(B38,Species!B$3:AC$552,9,FALSE) ->  | AA38: =VLOOKUP(B38,Species!B$3:AC$552,10,FALSE) ->  | AB38: =VLOOKUP(B38,Species!B$3:AC$552,11,FALSE) -> X | AC38: =VLOOKUP(B38,Species!B$3:AC$552,12,FALSE) -> X | AD38: =VLOOKUP(B38,Species!B$3:AC$552,13,FALSE) -> 0 | AE38: =VLOOKUP(B38,Species!B$3:AC$552,14,FALSE) -> 0 | AF38: =VLOOKUP(B38,Species!B$3:AC$552,15,FALSE) -> 0 | AG38: =VLOOKUP(B38,Species!B$3:AC$552,16,FALSE) -> X | AH38: =VLOOKUP(B38,Species!B$3:AC$552,17,FALSE) -> 0 | AI38: =VLOOKUP(B38,Species!B$3:AC$552,18,FALSE) -> 0 | AJ38: =VLOOKUP(B38,Species!B$3:AC$552,19,FALSE) -> X | AK38: =VLOOKUP(B38,Species!B$3:AC$552,20,FALSE) ->  | AL38: =VLOOKUP(B38,Species!B$3:AJ$552,35,FALSE) -> 0 | AM38: =VLOOKUP(B38,Species!B$3:AH$552,33,FALSE) -> 0 | AN38: =VLOOKUP(B38,Species!B$3:I$552,8,FALSE) -> No | AO38: =VLOOKUP(B38,Species!B$3:BC$552,54,FALSE) -> 0 | AP38: =VLOOKUP(B38,Species!B$3:BE$552,55,FALSE) -> 0 | AQ38: =VLOOKUP(B38,Species!B$3:BE$552,56,FALSE) -> 0 | AY38: =HYPERLINK(VLOOKUP(B38,Species!B$3:BF$552,57,FALSE)) -> http://plants.usda.gov/java/profile?symbol=ELPA3 | AZ38: =VLOOKUP(B38,Species!B$3:C$552,2,FALSE) -> Eleocharis palustris | BA38: 0 | BB38: 0.000 | BC38: 0
B39: =Species!$B29 -> Common Three-square | C39: Schoenoplectus pungens | H39: 0 | I39: 0.00 | K39: =VLOOKUP(B39,Species!B$3:Y$552,24,FALSE) -> 0 | L39: =VLOOKUP(B39,Species!B$3:AJ$552,35,FALSE) -> 0 | M39: =VLOOKUP(B39,Species!B$3:AD$552,29,FALSE) -> 0 | N39: =VLOOKUP(B39,Species!B$3:AB$552,27,FALSE) -> 225 | O39: 0 | P39: =VLOOKUP(B39,Species!B$3:AF$552,31,FALSE) -> Perennial Cool Season Sedge | Q39: =VLOOKUP(B39,Species!B$3:D$552,3,FALSE) -> Grass | R39: =VLOOKUP(B39,Species!B$3:W$552,22,FALSE) -> 0 | S39: 0 | T39: 0 | U39: 0 | W39: 0 | X39: =VLOOKUP(B39,Species!B$3:F$552,5,FALSE) -> No | Y39: =VLOOKUP(B39,Species!B$3:AC$552,28,FALSE) -> Native | Z39: =VLOOKUP(B39,Species!B$3:AC$552,9,FALSE) ->  | AA39: =VLOOKUP(B39,Species!B$3:AC$552,10,FALSE) ->  | AB39: =VLOOKUP(B39,Species!B$3:AC$552,11,FALSE) -> X | AC39: =VLOOKUP(B39,Species!B$3:AC$552,12,FALSE) ->  | AD39: =VLOOKUP(B39,Species!B$3:AC$552,13,FALSE) -> 0 | AE39: =VLOOKUP(B39,Species!B$3:AC$552,14,FALSE) -> 0 | AF39: =VLOOKUP(B39,Species!B$3:AC$552,15,FALSE) -> 0 | AG39: =VLOOKUP(B39,Species!B$3:AC$552,16,FALSE) ->  | AH39: =VLOOKUP(B39,Species!B$3:AC$552,17,FALSE) -> 0 | AI39: =VLOOKUP(B39,Species!B$3:AC$552,18,FALSE) -> 0 | AJ39: =VLOOKUP(B39,Species!B$3:AC$552,19,FALSE) -> X | AK39: =VLOOKUP(B39,Species!B$3:AC$552,20,FALSE) ->  | AL39: =VLOOKUP(B39,Species!B$3:AJ$552,35,FALSE) -> 0 | AM39: =VLOOKUP(B39,Species!B$3:AH$552,33,FALSE) -> 0 | AN39: =VLOOKUP(B39,Species!B$3:I$552,8,FALSE) -> No | AO39: =VLOOKUP(B39,Species!B$3:BC$552,54,FALSE) -> 0 | AP39: =VLOOKUP(B39,Species!B$3:BE$552,55,FALSE) -> 0 | AQ39: =VLOOKUP(B39,Species!B$3:BE$552,56,FALSE) -> 0 | AY39: =HYPERLINK(VLOOKUP(B39,Species!B$3:BF$552,57,FALSE)) -> http://plants.usda.gov/java/profile?symbol=SCPU10 | AZ39: =VLOOKUP(B39,Species!B$3:C$552,2,FALSE) -> Schoenoplectus pungens | BA39: 0 | BB39: 0.000 | BC39: 0
B40: =Species!$B30 -> Composite Dropseed | C40: Sporobolus compositus | H40: 0 | I40: 0.00 | K40: =VLOOKUP(B40,Species!B$3:Y$552,24,FALSE) -> 2.3 | L40: =VLOOKUP(B40,Species!B$3:AJ$552,35,FALSE) -> 0 | M40: =VLOOKUP(B40,Species!B$3:AD$552,29,FALSE) -> 4 | N40: =VLOOKUP(B40,Species!B$3:AB$552,27,FALSE) -> 45 | O40: 0 | P40: =VLOOKUP(B40,Species!B$3:AF$552,31,FALSE) -> Perennial Warm Season Grass | Q40: =VLOOKUP(B40,Species!B$3:D$552,3,FALSE) -> Grass | R40: =VLOOKUP(B40,Species!B$3:W$552,22,FALSE) -> 17.4325528 | S40: 0 | T40: 0 | U40: 0 | W40: 0 | X40: =VLOOKUP(B40,Species!B$3:F$552,5,FALSE) -> Yes | Y40: =VLOOKUP(B40,Species!B$3:AC$552,28,FALSE) -> Native | Z40: =VLOOKUP(B40,Species!B$3:AC$552,9,FALSE) -> X | AA40: =VLOOKUP(B40,Species!B$3:AC$552,10,FALSE) -> X | AB40: =VLOOKUP(B40,Species!B$3:AC$552,11,FALSE) ->  | AC40: =VLOOKUP(B40,Species!B$3:AC$552,12,FALSE) -> X | AD40: =VLOOKUP(B40,Species!B$3:AC$552,13,FALSE) -> X | AE40: =VLOOKUP(B40,Species!B$3:AC$552,14,FALSE) -> 0 | AF40: =VLOOKUP(B40,Species!B$3:AC$552,15,FALSE) -> 0 | AG40: =VLOOKUP(B40,Species!B$3:AC$552,16,FALSE) -> X | AH40: =VLOOKUP(B40,Species!B$3:AC$552,17,FALSE) -> X | AI40: =VLOOKUP(B40,Species!B$3:AC$552,18,FALSE) -> 0 | AJ40: =VLOOKUP(B40,Species!B$3:AC$552,19,FALSE) ->  | AK40: =VLOOKUP(B40,Species!B$3:AC$552,20,FALSE) ->  | AL40: =VLOOKUP(B40,Species!B$3:AJ$552,35,FALSE) -> 0 | AM40: =VLOOKUP(B40,Species!B$3:AH$552,33,FALSE) -> 0 | AN40: =VLOOKUP(B40,Species!B$3:I$552,8,FALSE) -> Yes | AO40: =VLOOKUP(B40,Species!B$3:BC$552,54,FALSE) -> 0 | AP40: =VLOOKUP(B40,Species!B$3:BE$552,55,FALSE) -> 0 | AQ40: =VLOOKUP(B40,Species!B$3:BE$552,56,FALSE) -> 0 | AY40: =HYPERLINK(VLOOKUP(B40,Species!B$3:BF$552,57,FALSE)) -> http://plants.usda.gov/core/profile?symbol=SPCO16 | AZ40: =VLOOKUP(B40,Species!B$3:C$552,2,FALSE) -> Sporobolus compositus | BA40: 0 | BB40: 0.000 | BC40: 0
B41: =Species!$B31 -> Crested Sedge | C41: Carex cristatella | H41: 0 | I41: 0.00 | K41: =VLOOKUP(B41,Species!B$3:Y$552,24,FALSE) -> 0 | L41: =VLOOKUP(B41,Species!B$3:AJ$552,35,FALSE) -> 0 | M41: =VLOOKUP(B41,Species!B$3:AD$552,29,FALSE) -> 0 | N41: =VLOOKUP(B41,Species!B$3:AB$552,27,FALSE) -> 450 | O41: 0 | P41: =VLOOKUP(B41,Species!B$3:AF$552,31,FALSE) -> Perennial Cool Season Sedge | Q41: =VLOOKUP(B41,Species!B$3:D$552,3,FALSE) -> Grass | R41: =VLOOKUP(B41,Species!B$3:W$552,22,FALSE) -> 0 | S41: 0 | T41: 0 | U41: 0 | W41: 0 | X41: =VLOOKUP(B41,Species!B$3:F$552,5,FALSE) -> No | Y41: =VLOOKUP(B41,Species!B$3:AC$552,28,FALSE) -> Native | Z41: =VLOOKUP(B41,Species!B$3:AC$552,9,FALSE) ->  | AA41: =VLOOKUP(B41,Species!B$3:AC$552,10,FALSE) -> X | AB41: =VLOOKUP(B41,Species!B$3:AC$552,11,FALSE) -> X | AC41: =VLOOKUP(B41,Species!B$3:AC$552,12,FALSE) -> 0 | AD41: =VLOOKUP(B41,Species!B$3:AC$552,13,FALSE) -> X | AE41: =VLOOKUP(B41,Species!B$3:AC$552,14,FALSE) -> X | AF41: =VLOOKUP(B41,Species!B$3:AC$552,15,FALSE) -> 0 | AG41: =VLOOKUP(B41,Species!B$3:AC$552,16,FALSE) -> X | AH41: =VLOOKUP(B41,Species!B$3:AC$552,17,FALSE) -> 0 | AI41: =VLOOKUP(B41,Species!B$3:AC$552,18,FALSE) -> 0 | AJ41: =VLOOKUP(B41,Species!B$3:AC$552,19,FALSE) -> X | AK41: =VLOOKUP(B41,Species!B$3:AC$552,20,FALSE) -> 0 | AL41: =VLOOKUP(B41,Species!B$3:AJ$552,35,FALSE) -> 0 | AM41: =VLOOKUP(B41,Species!B$3:AH$552,33,FALSE) -> 0 | AN41: =VLOOKUP(B41,Species!B$3:I$552,8,FALSE) -> No | AO41: =VLOOKUP(B41,Species!B$3:BC$552,54,FALSE) -> 0 | AP41: =VLOOKUP(B41,Species!B$3:BE$552,55,FALSE) -> 0 | AQ41: =VLOOKUP(B41,Species!B$3:BE$552,56,FALSE) -> 0 | AY41: =HYPERLINK(VLOOKUP(B41,Species!B$3:BF$552,57,FALSE)) -> http://plants.usda.gov/java/profile?symbol=CACR7 | AZ41: =VLOOKUP(B41,Species!B$3:C$552,2,FALSE) -> Carex cristatella | BA41: 0 | BB41: 0.000 | BC41: 0
B42: =Species!$B32 -> Crowsfoot Sedge | C42: Carex crus-corvi | H42: 0 | I42: 0.00 | K42: =VLOOKUP(B42,Species!B$3:Y$552,24,FALSE) -> 0 | L42: =VLOOKUP(B42,Species!B$3:AJ$552,35,FALSE) -> 0 | M42: =VLOOKUP(B42,Species!B$3:AD$552,29,FALSE) -> 10 | N42: =VLOOKUP(B42,Species!B$3:AB$552,27,FALSE) -> 120 | O42: 0 | P42: =VLOOKUP(B42,Species!B$3:AF$552,31,FALSE) -> Perennial Cool Season Sedge | Q42: =VLOOKUP(B42,Species!B$3:D$552,3,FALSE) -> Grass | R42: =VLOOKUP(B42,Species!B$3:W$552,22,FALSE) -> 0 | S42: 0 | T42: 0 | U42: 0 | W42: 0 | X42: =VLOOKUP(B42,Species!B$3:F$552,5,FALSE) -> No | Y42: =VLOOKUP(B42,Species!B$3:AC$552,28,FALSE) -> Native | Z42: =VLOOKUP(B42,Species!B$3:AC$552,9,FALSE) ->  | AA42: =VLOOKUP(B42,Species!B$3:AC$552,10,FALSE) ->  | AB42: =VLOOKUP(B42,Species!B$3:AC$552,11,FALSE) -> X | AC42: =VLOOKUP(B42,Species!B$3:AC$552,12,FALSE) ->  | AD42: =VLOOKUP(B42,Species!B$3:AC$552,13,FALSE) -> 0 | AE42: =VLOOKUP(B42,Species!B$3:AC$552,14,FALSE) -> X | AF42: =VLOOKUP(B42,Species!B$3:AC$552,15,FALSE) -> 0 | AG42: =VLOOKUP(B42,Species!B$3:AC$552,16,FALSE) -> 0 | AH42: =VLOOKUP(B42,Species!B$3:AC$552,17,FALSE) -> 0 | AI42: =VLOOKUP(B42,Species!B$3:AC$552,18,FALSE) -> 0 | AJ42: =VLOOKUP(B42,Species!B$3:AC$552,19,FALSE) -> X | AK42: =VLOOKUP(B42,Species!B$3:AC$552,20,FALSE) -> 0 | AL42: =VLOOKUP(B42,Species!B$3:AJ$552,35,FALSE) -> 0 | AM42: =VLOOKUP(B42,Species!B$3:AH$552,33,FALSE) -> 0 | AN42: =VLOOKUP(B42,Species!B$3:I$552,8,FALSE) -> No | AO42: =VLOOKUP(B42,Species!B$3:BC$552,54,FALSE) -> 0 | AP42: =VLOOKUP(B42,Species!B$3:BE$552,55,FALSE) -> 0 | AQ42: =VLOOKUP(B42,Species!B$3:BE$552,56,FALSE) -> 0 | AY42: =HYPERLINK(VLOOKUP(B42,Species!B$3:BF$552,57,FALSE)) ->  | AZ42: =VLOOKUP(B42,Species!B$3:C$552,2,FALSE) -> Carex crus-corvi | BA42: 0 | BB42: 0.000 | BC42: 0
B43: =Species!$B33 -> Dioecious Sedge | C43: Carex sterilis | H43: 0 | I43: 0.00 | K43: =VLOOKUP(B43,Species!B$3:Y$552,24,FALSE) -> 0 | L43: =VLOOKUP(B43,Species!B$3:AJ$552,35,FALSE) -> 0 | M43: =VLOOKUP(B43,Species!B$3:AD$552,29,FALSE) -> 0 | N43: =VLOOKUP(B43,Species!B$3:AB$552,27,FALSE) -> 640 | O43: 0 | P43: =VLOOKUP(B43,Species!B$3:AF$552,31,FALSE) -> Perennial Cool Season Sedge | Q43: =VLOOKUP(B43,Species!B$3:D$552,3,FALSE) -> Grass | R43: =VLOOKUP(B43,Species!B$3:W$552,22,FALSE) -> 0 | S43: 0 | T43: 0 | U43: 0 | W43: 0 | X43: =VLOOKUP(B43,Species!B$3:F$552,5,FALSE) -> No | Y43: =VLOOKUP(B43,Species!B$3:AC$552,28,FALSE) -> Native | Z43: =VLOOKUP(B43,Species!B$3:AC$552,9,FALSE) ->  | AA43: =VLOOKUP(B43,Species!B$3:AC$552,10,FALSE) ->  | AB43: =VLOOKUP(B43,Species!B$3:AC$552,11,FALSE) -> X | AC43: =VLOOKUP(B43,Species!B$3:AC$552,12,FALSE) -> 0 | AD43: =VLOOKUP(B43,Species!B$3:AC$552,13,FALSE) -> 0 | AE43: =VLOOKUP(B43,Species!B$3:AC$552,14,FALSE) -> X | AF43: =VLOOKUP(B43,Species!B$3:AC$552,15,FALSE) -> 0 | AG43: =VLOOKUP(B43,Species!B$3:AC$552,16,FALSE) ->  | AH43: =VLOOKUP(B43,Species!B$3:AC$552,17,FALSE) -> 0 | AI43: =VLOOKUP(B43,Species!B$3:AC$552,18,FALSE) -> 0 | AJ43: =VLOOKUP(B43,Species!B$3:AC$552,19,FALSE) -> X | AK43: =VLOOKUP(B43,Species!B$3:AC$552,20,FALSE) ->  | AL43: =VLOOKUP(B43,Species!B$3:AJ$552,35,FALSE) -> 0 | AM43: =VLOOKUP(B43,Species!B$3:AH$552,33,FALSE) -> 0 | AN43: =VLOOKUP(B43,Species!B$3:I$552,8,FALSE) -> No | AO43: =VLOOKUP(B43,Species!B$3:BC$552,54,FALSE) -> 0 | AP43: =VLOOKUP(B43,Species!B$3:BE$552,55,FALSE) -> 0 | AQ43: =VLOOKUP(B43,Species!B$3:BE$552,56,FALSE) -> 0 | AY43: =HYPERLINK(VLOOKUP(B43,Species!B$3:BF$552,57,FALSE)) -> http://plants.usda.gov/java/profile?symbol=CAST16 | AZ43: =VLOOKUP(B43,Species!B$3:C$552,2,FALSE) -> Carex sterilis | BA43: 0 | BB43: 0.000 | BC43: 0
B44: =Species!$B34 -> Dudley's Rush | C44: Juncus dudleyi | H44: 0 | I44: 0.00 | K44: =VLOOKUP(B44,Species!B$3:Y$552,24,FALSE) -> 0 | L44: =VLOOKUP(B44,Species!B$3:AJ$552,35,FALSE) -> 0 | M44: =VLOOKUP(B44,Species!B$3:AD$552,29,FALSE) -> 0 | N44: =VLOOKUP(B44,Species!B$3:AB$552,27,FALSE) -> 600 | O44: 0 | P44: =VLOOKUP(B44,Species!B$3:AF$552,31,FALSE) -> Perennial Cool Season Rush | Q44: =VLOOKUP(B44,Species!B$3:D$552,3,FALSE) -> Grass | R44: =VLOOKUP(B44,Species!B$3:W$552,22,FALSE) -> 0 | S44: 0 | T44: 0 | U44: 0 | W44: 0 | X44: =VLOOKUP(B44,Species!B$3:F$552,5,FALSE) -> No | Y44: =VLOOKUP(B44,Species!B$3:AC$552,28,FALSE) -> Native | Z44: =VLOOKUP(B44,Species!B$3:AC$552,9,FALSE) ->  | AA44: =VLOOKUP(B44,Species!B$3:AC$552,10,FALSE) -> X | AB44: =VLOOKUP(B44,Species!B$3:AC$552,11,FALSE) -> X | AC44: =VLOOKUP(B44,Species!B$3:AC$552,12,FALSE) -> X | AD44: =VLOOKUP(B44,Species!B$3:AC$552,13,FALSE) -> 0 | AE44: =VLOOKUP(B44,Species!B$3:AC$552,14,FALSE) -> 0 | AF44: =VLOOKUP(B44,Species!B$3:AC$552,15,FALSE) -> 0 | AG44: =VLOOKUP(B44,Species!B$3:AC$552,16,FALSE) ->  | AH44: =VLOOKUP(B44,Species!B$3:AC$552,17,FALSE) -> 0 | AI44: =VLOOKUP(B44,Species!B$3:AC$552,18,FALSE) -> 0 | AJ44: =VLOOKUP(B44,Species!B$3:AC$552,19,FALSE) -> X | AK44: =VLOOKUP(B44,Species!B$3:AC$552,20,FALSE) ->  | AL44: =VLOOKUP(B44,Species!B$3:AJ$552,35,FALSE) -> 0 | AM44: =VLOOKUP(B44,Species!B$3:AH$552,33,FALSE) -> 0 | AN44: =VLOOKUP(B44,Species!B$3:I$552,8,FALSE) -> No | AO44: =VLOOKUP(B44,Species!B$3:BC$552,54,FALSE) -> 0 | AP44: =VLOOKUP(B44,Species!B$3:BE$552,55,FALSE) -> 0 | AQ44: =VLOOKUP(B44,Species!B$3:BE$552,56,FALSE) -> 0 | AY44: =HYPERLINK(VLOOKUP(B44,Species!B$3:BF$552,57,FALSE)) -> http://plants.usda.gov/java/profile?symbol=JUDU2 | AZ44: =VLOOKUP(B44,Species!B$3:C$552,2,FALSE) -> Juncus dudleyi | BA44: 0 | BB44: 0.000 | BC44: 0
B45: =Species!$B35 -> Eastern Bottlebrush Grass | C45: Elymus hystrix | H45: 0 | I45: 0.00 | K45: =VLOOKUP(B45,Species!B$3:Y$552,24,FALSE) -> 0 | L45: =VLOOKUP(B45,Species!B$3:AJ$552,35,FALSE) -> 0 | M45: =VLOOKUP(B45,Species!B$3:AD$552,29,FALSE) -> 4 | N45: =VLOOKUP(B45,Species!B$3:AB$552,27,FALSE) -> 192 | O45: 0 | P45: =VLOOKUP(B45,Species!B$3:AF$552,31,FALSE) -> Perennial Cool Season Grass | Q45: =VLOOKUP(B45,Species!B$3:D$552,3,FALSE) -> Grass | R45: =VLOOKUP(B45,Species!B$3:W$552,22,FALSE) -> 0 | S45: 0 | T45: 0 | U45: 0 | W45: 0 | X45: =VLOOKUP(B45,Species!B$3:F$552,5,FALSE) -> No | Y45: =VLOOKUP(B45,Species!B$3:AC$552,28,FALSE) -> Native | Z45: =VLOOKUP(B45,Species!B$3:AC$552,9,FALSE) -> X | AA45: =VLOOKUP(B45,Species!B$3:AC$552,10,FALSE) -> X | AB45: =VLOOKUP(B45,Species!B$3:AC$552,11,FALSE) ->  | AC45: =VLOOKUP(B45,Species!B$3:AC$552,12,FALSE) ->  | AD45: =VLOOKUP(B45,Species!B$3:AC$552,13,FALSE) -> 0 | AE45: =VLOOKUP(B45,Species!B$3:AC$552,14,FALSE) -> 0 | AF45: =VLOOKUP(B45,Species!B$3:AC$552,15,FALSE) -> 0 | AG45: =VLOOKUP(B45,Species!B$3:AC$552,16,FALSE) -> X | AH45: =VLOOKUP(B45,Species!B$3:AC$552,17,FALSE) -> 0 | AI45: =VLOOKUP(B45,Species!B$3:AC$552,18,FALSE) -> 0 | AJ45: =VLOOKUP(B45,Species!B$3:AC$552,19,FALSE) ->  | AK45: =VLOOKUP(B45,Species!B$3:AC$552,20,FALSE) -> X | AL45: =VLOOKUP(B45,Species!B$3:AJ$552,35,FALSE) -> 0 | AM45: =VLOOKUP(B45,Species!B$3:AH$552,33,FALSE) -> 0 | AN45: =VLOOKUP(B45,Species!B$3:I$552,8,FALSE) -> No | AO45: =VLOOKUP(B45,Species!B$3:BC$552,54,FALSE) -> 0 | AP45: =VLOOKUP(B45,Species!B$3:BE$552,55,FALSE) -> 0 | AQ45: =VLOOKUP(B45,Species!B$3:BE$552,56,FALSE) -> 0 | AY45: =HYPERLINK(VLOOKUP(B45,Species!B$3:BF$552,57,FALSE)) -> http://plants.usda.gov/java/profile?symbol=ELHY | AZ45: =VLOOKUP(B45,Species!B$3:C$552,2,FALSE) -> Elymus hystrix | BA45: 0 | BB45: 0.000 | BC45: 0
B46: =Species!$B36 -> Eastern Gamagrass | C46: Tripsacum dactyloides | H46: 0 | I46: 0.00 | K46: =VLOOKUP(B46,Species!B$3:Y$552,24,FALSE) -> 8 | L46: =VLOOKUP(B46,Species!B$3:AJ$552,35,FALSE) -> 0 | M46: =VLOOKUP(B46,Species!B$3:AD$552,29,FALSE) -> 5 | N46: =VLOOKUP(B46,Species!B$3:AB$552,27,FALSE) -> 20.43666667 | O46: 0 | P46: =VLOOKUP(B46,Species!B$3:AF$552,31,FALSE) -> Perennial Warm Season Grass | Q46: =VLOOKUP(B46,Species!B$3:D$552,3,FALSE) -> Grass | R46: =VLOOKUP(B46,Species!B$3:W$552,22,FALSE) -> 0.1721763085 | S46: 0 | T46: 0 | U46: 0 | W46: 0 | X46: =VLOOKUP(B46,Species!B$3:F$552,5,FALSE) -> Yes | Y46: =VLOOKUP(B46,Species!B$3:AC$552,28,FALSE) -> Native | Z46: =VLOOKUP(B46,Species!B$3:AC$552,9,FALSE) -> X | AA46: =VLOOKUP(B46,Species!B$3:AC$552,10,FALSE) -> X | AB46: =VLOOKUP(B46,Species!B$3:AC$552,11,FALSE) -> X | AC46: =VLOOKUP(B46,Species!B$3:AC$552,12,FALSE) -> X | AD46: =VLOOKUP(B46,Species!B$3:AC$552,13,FALSE) -> X | AE46: =VLOOKUP(B46,Species!B$3:AC$552,14,FALSE) -> X | AF46: =VLOOKUP(B46,Species!B$3:AC$552,15,FALSE) -> 0 | AG46: =VLOOKUP(B46,Species!B$3:AC$552,16,FALSE) -> X | AH46: =VLOOKUP(B46,Species!B$3:AC$552,17,FALSE) -> 0 | AI46: =VLOOKUP(B46,Species!B$3:AC$552,18,FALSE) -> 0 | AJ46: =VLOOKUP(B46,Species!B$3:AC$552,19,FALSE) -> X | AK46: =VLOOKUP(B46,Species!B$3:AC$552,20,FALSE) ->  | AL46: =VLOOKUP(B46,Species!B$3:AJ$552,35,FALSE) -> 0 | AM46: =VLOOKUP(B46,Species!B$3:AH$552,33,FALSE) -> 0 | AN46: =VLOOKUP(B46,Species!B$3:I$552,8,FALSE) -> Yes | AO46: =VLOOKUP(B46,Species!B$3:BC$552,54,FALSE) -> 0 | AP46: =VLOOKUP(B46,Species!B$3:BE$552,55,FALSE) -> 0 | AQ46: =VLOOKUP(B46,Species!B$3:BE$552,56,FALSE) -> 0 | AY46: =HYPERLINK(VLOOKUP(B46,Species!B$3:BF$552,57,FALSE)) -> http://plants.usda.gov/java/profile?symbol=TRDA3 | AZ46: =VLOOKUP(B46,Species!B$3:C$552,2,FALSE) -> Tripsacum dactyloides | BA46: 0 | BB46: 0.000 | BC46: 0
B47: =Species!$B37 -> Eastern Mannagrass | C47: Glyceria septentrionalis | H47: 0 | I47: 0.00 | K47: =VLOOKUP(B47,Species!B$3:Y$552,24,FALSE) -> 0 | L47: =VLOOKUP(B47,Species!B$3:AJ$552,35,FALSE) -> 0 | M47: =VLOOKUP(B47,Species!B$3:AD$552,29,FALSE) -> 0 | N47: =VLOOKUP(B47,Species!B$3:AB$552,27,FALSE) -> 1280 | O47: 0 | P47: =VLOOKUP(B47,Species!B$3:AF$552,31,FALSE) -> Perennial Cool Season Grass | Q47: =VLOOKUP(B47,Species!B$3:D$552,3,FALSE) -> Grass | R47: =VLOOKUP(B47,Species!B$3:W$552,22,FALSE) -> 0 | S47: 0 | T47: 0 | U47: 0 | W47: 0 | X47: =VLOOKUP(B47,Species!B$3:F$552,5,FALSE) -> No | Y47: =VLOOKUP(B47,Species!B$3:AC$552,28,FALSE) -> Native | Z47: =VLOOKUP(B47,Species!B$3:AC$552,9,FALSE) ->  | AA47: =VLOOKUP(B47,Species!B$3:AC$552,10,FALSE) ->  | AB47: =VLOOKUP(B47,Species!B$3:AC$552,11,FALSE) -> X | AC47: =VLOOKUP(B47,Species!B$3:AC$552,12,FALSE) -> X | AD47: =VLOOKUP(B47,Species!B$3:AC$552,13,FALSE) -> 0 | AE47: =VLOOKUP(B47,Species!B$3:AC$552,14,FALSE) -> 0 | AF47: =VLOOKUP(B47,Species!B$3:AC$552,15,FALSE) -> 0 | AG47: =VLOOKUP(B47,Species!B$3:AC$552,16,FALSE) -> X | AH47: =VLOOKUP(B47,Species!B$3:AC$552,17,FALSE) -> 0 | AI47: =VLOOKUP(B47,Species!B$3:AC$552,18,FALSE) -> 0 | AJ47: =VLOOKUP(B47,Species!B$3:AC$552,19,FALSE) -> X | AK47: =VLOOKUP(B47,Species!B$3:AC$552,20,FALSE) ->  | AL47: =VLOOKUP(B47,Species!B$3:AJ$552,35,FALSE) -> 0 | AM47: =VLOOKUP(B47,Species!B$3:AH$552,33,FALSE) -> 0 | AN47: =VLOOKUP(B47,Species!B$3:I$552,8,FALSE) -> No | AO47: =VLOOKUP(B47,Species!B$3:BC$552,54,FALSE) -> 0 | AP47: =VLOOKUP(B47,Species!B$3:BE$552,55,FALSE) -> 0 | AQ47: =VLOOKUP(B47,Species!B$3:BE$552,56,FALSE) -> 0 | AY47: =HYPERLINK(VLOOKUP(B47,Species!B$3:BF$552,57,FALSE)) -> http://plants.usda.gov/core/profile?symbol=GLSE3 | AZ47: =VLOOKUP(B47,Species!B$3:C$552,2,FALSE) -> Glyceria septentrionalis | BA47: 0 | BB47: 0.000 | BC47: 0
B48: =Species!$B38 -> Eastern Narrowleaf Sedge | C48: Carex amphibola | H48: 0 | I48: 0.00 | K48: =VLOOKUP(B48,Species!B$3:Y$552,24,FALSE) -> 0 | L48: =VLOOKUP(B48,Species!B$3:AJ$552,35,FALSE) -> 0 | M48: =VLOOKUP(B48,Species!B$3:AD$552,29,FALSE) -> 0 | N48: =VLOOKUP(B48,Species!B$3:AB$552,27,FALSE) -> 640 | O48: 0 | P48: =VLOOKUP(B48,Species!B$3:AF$552,31,FALSE) -> Perennial Cool Season Sedge | Q48: =VLOOKUP(B48,Species!B$3:D$552,3,FALSE) -> Grass | R48: =VLOOKUP(B48,Species!B$3:W$552,22,FALSE) -> 0 | S48: 0 | T48: 0 | U48: 0 | W48: 0 | X48: =VLOOKUP(B48,Species!B$3:F$552,5,FALSE) -> No | Y48: =VLOOKUP(B48,Species!B$3:AC$552,28,FALSE) -> Native | Z48: =VLOOKUP(B48,Species!B$3:AC$552,9,FALSE) ->  | AA48: =VLOOKUP(B48,Species!B$3:AC$552,10,FALSE) -> X | AB48: =VLOOKUP(B48,Species!B$3:AC$552,11,FALSE) ->  | AC48: =VLOOKUP(B48,Species!B$3:AC$552,12,FALSE) ->  | AD48: =VLOOKUP(B48,Species!B$3:AC$552,13,FALSE) -> 0 | AE48: =VLOOKUP(B48,Species!B$3:AC$552,14,FALSE) -> 0 | AF48: =VLOOKUP(B48,Species!B$3:AC$552,15,FALSE) -> 0 | AG48: =VLOOKUP(B48,Species!B$3:AC$552,16,FALSE) -> X | AH48: =VLOOKUP(B48,Species!B$3:AC$552,17,FALSE) -> 0 | AI48: =VLOOKUP(B48,Species!B$3:AC$552,18,FALSE) -> 0 | AJ48: =VLOOKUP(B48,Species!B$3:AC$552,19,FALSE) ->  | AK48: =VLOOKUP(B48,Species!B$3:AC$552,20,FALSE) -> X | AL48: =VLOOKUP(B48,Species!B$3:AJ$552,35,FALSE) -> 0 | AM48: =VLOOKUP(B48,Species!B$3:AH$552,33,FALSE) -> 0 | AN48: =VLOOKUP(B48,Species!B$3:I$552,8,FALSE) -> No | AO48: =VLOOKUP(B48,Species!B$3:BC$552,54,FALSE) -> 0 | AP48: =VLOOKUP(B48,Species!B$3:BE$552,55,FALSE) -> 0 | AQ48: =VLOOKUP(B48,Species!B$3:BE$552,56,FALSE) -> 0 | AY48: =HYPERLINK(VLOOKUP(B48,Species!B$3:BF$552,57,FALSE)) ->  | AZ48: =VLOOKUP(B48,Species!B$3:C$552,2,FALSE) -> Carex amphibola | BA48: 0 | BB48: 0.000 | BC48: 0
B49: =Species!$B39 -> Eastern Woodland Sedge | C49: Carex blanda | H49: 0 | I49: 0.00 | K49: =VLOOKUP(B49,Species!B$3:Y$552,24,FALSE) -> 0 | L49: =VLOOKUP(B49,Species!B$3:AJ$552,35,FALSE) -> 0 | M49: =VLOOKUP(B49,Species!B$3:AD$552,29,FALSE) -> 0 | N49: =VLOOKUP(B49,Species!B$3:AB$552,27,FALSE) -> 480 | O49: 0 | P49: =VLOOKUP(B49,Species!B$3:AF$552,31,FALSE) -> Perennial Cool Season Sedge | Q49: =VLOOKUP(B49,Species!B$3:D$552,3,FALSE) -> Grass | R49: =VLOOKUP(B49,Species!B$3:W$552,22,FALSE) -> 0 | S49: 0 | T49: 0 | U49: 0 | W49: 0 | X49: =VLOOKUP(B49,Species!B$3:F$552,5,FALSE) -> No | Y49: =VLOOKUP(B49,Species!B$3:AC$552,28,FALSE) -> Native | Z49: =VLOOKUP(B49,Species!B$3:AC$552,9,FALSE) ->  | AA49: =VLOOKUP(B49,Species!B$3:AC$552,10,FALSE) -> X | AB49: =VLOOKUP(B49,Species!B$3:AC$552,11,FALSE) -> X | AC49: =VLOOKUP(B49,Species!B$3:AC$552,12,FALSE) ->  | AD49: =VLOOKUP(B49,Species!B$3:AC$552,13,FALSE) -> X | AE49: =VLOOKUP(B49,Species!B$3:AC$552,14,FALSE) -> X | AF49: =VLOOKUP(B49,Species!B$3:AC$552,15,FALSE) -> 0 | AG49: =VLOOKUP(B49,Species!B$3:AC$552,16,FALSE) -> 0 | AH49: =VLOOKUP(B49,Species!B$3:AC$552,17,FALSE) -> 0 | AI49: =VLOOKUP(B49,Species!B$3:AC$552,18,FALSE) -> 0 | AJ49: =VLOOKUP(B49,Species!B$3:AC$552,19,FALSE) -> X | AK49: =VLOOKUP(B49,Species!B$3:AC$552,20,FALSE) ->  | AL49: =VLOOKUP(B49,Species!B$3:AJ$552,35,FALSE) -> 0 | AM49: =VLOOKUP(B49,Species!B$3:AH$552,33,FALSE) -> 0 | AN49: =VLOOKUP(B49,Species!B$3:I$552,8,FALSE) -> No | AO49: =VLOOKUP(B49,Species!B$3:BC$552,54,FALSE) -> 0 | AP49: =VLOOKUP(B49,Species!B$3:BE$552,55,FALSE) -> 0 | AQ49: =VLOOKUP(B49,Species!B$3:BE$552,56,FALSE) -> 0 | AY49: =HYPERLINK(VLOOKUP(B49,Species!B$3:BF$552,57,FALSE)) ->  | AZ49: =VLOOKUP(B49,Species!B$3:C$552,2,FALSE) -> Carex blanda | BA49: 0 | BB49: 0.000 | BC49: 0
B50: =Species!$B40 -> Elliott's Bluestem | C50: Andropogon gyrans | H50: 0 | I50: 0.00 | K50: =VLOOKUP(B50,Species!B$3:Y$552,24,FALSE) -> 0 | L50: =VLOOKUP(B50,Species!B$3:AJ$552,35,FALSE) -> 0 | M50: =VLOOKUP(B50,Species!B$3:AD$552,29,FALSE) -> 3 | N50: =VLOOKUP(B50,Species!B$3:AB$552,27,FALSE) -> 0 | O50: 0 | P50: =VLOOKUP(B50,Species!B$3:AF$552,31,FALSE) -> Perennial Warm Season Grass | Q50: =VLOOKUP(B50,Species!B$3:D$552,3,FALSE) -> Grass | R50: =VLOOKUP(B50,Species!B$3:W$552,22,FALSE) -> 0 | S50: 0 | T50: 0 | U50: 0 | W50: 0 | X50: =VLOOKUP(B50,Species!B$3:F$552,5,FALSE) -> No | Y50: =VLOOKUP(B50,Species!B$3:AC$552,28,FALSE) -> Native | Z50: =VLOOKUP(B50,Species!B$3:AC$552,9,FALSE) -> X | AA50: =VLOOKUP(B50,Species!B$3:AC$552,10,FALSE) -> X | AB50: =VLOOKUP(B50,Species!B$3:AC$552,11,FALSE) -> 0 | AC50: =VLOOKUP(B50,Species!B$3:AC$552,12,FALSE) -> X | AD50: =VLOOKUP(B50,Species!B$3:AC$552,13,FALSE) -> X | AE50: =VLOOKUP(B50,Species!B$3:AC$552,14,FALSE) -> 0 | AF50: =VLOOKUP(B50,Species!B$3:AC$552,15,FALSE) -> 0 | AG50: =VLOOKUP(B50,Species!B$3:AC$552,16,FALSE) -> X | AH50: =VLOOKUP(B50,Species!B$3:AC$552,17,FALSE) -> X | AI50: =VLOOKUP(B50,Species!B$3:AC$552,18,FALSE) -> 0 | AJ50: =VLOOKUP(B50,Species!B$3:AC$552,19,FALSE) -> 0 | AK50: =VLOOKUP(B50,Species!B$3:AC$552,20,FALSE) -> X | AL50: =VLOOKUP(B50,Species!B$3:AJ$552,35,FALSE) -> 0 | AM50: =VLOOKUP(B50,Species!B$3:AH$552,33,FALSE) -> 0 | AN50: =VLOOKUP(B50,Species!B$3:I$552,8,FALSE) -> No | AO50: =VLOOKUP(B50,Species!B$3:BC$552,54,FALSE) -> 0 | AP50: =VLOOKUP(B50,Species!B$3:BE$552,55,FALSE) -> 0 | AQ50: =VLOOKUP(B50,Species!B$3:BE$552,56,FALSE) -> 0 | AY50: =HYPERLINK(VLOOKUP(B50,Species!B$3:BF$552,57,FALSE)) -> http://plants.usda.gov/core/profile?symbol=ANGY2 | AZ50: =VLOOKUP(B50,Species!B$3:C$552,2,FALSE) -> Andropogon gyrans | BA50: 0 | BB50: 0.000 | BC50: 0
B51: =Species!$B41 -> Fowl Bluegrass | C51: Poa palustris | H51: 0 | I51: 0.00 | K51: =VLOOKUP(B51,Species!B$3:Y$552,24,FALSE) -> 0 | L51: =VLOOKUP(B51,Species!B$3:AJ$552,35,FALSE) -> 0 | M51: =VLOOKUP(B51,Species!B$3:AD$552,29,FALSE) -> 0 | N51: =VLOOKUP(B51,Species!B$3:AB$552,27,FALSE) -> 25 | O51: 0 | P51: =VLOOKUP(B51,Species!B$3:AF$552,31,FALSE) -> Perennial Cool Season Grass | Q51: =VLOOKUP(B51,Species!B$3:D$552,3,FALSE) -> Grass | R51: =VLOOKUP(B51,Species!B$3:W$552,22,FALSE) -> 0 | S51: 0 | T51: 0 | U51: 0 | W51: 0 | X51: =VLOOKUP(B51,Species!B$3:F$552,5,FALSE) -> No | Y51: =VLOOKUP(B51,Species!B$3:AC$552,28,FALSE) -> Native | Z51: =VLOOKUP(B51,Species!B$3:AC$552,9,FALSE) ->  | AA51: =VLOOKUP(B51,Species!B$3:AC$552,10,FALSE) -> X | AB51: =VLOOKUP(B51,Species!B$3:AC$552,11,FALSE) -> X | AC51: =VLOOKUP(B51,Species!B$3:AC$552,12,FALSE) -> X | AD51: =VLOOKUP(B51,Species!B$3:AC$552,13,FALSE) -> 0 | AE51: =VLOOKUP(B51,Species!B$3:AC$552,14,FALSE) -> 0 | AF51: =VLOOKUP(B51,Species!B$3:AC$552,15,FALSE) -> 0 | AG51: =VLOOKUP(B51,Species!B$3:AC$552,16,FALSE) -> X | AH51: =VLOOKUP(B51,Species!B$3:AC$552,17,FALSE) -> 0 | AI51: =VLOOKUP(B51,Species!B$3:AC$552,18,FALSE) -> 0 | AJ51: =VLOOKUP(B51,Species!B$3:AC$552,19,FALSE) -> X | AK51: =VLOOKUP(B51,Species!B$3:AC$552,20,FALSE) ->  | AL51: =VLOOKUP(B51,Species!B$3:AJ$552,35,FALSE) -> 0 | AM51: =VLOOKUP(B51,Species!B$3:AH$552,33,FALSE) -> 0 | AN51: =VLOOKUP(B51,Species!B$3:I$552,8,FALSE) -> No | AO51: =VLOOKUP(B51,Species!B$3:BC$552,54,FALSE) -> 0 | AP51: =VLOOKUP(B51,Species!B$3:BE$552,55,FALSE) -> 0 | AQ51: =VLOOKUP(B51,Species!B$3:BE$552,56,FALSE) -> 0 | AY51: =HYPERLINK(VLOOKUP(B51,Species!B$3:BF$552,57,FALSE)) -> http://plants.usda.gov/java/profile?symbol=POPA2 | AZ51: =VLOOKUP(B51,Species!B$3:C$552,2,FALSE) -> Poa palustris | BA51: 0 | BB51: 0.000 | BC51: 0
B52: =Species!$B42 -> Fowl Mannagrass | C52: Glyceria striata | H52: 0 | I52: 0.00 | K52: =VLOOKUP(B52,Species!B$3:Y$552,24,FALSE) -> 0 | L52: =VLOOKUP(B52,Species!B$3:AJ$552,35,FALSE) -> 0 | M52: =VLOOKUP(B52,Species!B$3:AD$552,29,FALSE) -> 0 | N52: =VLOOKUP(B52,Species!B$3:AB$552,27,FALSE) -> 274.67 | O52: 0 | P52: =VLOOKUP(B52,Species!B$3:AF$552,31,FALSE) -> Perennial Cool Season Grass | Q52: =VLOOKUP(B52,Species!B$3:D$552,3,FALSE) -> Grass | R52: =VLOOKUP(B52,Species!B$3:W$552,22,FALSE) -> 0 | S52: 0 | T52: 0 | U52: 0 | W52: 0 | X52: =VLOOKUP(B52,Species!B$3:F$552,5,FALSE) -> No | Y52: =VLOOKUP(B52,Species!B$3:AC$552,28,FALSE) -> Native | Z52: =VLOOKUP(B52,Species!B$3:AC$552,9,FALSE) ->  | AA52: =VLOOKUP(B52,Species!B$3:AC$552,10,FALSE) ->  | AB52: =VLOOKUP(B52,Species!B$3:AC$552,11,FALSE) -> X | AC52: =VLOOKUP(B52,Species!B$3:AC$552,12,FALSE) -> X | AD52: =VLOOKUP(B52,Species!B$3:AC$552,13,FALSE) -> 0 | AE52: =VLOOKUP(B52,Species!B$3:AC$552,14,FALSE) -> 0 | AF52: =VLOOKUP(B52,Species!B$3:AC$552,15,FALSE) -> 0 | AG52: =VLOOKUP(B52,Species!B$3:AC$552,16,FALSE) -> X | AH52: =VLOOKUP(B52,Species!B$3:AC$552,17,FALSE) -> 0 | AI52: =VLOOKUP(B52,Species!B$3:AC$552,18,FALSE) -> 0 | AJ52: =VLOOKUP(B52,Species!B$3:AC$552,19,FALSE) -> X | AK52: =VLOOKUP(B52,Species!B$3:AC$552,20,FALSE) -> X | AL52: =VLOOKUP(B52,Species!B$3:AJ$552,35,FALSE) -> 0 | AM52: =VLOOKUP(B52,Species!B$3:AH$552,33,FALSE) -> 0 | AN52: =VLOOKUP(B52,Species!B$3:I$552,8,FALSE) -> No | AO52: =VLOOKUP(B52,Species!B$3:BC$552,54,FALSE) -> 0 | AP52: =VLOOKUP(B52,Species!B$3:BE$552,55,FALSE) -> 0 | AQ52: =VLOOKUP(B52,Species!B$3:BE$552,56,FALSE) -> 0 | AY52: =HYPERLINK(VLOOKUP(B52,Species!B$3:BF$552,57,FALSE)) -> http://plants.usda.gov/java/profile?symbol=GLST | AZ52: =VLOOKUP(B52,Species!B$3:C$552,2,FALSE) -> Glyceria striata | BA52: 0 | BB52: 0.000 | BC52: 0
B53: =Species!$B43 -> Fox Sedge | C53: Carex vulpinoidea | H53: 0 | I53: 0.00 | K53: =VLOOKUP(B53,Species!B$3:Y$552,24,FALSE) -> 0 | L53: =VLOOKUP(B53,Species!B$3:AJ$552,35,FALSE) -> 0 | M53: =VLOOKUP(B53,Species!B$3:AD$552,29,FALSE) -> 0 | N53: =VLOOKUP(B53,Species!B$3:AB$552,27,FALSE) -> 72.4675 | O53: 0 | P53: =VLOOKUP(B53,Species!B$3:AF$552,31,FALSE) -> Perennial Cool Season Sedge | Q53: =VLOOKUP(B53,Species!B$3:D$552,3,FALSE) -> Grass | R53: =VLOOKUP(B53,Species!B$3:W$552,22,FALSE) -> 29.77502296 | S53: 0 | T53: 0 | U53: 0 | W53: 0 | X53: =VLOOKUP(B53,Species!B$3:F$552,5,FALSE) -> Yes | Y53: =VLOOKUP(B53,Species!B$3:AC$552,28,FALSE) -> Native | Z53: =VLOOKUP(B53,Species!B$3:AC$552,9,FALSE) ->  | AA53: =VLOOKUP(B53,Species!B$3:AC$552,10,FALSE) -> X | AB53: =VLOOKUP(B53,Species!B$3:AC$552,11,FALSE) -> X | AC53: =VLOOKUP(B53,Species!B$3:AC$552,12,FALSE) -> 0 | AD53: =VLOOKUP(B53,Species!B$3:AC$552,13,FALSE) -> X | AE53: =VLOOKUP(B53,Species!B$3:AC$552,14,FALSE) -> X | AF53: =VLOOKUP(B53,Species!B$3:AC$552,15,FALSE) -> 0 | AG53: =VLOOKUP(B53,Species!B$3:AC$552,16,FALSE) -> 0 | AH53: =VLOOKUP(B53,Species!B$3:AC$552,17,FALSE) -> 0 | AI53: =VLOOKUP(B53,Species!B$3:AC$552,18,FALSE) -> 0 | AJ53: =VLOOKUP(B53,Species!B$3:AC$552,19,FALSE) -> X | AK53: =VLOOKUP(B53,Species!B$3:AC$552,20,FALSE) -> 0 | AL53: =VLOOKUP(B53,Species!B$3:AJ$552,35,FALSE) -> 0 | AM53: =VLOOKUP(B53,Species!B$3:AH$552,33,FALSE) -> 0 | AN53: =VLOOKUP(B53,Species!B$3:I$552,8,FALSE) -> No | AO53: =VLOOKUP(B53,Species!B$3:BC$552,54,FALSE) -> 0 | AP53: =VLOOKUP(B53,Species!B$3:BE$552,55,FALSE) -> 0 | AQ53: =VLOOKUP(B53,Species!B$3:BE$552,56,FALSE) -> 0 | AY53: =HYPERLINK(VLOOKUP(B53,Species!B$3:BF$552,57,FALSE)) -> http://plants.usda.gov/java/profile?symbol=CAVU2 | AZ53: =VLOOKUP(B53,Species!B$3:C$552,2,FALSE) -> Carex vulpinoidea | BA53: 0 | BB53: 0.000 | BC53: 0
B54: =Species!$B44 -> Foxtail Barley | C54: Hordeum jubatum | H54: 0 | I54: 0.00 | K54: =VLOOKUP(B54,Species!B$3:Y$552,24,FALSE) -> 0 | L54: =VLOOKUP(B54,Species!B$3:AJ$552,35,FALSE) -> 0 | M54: =VLOOKUP(B54,Species!B$3:AD$552,29,FALSE) -> 0 | N54: =VLOOKUP(B54,Species!B$3:AB$552,27,FALSE) -> 240 | O54: 0 | P54: =VLOOKUP(B54,Species!B$3:AF$552,31,FALSE) -> Perennial Cool Season Grass | Q54: =VLOOKUP(B54,Species!B$3:D$552,3,FALSE) -> Grass | R54: =VLOOKUP(B54,Species!B$3:W$552,22,FALSE) -> 0 | S54: 0 | T54: 0 | U54: 0 | W54: 0 | X54: =VLOOKUP(B54,Species!B$3:F$552,5,FALSE) -> No | Y54: =VLOOKUP(B54,Species!B$3:AC$552,28,FALSE) -> Native | Z54: =VLOOKUP(B54,Species!B$3:AC$552,9,FALSE) -> X | AA54: =VLOOKUP(B54,Species!B$3:AC$552,10,FALSE) -> X | AB54: =VLOOKUP(B54,Species!B$3:AC$552,11,FALSE) -> X | AC54: =VLOOKUP(B54,Species!B$3:AC$552,12,FALSE) -> X | AD54: =VLOOKUP(B54,Species!B$3:AC$552,13,FALSE) -> 0 | AE54: =VLOOKUP(B54,Species!B$3:AC$552,14,FALSE) -> 0 | AF54: =VLOOKUP(B54,Species!B$3:AC$552,15,FALSE) -> 0 | AG54: =VLOOKUP(B54,Species!B$3:AC$552,16,FALSE) ->  | AH54: =VLOOKUP(B54,Species!B$3:AC$552,17,FALSE) -> 0 | AI54: =VLOOKUP(B54,Species!B$3:AC$552,18,FALSE) -> 0 | AJ54: =VLOOKUP(B54,Species!B$3:AC$552,19,FALSE) -> X | AK54: =VLOOKUP(B54,Species!B$3:AC$552,20,FALSE) ->  | AL54: =VLOOKUP(B54,Species!B$3:AJ$552,35,FALSE) -> 0 | AM54: =VLOOKUP(B54,Species!B$3:AH$552,33,FALSE) -> 0 | AN54: =VLOOKUP(B54,Species!B$3:I$552,8,FALSE) -> No | AO54: =VLOOKUP(B54,Species!B$3:BC$552,54,FALSE) -> 0 | AP54: =VLOOKUP(B54,Species!B$3:BE$552,55,FALSE) -> 0 | AQ54: =VLOOKUP(B54,Species!B$3:BE$552,56,FALSE) -> 0 | AY54: =HYPERLINK(VLOOKUP(B54,Species!B$3:BF$552,57,FALSE)) -> http://plants.usda.gov/java/profile?symbol=HOJU | AZ54: =VLOOKUP(B54,Species!B$3:C$552,2,FALSE) -> Hordeum jubatum | BA54: 0 | BB54: 0.000 | BC54: 0
B55: =Species!$B45 -> Frank's Sedge | C55: Carex frankii | H55: 0 | I55: 0.00 | K55: =VLOOKUP(B55,Species!B$3:Y$552,24,FALSE) -> 0 | L55: =VLOOKUP(B55,Species!B$3:AJ$552,35,FALSE) -> 0 | M55: =VLOOKUP(B55,Species!B$3:AD$552,29,FALSE) -> 0 | N55: =VLOOKUP(B55,Species!B$3:AB$552,27,FALSE) -> 89 | O55: 0 | P55: =VLOOKUP(B55,Species!B$3:AF$552,31,FALSE) -> Perennial Cool Season Sedge | Q55: =VLOOKUP(B55,Species!B$3:D$552,3,FALSE) -> Grass | R55: =VLOOKUP(B55,Species!B$3:W$552,22,FALSE) -> 0 | S55: 0 | T55: 0 | U55: 0 | W55: 0 | X55: =VLOOKUP(B55,Species!B$3:F$552,5,FALSE) -> No | Y55: =VLOOKUP(B55,Species!B$3:AC$552,28,FALSE) -> Native | Z55: =VLOOKUP(B55,Species!B$3:AC$552,9,FALSE) ->  | AA55: =VLOOKUP(B55,Species!B$3:AC$552,10,FALSE) ->  | AB55: =VLOOKUP(B55,Species!B$3:AC$552,11,FALSE) -> X | AC55: =VLOOKUP(B55,Species!B$3:AC$552,12,FALSE) -> 0 | AD55: =VLOOKUP(B55,Species!B$3:AC$552,13,FALSE) -> 0 | AE55: =VLOOKUP(B55,Species!B$3:AC$552,14,FALSE) -> X | AF55: =VLOOKUP(B55,Species!B$3:AC$552,15,FALSE) -> 0 | AG55: =VLOOKUP(B55,Species!B$3:AC$552,16,FALSE) -> 0 | AH55: =VLOOKUP(B55,Species!B$3:AC$552,17,FALSE) -> 0 | AI55: =VLOOKUP(B55,Species!B$3:AC$552,18,FALSE) -> 0 | AJ55: =VLOOKUP(B55,Species!B$3:AC$552,19,FALSE) -> X | AK55: =VLOOKUP(B55,Species!B$3:AC$552,20,FALSE) ->  | AL55: =VLOOKUP(B55,Species!B$3:AJ$552,35,FALSE) -> 0 | AM55: =VLOOKUP(B55,Species!B$3:AH$552,33,FALSE) -> 0 | AN55: =VLOOKUP(B55,Species!B$3:I$552,8,FALSE) -> No | AO55: =VLOOKUP(B55,Species!B$3:BC$552,54,FALSE) -> 0 | AP55: =VLOOKUP(B55,Species!B$3:BE$552,55,FALSE) -> 0 | AQ55: =VLOOKUP(B55,Species!B$3:BE$552,56,FALSE) -> 0 | AY55: =HYPERLINK(VLOOKUP(B55,Species!B$3:BF$552,57,FALSE)) -> http://plants.usda.gov/java/profile?symbol=CAFR3 | AZ55: =VLOOKUP(B55,Species!B$3:C$552,2,FALSE) -> Carex frankii | BA55: 0 | BB55: 0.000 | BC55: 0
B56: =Species!$B46 -> Fringed Sedge | C56: Carex crinita | H56: 0 | I56: 0.00 | K56: =VLOOKUP(B56,Species!B$3:Y$552,24,FALSE) -> 0 | L56: =VLOOKUP(B56,Species!B$3:AJ$552,35,FALSE) -> 0 | M56: =VLOOKUP(B56,Species!B$3:AD$552,29,FALSE) -> 0 | N56: =VLOOKUP(B56,Species!B$3:AB$552,27,FALSE) -> 300 | O56: 0 | P56: =VLOOKUP(B56,Species!B$3:AF$552,31,FALSE) -> Perennial Cool Season Sedge | Q56: =VLOOKUP(B56,Species!B$3:D$552,3,FALSE) -> Grass | R56: =VLOOKUP(B56,Species!B$3:W$552,22,FALSE) -> 0 | S56: 0 | T56: 0 | U56: 0 | W56: 0 | X56: =VLOOKUP(B56,Species!B$3:F$552,5,FALSE) -> No | Y56: =VLOOKUP(B56,Species!B$3:AC$552,28,FALSE) -> Native | Z56: =VLOOKUP(B56,Species!B$3:AC$552,9,FALSE) ->  | AA56: =VLOOKUP(B56,Species!B$3:AC$552,10,FALSE) -> 0 | AB56: =VLOOKUP(B56,Species!B$3:AC$552,11,FALSE) -> X | AC56: =VLOOKUP(B56,Species!B$3:AC$552,12,FALSE) ->  | AD56: =VLOOKUP(B56,Species!B$3:AC$552,13,FALSE) -> 0 | AE56: =VLOOKUP(B56,Species!B$3:AC$552,14,FALSE) -> X | AF56: =VLOOKUP(B56,Species!B$3:AC$552,15,FALSE) -> 0 | AG56: =VLOOKUP(B56,Species!B$3:AC$552,16,FALSE) -> 0 | AH56: =VLOOKUP(B56,Species!B$3:AC$552,17,FALSE) -> 0 | AI56: =VLOOKUP(B56,Species!B$3:AC$552,18,FALSE) -> 0 | AJ56: =VLOOKUP(B56,Species!B$3:AC$552,19,FALSE) ->  | AK56: =VLOOKUP(B56,Species!B$3:AC$552,20,FALSE) -> X | AL56: =VLOOKUP(B56,Species!B$3:AJ$552,35,FALSE) -> 0 | AM56: =VLOOKUP(B56,Species!B$3:AH$552,33,FALSE) -> 0 | AN56: =VLOOKUP(B56,Species!B$3:I$552,8,FALSE) -> No | AO56: =VLOOKUP(B56,Species!B$3:BC$552,54,FALSE) -> 0 | AP56: =VLOOKUP(B56,Species!B$3:BE$552,55,FALSE) -> 0 | AQ56: =VLOOKUP(B56,Species!B$3:BE$552,56,FALSE) -> 0 | AY56: =HYPERLINK(VLOOKUP(B56,Species!B$3:BF$552,57,FALSE)) -> http://plants.usda.gov/java/profile?symbol=CACR6 | AZ56: =VLOOKUP(B56,Species!B$3:C$552,2,FALSE) -> Carex crinita | BA56: 0 | BB56: 0.000 | BC56: 0
B57: =Species!$B47 -> Fuzzy Wuzzy Sedge | C57: Carex hirsutella | H57: 0 | I57: 0.00 | K57: =VLOOKUP(B57,Species!B$3:Y$552,24,FALSE) -> 0 | L57: =VLOOKUP(B57,Species!B$3:AJ$552,35,FALSE) -> 0 | M57: =VLOOKUP(B57,Species!B$3:AD$552,29,FALSE) -> 0 | N57: =VLOOKUP(B57,Species!B$3:AB$552,27,FALSE) -> 640 | O57: 0 | P57: =VLOOKUP(B57,Species!B$3:AF$552,31,FALSE) -> Perennial Cool Season Sedge | Q57: =VLOOKUP(B57,Species!B$3:D$552,3,FALSE) -> Grass | R57: =VLOOKUP(B57,Species!B$3:W$552,22,FALSE) -> 0 | S57: 0 | T57: 0 | U57: 0 | W57: 0 | X57: =VLOOKUP(B57,Species!B$3:F$552,5,FALSE) -> No | Y57: =VLOOKUP(B57,Species!B$3:AC$552,28,FALSE) -> Native | Z57: =VLOOKUP(B57,Species!B$3:AC$552,9,FALSE) -> X | AA57: =VLOOKUP(B57,Species!B$3:AC$552,10,FALSE) -> X | AB57: =VLOOKUP(B57,Species!B$3:AC$552,11,FALSE) ->  | AC57: =VLOOKUP(B57,Species!B$3:AC$552,12,FALSE) -> X | AD57: =VLOOKUP(B57,Species!B$3:AC$552,13,FALSE) -> X | AE57: =VLOOKUP(B57,Species!B$3:AC$552,14,FALSE) -> 0 | AF57: =VLOOKUP(B57,Species!B$3:AC$552,15,FALSE) -> 0 | AG57: =VLOOKUP(B57,Species!B$3:AC$552,16,FALSE) -> X | AH57: =VLOOKUP(B57,Species!B$3:AC$552,17,FALSE) -> X | AI57: =VLOOKUP(B57,Species!B$3:AC$552,18,FALSE) -> 0 | AJ57: =VLOOKUP(B57,Species!B$3:AC$552,19,FALSE) ->  | AK57: =VLOOKUP(B57,Species!B$3:AC$552,20,FALSE) -> X | AL57: =VLOOKUP(B57,Species!B$3:AJ$552,35,FALSE) -> 0 | AM57: =VLOOKUP(B57,Species!B$3:AH$552,33,FALSE) -> 0 | AN57: =VLOOKUP(B57,Species!B$3:I$552,8,FALSE) -> No | AO57: =VLOOKUP(B57,Species!B$3:BC$552,54,FALSE) -> 0 | AP57: =VLOOKUP(B57,Species!B$3:BE$552,55,FALSE) -> 0 | AQ57: =VLOOKUP(B57,Species!B$3:BE$552,56,FALSE) -> 0 | AY57: =HYPERLINK(VLOOKUP(B57,Species!B$3:BF$552,57,FALSE)) -> http://plants.usda.gov/java/profile?symbol=CAHI6 | AZ57: =VLOOKUP(B57,Species!B$3:C$552,2,FALSE) -> Carex hirsutella | BA57: 0 | BB57: 0.000 | BC57: 0
B58: =Species!$B48 -> Globe Beak Sedge | C58: Rhynchospora globularis | H58: 0 | I58: 0.00 | K58: =VLOOKUP(B58,Species!B$3:Y$552,24,FALSE) -> 0 | L58: =VLOOKUP(B58,Species!B$3:AJ$552,35,FALSE) -> 0 | M58: =VLOOKUP(B58,Species!B$3:AD$552,29,FALSE) -> 8 | N58: =VLOOKUP(B58,Species!B$3:AB$552,27,FALSE) -> 45 | O58: 0 | P58: =VLOOKUP(B58,Species!B$3:AF$552,31,FALSE) -> Perennial Cool Season Rush | Q58: =VLOOKUP(B58,Species!B$3:D$552,3,FALSE) -> Grass | R58: =VLOOKUP(B58,Species!B$3:W$552,22,FALSE) -> 0 | S58: 0 | T58: 0 | U58: 0 | W58: 0 | X58: =VLOOKUP(B58,Species!B$3:F$552,5,FALSE) -> No | Y58: =VLOOKUP(B58,Species!B$3:AC$552,28,FALSE) -> Native | Z58: =VLOOKUP(B58,Species!B$3:AC$552,9,FALSE) -> 0 | AA58: =VLOOKUP(B58,Species!B$3:AC$552,10,FALSE) -> X | AB58: =VLOOKUP(B58,Species!B$3:AC$552,11,FALSE) -> X | AC58: =VLOOKUP(B58,Species!B$3:AC$552,12,FALSE) -> 0 | AD58: =VLOOKUP(B58,Species!B$3:AC$552,13,FALSE) -> X | AE58: =VLOOKUP(B58,Species!B$3:AC$552,14,FALSE) -> X | AF58: =VLOOKUP(B58,Species!B$3:AC$552,15,FALSE) -> 0 | AG58: =VLOOKUP(B58,Species!B$3:AC$552,16,FALSE) -> 0 | AH58: =VLOOKUP(B58,Species!B$3:AC$552,17,FALSE) -> 0 | AI58: =VLOOKUP(B58,Species!B$3:AC$552,18,FALSE) -> 0 | AJ58: =VLOOKUP(B58,Species!B$3:AC$552,19,FALSE) -> 0 | AK58: =VLOOKUP(B58,Species!B$3:AC$552,20,FALSE) -> 0 | AL58: =VLOOKUP(B58,Species!B$3:AJ$552,35,FALSE) -> 0 | AM58: =VLOOKUP(B58,Species!B$3:AH$552,33,FALSE) -> 0 | AN58: =VLOOKUP(B58,Species!B$3:I$552,8,FALSE) -> No | AO58: =VLOOKUP(B58,Species!B$3:BC$552,54,FALSE) -> 0 | AP58: =VLOOKUP(B58,Species!B$3:BE$552,55,FALSE) -> 0 | AQ58: =VLOOKUP(B58,Species!B$3:BE$552,56,FALSE) -> 0 | AY58: =HYPERLINK(VLOOKUP(B58,Species!B$3:BF$552,57,FALSE)) -> http://plants.usda.gov/core/profile?symbol=RHGL2 | AZ58: =VLOOKUP(B58,Species!B$3:C$552,2,FALSE) -> Rhynchospora globularis | BA58: 0 | BB58: 0.000 | BC58: 0
B59: =Species!$B49 -> Graceful Sedge | C59: Carex gracillima | H59: 0 | I59: 0.00 | K59: =VLOOKUP(B59,Species!B$3:Y$552,24,FALSE) -> 0 | L59: =VLOOKUP(B59,Species!B$3:AJ$552,35,FALSE) -> 0 | M59: =VLOOKUP(B59,Species!B$3:AD$552,29,FALSE) -> 0 | N59: =VLOOKUP(B59,Species!B$3:AB$552,27,FALSE) -> 1600 | O59: 0 | P59: =VLOOKUP(B59,Species!B$3:AF$552,31,FALSE) -> Perennial Cool Season Sedge | Q59: =VLOOKUP(B59,Species!B$3:D$552,3,FALSE) -> Grass | R59: =VLOOKUP(B59,Species!B$3:W$552,22,FALSE) -> 0 | S59: 0 | T59: 0 | U59: 0 | W59: 0 | X59: =VLOOKUP(B59,Species!B$3:F$552,5,FALSE) -> No | Y59: =VLOOKUP(B59,Species!B$3:AC$552,28,FALSE) -> Native | Z59: =VLOOKUP(B59,Species!B$3:AC$552,9,FALSE) ->  | AA59: =VLOOKUP(B59,Species!B$3:AC$552,10,FALSE) -> X | AB59: =VLOOKUP(B59,Species!B$3:AC$552,11,FALSE) ->  | AC59: =VLOOKUP(B59,Species!B$3:AC$552,12,FALSE) ->  | AD59: =VLOOKUP(B59,Species!B$3:AC$552,13,FALSE) -> 0 | AE59: =VLOOKUP(B59,Species!B$3:AC$552,14,FALSE) -> 0 | AF59: =VLOOKUP(B59,Species!B$3:AC$552,15,FALSE) -> 0 | AG59: =VLOOKUP(B59,Species!B$3:AC$552,16,FALSE) ->  | AH59: =VLOOKUP(B59,Species!B$3:AC$552,17,FALSE) -> 0 | AI59: =VLOOKUP(B59,Species!B$3:AC$552,18,FALSE) -> 0 | AJ59: =VLOOKUP(B59,Species!B$3:AC$552,19,FALSE) ->  | AK59: =VLOOKUP(B59,Species!B$3:AC$552,20,FALSE) -> X | AL59: =VLOOKUP(B59,Species!B$3:AJ$552,35,FALSE) -> 0 | AM59: =VLOOKUP(B59,Species!B$3:AH$552,33,FALSE) -> 0 | AN59: =VLOOKUP(B59,Species!B$3:I$552,8,FALSE) -> No | AO59: =VLOOKUP(B59,Species!B$3:BC$552,54,FALSE) -> 0 | AP59: =VLOOKUP(B59,Species!B$3:BE$552,55,FALSE) -> 0 | AQ59: =VLOOKUP(B59,Species!B$3:BE$552,56,FALSE) -> 0 | AY59: =HYPERLINK(VLOOKUP(B59,Species!B$3:BF$552,57,FALSE)) -> http://plants.usda.gov/java/profile?symbol=CAGR2 | AZ59: =VLOOKUP(B59,Species!B$3:C$552,2,FALSE) -> Carex gracillima | BA59: 0 | BB59: 0.000 | BC59: 0
B60: =Species!$B50 -> Gray's Sedge | C60: Carex grayi | H60: 0 | I60: 0.00 | K60: =VLOOKUP(B60,Species!B$3:Y$552,24,FALSE) -> 0 | L60: =VLOOKUP(B60,Species!B$3:AJ$552,35,FALSE) -> 0 | M60: =VLOOKUP(B60,Species!B$3:AD$552,29,FALSE) -> 0 | N60: =VLOOKUP(B60,Species!B$3:AB$552,27,FALSE) -> 232.5 | O60: 0 | P60: =VLOOKUP(B60,Species!B$3:AF$552,31,FALSE) -> Perennial Cool Season Sedge | Q60: =VLOOKUP(B60,Species!B$3:D$552,3,FALSE) -> Grass | R60: =VLOOKUP(B60,Species!B$3:W$552,22,FALSE) -> 0 | S60: 0 | T60: 0 | U60: 0 | W60: 0 | X60: =VLOOKUP(B60,Species!B$3:F$552,5,FALSE) -> No | Y60: =VLOOKUP(B60,Species!B$3:AC$552,28,FALSE) -> Native | Z60: =VLOOKUP(B60,Species!B$3:AC$552,9,FALSE) ->  | AA60: =VLOOKUP(B60,Species!B$3:AC$552,10,FALSE) -> 0 | AB60: =VLOOKUP(B60,Species!B$3:AC$552,11,FALSE) -> X | AC60: =VLOOKUP(B60,Species!B$3:AC$552,12,FALSE) ->  | AD60: =VLOOKUP(B60,Species!B$3:AC$552,13,FALSE) -> 0 | AE60: =VLOOKUP(B60,Species!B$3:AC$552,14,FALSE) -> 0 | AF60: =VLOOKUP(B60,Species!B$3:AC$552,15,FALSE) -> 0 | AG60: =VLOOKUP(B60,Species!B$3:AC$552,16,FALSE) -> 0 | AH60: =VLOOKUP(B60,Species!B$3:AC$552,17,FALSE) -> 0 | AI60: =VLOOKUP(B60,Species!B$3:AC$552,18,FALSE) -> 0 | AJ60: =VLOOKUP(B60,Species!B$3:AC$552,19,FALSE) -> X | AK60: =VLOOKUP(B60,Species!B$3:AC$552,20,FALSE) -> 0 | AL60: =VLOOKUP(B60,Species!B$3:AJ$552,35,FALSE) -> 0 | AM60: =VLOOKUP(B60,Species!B$3:AH$552,33,FALSE) -> 0 | AN60: =VLOOKUP(B60,Species!B$3:I$552,8,FALSE) -> No | AO60: =VLOOKUP(B60,Species!B$3:BC$552,54,FALSE) -> 0 | AP60: =VLOOKUP(B60,Species!B$3:BE$552,55,FALSE) -> 0 | AQ60: =VLOOKUP(B60,Species!B$3:BE$552,56,FALSE) -> 0 | AY60: =HYPERLINK(VLOOKUP(B60,Species!B$3:BF$552,57,FALSE)) -> http://plants.usda.gov/java/profile?symbol=CAGR5 | AZ60: =VLOOKUP(B60,Species!B$3:C$552,2,FALSE) -> Carex grayi | BA60: 0 | BB60: 0.000 | BC60: 0
B61: =Species!$B51 -> Great Plains Flatsedge | C61: Cyperus lupulinus | H61: 0 | I61: 0.00 | K61: =VLOOKUP(B61,Species!B$3:Y$552,24,FALSE) -> 0 | L61: =VLOOKUP(B61,Species!B$3:AJ$552,35,FALSE) -> 0 | M61: =VLOOKUP(B61,Species!B$3:AD$552,29,FALSE) -> 0 | N61: =VLOOKUP(B61,Species!B$3:AB$552,27,FALSE) -> 1280 | O61: 0 | P61: =VLOOKUP(B61,Species!B$3:AF$552,31,FALSE) -> Annual Cool Season Sedge | Q61: =VLOOKUP(B61,Species!B$3:D$552,3,FALSE) -> Grass | R61: =VLOOKUP(B61,Species!B$3:W$552,22,FALSE) -> 0 | S61: 0 | T61: 0 | U61: 0 | W61: 0 | X61: =VLOOKUP(B61,Species!B$3:F$552,5,FALSE) -> No | Y61: =VLOOKUP(B61,Species!B$3:AC$552,28,FALSE) -> Native | Z61: =VLOOKUP(B61,Species!B$3:AC$552,9,FALSE) -> X | AA61: =VLOOKUP(B61,Species!B$3:AC$552,10,FALSE) ->  | AB61: =VLOOKUP(B61,Species!B$3:AC$552,11,FALSE) ->  | AC61: =VLOOKUP(B61,Species!B$3:AC$552,12,FALSE) -> X | AD61: =VLOOKUP(B61,Species!B$3:AC$552,13,FALSE) -> 0 | AE61: =VLOOKUP(B61,Species!B$3:AC$552,14,FALSE) -> 0 | AF61: =VLOOKUP(B61,Species!B$3:AC$552,15,FALSE) -> 0 | AG61: =VLOOKUP(B61,Species!B$3:AC$552,16,FALSE) -> X | AH61: =VLOOKUP(B61,Species!B$3:AC$552,17,FALSE) -> 0 | AI61: =VLOOKUP(B61,Species!B$3:AC$552,18,FALSE) -> 0 | AJ61: =VLOOKUP(B61,Species!B$3:AC$552,19,FALSE) ->  | AK61: =VLOOKUP(B61,Species!B$3:AC$552,20,FALSE) ->  | AL61: =VLOOKUP(B61,Species!B$3:AJ$552,35,FALSE) -> 0 | AM61: =VLOOKUP(B61,Species!B$3:AH$552,33,FALSE) -> 0 | AN61: =VLOOKUP(B61,Species!B$3:I$552,8,FALSE) -> No | AO61: =VLOOKUP(B61,Species!B$3:BC$552,54,FALSE) -> 0 | AP61: =VLOOKUP(B61,Species!B$3:BE$552,55,FALSE) -> 0 | AQ61: =VLOOKUP(B61,Species!B$3:BE$552,56,FALSE) -> 0 | AY61: =HYPERLINK(VLOOKUP(B61,Species!B$3:BF$552,57,FALSE)) -> http://plants.usda.gov/java/profile?symbol=CYLU2 | AZ61: =VLOOKUP(B61,Species!B$3:C$552,2,FALSE) -> Cyperus lupulinus | BA61: 0 | BB61: 0.000 | BC61: 0
B62: =Species!$B52 -> Greater Straw Sedge | C62: Carex normalis | H62: 0 | I62: 0.00 | K62: =VLOOKUP(B62,Species!B$3:Y$552,24,FALSE) -> 0 | L62: =VLOOKUP(B62,Species!B$3:AJ$552,35,FALSE) -> 0 | M62: =VLOOKUP(B62,Species!B$3:AD$552,29,FALSE) -> 0 | N62: =VLOOKUP(B62,Species!B$3:AB$552,27,FALSE) -> 450 | O62: 0 | P62: =VLOOKUP(B62,Species!B$3:AF$552,31,FALSE) -> Perennial Cool Season Sedge | Q62: =VLOOKUP(B62,Species!B$3:D$552,3,FALSE) -> Grass | R62: =VLOOKUP(B62,Species!B$3:W$552,22,FALSE) -> 0 | S62: 0 | T62: 0 | U62: 0 | W62: 0 | X62: =VLOOKUP(B62,Species!B$3:F$552,5,FALSE) -> No | Y62: =VLOOKUP(B62,Species!B$3:AC$552,28,FALSE) -> Native | Z62: =VLOOKUP(B62,Species!B$3:AC$552,9,FALSE) ->  | AA62: =VLOOKUP(B62,Species!B$3:AC$552,10,FALSE) -> X | AB62: =VLOOKUP(B62,Species!B$3:AC$552,11,FALSE) -> X | AC62: =VLOOKUP(B62,Species!B$3:AC$552,12,FALSE) -> 0 | AD62: =VLOOKUP(B62,Species!B$3:AC$552,13,FALSE) -> X | AE62: =VLOOKUP(B62,Species!B$3:AC$552,14,FALSE) -> X | AF62: =VLOOKUP(B62,Species!B$3:AC$552,15,FALSE) -> 0 | AG62: =VLOOKUP(B62,Species!B$3:AC$552,16,FALSE) -> 0 | AH62: =VLOOKUP(B62,Species!B$3:AC$552,17,FALSE) -> 0 | AI62: =VLOOKUP(B62,Species!B$3:AC$552,18,FALSE) -> 0 | AJ62: =VLOOKUP(B62,Species!B$3:AC$552,19,FALSE) -> X | AK62: =VLOOKUP(B62,Species!B$3:AC$552,20,FALSE) -> X | AL62: =VLOOKUP(B62,Species!B$3:AJ$552,35,FALSE) -> 0 | AM62: =VLOOKUP(B62,Species!B$3:AH$552,33,FALSE) -> 0 | AN62: =VLOOKUP(B62,Species!B$3:I$552,8,FALSE) -> No | AO62: =VLOOKUP(B62,Species!B$3:BC$552,54,FALSE) -> 0 | AP62: =VLOOKUP(B62,Species!B$3:BE$552,55,FALSE) -> 0 | AQ62: =VLOOKUP(B62,Species!B$3:BE$552,56,FALSE) -> 0 | AY62: =HYPERLINK(VLOOKUP(B62,Species!B$3:BF$552,57,FALSE)) ->  | AZ62: =VLOOKUP(B62,Species!B$3:C$552,2,FALSE) -> Carex normalis | BA62: 0 | BB62: 0.000 | BC62: 0
B63: =Species!$B53 -> Green Bulrush | C63: Scirpus atrovirens | H63: 0 | I63: 0.00 | K63: =VLOOKUP(B63,Species!B$3:Y$552,24,FALSE) -> 0 | L63: =VLOOKUP(B63,Species!B$3:AJ$552,35,FALSE) -> 0 | M63: =VLOOKUP(B63,Species!B$3:AD$552,29,FALSE) -> 0 | N63: =VLOOKUP(B63,Species!B$3:AB$552,27,FALSE) -> 85 | O63: 0 | P63: =VLOOKUP(B63,Species!B$3:AF$552,31,FALSE) -> Perennial Cool Season Sedge | Q63: =VLOOKUP(B63,Species!B$3:D$552,3,FALSE) -> Grass | R63: =VLOOKUP(B63,Species!B$3:W$552,22,FALSE) -> 0 | S63: 0 | T63: 0 | U63: 0 | W63: 0 | X63: =VLOOKUP(B63,Species!B$3:F$552,5,FALSE) -> No | Y63: =VLOOKUP(B63,Species!B$3:AC$552,28,FALSE) -> Native | Z63: =VLOOKUP(B63,Species!B$3:AC$552,9,FALSE) ->  | AA63: =VLOOKUP(B63,Species!B$3:AC$552,10,FALSE) ->  | AB63: =VLOOKUP(B63,Species!B$3:AC$552,11,FALSE) -> X | AC63: =VLOOKUP(B63,Species!B$3:AC$552,12,FALSE) -> X | AD63: =VLOOKUP(B63,Species!B$3:AC$552,13,FALSE) -> 0 | AE63: =VLOOKUP(B63,Species!B$3:AC$552,14,FALSE) -> 0 | AF63: =VLOOKUP(B63,Species!B$3:AC$552,15,FALSE) -> 0 | AG63: =VLOOKUP(B63,Species!B$3:AC$552,16,FALSE) -> X | AH63: =VLOOKUP(B63,Species!B$3:AC$552,17,FALSE) -> 0 | AI63: =VLOOKUP(B63,Species!B$3:AC$552,18,FALSE) -> 0 | AJ63: =VLOOKUP(B63,Species!B$3:AC$552,19,FALSE) -> X | AK63: =VLOOKUP(B63,Species!B$3:AC$552,20,FALSE) ->  | AL63: =VLOOKUP(B63,Species!B$3:AJ$552,35,FALSE) -> 0 | AM63: =VLOOKUP(B63,Species!B$3:AH$552,33,FALSE) -> 0 | AN63: =VLOOKUP(B63,Species!B$3:I$552,8,FALSE) -> No | AO63: =VLOOKUP(B63,Species!B$3:BC$552,54,FALSE) -> 0 | AP63: =VLOOKUP(B63,Species!B$3:BE$552,55,FALSE) -> 0 | AQ63: =VLOOKUP(B63,Species!B$3:BE$552,56,FALSE) -> 0 | AY63: =HYPERLINK(VLOOKUP(B63,Species!B$3:BF$552,57,FALSE)) -> http://plants.usda.gov/core/profile?symbol=SCAT2 | AZ63: =VLOOKUP(B63,Species!B$3:C$552,2,FALSE) -> Scirpus atrovirens | BA63: 0 | BB63: 0.000 | BC63: 0
B64: =Species!$B54 -> Hairy Grama | C64: Bouteloua hirsuta | H64: 0 | I64: 0.00 | K64: =VLOOKUP(B64,Species!B$3:Y$552,24,FALSE) -> 0 | L64: =VLOOKUP(B64,Species!B$3:AJ$552,35,FALSE) -> 0 | M64: =VLOOKUP(B64,Species!B$3:AD$552,29,FALSE) -> 10 | N64: =VLOOKUP(B64,Species!B$3:AB$552,27,FALSE) -> 1600 | O64: 0 | P64: =VLOOKUP(B64,Species!B$3:AF$552,31,FALSE) -> Perennial Warm Season Grass | Q64: =VLOOKUP(B64,Species!B$3:D$552,3,FALSE) -> Grass | R64: =VLOOKUP(B64,Species!B$3:W$552,22,FALSE) -> 18.36547291 | S64: 0 | T64: 0 | U64: 0 | W64: 0 | X64: =VLOOKUP(B64,Species!B$3:F$552,5,FALSE) -> Yes | Y64: =VLOOKUP(B64,Species!B$3:AC$552,28,FALSE) -> Native | Z64: =VLOOKUP(B64,Species!B$3:AC$552,9,FALSE) -> X | AA64: =VLOOKUP(B64,Species!B$3:AC$552,10,FALSE) ->  | AB64: =VLOOKUP(B64,Species!B$3:AC$552,11,FALSE) ->  | AC64: =VLOOKUP(B64,Species!B$3:AC$552,12,FALSE) -> X | AD64: =VLOOKUP(B64,Species!B$3:AC$552,13,FALSE) -> 0 | AE64: =VLOOKUP(B64,Species!B$3:AC$552,14,FALSE) -> 0 | AF64: =VLOOKUP(B64,Species!B$3:AC$552,15,FALSE) -> 0 | AG64: =VLOOKUP(B64,Species!B$3:AC$552,16,FALSE) -> X | AH64: =VLOOKUP(B64,Species!B$3:AC$552,17,FALSE) -> 0 | AI64: =VLOOKUP(B64,Species!B$3:AC$552,18,FALSE) -> 0 | AJ64: =VLOOKUP(B64,Species!B$3:AC$552,19,FALSE) ->  | AK64: =VLOOKUP(B64,Species!B$3:AC$552,20,FALSE) ->  | AL64: =VLOOKUP(B64,Species!B$3:AJ$552,35,FALSE) -> 0 | AM64: =VLOOKUP(B64,Species!B$3:AH$552,33,FALSE) -> 0 | AN64: =VLOOKUP(B64,Species!B$3:I$552,8,FALSE) -> No | AO64: =VLOOKUP(B64,Species!B$3:BC$552,54,FALSE) -> 0 | AP64: =VLOOKUP(B64,Species!B$3:BE$552,55,FALSE) -> 0 | AQ64: =VLOOKUP(B64,Species!B$3:BE$552,56,FALSE) -> 0 | AY64: =HYPERLINK(VLOOKUP(B64,Species!B$3:BF$552,57,FALSE)) -> http://plants.usda.gov/core/profile?symbol=BOHI2 | AZ64: =VLOOKUP(B64,Species!B$3:C$552,2,FALSE) -> Bouteloua hirsuta | BA64: 0 | BB64: 0.000 | BC64: 0
B65: =Species!$B55 -> Hairy Sedge | C65: Carex lacustris | H65: 0 | I65: 0.00 | K65: =VLOOKUP(B65,Species!B$3:Y$552,24,FALSE) -> 0 | L65: =VLOOKUP(B65,Species!B$3:AJ$552,35,FALSE) -> 0 | M65: =VLOOKUP(B65,Species!B$3:AD$552,29,FALSE) -> 0 | N65: =VLOOKUP(B65,Species!B$3:AB$552,27,FALSE) -> 900 | O65: 0 | P65: =VLOOKUP(B65,Species!B$3:AF$552,31,FALSE) -> Perennial Cool Season Sedge | Q65: =VLOOKUP(B65,Species!B$3:D$552,3,FALSE) -> Grass | R65: =VLOOKUP(B65,Species!B$3:W$552,22,FALSE) -> 0 | S65: 0 | T65: 0 | U65: 0 | W65: 0 | X65: =VLOOKUP(B65,Species!B$3:F$552,5,FALSE) -> No | Y65: =VLOOKUP(B65,Species!B$3:AC$552,28,FALSE) -> Native | Z65: =VLOOKUP(B65,Species!B$3:AC$552,9,FALSE) ->  | AA65: =VLOOKUP(B65,Species!B$3:AC$552,10,FALSE) ->  | AB65: =VLOOKUP(B65,Species!B$3:AC$552,11,FALSE) -> X | AC65: =VLOOKUP(B65,Species!B$3:AC$552,12,FALSE) -> 0 | AD65: =VLOOKUP(B65,Species!B$3:AC$552,13,FALSE) -> 0 | AE65: =VLOOKUP(B65,Species!B$3:AC$552,14,FALSE) -> X | AF65: =VLOOKUP(B65,Species!B$3:AC$552,15,FALSE) -> 0 | AG65: =VLOOKUP(B65,Species!B$3:AC$552,16,FALSE) -> 0 | AH65: =VLOOKUP(B65,Species!B$3:AC$552,17,FALSE) -> 0 | AI65: =VLOOKUP(B65,Species!B$3:AC$552,18,FALSE) -> 0 | AJ65: =VLOOKUP(B65,Species!B$3:AC$552,19,FALSE) -> X | AK65: =VLOOKUP(B65,Species!B$3:AC$552,20,FALSE) ->  | AL65: =VLOOKUP(B65,Species!B$3:AJ$552,35,FALSE) -> 0 | AM65: =VLOOKUP(B65,Species!B$3:AH$552,33,FALSE) -> 0 | AN65: =VLOOKUP(B65,Species!B$3:I$552,8,FALSE) -> No | AO65: =VLOOKUP(B65,Species!B$3:BC$552,54,FALSE) -> 0 | AP65: =VLOOKUP(B65,Species!B$3:BE$552,55,FALSE) -> 0 | AQ65: =VLOOKUP(B65,Species!B$3:BE$552,56,FALSE) -> 0 | AY65: =HYPERLINK(VLOOKUP(B65,Species!B$3:BF$552,57,FALSE)) ->  | AZ65: =VLOOKUP(B65,Species!B$3:C$552,2,FALSE) -> Carex lacustris | BA65: 0 | BB65: 0.000 | BC65: 0
B66: =Species!$B56 -> Hairy Wildrye | C66: Elymus villosus | H66: 0 | I66: 0.00 | K66: =VLOOKUP(B66,Species!B$3:Y$552,24,FALSE) -> 0 | L66: =VLOOKUP(B66,Species!B$3:AJ$552,35,FALSE) -> 0 | M66: =VLOOKUP(B66,Species!B$3:AD$552,29,FALSE) -> 0 | N66: =VLOOKUP(B66,Species!B$3:AB$552,27,FALSE) -> 120 | O66: 0 | P66: =VLOOKUP(B66,Species!B$3:AF$552,31,FALSE) -> Perennial Cool Season Grass | Q66: =VLOOKUP(B66,Species!B$3:D$552,3,FALSE) -> Grass | R66: =VLOOKUP(B66,Species!B$3:W$552,22,FALSE) -> 0 | S66: 0 | T66: 0 | U66: 0 | W66: 0 | X66: =VLOOKUP(B66,Species!B$3:F$552,5,FALSE) -> No | Y66: =VLOOKUP(B66,Species!B$3:AC$552,28,FALSE) -> Native | Z66: =VLOOKUP(B66,Species!B$3:AC$552,9,FALSE) ->  | AA66: =VLOOKUP(B66,Species!B$3:AC$552,10,FALSE) -> X | AB66: =VLOOKUP(B66,Species!B$3:AC$552,11,FALSE) ->  | AC66: =VLOOKUP(B66,Species!B$3:AC$552,12,FALSE) ->  | AD66: =VLOOKUP(B66,Species!B$3:AC$552,13,FALSE) -> 0 | AE66: =VLOOKUP(B66,Species!B$3:AC$552,14,FALSE) -> 0 | AF66: =VLOOKUP(B66,Species!B$3:AC$552,15,FALSE) -> 0 | AG66: =VLOOKUP(B66,Species!B$3:AC$552,16,FALSE) -> X | AH66: =VLOOKUP(B66,Species!B$3:AC$552,17,FALSE) -> 0 | AI66: =VLOOKUP(B66,Species!B$3:AC$552,18,FALSE) -> 0 | AJ66: =VLOOKUP(B66,Species!B$3:AC$552,19,FALSE) ->  | AK66: =VLOOKUP(B66,Species!B$3:AC$552,20,FALSE) -> X | AL66: =VLOOKUP(B66,Species!B$3:AJ$552,35,FALSE) -> 0 | AM66: =VLOOKUP(B66,Species!B$3:AH$552,33,FALSE) -> 0 | AN66: =VLOOKUP(B66,Species!B$3:I$552,8,FALSE) -> No | AO66: =VLOOKUP(B66,Species!B$3:BC$552,54,FALSE) -> 0 | AP66: =VLOOKUP(B66,Species!B$3:BE$552,55,FALSE) -> 0 | AQ66: =VLOOKUP(B66,Species!B$3:BE$552,56,FALSE) -> 0 | AY66: =HYPERLINK(VLOOKUP(B66,Species!B$3:BF$552,57,FALSE)) -> http://plants.usda.gov/java/profile?symbol=HOJU | AZ66: =VLOOKUP(B66,Species!B$3:C$552,2,FALSE) -> Elymus villosus | BA66: 0 | BB66: 0.000 | BC66: 0
B67: =Species!$B57 -> Hairyfruit Sedge | C67: Carex trichocarpa | H67: 0 | I67: 0.00 | K67: =VLOOKUP(B67,Species!B$3:Y$552,24,FALSE) -> 0 | L67: =VLOOKUP(B67,Species!B$3:AJ$552,35,FALSE) -> 0 | M67: =VLOOKUP(B67,Species!B$3:AD$552,29,FALSE) -> 0 | N67: =VLOOKUP(B67,Species!B$3:AB$552,27,FALSE) -> 800 | O67: 0 | P67: =VLOOKUP(B67,Species!B$3:AF$552,31,FALSE) -> Perennial Cool Season Sedge | Q67: =VLOOKUP(B67,Species!B$3:D$552,3,FALSE) -> Grass | R67: =VLOOKUP(B67,Species!B$3:W$552,22,FALSE) -> 0 | S67: 0 | T67: 0 | U67: 0 | W67: 0 | X67: =VLOOKUP(B67,Species!B$3:F$552,5,FALSE) -> No | Y67: =VLOOKUP(B67,Species!B$3:AC$552,28,FALSE) -> Native | Z67: =VLOOKUP(B67,Species!B$3:AC$552,9,FALSE) ->  | AA67: =VLOOKUP(B67,Species!B$3:AC$552,10,FALSE) ->  | AB67: =VLOOKUP(B67,Species!B$3:AC$552,11,FALSE) -> X | AC67: =VLOOKUP(B67,Species!B$3:AC$552,12,FALSE) ->  | AD67: =VLOOKUP(B67,Species!B$3:AC$552,13,FALSE) -> 0 | AE67: =VLOOKUP(B67,Species!B$3:AC$552,14,FALSE) -> X | AF67: =VLOOKUP(B67,Species!B$3:AC$552,15,FALSE) -> 0 | AG67: =VLOOKUP(B67,Species!B$3:AC$552,16,FALSE) ->  | AH67: =VLOOKUP(B67,Species!B$3:AC$552,17,FALSE) -> 0 | AI67: =VLOOKUP(B67,Species!B$3:AC$552,18,FALSE) -> 0 | AJ67: =VLOOKUP(B67,Species!B$3:AC$552,19,FALSE) -> X | AK67: =VLOOKUP(B67,Species!B$3:AC$552,20,FALSE) ->  | AL67: =VLOOKUP(B67,Species!B$3:AJ$552,35,FALSE) -> 0 | AM67: =VLOOKUP(B67,Species!B$3:AH$552,33,FALSE) -> 0 | AN67: =VLOOKUP(B67,Species!B$3:I$552,8,FALSE) -> No | AO67: =VLOOKUP(B67,Species!B$3:BC$552,54,FALSE) -> 0 | AP67: =VLOOKUP(B67,Species!B$3:BE$552,55,FALSE) -> 0 | AQ67: =VLOOKUP(B67,Species!B$3:BE$552,56,FALSE) -> 0 | AY67: =HYPERLINK(VLOOKUP(B67,Species!B$3:BF$552,57,FALSE)) ->  | AZ67: =VLOOKUP(B67,Species!B$3:C$552,2,FALSE) -> Carex trichocarpa | BA67: 0 | BB67: 0.000 | BC67: 0
B68: =Species!$B58 -> Hardstem Bulrush | C68: Schoenoplectus acutus | H68: 0 | I68: 0.00 | K68: =VLOOKUP(B68,Species!B$3:Y$552,24,FALSE) -> 0 | L68: =VLOOKUP(B68,Species!B$3:AJ$552,35,FALSE) -> 0 | M68: =VLOOKUP(B68,Species!B$3:AD$552,29,FALSE) -> 0 | N68: =VLOOKUP(B68,Species!B$3:AB$552,27,FALSE) -> 400 | O68: 0 | P68: =VLOOKUP(B68,Species!B$3:AF$552,31,FALSE) -> Perennial Cool Season Sedge | Q68: =VLOOKUP(B68,Species!B$3:D$552,3,FALSE) -> Grass | R68: =VLOOKUP(B68,Species!B$3:W$552,22,FALSE) -> 0 | S68: 0 | T68: 0 | U68: 0 | W68: 0 | X68: =VLOOKUP(B68,Species!B$3:F$552,5,FALSE) -> No | Y68: =VLOOKUP(B68,Species!B$3:AC$552,28,FALSE) -> Native | Z68: =VLOOKUP(B68,Species!B$3:AC$552,9,FALSE) ->  | AA68: =VLOOKUP(B68,Species!B$3:AC$552,10,FALSE) ->  | AB68: =VLOOKUP(B68,Species!B$3:AC$552,11,FALSE) -> X | AC68: =VLOOKUP(B68,Species!B$3:AC$552,12,FALSE) ->  | AD68: =VLOOKUP(B68,Species!B$3:AC$552,13,FALSE) -> 0 | AE68: =VLOOKUP(B68,Species!B$3:AC$552,14,FALSE) -> 0 | AF68: =VLOOKUP(B68,Species!B$3:AC$552,15,FALSE) -> 0 | AG68: =VLOOKUP(B68,Species!B$3:AC$552,16,FALSE) ->  | AH68: =VLOOKUP(B68,Species!B$3:AC$552,17,FALSE) -> 0 | AI68: =VLOOKUP(B68,Species!B$3:AC$552,18,FALSE) -> 0 | AJ68: =VLOOKUP(B68,Species!B$3:AC$552,19,FALSE) -> X | AK68: =VLOOKUP(B68,Species!B$3:AC$552,20,FALSE) ->  | AL68: =VLOOKUP(B68,Species!B$3:AJ$552,35,FALSE) -> 0 | AM68: =VLOOKUP(B68,Species!B$3:AH$552,33,FALSE) -> 0 | AN68: =VLOOKUP(B68,Species!B$3:I$552,8,FALSE) -> No | AO68: =VLOOKUP(B68,Species!B$3:BC$552,54,FALSE) -> 0 | AP68: =VLOOKUP(B68,Species!B$3:BE$552,55,FALSE) -> 0 | AQ68: =VLOOKUP(B68,Species!B$3:BE$552,56,FALSE) -> 0 | AY68: =HYPERLINK(VLOOKUP(B68,Species!B$3:BF$552,57,FALSE)) -> http://plants.usda.gov/core/profile?symbol=SCAC3 | AZ68: =VLOOKUP(B68,Species!B$3:C$552,2,FALSE) -> Schoenoplectus acutus | BA68: 0 | BB68: 0.000 | BC68: 0
B69: =Species!$B59 -> Hayden's Sedge | C69: Carex haydenii | H69: 0 | I69: 0.00 | K69: =VLOOKUP(B69,Species!B$3:Y$552,24,FALSE) -> 0 | L69: =VLOOKUP(B69,Species!B$3:AJ$552,35,FALSE) -> 0 | M69: =VLOOKUP(B69,Species!B$3:AD$552,29,FALSE) -> 0 | N69: =VLOOKUP(B69,Species!B$3:AB$552,27,FALSE) -> 800 | O69: 0 | P69: =VLOOKUP(B69,Species!B$3:AF$552,31,FALSE) -> Perennial Cool Season Sedge | Q69: =VLOOKUP(B69,Species!B$3:D$552,3,FALSE) -> Grass | R69: =VLOOKUP(B69,Species!B$3:W$552,22,FALSE) -> 0 | S69: 0 | T69: 0 | U69: 0 | W69: 0 | X69: =VLOOKUP(B69,Species!B$3:F$552,5,FALSE) -> No | Y69: =VLOOKUP(B69,Species!B$3:AC$552,28,FALSE) -> Native | Z69: =VLOOKUP(B69,Species!B$3:AC$552,9,FALSE) ->  | AA69: =VLOOKUP(B69,Species!B$3:AC$552,10,FALSE) ->  | AB69: =VLOOKUP(B69,Species!B$3:AC$552,11,FALSE) -> X | AC69: =VLOOKUP(B69,Species!B$3:AC$552,12,FALSE) -> 0 | AD69: =VLOOKUP(B69,Species!B$3:AC$552,13,FALSE) -> 0 | AE69: =VLOOKUP(B69,Species!B$3:AC$552,14,FALSE) -> X | AF69: =VLOOKUP(B69,Species!B$3:AC$552,15,FALSE) -> 0 | AG69: =VLOOKUP(B69,Species!B$3:AC$552,16,FALSE) -> 0 | AH69: =VLOOKUP(B69,Species!B$3:AC$552,17,FALSE) -> 0 | AI69: =VLOOKUP(B69,Species!B$3:AC$552,18,FALSE) -> 0 | AJ69: =VLOOKUP(B69,Species!B$3:AC$552,19,FALSE) -> X | AK69: =VLOOKUP(B69,Species!B$3:AC$552,20,FALSE) ->  | AL69: =VLOOKUP(B69,Species!B$3:AJ$552,35,FALSE) -> 0 | AM69: =VLOOKUP(B69,Species!B$3:AH$552,33,FALSE) -> 0 | AN69: =VLOOKUP(B69,Species!B$3:I$552,8,FALSE) -> No | AO69: =VLOOKUP(B69,Species!B$3:BC$552,54,FALSE) -> 0 | AP69: =VLOOKUP(B69,Species!B$3:BE$552,55,FALSE) -> 0 | AQ69: =VLOOKUP(B69,Species!B$3:BE$552,56,FALSE) -> 0 | AY69: =HYPERLINK(VLOOKUP(B69,Species!B$3:BF$552,57,FALSE)) ->  | AZ69: =VLOOKUP(B69,Species!B$3:C$552,2,FALSE) -> Carex haydenii | BA69: 0 | BB69: 0.000 | BC69: 0
B70: =Species!$B60 -> Heavy Sedge | C70: Carex gravida | H70: 0 | I70: 0.00 | K70: =VLOOKUP(B70,Species!B$3:Y$552,24,FALSE) -> 0 | L70: =VLOOKUP(B70,Species!B$3:AJ$552,35,FALSE) -> 0 | M70: =VLOOKUP(B70,Species!B$3:AD$552,29,FALSE) -> 0 | N70: =VLOOKUP(B70,Species!B$3:AB$552,27,FALSE) -> 800 | O70: 0 | P70: =VLOOKUP(B70,Species!B$3:AF$552,31,FALSE) -> Perennial Cool Season Sedge | Q70: =VLOOKUP(B70,Species!B$3:D$552,3,FALSE) -> Grass | R70: =VLOOKUP(B70,Species!B$3:W$552,22,FALSE) -> 0 | S70: 0 | T70: 0 | U70: 0 | W70: 0 | X70: =VLOOKUP(B70,Species!B$3:F$552,5,FALSE) -> No | Y70: =VLOOKUP(B70,Species!B$3:AC$552,28,FALSE) -> Native | Z70: =VLOOKUP(B70,Species!B$3:AC$552,9,FALSE) -> 0 | AA70: =VLOOKUP(B70,Species!B$3:AC$552,10,FALSE) -> X | AB70: =VLOOKUP(B70,Species!B$3:AC$552,11,FALSE) -> X | AC70: =VLOOKUP(B70,Species!B$3:AC$552,12,FALSE) -> 0 | AD70: =VLOOKUP(B70,Species!B$3:AC$552,13,FALSE) -> X | AE70: =VLOOKUP(B70,Species!B$3:AC$552,14,FALSE) -> X | AF70: =VLOOKUP(B70,Species!B$3:AC$552,15,FALSE) -> 0 | AG70: =VLOOKUP(B70,Species!B$3:AC$552,16,FALSE) -> 0 | AH70: =VLOOKUP(B70,Species!B$3:AC$552,17,FALSE) -> 0 | AI70: =VLOOKUP(B70,Species!B$3:AC$552,18,FALSE) -> 0 | AJ70: =VLOOKUP(B70,Species!B$3:AC$552,19,FALSE) ->  | AK70: =VLOOKUP(B70,Species!B$3:AC$552,20,FALSE) -> X | AL70: =VLOOKUP(B70,Species!B$3:AJ$552,35,FALSE) -> 0 | AM70: =VLOOKUP(B70,Species!B$3:AH$552,33,FALSE) -> 0 | AN70: =VLOOKUP(B70,Species!B$3:I$552,8,FALSE) -> No | AO70: =VLOOKUP(B70,Species!B$3:BC$552,54,FALSE) -> 0 | AP70: =VLOOKUP(B70,Species!B$3:BE$552,55,FALSE) -> 0 | AQ70: =VLOOKUP(B70,Species!B$3:BE$552,56,FALSE) -> 0 | AY70: =HYPERLINK(VLOOKUP(B70,Species!B$3:BF$552,57,FALSE)) ->  | AZ70: =VLOOKUP(B70,Species!B$3:C$552,2,FALSE) -> Carex gravida | BA70: 0 | BB70: 0.000 | BC70: 0
B71: =Species!$B61 -> Hop Sedge | C71: Carex lupulina | H71: 0 | I71: 0.00 | K71: =VLOOKUP(B71,Species!B$3:Y$552,24,FALSE) -> 0 | L71: =VLOOKUP(B71,Species!B$3:AJ$552,35,FALSE) -> 0 | M71: =VLOOKUP(B71,Species!B$3:AD$552,29,FALSE) -> 0 | N71: =VLOOKUP(B71,Species!B$3:AB$552,27,FALSE) -> 170 | O71: 0 | P71: =VLOOKUP(B71,Species!B$3:AF$552,31,FALSE) -> Perennial Cool Season Sedge | Q71: =VLOOKUP(B71,Species!B$3:D$552,3,FALSE) -> Grass | R71: =VLOOKUP(B71,Species!B$3:W$552,22,FALSE) -> 0 | S71: 0 | T71: 0 | U71: 0 | W71: 0 | X71: =VLOOKUP(B71,Species!B$3:F$552,5,FALSE) -> No | Y71: =VLOOKUP(B71,Species!B$3:AC$552,28,FALSE) -> Native | Z71: =VLOOKUP(B71,Species!B$3:AC$552,9,FALSE) ->  | AA71: =VLOOKUP(B71,Species!B$3:AC$552,10,FALSE) -> 0 | AB71: =VLOOKUP(B71,Species!B$3:AC$552,11,FALSE) -> X | AC71: =VLOOKUP(B71,Species!B$3:AC$552,12,FALSE) -> 0 | AD71: =VLOOKUP(B71,Species!B$3:AC$552,13,FALSE) -> 0 | AE71: =VLOOKUP(B71,Species!B$3:AC$552,14,FALSE) -> X | AF71: =VLOOKUP(B71,Species!B$3:AC$552,15,FALSE) -> X | AG71: =VLOOKUP(B71,Species!B$3:AC$552,16,FALSE) -> 0 | AH71: =VLOOKUP(B71,Species!B$3:AC$552,17,FALSE) -> 0 | AI71: =VLOOKUP(B71,Species!B$3:AC$552,18,FALSE) -> 0 | AJ71: =VLOOKUP(B71,Species!B$3:AC$552,19,FALSE) -> X | AK71: =VLOOKUP(B71,Species!B$3:AC$552,20,FALSE) -> 0 | AL71: =VLOOKUP(B71,Species!B$3:AJ$552,35,FALSE) -> 0 | AM71: =VLOOKUP(B71,Species!B$3:AH$552,33,FALSE) -> 0 | AN71: =VLOOKUP(B71,Species!B$3:I$552,8,FALSE) -> No | AO71: =VLOOKUP(B71,Species!B$3:BC$552,54,FALSE) -> 0 | AP71: =VLOOKUP(B71,Species!B$3:BE$552,55,FALSE) -> 0 | AQ71: =VLOOKUP(B71,Species!B$3:BE$552,56,FALSE) -> 0 | AY71: =HYPERLINK(VLOOKUP(B71,Species!B$3:BF$552,57,FALSE)) -> http://plants.usda.gov/core/profile?symbol=CALU4 | AZ71: =VLOOKUP(B71,Species!B$3:C$552,2,FALSE) -> Carex lupulina | BA71: 0 | BB71: 0.000 | BC71: 0
B72: =Species!$B62 -> Indiangrass | C72: Sorghastrum nutans | H72: 0 | I72: 0.00 | K72: =VLOOKUP(B72,Species!B$3:Y$552,24,FALSE) -> 7.8 | L72: =VLOOKUP(B72,Species!B$3:AJ$552,35,FALSE) -> 0 | M72: =VLOOKUP(B72,Species!B$3:AD$552,29,FALSE) -> 4 | N72: =VLOOKUP(B72,Species!B$3:AB$552,27,FALSE) -> 13.296 | O72: 0 | P72: =VLOOKUP(B72,Species!B$3:AF$552,31,FALSE) -> Perennial Warm Season Grass | Q72: =VLOOKUP(B72,Species!B$3:D$552,3,FALSE) -> Grass | R72: =VLOOKUP(B72,Species!B$3:W$552,22,FALSE) -> 3.787878788 | S72: 0 | T72: 0 | U72: 0 | W72: 0 | X72: =VLOOKUP(B72,Species!B$3:F$552,5,FALSE) -> Yes | Y72: =VLOOKUP(B72,Species!B$3:AC$552,28,FALSE) -> Native | Z72: =VLOOKUP(B72,Species!B$3:AC$552,9,FALSE) -> X | AA72: =VLOOKUP(B72,Species!B$3:AC$552,10,FALSE) -> X | AB72: =VLOOKUP(B72,Species!B$3:AC$552,11,FALSE) ->  | AC72: =VLOOKUP(B72,Species!B$3:AC$552,12,FALSE) -> X | AD72: =VLOOKUP(B72,Species!B$3:AC$552,13,FALSE) -> X | AE72: =VLOOKUP(B72,Species!B$3:AC$552,14,FALSE) -> 0 | AF72: =VLOOKUP(B72,Species!B$3:AC$552,15,FALSE) -> 0 | AG72: =VLOOKUP(B72,Species!B$3:AC$552,16,FALSE) -> X | AH72: =VLOOKUP(B72,Species!B$3:AC$552,17,FALSE) -> X | AI72: =VLOOKUP(B72,Species!B$3:AC$552,18,FALSE) -> 0 | AJ72: =VLOOKUP(B72,Species!B$3:AC$552,19,FALSE) ->  | AK72: =VLOOKUP(B72,Species!B$3:AC$552,20,FALSE) ->  | AL72: =VLOOKUP(B72,Species!B$3:AJ$552,35,FALSE) -> 0 | AM72: =VLOOKUP(B72,Species!B$3:AH$552,33,FALSE) -> 0 | AN72: =VLOOKUP(B72,Species!B$3:I$552,8,FALSE) -> Yes | AO72: =VLOOKUP(B72,Species!B$3:BC$552,54,FALSE) -> 0 | AP72: =VLOOKUP(B72,Species!B$3:BE$552,55,FALSE) -> 0 | AQ72: =VLOOKUP(B72,Species!B$3:BE$552,56,FALSE) -> 0 | AY72: =HYPERLINK(VLOOKUP(B72,Species!B$3:BF$552,57,FALSE)) -> http://plants.usda.gov/core/profile?symbol=SONU2 | AZ72: =VLOOKUP(B72,Species!B$3:C$552,2,FALSE) -> Sorghastrum nutans | BA72: 0 | BB72: 0.000 | BC72: 0
B73: =Species!$B63 -> Inflated Narrow-Leaf Sedge | C73: Carex grisea | H73: 0 | I73: 0.00 | K73: =VLOOKUP(B73,Species!B$3:Y$552,24,FALSE) -> 0 | L73: =VLOOKUP(B73,Species!B$3:AJ$552,35,FALSE) -> 0 | M73: =VLOOKUP(B73,Species!B$3:AD$552,29,FALSE) -> 0 | N73: =VLOOKUP(B73,Species!B$3:AB$552,27,FALSE) -> 624 | O73: 0 | P73: =VLOOKUP(B73,Species!B$3:AF$552,31,FALSE) -> Perennial Cool Season Sedge | Q73: =VLOOKUP(B73,Species!B$3:D$552,3,FALSE) -> Grass | R73: =VLOOKUP(B73,Species!B$3:W$552,22,FALSE) -> 0 | S73: 0 | T73: 0 | U73: 0 | W73: 0 | X73: =VLOOKUP(B73,Species!B$3:F$552,5,FALSE) -> No | Y73: =VLOOKUP(B73,Species!B$3:AC$552,28,FALSE) -> Native | Z73: =VLOOKUP(B73,Species!B$3:AC$552,9,FALSE) ->  | AA73: =VLOOKUP(B73,Species!B$3:AC$552,10,FALSE) -> X | AB73: =VLOOKUP(B73,Species!B$3:AC$552,11,FALSE) -> 0 | AC73: =VLOOKUP(B73,Species!B$3:AC$552,12,FALSE) ->  | AD73: =VLOOKUP(B73,Species!B$3:AC$552,13,FALSE) -> X | AE73: =VLOOKUP(B73,Species!B$3:AC$552,14,FALSE) -> 0 | AF73: =VLOOKUP(B73,Species!B$3:AC$552,15,FALSE) -> 0 | AG73: =VLOOKUP(B73,Species!B$3:AC$552,16,FALSE) -> 0 | AH73: =VLOOKUP(B73,Species!B$3:AC$552,17,FALSE) -> 0 | AI73: =VLOOKUP(B73,Species!B$3:AC$552,18,FALSE) -> 0 | AJ73: =VLOOKUP(B73,Species!B$3:AC$552,19,FALSE) ->  | AK73: =VLOOKUP(B73,Species!B$3:AC$552,20,FALSE) -> X | AL73: =VLOOKUP(B73,Species!B$3:AJ$552,35,FALSE) -> 0 | AM73: =VLOOKUP(B73,Species!B$3:AH$552,33,FALSE) -> 0 | AN73: =VLOOKUP(B73,Species!B$3:I$552,8,FALSE) -> No | AO73: =VLOOKUP(B73,Species!B$3:BC$552,54,FALSE) -> 0 | AP73: =VLOOKUP(B73,Species!B$3:BE$552,55,FALSE) -> 0 | AQ73: =VLOOKUP(B73,Species!B$3:BE$552,56,FALSE) -> 0 | AY73: =HYPERLINK(VLOOKUP(B73,Species!B$3:BF$552,57,FALSE)) ->  | AZ73: =VLOOKUP(B73,Species!B$3:C$552,2,FALSE) -> Carex grisea | BA73: 0 | BB73: 0.000 | BC73: 0
B74: =Species!$B64 -> Inland Rush | C74: Juncus interior | H74: 0 | I74: 0.00 | K74: =VLOOKUP(B74,Species!B$3:Y$552,24,FALSE) -> 0 | L74: =VLOOKUP(B74,Species!B$3:AJ$552,35,FALSE) -> 0 | M74: =VLOOKUP(B74,Species!B$3:AD$552,29,FALSE) -> 0 | N74: =VLOOKUP(B74,Species!B$3:AB$552,27,FALSE) -> 225 | O74: 0 | P74: =VLOOKUP(B74,Species!B$3:AF$552,31,FALSE) -> Perennial Cool Season Rush | Q74: =VLOOKUP(B74,Species!B$3:D$552,3,FALSE) -> Grass | R74: =VLOOKUP(B74,Species!B$3:W$552,22,FALSE) -> 0 | S74: 0 | T74: 0 | U74: 0 | W74: 0 | X74: =VLOOKUP(B74,Species!B$3:F$552,5,FALSE) -> No | Y74: =VLOOKUP(B74,Species!B$3:AC$552,28,FALSE) -> Native | Z74: =VLOOKUP(B74,Species!B$3:AC$552,9,FALSE) ->  | AA74: =VLOOKUP(B74,Species!B$3:AC$552,10,FALSE) -> X | AB74: =VLOOKUP(B74,Species!B$3:AC$552,11,FALSE) ->  | AC74: =VLOOKUP(B74,Species!B$3:AC$552,12,FALSE) -> X | AD74: =VLOOKUP(B74,Species!B$3:AC$552,13,FALSE) -> 0 | AE74: =VLOOKUP(B74,Species!B$3:AC$552,14,FALSE) -> 0 | AF74: =VLOOKUP(B74,Species!B$3:AC$552,15,FALSE) -> 0 | AG74: =VLOOKUP(B74,Species!B$3:AC$552,16,FALSE) -> X | AH74: =VLOOKUP(B74,Species!B$3:AC$552,17,FALSE) -> 0 | AI74: =VLOOKUP(B74,Species!B$3:AC$552,18,FALSE) -> 0 | AJ74: =VLOOKUP(B74,Species!B$3:AC$552,19,FALSE) ->  | AK74: =VLOOKUP(B74,Species!B$3:AC$552,20,FALSE) ->  | AL74: =VLOOKUP(B74,Species!B$3:AJ$552,35,FALSE) -> 0 | AM74: =VLOOKUP(B74,Species!B$3:AH$552,33,FALSE) -> 0 | AN74: =VLOOKUP(B74,Species!B$3:I$552,8,FALSE) -> No | AO74: =VLOOKUP(B74,Species!B$3:BC$552,54,FALSE) -> 0 | AP74: =VLOOKUP(B74,Species!B$3:BE$552,55,FALSE) -> 0 | AQ74: =VLOOKUP(B74,Species!B$3:BE$552,56,FALSE) -> 0 | AY74: =HYPERLINK(VLOOKUP(B74,Species!B$3:BF$552,57,FALSE)) -> http://plants.usda.gov/java/profile?symbol=CAVE6 | AZ74: =VLOOKUP(B74,Species!B$3:C$552,2,FALSE) -> Juncus interior | BA74: 0 | BB74: 0.000 | BC74: 0
B75: =Species!$B65 -> Inland Sedge | C75: Carex interior | H75: 0 | I75: 0.00 | K75: =VLOOKUP(B75,Species!B$3:Y$552,24,FALSE) -> 0 | L75: =VLOOKUP(B75,Species!B$3:AJ$552,35,FALSE) -> 0 | M75: =VLOOKUP(B75,Species!B$3:AD$552,29,FALSE) -> 0 | N75: =VLOOKUP(B75,Species!B$3:AB$552,27,FALSE) -> 1440 | O75: 0 | P75: =VLOOKUP(B75,Species!B$3:AF$552,31,FALSE) -> Perennial Cool Season Sedge | Q75: =VLOOKUP(B75,Species!B$3:D$552,3,FALSE) -> Grass | R75: =VLOOKUP(B75,Species!B$3:W$552,22,FALSE) -> 0 | S75: 0 | T75: 0 | U75: 0 | W75: 0 | X75: =VLOOKUP(B75,Species!B$3:F$552,5,FALSE) -> No | Y75: =VLOOKUP(B75,Species!B$3:AC$552,28,FALSE) -> Native | Z75: =VLOOKUP(B75,Species!B$3:AC$552,9,FALSE) -> X | AA75: =VLOOKUP(B75,Species!B$3:AC$552,10,FALSE) -> X | AB75: =VLOOKUP(B75,Species!B$3:AC$552,11,FALSE) -> 0 | AC75: =VLOOKUP(B75,Species!B$3:AC$552,12,FALSE) -> 0 | AD75: =VLOOKUP(B75,Species!B$3:AC$552,13,FALSE) -> 0 | AE75: =VLOOKUP(B75,Species!B$3:AC$552,14,FALSE) -> 0 | AF75: =VLOOKUP(B75,Species!B$3:AC$552,15,FALSE) -> 0 | AG75: =VLOOKUP(B75,Species!B$3:AC$552,16,FALSE) -> X | AH75: =VLOOKUP(B75,Species!B$3:AC$552,17,FALSE) -> X | AI75: =VLOOKUP(B75,Species!B$3:AC$552,18,FALSE) -> 0 | AJ75: =VLOOKUP(B75,Species!B$3:AC$552,19,FALSE) -> 0 | AK75: =VLOOKUP(B75,Species!B$3:AC$552,20,FALSE) -> X | AL75: =VLOOKUP(B75,Species!B$3:AJ$552,35,FALSE) -> 0 | AM75: =VLOOKUP(B75,Species!B$3:AH$552,33,FALSE) -> 0 | AN75: =VLOOKUP(B75,Species!B$3:I$552,8,FALSE) -> No | AO75: =VLOOKUP(B75,Species!B$3:BC$552,54,FALSE) -> 0 | AP75: =VLOOKUP(B75,Species!B$3:BE$552,55,FALSE) -> 0 | AQ75: =VLOOKUP(B75,Species!B$3:BE$552,56,FALSE) -> 0 | AY75: =HYPERLINK(VLOOKUP(B75,Species!B$3:BF$552,57,FALSE)) ->  | AZ75: =VLOOKUP(B75,Species!B$3:C$552,2,FALSE) -> Carex interior | BA75: 0 | BB75: 0.000 | BC75: 0
B76: =Species!$B66 -> James Sedge | C76: Carex jamesii | H76: 0 | I76: 0.00 | K76: =VLOOKUP(B76,Species!B$3:Y$552,24,FALSE) -> 0 | L76: =VLOOKUP(B76,Species!B$3:AJ$552,35,FALSE) -> 0 | M76: =VLOOKUP(B76,Species!B$3:AD$552,29,FALSE) -> 0 | N76: =VLOOKUP(B76,Species!B$3:AB$552,27,FALSE) -> 480 | O76: 0 | P76: =VLOOKUP(B76,Species!B$3:AF$552,31,FALSE) -> Perennial Cool Season Sedge | Q76: =VLOOKUP(B76,Species!B$3:D$552,3,FALSE) -> Grass | R76: =VLOOKUP(B76,Species!B$3:W$552,22,FALSE) -> 0 | S76: 0 | T76: 0 | U76: 0 | W76: 0 | X76: =VLOOKUP(B76,Species!B$3:F$552,5,FALSE) -> No | Y76: =VLOOKUP(B76,Species!B$3:AC$552,28,FALSE) -> Native | Z76: =VLOOKUP(B76,Species!B$3:AC$552,9,FALSE) ->  | AA76: =VLOOKUP(B76,Species!B$3:AC$552,10,FALSE) -> X | AB76: =VLOOKUP(B76,Species!B$3:AC$552,11,FALSE) ->  | AC76: =VLOOKUP(B76,Species!B$3:AC$552,12,FALSE) ->  | AD76: =VLOOKUP(B76,Species!B$3:AC$552,13,FALSE) -> 0 | AE76: =VLOOKUP(B76,Species!B$3:AC$552,14,FALSE) -> 0 | AF76: =VLOOKUP(B76,Species!B$3:AC$552,15,FALSE) -> 0 | AG76: =VLOOKUP(B76,Species!B$3:AC$552,16,FALSE) -> X | AH76: =VLOOKUP(B76,Species!B$3:AC$552,17,FALSE) -> 0 | AI76: =VLOOKUP(B76,Species!B$3:AC$552,18,FALSE) -> 0 | AJ76: =VLOOKUP(B76,Species!B$3:AC$552,19,FALSE) ->  | AK76: =VLOOKUP(B76,Species!B$3:AC$552,20,FALSE) -> X | AL76: =VLOOKUP(B76,Species!B$3:AJ$552,35,FALSE) -> 0 | AM76: =VLOOKUP(B76,Species!B$3:AH$552,33,FALSE) -> 0 | AN76: =VLOOKUP(B76,Species!B$3:I$552,8,FALSE) -> No | AO76: =VLOOKUP(B76,Species!B$3:BC$552,54,FALSE) -> 0 | AP76: =VLOOKUP(B76,Species!B$3:BE$552,55,FALSE) -> 0 | AQ76: =VLOOKUP(B76,Species!B$3:BE$552,56,FALSE) -> 0 | AY76: =HYPERLINK(VLOOKUP(B76,Species!B$3:BF$552,57,FALSE)) ->  | AZ76: =VLOOKUP(B76,Species!B$3:C$552,2,FALSE) -> Carex jamesii | BA76: 0 | BB76: 0.000 | BC76: 0
B77: =Species!$B67 -> Kentucky Bluegrass | C77: Poa pratensis | H77: 0 | I77: =IF((D77>0)<>(F77>0)<>(G77>0),((D77*R77)+(F77*B$2)+S77),"0.00") -> 0.00 | J77: =IF((F77<0.001),((E77+I77)/(PLSft2Total1+PLSft2Total2)),"0.00") ->  | K77: =VLOOKUP(B77,Species!B$3:Y$552,24,FALSE) -> 2.2 | L77: =VLOOKUP(B77,Species!B$3:AJ$552,35,FALSE) -> 0 | M77: =VLOOKUP(B77,Species!B$3:AD$552,29,FALSE) -> N/A | N77: =VLOOKUP(B77,Species!B$3:AB$552,27,FALSE) -> 0 | O77: 0 | P77: =VLOOKUP(B77,Species!B$3:AF$552,31,FALSE) -> Perennial Cool Season Grass | Q77: =VLOOKUP(B77,Species!B$3:D$552,3,FALSE) -> Grass | R77: =VLOOKUP(B77,Species!B$3:W$552,22,FALSE) -> 31.90633609 | S77: 0 | T77: 0 | U77: 0 | W77: 0 | X77: =VLOOKUP(B77,Species!B$3:F$552,5,FALSE) -> Yes | Y77: =VLOOKUP(B77,Species!B$3:AC$552,28,FALSE) -> Introduced | Z77: =VLOOKUP(B77,Species!B$3:AC$552,9,FALSE) -> 0 | AA77: =VLOOKUP(B77,Species!B$3:AC$552,10,FALSE) -> X | AB77: =VLOOKUP(B77,Species!B$3:AC$552,11,FALSE) -> 0 | AC77: =VLOOKUP(B77,Species!B$3:AC$552,12,FALSE) -> 0 | AD77: =VLOOKUP(B77,Species!B$3:AC$552,13,FALSE) -> 0 | AE77: =VLOOKUP(B77,Species!B$3:AC$552,14,FALSE) -> 0 | AF77: =VLOOKUP(B77,Species!B$3:AC$552,15,FALSE) -> 0 | AG77: =VLOOKUP(B77,Species!B$3:AC$552,16,FALSE) -> 0 | AH77: =VLOOKUP(B77,Species!B$3:AC$552,17,FALSE) -> 0 | AI77: =VLOOKUP(B77,Species!B$3:AC$552,18,FALSE) -> 0 | AJ77: =VLOOKUP(B77,Species!B$3:AC$552,19,FALSE) -> 0 | AK77: =VLOOKUP(B77,Species!B$3:AC$552,20,FALSE) -> 0 | AL77: =VLOOKUP(B77,Species!B$3:AJ$552,35,FALSE) -> 0 | AM77: =VLOOKUP(B77,Species!B$3:AH$552,33,FALSE) -> 0 | AN77: =VLOOKUP(B77,Species!B$3:I$552,8,FALSE) -> Yes | AO77: =VLOOKUP(B77,Species!B$3:BC$552,54,FALSE) -> 0 | AP77: =VLOOKUP(B77,Species!B$3:BE$552,55,FALSE) -> 0 | AQ77: =VLOOKUP(B77,Species!B$3:BE$552,56,FALSE) -> 0 | AR77: =IF(OR(D77>0,E77>0,F77>0,G77>0),"X","") ->  | AY77: =HYPERLINK(VLOOKUP(B77,Species!B$3:BF$552,57,FALSE)) -> http://plants.usda.gov/core/profile?symbol=POPR | AZ77: =VLOOKUP(B77,Species!B$3:C$552,2,FALSE) -> Poa pratensis | BA77: 0 | BB77: 0.000 | BC77: 0
B78: =Species!$B68 -> Knotted Rush | C78: =HYPERLINK(AY78,AZ78) -> Juncus nodosus | H78: 0 | I78: 0.00 | K78: =VLOOKUP(B78,Species!B$3:Y$552,24,FALSE) -> 0 | L78: =VLOOKUP(B78,Species!B$3:AJ$552,35,FALSE) -> 0 | M78: =VLOOKUP(B78,Species!B$3:AD$552,29,FALSE) -> 0 | N78: =VLOOKUP(B78,Species!B$3:AB$552,27,FALSE) -> 640 | O78: 0 | P78: =VLOOKUP(B78,Species!B$3:AF$552,31,FALSE) -> Perennial Cool Season Rush | Q78: =VLOOKUP(B78,Species!B$3:D$552,3,FALSE) -> Grass | R78: =VLOOKUP(B78,Species!B$3:W$552,22,FALSE) -> 0 | S78: 0 | T78: 0 | U78: 0 | W78: 0 | X78: =VLOOKUP(B78,Species!B$3:F$552,5,FALSE) -> No | Y78: =VLOOKUP(B78,Species!B$3:AC$552,28,FALSE) -> Native | Z78: =VLOOKUP(B78,Species!B$3:AC$552,9,FALSE) ->  | AA78: =VLOOKUP(B78,Species!B$3:AC$552,10,FALSE) -> X | AB78: =VLOOKUP(B78,Species!B$3:AC$552,11,FALSE) -> X | AC78: =VLOOKUP(B78,Species!B$3:AC$552,12,FALSE) -> X | AD78: =VLOOKUP(B78,Species!B$3:AC$552,13,FALSE) -> 0 | AE78: =VLOOKUP(B78,Species!B$3:AC$552,14,FALSE) -> 0 | AF78: =VLOOKUP(B78,Species!B$3:AC$552,15,FALSE) -> 0 | AG78: =VLOOKUP(B78,Species!B$3:AC$552,16,FALSE) ->  | AH78: =VLOOKUP(B78,Species!B$3:AC$552,17,FALSE) -> 0 | AI78: =VLOOKUP(B78,Species!B$3:AC$552,18,FALSE) -> 0 | AJ78: =VLOOKUP(B78,Species!B$3:AC$552,19,FALSE) -> X | AK78: =VLOOKUP(B78,Species!B$3:AC$552,20,FALSE) ->  | AL78: =VLOOKUP(B78,Species!B$3:AJ$552,35,FALSE) -> 0 | AM78: =VLOOKUP(B78,Species!B$3:AH$552,33,FALSE) -> 0 | AN78: =VLOOKUP(B78,Species!B$3:I$552,8,FALSE) -> No | AO78: =VLOOKUP(B78,Species!B$3:BC$552,54,FALSE) -> 0 | AP78: =VLOOKUP(B78,Species!B$3:BE$552,55,FALSE) -> 0 | AQ78: =VLOOKUP(B78,Species!B$3:BE$552,56,FALSE) -> 0 | AY78: =HYPERLINK(VLOOKUP(B78,Species!B$3:BF$552,57,FALSE)) ->  | AZ78: =VLOOKUP(B78,Species!B$3:C$552,2,FALSE) -> Juncus nodosus | BA78: =IF((G78>0),(K78*G78),0) -> 0 | BB78: =IF((E78>0)<>(F78>0),((U78/R78)+(K78*G78)),"0.000") -> 0.000 | BC78: =SUM(BA78:BB78) -> 0
B79: =Species!$B69 -> Lancefruit Oval Sedge | C79: Carex scoparia | H79: =BC79 -> 0 | I79: 0.00 | K79: =VLOOKUP(B79,Species!B$3:Y$552,24,FALSE) -> 0 | L79: =VLOOKUP(B79,Species!B$3:AJ$552,35,FALSE) -> 0 | M79: =VLOOKUP(B79,Species!B$3:AD$552,29,FALSE) -> 0 | N79: =VLOOKUP(B79,Species!B$3:AB$552,27,FALSE) -> 266.4366667 | O79: 0 | P79: =VLOOKUP(B79,Species!B$3:AF$552,31,FALSE) -> Perennial Cool Season Sedge | Q79: =VLOOKUP(B79,Species!B$3:D$552,3,FALSE) -> Grass | R79: =VLOOKUP(B79,Species!B$3:W$552,22,FALSE) -> 0 | S79: 0 | T79: 0 | U79: 0 | W79: 0 | X79: =VLOOKUP(B79,Species!B$3:F$552,5,FALSE) -> No | Y79: =VLOOKUP(B79,Species!B$3:AC$552,28,FALSE) -> Native | Z79: =VLOOKUP(B79,Species!B$3:AC$552,9,FALSE) -> 0 | AA79: =VLOOKUP(B79,Species!B$3:AC$552,10,FALSE) -> 0 | AB79: =VLOOKUP(B79,Species!B$3:AC$552,11,FALSE) -> 0 | AC79: =VLOOKUP(B79,Species!B$3:AC$552,12,FALSE) -> 0 | AD79: =VLOOKUP(B79,Species!B$3:AC$552,13,FALSE) -> 0 | AE79: =VLOOKUP(B79,Species!B$3:AC$552,14,FALSE) -> 0 | AF79: =VLOOKUP(B79,Species!B$3:AC$552,15,FALSE) -> 0 | AG79: =VLOOKUP(B79,Species!B$3:AC$552,16,FALSE) -> 0 | AH79: =VLOOKUP(B79,Species!B$3:AC$552,17,FALSE) -> 0 | AI79: =VLOOKUP(B79,Species!B$3:AC$552,18,FALSE) -> 0 | AJ79: =VLOOKUP(B79,Species!B$3:AC$552,19,FALSE) -> 0 | AK79: =VLOOKUP(B79,Species!B$3:AC$552,20,FALSE) -> 0 | AL79: =VLOOKUP(B79,Species!B$3:AJ$552,35,FALSE) -> 0 | AM79: =VLOOKUP(B79,Species!B$3:AH$552,33,FALSE) -> 0 | AN79: =VLOOKUP(B79,Species!B$3:I$552,8,FALSE) -> No | AO79: =VLOOKUP(B79,Species!B$3:BC$552,54,FALSE) -> 0 | AP79: =VLOOKUP(B79,Species!B$3:BE$552,55,FALSE) -> 0 | AQ79: =VLOOKUP(B79,Species!B$3:BE$552,56,FALSE) -> 0 | AY79: =HYPERLINK(VLOOKUP(B79,Species!B$3:BF$552,57,FALSE)) -> http://plants.usda.gov/core/profile?symbol=CASC11 | AZ79: =VLOOKUP(B79,Species!B$3:C$552,2,FALSE) -> Carex scoparia | BA79: 0 | BB79: 0.000 | BC79: 0
B80: =Species!$B70 -> Limestone Meadow Sedge | C80: Carex granularis | H80: 0 | I80: 0.00 | K80: =VLOOKUP(B80,Species!B$3:Y$552,24,FALSE) -> 0 | L80: =VLOOKUP(B80,Species!B$3:AJ$552,35,FALSE) -> 0 | M80: =VLOOKUP(B80,Species!B$3:AD$552,29,FALSE) -> 4 | N80: =VLOOKUP(B80,Species!B$3:AB$552,27,FALSE) -> 317.5 | O80: 0 | P80: =VLOOKUP(B80,Species!B$3:AF$552,31,FALSE) -> Perennial Cool Season Sedge | Q80: =VLOOKUP(B80,Species!B$3:D$552,3,FALSE) -> Grass | R80: =VLOOKUP(B80,Species!B$3:W$552,22,FALSE) -> 0 | S80: 0 | T80: 0 | U80: 0 | W80: 0 | X80: =VLOOKUP(B80,Species!B$3:F$552,5,FALSE) -> Yes | Y80: =VLOOKUP(B80,Species!B$3:AC$552,28,FALSE) -> Native | Z80: =VLOOKUP(B80,Species!B$3:AC$552,9,FALSE) ->  | AA80: =VLOOKUP(B80,Species!B$3:AC$552,10,FALSE) -> 0 | AB80: =VLOOKUP(B80,Species!B$3:AC$552,11,FALSE) -> X | AC80: =VLOOKUP(B80,Species!B$3:AC$552,12,FALSE) ->  | AD80: =VLOOKUP(B80,Species!B$3:AC$552,13,FALSE) -> X | AE80: =VLOOKUP(B80,Species!B$3:AC$552,14,FALSE) -> X | AF80: =VLOOKUP(B80,Species!B$3:AC$552,15,FALSE) -> 0 | AG80: =VLOOKUP(B80,Species!B$3:AC$552,16,FALSE) ->  | AH80: =VLOOKUP(B80,Species!B$3:AC$552,17,FALSE) -> X | AI80: =VLOOKUP(B80,Species!B$3:AC$552,18,FALSE) -> X | AJ80: =VLOOKUP(B80,Species!B$3:AC$552,19,FALSE) -> X | AK80: =VLOOKUP(B80,Species!B$3:AC$552,20,FALSE) -> X | AL80: =VLOOKUP(B80,Species!B$3:AJ$552,35,FALSE) -> 0 | AM80: =VLOOKUP(B80,Species!B$3:AH$552,33,FALSE) -> 0 | AN80: =VLOOKUP(B80,Species!B$3:I$552,8,FALSE) -> No | AO80: =VLOOKUP(B80,Species!B$3:BC$552,54,FALSE) -> 0 | AP80: =VLOOKUP(B80,Species!B$3:BE$552,55,FALSE) -> 0 | AQ80: =VLOOKUP(B80,Species!B$3:BE$552,56,FALSE) -> 0 | AY80: =HYPERLINK(VLOOKUP(B80,Species!B$3:BF$552,57,FALSE)) -> https://plants.usda.gov/core/profile?symbol=CAGR3 | AZ80: =VLOOKUP(B80,Species!B$3:C$552,2,FALSE) -> Carex granularis | BA80: 0 | BB80: 0.000 | BC80: 0
B81: =Species!$B71 -> Little Bluestem | C81: Schizachyrium scoparium | H81: 0 | I81: 0.00 | K81: =VLOOKUP(B81,Species!B$3:Y$552,24,FALSE) -> 6.4 | L81: =VLOOKUP(B81,Species!B$3:AJ$552,35,FALSE) -> 0 | M81: =VLOOKUP(B81,Species!B$3:AD$552,29,FALSE) -> 5 | N81: =VLOOKUP(B81,Species!B$3:AB$552,27,FALSE) -> 18.16 | O81: 0 | P81: =VLOOKUP(B81,Species!B$3:AF$552,31,FALSE) -> Perennial Warm Season Grass | Q81: =VLOOKUP(B81,Species!B$3:D$552,3,FALSE) -> Grass | R81: =VLOOKUP(B81,Species!B$3:W$552,22,FALSE) -> 5.509641873 | S81: 0 | T81: 0 | U81: =I81+E81 -> 0 | W81: 0 | X81: =VLOOKUP(B81,Species!B$3:F$552,5,FALSE) -> Yes | Y81: =VLOOKUP(B81,Species!B$3:AC$552,28,FALSE) -> Native | Z81: =VLOOKUP(B81,Species!B$3:AC$552,9,FALSE) -> X | AA81: =VLOOKUP(B81,Species!B$3:AC$552,10,FALSE) -> X | AB81: =VLOOKUP(B81,Species!B$3:AC$552,11,FALSE) ->  | AC81: =VLOOKUP(B81,Species!B$3:AC$552,12,FALSE) -> X | AD81: =VLOOKUP(B81,Species!B$3:AC$552,13,FALSE) -> X | AE81: =VLOOKUP(B81,Species!B$3:AC$552,14,FALSE) -> 0 | AF81: =VLOOKUP(B81,Species!B$3:AC$552,15,FALSE) -> X | AG81: =VLOOKUP(B81,Species!B$3:AC$552,16,FALSE) -> X | AH81: =VLOOKUP(B81,Species!B$3:AC$552,17,FALSE) -> X | AI81: =VLOOKUP(B81,Species!B$3:AC$552,18,FALSE) -> 0 | AJ81: =VLOOKUP(B81,Species!B$3:AC$552,19,FALSE) ->  | AK81: =VLOOKUP(B81,Species!B$3:AC$552,20,FALSE) ->  | AL81: =VLOOKUP(B81,Species!B$3:AJ$552,35,FALSE) -> 0 | AM81: =VLOOKUP(B81,Species!B$3:AH$552,33,FALSE) -> 0 | AN81: =VLOOKUP(B81,Species!B$3:I$552,8,FALSE) -> Yes | AO81: =VLOOKUP(B81,Species!B$3:BC$552,54,FALSE) -> 0 | AP81: =VLOOKUP(B81,Species!B$3:BE$552,55,FALSE) -> 0 | AQ81: =VLOOKUP(B81,Species!B$3:BE$552,56,FALSE) -> 0 | AY81: =HYPERLINK(VLOOKUP(B81,Species!B$3:BF$552,57,FALSE)) -> https://plants.usda.gov/core/profile?symbol=SCSC | AZ81: =VLOOKUP(B81,Species!B$3:C$552,2,FALSE) -> Schizachyrium scoparium | BA81: 0 | BB81: 0.000 | BC81: 0
B82: =Species!$B72 -> Longhair Sedge | C82: Carex comosa | H82: 0 | I82: 0.00 | K82: =VLOOKUP(B82,Species!B$3:Y$552,24,FALSE) -> 0 | L82: =VLOOKUP(B82,Species!B$3:AJ$552,35,FALSE) -> 0 | M82: =VLOOKUP(B82,Species!B$3:AD$552,29,FALSE) -> 0 | N82: =VLOOKUP(B82,Species!B$3:AB$552,27,FALSE) -> 268.75 | O82: 0 | P82: =VLOOKUP(B82,Species!B$3:AF$552,31,FALSE) -> Perennial Cool Season Sedge | Q82: =VLOOKUP(B82,Species!B$3:D$552,3,FALSE) -> Grass | R82: =VLOOKUP(B82,Species!B$3:W$552,22,FALSE) -> 0 | S82: 0 | T82: 0 | U82: 0 | W82: 0 | X82: =VLOOKUP(B82,Species!B$3:F$552,5,FALSE) -> Yes | Y82: =VLOOKUP(B82,Species!B$3:AC$552,28,FALSE) -> Native | Z82: =VLOOKUP(B82,Species!B$3:AC$552,9,FALSE) ->  | AA82: =VLOOKUP(B82,Species!B$3:AC$552,10,FALSE) ->  | AB82: =VLOOKUP(B82,Species!B$3:AC$552,11,FALSE) -> X | AC82: =VLOOKUP(B82,Species!B$3:AC$552,12,FALSE) -> 0 | AD82: =VLOOKUP(B82,Species!B$3:AC$552,13,FALSE) -> 0 | AE82: =VLOOKUP(B82,Species!B$3:AC$552,14,FALSE) -> 0 | AF82: =VLOOKUP(B82,Species!B$3:AC$552,15,FALSE) -> 0 | AG82: =VLOOKUP(B82,Species!B$3:AC$552,16,FALSE) -> 0 | AH82: =VLOOKUP(B82,Species!B$3:AC$552,17,FALSE) -> 0 | AI82: =VLOOKUP(B82,Species!B$3:AC$552,18,FALSE) -> 0 | AJ82: =VLOOKUP(B82,Species!B$3:AC$552,19,FALSE) -> X | AK82: =VLOOKUP(B82,Species!B$3:AC$552,20,FALSE) ->  | AL82: =VLOOKUP(B82,Species!B$3:AJ$552,35,FALSE) -> 0 | AM82: =VLOOKUP(B82,Species!B$3:AH$552,33,FALSE) -> 0 | AN82: =VLOOKUP(B82,Species!B$3:I$552,8,FALSE) -> No | AO82: =VLOOKUP(B82,Species!B$3:BC$552,54,FALSE) -> 0 | AP82: =VLOOKUP(B82,Species!B$3:BE$552,55,FALSE) -> 0 | AQ82: =VLOOKUP(B82,Species!B$3:BE$552,56,FALSE) -> 0 | AY82: =HYPERLINK(VLOOKUP(B82,Species!B$3:BF$552,57,FALSE)) -> https://plants.usda.gov/core/profile?symbol=CACO8 | AZ82: =VLOOKUP(B82,Species!B$3:C$552,2,FALSE) -> Carex comosa | BA82: 0 | BB82: 0.000 | BC82: 0
B83: =Species!$B73 -> Longspike Tridens | C83: Tridens strictus | H83: 0 | I83: 0.00 | K83: =VLOOKUP(B83,Species!B$3:Y$552,24,FALSE) -> 0 | L83: =VLOOKUP(B83,Species!B$3:AJ$552,35,FALSE) -> 0 | M83: =VLOOKUP(B83,Species!B$3:AD$552,29,FALSE) -> 0 | N83: =VLOOKUP(B83,Species!B$3:AB$552,27,FALSE) -> 0 | O83: 0 | P83: =VLOOKUP(B83,Species!B$3:AF$552,31,FALSE) -> Perennial Warm Season Grass | Q83: =VLOOKUP(B83,Species!B$3:D$552,3,FALSE) -> Grass | R83: =VLOOKUP(B83,Species!B$3:W$552,22,FALSE) -> 0 | S83: 0 | T83: 0 | U83: 0 | W83: 0 | X83: =VLOOKUP(B83,Species!B$3:F$552,5,FALSE) -> No | Y83: =VLOOKUP(B83,Species!B$3:AC$552,28,FALSE) -> Native | Z83: =VLOOKUP(B83,Species!B$3:AC$552,9,FALSE) -> X | AA83: =VLOOKUP(B83,Species!B$3:AC$552,10,FALSE) -> X | AB83: =VLOOKUP(B83,Species!B$3:AC$552,11,FALSE) -> 0 | AC83: =VLOOKUP(B83,Species!B$3:AC$552,12,FALSE) -> X | AD83: =VLOOKUP(B83,Species!B$3:AC$552,13,FALSE) -> X | AE83: =VLOOKUP(B83,Species!B$3:AC$552,14,FALSE) -> 0 | AF83: =VLOOKUP(B83,Species!B$3:AC$552,15,FALSE) -> 0 | AG83: =VLOOKUP(B83,Species!B$3:AC$552,16,FALSE) -> 0 | AH83: =VLOOKUP(B83,Species!B$3:AC$552,17,FALSE) -> X | AI83: =VLOOKUP(B83,Species!B$3:AC$552,18,FALSE) -> 0 | AJ83: =VLOOKUP(B83,Species!B$3:AC$552,19,FALSE) -> 0 | AK83: =VLOOKUP(B83,Species!B$3:AC$552,20,FALSE) -> 0 | AL83: =VLOOKUP(B83,Species!B$3:AJ$552,35,FALSE) -> 0 | AM83: =VLOOKUP(B83,Species!B$3:AH$552,33,FALSE) -> 0 | AN83: =VLOOKUP(B83,Species!B$3:I$552,8,FALSE) -> No | AO83: =VLOOKUP(B83,Species!B$3:BC$552,54,FALSE) -> 0 | AP83: =VLOOKUP(B83,Species!B$3:BE$552,55,FALSE) -> 0 | AQ83: =VLOOKUP(B83,Species!B$3:BE$552,56,FALSE) -> 0 | AY83: =HYPERLINK(VLOOKUP(B83,Species!B$3:BF$552,57,FALSE)) ->  | AZ83: =VLOOKUP(B83,Species!B$3:C$552,2,FALSE) -> Tridens strictus | BA83: 0 | BB83: 0.000 | BC83: 0
B84: =Species!$B74 -> Marsh Muhly | C84: Muhlenbergia racemosa | H84: 0 | I84: 0.00 | K84: =VLOOKUP(B84,Species!B$3:Y$552,24,FALSE) -> 0 | L84: =VLOOKUP(B84,Species!B$3:AJ$552,35,FALSE) -> 0 | M84: =VLOOKUP(B84,Species!B$3:AD$552,29,FALSE) -> 0 | N84: =VLOOKUP(B84,Species!B$3:AB$552,27,FALSE) -> 225 | O84: 0 | P84: =VLOOKUP(B84,Species!B$3:AF$552,31,FALSE) -> Perennial Warm Season Grass | Q84: =VLOOKUP(B84,Species!B$3:D$552,3,FALSE) -> Grass | R84: =VLOOKUP(B84,Species!B$3:W$552,22,FALSE) -> 0 | S84: 0 | T84: 0 | U84: 0 | W84: 0 | X84: =VLOOKUP(B84,Species!B$3:F$552,5,FALSE) -> No | Y84: =VLOOKUP(B84,Species!B$3:AC$552,28,FALSE) -> Native | Z84: =VLOOKUP(B84,Species!B$3:AC$552,9,FALSE) -> X | AA84: =VLOOKUP(B84,Species!B$3:AC$552,10,FALSE) -> X | AB84: =VLOOKUP(B84,Species!B$3:AC$552,11,FALSE) ->  | AC84: =VLOOKUP(B84,Species!B$3:AC$552,12,FALSE) -> X | AD84: =VLOOKUP(B84,Species!B$3:AC$552,13,FALSE) -> 0 | AE84: =VLOOKUP(B84,Species!B$3:AC$552,14,FALSE) -> 0 | AF84: =VLOOKUP(B84,Species!B$3:AC$552,15,FALSE) -> 0 | AG84: =VLOOKUP(B84,Species!B$3:AC$552,16,FALSE) -> X | AH84: =VLOOKUP(B84,Species!B$3:AC$552,17,FALSE) -> 0 | AI84: =VLOOKUP(B84,Species!B$3:AC$552,18,FALSE) -> 0 | AJ84: =VLOOKUP(B84,Species!B$3:AC$552,19,FALSE) ->  | AK84: =VLOOKUP(B84,Species!B$3:AC$552,20,FALSE) ->  | AL84: =VLOOKUP(B84,Species!B$3:AJ$552,35,FALSE) -> 0 | AM84: =VLOOKUP(B84,Species!B$3:AH$552,33,FALSE) -> 0 | AN84: =VLOOKUP(B84,Species!B$3:I$552,8,FALSE) -> No | AO84: =VLOOKUP(B84,Species!B$3:BC$552,54,FALSE) -> 0 | AP84: =VLOOKUP(B84,Species!B$3:BE$552,55,FALSE) -> 0 | AQ84: =VLOOKUP(B84,Species!B$3:BE$552,56,FALSE) -> 0 | AY84: =HYPERLINK(VLOOKUP(B84,Species!B$3:BF$552,57,FALSE)) -> http://plants.usda.gov/java/profile?symbol=CACR7 | AZ84: =VLOOKUP(B84,Species!B$3:C$552,2,FALSE) -> Muhlenbergia racemosa | BA84: 0 | BB84: 0.000 | BC84: 0
B85: =Species!$B75 -> Muhlenberg's Sedge | C85: Carex muehlenbergii | H85: 0 | I85: 0.00 | K85: =VLOOKUP(B85,Species!B$3:Y$552,24,FALSE) -> 0 | L85: =VLOOKUP(B85,Species!B$3:AJ$552,35,FALSE) -> 0 | M85: =VLOOKUP(B85,Species!B$3:AD$552,29,FALSE) -> 0 | N85: =VLOOKUP(B85,Species!B$3:AB$552,27,FALSE) -> 300 | O85: 0 | P85: =VLOOKUP(B85,Species!B$3:AF$552,31,FALSE) -> Perennial Cool Season Sedge | Q85: =VLOOKUP(B85,Species!B$3:D$552,3,FALSE) -> Grass | R85: =VLOOKUP(B85,Species!B$3:W$552,22,FALSE) -> 0 | S85: 0 | T85: 0 | U85: 0 | W85: 0 | X85: =VLOOKUP(B85,Species!B$3:F$552,5,FALSE) -> No | Y85: =VLOOKUP(B85,Species!B$3:AC$552,28,FALSE) -> Native | Z85: =VLOOKUP(B85,Species!B$3:AC$552,9,FALSE) -> X | AA85: =VLOOKUP(B85,Species!B$3:AC$552,10,FALSE) -> X | AB85: =VLOOKUP(B85,Species!B$3:AC$552,11,FALSE) ->  | AC85: =VLOOKUP(B85,Species!B$3:AC$552,12,FALSE) -> 0 | AD85: =VLOOKUP(B85,Species!B$3:AC$552,13,FALSE) -> 0 | AE85: =VLOOKUP(B85,Species!B$3:AC$552,14,FALSE) -> 0 | AF85: =VLOOKUP(B85,Species!B$3:AC$552,15,FALSE) -> 0 | AG85: =VLOOKUP(B85,Species!B$3:AC$552,16,FALSE) -> X | AH85: =VLOOKUP(B85,Species!B$3:AC$552,17,FALSE) -> X | AI85: =VLOOKUP(B85,Species!B$3:AC$552,18,FALSE) -> 0 | AJ85: =VLOOKUP(B85,Species!B$3:AC$552,19,FALSE) ->  | AK85: =VLOOKUP(B85,Species!B$3:AC$552,20,FALSE) -> X | AL85: =VLOOKUP(B85,Species!B$3:AJ$552,35,FALSE) -> 0 | AM85: =VLOOKUP(B85,Species!B$3:AH$552,33,FALSE) -> 0 | AN85: =VLOOKUP(B85,Species!B$3:I$552,8,FALSE) -> No | AO85: =VLOOKUP(B85,Species!B$3:BC$552,54,FALSE) -> 0 | AP85: =VLOOKUP(B85,Species!B$3:BE$552,55,FALSE) -> 0 | AQ85: =VLOOKUP(B85,Species!B$3:BE$552,56,FALSE) -> 0 | AY85: =HYPERLINK(VLOOKUP(B85,Species!B$3:BF$552,57,FALSE)) ->  | AZ85: =VLOOKUP(B85,Species!B$3:C$552,2,FALSE) -> Carex muehlenbergii | BA85: 0 | BB85: 0.000 | BC85: 0
B86: =Species!$B76 -> Nodding Fescue | C86: Festuca subverticillata | H86: 0 | I86: 0.00 | K86: =VLOOKUP(B86,Species!B$3:Y$552,24,FALSE) -> 0 | L86: =VLOOKUP(B86,Species!B$3:AJ$552,35,FALSE) -> 0 | M86: =VLOOKUP(B86,Species!B$3:AD$552,29,FALSE) -> 0 | N86: =VLOOKUP(B86,Species!B$3:AB$552,27,FALSE) -> 640 | O86: =((N86*(D86+H86))) -> 0 | P86: =VLOOKUP(B86,Species!B$3:AF$552,31,FALSE) -> Perennial Cool Season Grass | Q86: =VLOOKUP(B86,Species!B$3:D$552,3,FALSE) -> Grass | R86: =VLOOKUP(B86,Species!B$3:W$552,22,FALSE) -> 0 | S86: =(G86*K86)*R86 -> 0 | T86: =D86+H86 -> 0 | U86: =I86+E86 -> 0 | V86: =J86+F86 ->  | W86: =H86+D86 -> 0 | X86: =VLOOKUP(B86,Species!B$3:F$552,5,FALSE) -> No | Y86: =VLOOKUP(B86,Species!B$3:AC$552,28,FALSE) -> Native | Z86: =VLOOKUP(B86,Species!B$3:AC$552,9,FALSE) ->  | AA86: =VLOOKUP(B86,Species!B$3:AC$552,10,FALSE) -> X | AB86: =VLOOKUP(B86,Species!B$3:AC$552,11,FALSE) ->  | AC86: =VLOOKUP(B86,Species!B$3:AC$552,12,FALSE) ->  | AD86: =VLOOKUP(B86,Species!B$3:AC$552,13,FALSE) -> 0 | AE86: =VLOOKUP(B86,Species!B$3:AC$552,14,FALSE) -> 0 | AF86: =VLOOKUP(B86,Species!B$3:AC$552,15,FALSE) -> 0 | AG86: =VLOOKUP(B86,Species!B$3:AC$552,16,FALSE) -> X | AH86: =VLOOKUP(B86,Species!B$3:AC$552,17,FALSE) -> 0 | AI86: =VLOOKUP(B86,Species!B$3:AC$552,18,FALSE) -> 0 | AJ86: =VLOOKUP(B86,Species!B$3:AC$552,19,FALSE) ->  | AK86: =VLOOKUP(B86,Species!B$3:AC$552,20,FALSE) -> X | AL86: =VLOOKUP(B86,Species!B$3:AJ$552,35,FALSE) -> 0 | AM86: =VLOOKUP(B86,Species!B$3:AH$552,33,FALSE) -> 0 | AN86: =VLOOKUP(B86,Species!B$3:I$552,8,FALSE) -> No | AO86: =VLOOKUP(B86,Species!B$3:BC$552,54,FALSE) -> 0 | AP86: =VLOOKUP(B86,Species!B$3:BE$552,55,FALSE) -> 0 | AQ86: =VLOOKUP(B86,Species!B$3:BE$552,56,FALSE) -> 0 | AY86: =HYPERLINK(VLOOKUP(B86,Species!B$3:BF$552,57,FALSE)) ->  | AZ86: =VLOOKUP(B86,Species!B$3:C$552,2,FALSE) -> Festuca subverticillata | BA86: 0 | BB86: 0.000 | BC86: 0
B87: =Species!$B77 -> Orchardgrass | C87: Dactylis glomerata | H87: 0 | I87: 0.00 | K87: =VLOOKUP(B87,Species!B$3:Y$552,24,FALSE) -> 6.2 | L87: =VLOOKUP(B87,Species!B$3:AJ$552,35,FALSE) -> 0 | M87: =VLOOKUP(B87,Species!B$3:AD$552,29,FALSE) -> N/A | N87: =VLOOKUP(B87,Species!B$3:AB$552,27,FALSE) -> 5.025 | O87: 0 | P87: =VLOOKUP(B87,Species!B$3:AF$552,31,FALSE) -> Perennial Cool Season Grass | Q87: =VLOOKUP(B87,Species!B$3:D$552,3,FALSE) -> Grass | R87: =VLOOKUP(B87,Species!B$3:W$552,22,FALSE) -> 9.807162534 | S87: 0 | T87: 0 | U87: 0 | W87: 0 | X87: =VLOOKUP(B87,Species!B$3:F$552,5,FALSE) -> Yes | Y87: =VLOOKUP(B87,Species!B$3:AC$552,28,FALSE) -> Introduced | Z87: =VLOOKUP(B87,Species!B$3:AC$552,9,FALSE) -> X | AA87: =VLOOKUP(B87,Species!B$3:AC$552,10,FALSE) -> X | AB87: =VLOOKUP(B87,Species!B$3:AC$552,11,FALSE) -> 0 | AC87: =VLOOKUP(B87,Species!B$3:AC$552,12,FALSE) -> 0 | AD87: =VLOOKUP(B87,Species!B$3:AC$552,13,FALSE) -> 0 | AE87: =VLOOKUP(B87,Species!B$3:AC$552,14,FALSE) -> 0 | AF87: =VLOOKUP(B87,Species!B$3:AC$552,15,FALSE) -> 0 | AG87: =VLOOKUP(B87,Species!B$3:AC$552,16,FALSE) -> 0 | AH87: =VLOOKUP(B87,Species!B$3:AC$552,17,FALSE) -> 0 | AI87: =VLOOKUP(B87,Species!B$3:AC$552,18,FALSE) -> 0 | AJ87: =VLOOKUP(B87,Species!B$3:AC$552,19,FALSE) -> 0 | AK87: =VLOOKUP(B87,Species!B$3:AC$552,20,FALSE) -> 0 | AL87: =VLOOKUP(B87,Species!B$3:AJ$552,35,FALSE) -> 0 | AM87: =VLOOKUP(B87,Species!B$3:AH$552,33,FALSE) -> 0 | AN87: =VLOOKUP(B87,Species!B$3:I$552,8,FALSE) -> Yes | AO87: =VLOOKUP(B87,Species!B$3:BC$552,54,FALSE) -> 0 | AP87: =VLOOKUP(B87,Species!B$3:BE$552,55,FALSE) -> 0 | AQ87: =VLOOKUP(B87,Species!B$3:BE$552,56,FALSE) -> 0 | AY87: =HYPERLINK(VLOOKUP(B87,Species!B$3:BF$552,57,FALSE)) -> http://plants.usda.gov/core/profile?symbol=DAGL | AZ87: =VLOOKUP(B87,Species!B$3:C$552,2,FALSE) -> Dactylis glomerata | BA87: 0 | BB87: 0.000 | BC87: 0
B88: =Species!$B78 -> Owlfruit Sedge | C88: Carex stipata | H88: 0 | I88: 0.00 | K88: =VLOOKUP(B88,Species!B$3:Y$552,24,FALSE) -> 0 | L88: =VLOOKUP(B88,Species!B$3:AJ$552,35,FALSE) -> 0 | M88: =VLOOKUP(B88,Species!B$3:AD$552,29,FALSE) -> 0 | N88: =VLOOKUP(B88,Species!B$3:AB$552,27,FALSE) -> 150 | O88: 0 | P88: =VLOOKUP(B88,Species!B$3:AF$552,31,FALSE) -> Perennial Cool Season Sedge | Q88: =VLOOKUP(B88,Species!B$3:D$552,3,FALSE) -> Grass | R88: =VLOOKUP(B88,Species!B$3:W$552,22,FALSE) -> 0 | S88: 0 | T88: 0 | U88: 0 | W88: 0 | X88: =VLOOKUP(B88,Species!B$3:F$552,5,FALSE) -> No | Y88: =VLOOKUP(B88,Species!B$3:AC$552,28,FALSE) -> Native | Z88: =VLOOKUP(B88,Species!B$3:AC$552,9,FALSE) ->  | AA88: =VLOOKUP(B88,Species!B$3:AC$552,10,FALSE) -> X | AB88: =VLOOKUP(B88,Species!B$3:AC$552,11,FALSE) -> X | AC88: =VLOOKUP(B88,Species!B$3:AC$552,12,FALSE) -> 0 | AD88: =VLOOKUP(B88,Species!B$3:AC$552,13,FALSE) -> X | AE88: =VLOOKUP(B88,Species!B$3:AC$552,14,FALSE) -> X | AF88: =VLOOKUP(B88,Species!B$3:AC$552,15,FALSE) -> 0 | AG88: =VLOOKUP(B88,Species!B$3:AC$552,16,FALSE) -> 0 | AH88: =VLOOKUP(B88,Species!B$3:AC$552,17,FALSE) -> 0 | AI88: =VLOOKUP(B88,Species!B$3:AC$552,18,FALSE) -> 0 | AJ88: =VLOOKUP(B88,Species!B$3:AC$552,19,FALSE) -> X | AK88: =VLOOKUP(B88,Species!B$3:AC$552,20,FALSE) ->  | AL88: =VLOOKUP(B88,Species!B$3:AJ$552,35,FALSE) -> 0 | AM88: =VLOOKUP(B88,Species!B$3:AH$552,33,FALSE) -> 0 | AN88: =VLOOKUP(B88,Species!B$3:I$552,8,FALSE) -> No | AO88: =VLOOKUP(B88,Species!B$3:BC$552,54,FALSE) -> 0 | AP88: =VLOOKUP(B88,Species!B$3:BE$552,55,FALSE) -> 0 | AQ88: =VLOOKUP(B88,Species!B$3:BE$552,56,FALSE) -> 0 | AY88: =HYPERLINK(VLOOKUP(B88,Species!B$3:BF$552,57,FALSE)) ->  | AZ88: =VLOOKUP(B88,Species!B$3:C$552,2,FALSE) -> Carex stipata | BA88: 0 | BB88: 0.000 | BC88: 0
B89: =Species!$B79 -> Palm Sedge | C89: Carex muskingumensis | H89: 0 | I89: 0.00 | K89: =VLOOKUP(B89,Species!B$3:Y$552,24,FALSE) -> 0 | L89: =VLOOKUP(B89,Species!B$3:AJ$552,35,FALSE) -> 0 | M89: =VLOOKUP(B89,Species!B$3:AD$552,29,FALSE) -> 0 | N89: =VLOOKUP(B89,Species!B$3:AB$552,27,FALSE) -> 150 | O89: 0 | P89: =VLOOKUP(B89,Species!B$3:AF$552,31,FALSE) -> Perennial Cool Season Sedge | Q89: =VLOOKUP(B89,Species!B$3:D$552,3,FALSE) -> Grass | R89: =VLOOKUP(B89,Species!B$3:W$552,22,FALSE) -> 0 | S89: 0 | T89: 0 | U89: 0 | W89: 0 | X89: =VLOOKUP(B89,Species!B$3:F$552,5,FALSE) -> No | Y89: =VLOOKUP(B89,Species!B$3:AC$552,28,FALSE) -> Native | Z89: =VLOOKUP(B89,Species!B$3:AC$552,9,FALSE) ->  | AA89: =VLOOKUP(B89,Species!B$3:AC$552,10,FALSE) ->  | AB89: =VLOOKUP(B89,Species!B$3:AC$552,11,FALSE) -> X | AC89: =VLOOKUP(B89,Species!B$3:AC$552,12,FALSE) ->  | AD89: =VLOOKUP(B89,Species!B$3:AC$552,13,FALSE) -> 0 | AE89: =VLOOKUP(B89,Species!B$3:AC$552,14,FALSE) -> 0 | AF89: =VLOOKUP(B89,Species!B$3:AC$552,15,FALSE) -> 0 | AG89: =VLOOKUP(B89,Species!B$3:AC$552,16,FALSE) -> 0 | AH89: =VLOOKUP(B89,Species!B$3:AC$552,17,FALSE) -> 0 | AI89: =VLOOKUP(B89,Species!B$3:AC$552,18,FALSE) -> 0 | AJ89: =VLOOKUP(B89,Species!B$3:AC$552,19,FALSE) -> X | AK89: =VLOOKUP(B89,Species!B$3:AC$552,20,FALSE) -> 0 | AL89: =VLOOKUP(B89,Species!B$3:AJ$552,35,FALSE) -> 0 | AM89: =VLOOKUP(B89,Species!B$3:AH$552,33,FALSE) -> 0 | AN89: =VLOOKUP(B89,Species!B$3:I$552,8,FALSE) -> No | AO89: =VLOOKUP(B89,Species!B$3:BC$552,54,FALSE) -> 0 | AP89: =VLOOKUP(B89,Species!B$3:BE$552,55,FALSE) -> 0 | AQ89: =VLOOKUP(B89,Species!B$3:BE$552,56,FALSE) -> 0 | AY89: =HYPERLINK(VLOOKUP(B89,Species!B$3:BF$552,57,FALSE)) ->  | AZ89: =VLOOKUP(B89,Species!B$3:C$552,2,FALSE) -> Carex muskingumensis | BA89: 0 | BB89: 0.000 | BC89: 0
B90: =Species!$B80 -> Pennsylvania Sedge | C90: Carex pensylvanica | H90: 0 | I90: 0.00 | K90: =VLOOKUP(B90,Species!B$3:Y$552,24,FALSE) -> 0 | L90: =VLOOKUP(B90,Species!B$3:AJ$552,35,FALSE) -> 0 | M90: =VLOOKUP(B90,Species!B$3:AD$552,29,FALSE) -> 0 | N90: =VLOOKUP(B90,Species!B$3:AB$552,27,FALSE) -> 5440 | O90: 0 | P90: =VLOOKUP(B90,Species!B$3:AF$552,31,FALSE) -> Perennial Cool Season Sedge | Q90: =VLOOKUP(B90,Species!B$3:D$552,3,FALSE) -> Grass | R90: =VLOOKUP(B90,Species!B$3:W$552,22,FALSE) -> 0 | S90: 0 | T90: 0 | U90: 0 | W90: 0 | X90: =VLOOKUP(B90,Species!B$3:F$552,5,FALSE) -> No | Y90: =VLOOKUP(B90,Species!B$3:AC$552,28,FALSE) -> Native | Z90: =VLOOKUP(B90,Species!B$3:AC$552,9,FALSE) -> X | AA90: =VLOOKUP(B90,Species!B$3:AC$552,10,FALSE) -> X | AB90: =VLOOKUP(B90,Species!B$3:AC$552,11,FALSE) ->  | AC90: =VLOOKUP(B90,Species!B$3:AC$552,12,FALSE) -> X | AD90: =VLOOKUP(B90,Species!B$3:AC$552,13,FALSE) -> X | AE90: =VLOOKUP(B90,Species!B$3:AC$552,14,FALSE) -> 0 | AF90: =VLOOKUP(B90,Species!B$3:AC$552,15,FALSE) -> 0 | AG90: =VLOOKUP(B90,Species!B$3:AC$552,16,FALSE) -> X | AH90: =VLOOKUP(B90,Species!B$3:AC$552,17,FALSE) -> X | AI90: =VLOOKUP(B90,Species!B$3:AC$552,18,FALSE) -> 0 | AJ90: =VLOOKUP(B90,Species!B$3:AC$552,19,FALSE) ->  | AK90: =VLOOKUP(B90,Species!B$3:AC$552,20,FALSE) -> X | AL90: =VLOOKUP(B90,Species!B$3:AJ$552,35,FALSE) -> 0 | AM90: =VLOOKUP(B90,Species!B$3:AH$552,33,FALSE) -> 0 | AN90: =VLOOKUP(B90,Species!B$3:I$552,8,FALSE) -> No | AO90: =VLOOKUP(B90,Species!B$3:BC$552,54,FALSE) -> 0 | AP90: =VLOOKUP(B90,Species!B$3:BE$552,55,FALSE) -> 0 | AQ90: =VLOOKUP(B90,Species!B$3:BE$552,56,FALSE) -> 0 | AY90: =HYPERLINK(VLOOKUP(B90,Species!B$3:BF$552,57,FALSE)) ->  | AZ90: =VLOOKUP(B90,Species!B$3:C$552,2,FALSE) -> Carex pensylvanica | BA90: 0 | BB90: 0.000 | BC90: 0
B91: =Species!$B81 -> Perennial Ryegrass | C91: Lolium perenne | H91: 0 | I91: 0.00 | K91: =VLOOKUP(B91,Species!B$3:Y$552,24,FALSE) -> 7.3 | L91: =VLOOKUP(B91,Species!B$3:AJ$552,35,FALSE) -> 0 | M91: =VLOOKUP(B91,Species!B$3:AD$552,29,FALSE) -> N/A | N91: =VLOOKUP(B91,Species!B$3:AB$552,27,FALSE) -> 2.365 | O91: 0 | P91: =VLOOKUP(B91,Species!B$3:AF$552,31,FALSE) -> Perennial Cool Season Grass | Q91: =VLOOKUP(B91,Species!B$3:D$552,3,FALSE) -> Grass | R91: =VLOOKUP(B91,Species!B$3:W$552,22,FALSE) -> 5.51882461 | S91: 0 | T91: 0 | U91: 0 | W91: 0 | X91: =VLOOKUP(B91,Species!B$3:F$552,5,FALSE) -> Yes | Y91: =VLOOKUP(B91,Species!B$3:AC$552,28,FALSE) -> Introduced | Z91: =VLOOKUP(B91,Species!B$3:AC$552,9,FALSE) -> 0 | AA91: =VLOOKUP(B91,Species!B$3:AC$552,10,FALSE) -> X | AB91: =VLOOKUP(B91,Species!B$3:AC$552,11,FALSE) -> 0 | AC91: =VLOOKUP(B91,Species!B$3:AC$552,12,FALSE) -> 0 | AD91: =VLOOKUP(B91,Species!B$3:AC$552,13,FALSE) -> 0 | AE91: =VLOOKUP(B91,Species!B$3:AC$552,14,FALSE) -> 0 | AF91: =VLOOKUP(B91,Species!B$3:AC$552,15,FALSE) -> 0 | AG91: =VLOOKUP(B91,Species!B$3:AC$552,16,FALSE) -> 0 | AH91: =VLOOKUP(B91,Species!B$3:AC$552,17,FALSE) -> 0 | AI91: =VLOOKUP(B91,Species!B$3:AC$552,18,FALSE) -> 0 | AJ91: =VLOOKUP(B91,Species!B$3:AC$552,19,FALSE) -> 0 | AK91: =VLOOKUP(B91,Species!B$3:AC$552,20,FALSE) -> 0 | AL91: =VLOOKUP(B91,Species!B$3:AJ$552,35,FALSE) -> 0 | AM91: =VLOOKUP(B91,Species!B$3:AH$552,33,FALSE) -> 0 | AN91: =VLOOKUP(B91,Species!B$3:I$552,8,FALSE) -> Yes | AO91: =VLOOKUP(B91,Species!B$3:BC$552,54,FALSE) -> 0 | AP91: =VLOOKUP(B91,Species!B$3:BE$552,55,FALSE) -> 0 | AQ91: =VLOOKUP(B91,Species!B$3:BE$552,56,FALSE) -> 0 | AY91: =HYPERLINK(VLOOKUP(B91,Species!B$3:BF$552,57,FALSE)) -> http://plants.usda.gov/core/profile?symbol=LOPE | AZ91: =VLOOKUP(B91,Species!B$3:C$552,2,FALSE) -> Lolium perenne | BA91: 0 | BB91: 0.000 | BC91: 0
B92: =Species!$B82 -> Plains Muhly | C92: Muhlenbergia cuspidata | H92: 0 | I92: 0.00 | K92: =VLOOKUP(B92,Species!B$3:Y$552,24,FALSE) -> 0 | L92: =VLOOKUP(B92,Species!B$3:AJ$552,35,FALSE) -> 0 | M92: =VLOOKUP(B92,Species!B$3:AD$552,29,FALSE) -> 10 | N92: =VLOOKUP(B92,Species!B$3:AB$552,27,FALSE) -> 1920 | O92: 0 | P92: =VLOOKUP(B92,Species!B$3:AF$552,31,FALSE) -> Perennial Warm Season Grass | Q92: =VLOOKUP(B92,Species!B$3:D$552,3,FALSE) -> Grass | R92: =VLOOKUP(B92,Species!B$3:W$552,22,FALSE) -> 0 | S92: 0 | T92: 0 | U92: 0 | W92: 0 | X92: =VLOOKUP(B92,Species!B$3:F$552,5,FALSE) -> No | Y92: =VLOOKUP(B92,Species!B$3:AC$552,28,FALSE) -> Native | Z92: =VLOOKUP(B92,Species!B$3:AC$552,9,FALSE) -> X | AA92: =VLOOKUP(B92,Species!B$3:AC$552,10,FALSE) ->  | AB92: =VLOOKUP(B92,Species!B$3:AC$552,11,FALSE) ->  | AC92: =VLOOKUP(B92,Species!B$3:AC$552,12,FALSE) -> X | AD92: =VLOOKUP(B92,Species!B$3:AC$552,13,FALSE) -> 0 | AE92: =VLOOKUP(B92,Species!B$3:AC$552,14,FALSE) -> 0 | AF92: =VLOOKUP(B92,Species!B$3:AC$552,15,FALSE) -> 0 | AG92: =VLOOKUP(B92,Species!B$3:AC$552,16,FALSE) ->  | AH92: =VLOOKUP(B92,Species!B$3:AC$552,17,FALSE) -> 0 | AI92: =VLOOKUP(B92,Species!B$3:AC$552,18,FALSE) -> 0 | AJ92: =VLOOKUP(B92,Species!B$3:AC$552,19,FALSE) ->  | AK92: =VLOOKUP(B92,Species!B$3:AC$552,20,FALSE) ->  | AL92: =VLOOKUP(B92,Species!B$3:AJ$552,35,FALSE) -> 0 | AM92: =VLOOKUP(B92,Species!B$3:AH$552,33,FALSE) -> 0 | AN92: =VLOOKUP(B92,Species!B$3:I$552,8,FALSE) -> No | AO92: =VLOOKUP(B92,Species!B$3:BC$552,54,FALSE) -> 0 | AP92: =VLOOKUP(B92,Species!B$3:BE$552,55,FALSE) -> 0 | AQ92: =VLOOKUP(B92,Species!B$3:BE$552,56,FALSE) -> 0 | AY92: =HYPERLINK(VLOOKUP(B92,Species!B$3:BF$552,57,FALSE)) -> http://plants.usda.gov/java/profile?symbol=CAHI6 | AZ92: =VLOOKUP(B92,Species!B$3:C$552,2,FALSE) -> Muhlenbergia cuspidata | BA92: 0 | BB92: 0.000 | BC92: 0
B93: =Species!$B83 -> Porcupine Grass | C93: Stipa spartea | H93: 0 | I93: 0.00 | K93: =VLOOKUP(B93,Species!B$3:Y$552,24,FALSE) -> 0 | L93: =VLOOKUP(B93,Species!B$3:AJ$552,35,FALSE) -> 0 | M93: =VLOOKUP(B93,Species!B$3:AD$552,29,FALSE) -> 8 | N93: =VLOOKUP(B93,Species!B$3:AB$552,27,FALSE) -> 225 | O93: 0 | P93: =VLOOKUP(B93,Species!B$3:AF$552,31,FALSE) -> Perennial Cool Season Grass | Q93: =VLOOKUP(B93,Species!B$3:D$552,3,FALSE) -> Grass | R93: =VLOOKUP(B93,Species!B$3:W$552,22,FALSE) -> 3.443526171 | S93: 0 | T93: 0 | U93: 0 | W93: 0 | X93: =VLOOKUP(B93,Species!B$3:F$552,5,FALSE) -> Yes | Y93: =VLOOKUP(B93,Species!B$3:AC$552,28,FALSE) -> Native | Z93: =VLOOKUP(B93,Species!B$3:AC$552,9,FALSE) -> X | AA93: =VLOOKUP(B93,Species!B$3:AC$552,10,FALSE) -> X | AB93: =VLOOKUP(B93,Species!B$3:AC$552,11,FALSE) ->  | AC93: =VLOOKUP(B93,Species!B$3:AC$552,12,FALSE) -> X | AD93: =VLOOKUP(B93,Species!B$3:AC$552,13,FALSE) -> X | AE93: =VLOOKUP(B93,Species!B$3:AC$552,14,FALSE) -> 0 | AF93: =VLOOKUP(B93,Species!B$3:AC$552,15,FALSE) -> 0 | AG93: =VLOOKUP(B93,Species!B$3:AC$552,16,FALSE) -> X | AH93: =VLOOKUP(B93,Species!B$3:AC$552,17,FALSE) -> 0 | AI93: =VLOOKUP(B93,Species!B$3:AC$552,18,FALSE) -> 0 | AJ93: =VLOOKUP(B93,Species!B$3:AC$552,19,FALSE) ->  | AK93: =VLOOKUP(B93,Species!B$3:AC$552,20,FALSE) ->  | AL93: =VLOOKUP(B93,Species!B$3:AJ$552,35,FALSE) -> 0 | AM93: =VLOOKUP(B93,Species!B$3:AH$552,33,FALSE) -> 0 | AN93: =VLOOKUP(B93,Species!B$3:I$552,8,FALSE) -> No | AO93: =VLOOKUP(B93,Species!B$3:BC$552,54,FALSE) -> 0 | AP93: =VLOOKUP(B93,Species!B$3:BE$552,55,FALSE) -> 0 | AQ93: =VLOOKUP(B93,Species!B$3:BE$552,56,FALSE) -> 0 | AY93: =HYPERLINK(VLOOKUP(B93,Species!B$3:BF$552,57,FALSE)) -> http://plants.usda.gov/java/profile?symbol=CASP3 | AZ93: =VLOOKUP(B93,Species!B$3:C$552,2,FALSE) -> Stipa spartea | BA93: 0 | BB93: 0.000 | BC93: 0
B94: =Species!$B84 -> Poverty Grass | C94: Danthonia spicata | H94: 0 | I94: 0.00 | K94: =VLOOKUP(B94,Species!B$3:Y$552,24,FALSE) -> 0 | L94: =VLOOKUP(B94,Species!B$3:AJ$552,35,FALSE) -> 0 | M94: =VLOOKUP(B94,Species!B$3:AD$552,29,FALSE) -> 3 | N94: =VLOOKUP(B94,Species!B$3:AB$552,27,FALSE) -> 262.5 | O94: 0 | P94: =VLOOKUP(B94,Species!B$3:AF$552,31,FALSE) -> Perennial Cool Season Grass | Q94: =VLOOKUP(B94,Species!B$3:D$552,3,FALSE) -> Grass | R94: =VLOOKUP(B94,Species!B$3:W$552,22,FALSE) -> 0 | S94: 0 | T94: 0 | U94: 0 | W94: 0 | X94: =VLOOKUP(B94,Species!B$3:F$552,5,FALSE) -> No | Y94: =VLOOKUP(B94,Species!B$3:AC$552,28,FALSE) -> Native | Z94: =VLOOKUP(B94,Species!B$3:AC$552,9,FALSE) -> X | AA94: =VLOOKUP(B94,Species!B$3:AC$552,10,FALSE) -> X | AB94: =VLOOKUP(B94,Species!B$3:AC$552,11,FALSE) ->  | AC94: =VLOOKUP(B94,Species!B$3:AC$552,12,FALSE) -> X | AD94: =VLOOKUP(B94,Species!B$3:AC$552,13,FALSE) -> X | AE94: =VLOOKUP(B94,Species!B$3:AC$552,14,FALSE) -> 0 | AF94: =VLOOKUP(B94,Species!B$3:AC$552,15,FALSE) -> 0 | AG94: =VLOOKUP(B94,Species!B$3:AC$552,16,FALSE) -> X | AH94: =VLOOKUP(B94,Species!B$3:AC$552,17,FALSE) -> X | AI94: =VLOOKUP(B94,Species!B$3:AC$552,18,FALSE) -> 0 | AJ94: =VLOOKUP(B94,Species!B$3:AC$552,19,FALSE) ->  | AK94: =VLOOKUP(B94,Species!B$3:AC$552,20,FALSE) -> X | AL94: =VLOOKUP(B94,Species!B$3:AJ$552,35,FALSE) -> 0 | AM94: =VLOOKUP(B94,Species!B$3:AH$552,33,FALSE) -> 0 | AN94: =VLOOKUP(B94,Species!B$3:I$552,8,FALSE) -> No | AO94: =VLOOKUP(B94,Species!B$3:BC$552,54,FALSE) -> 0 | AP94: =VLOOKUP(B94,Species!B$3:BE$552,55,FALSE) -> 0 | AQ94: =VLOOKUP(B94,Species!B$3:BE$552,56,FALSE) -> 0 | AY94: =HYPERLINK(VLOOKUP(B94,Species!B$3:BF$552,57,FALSE)) -> https://plants.usda.gov/core/profile?symbol=DASP2 | AZ94: =VLOOKUP(B94,Species!B$3:C$552,2,FALSE) -> Danthonia spicata | BA94: 0 | BB94: 0.000 | BC94: 0
B95: =Species!$B85 -> Poverty Rush | C95: Juncus tenuis | H95: 0 | I95: 0.00 | K95: =VLOOKUP(B95,Species!B$3:Y$552,24,FALSE) -> 0 | L95: =VLOOKUP(B95,Species!B$3:AJ$552,35,FALSE) -> 0 | M95: =VLOOKUP(B95,Species!B$3:AD$552,29,FALSE) -> 0 | N95: =VLOOKUP(B95,Species!B$3:AB$552,27,FALSE) -> 427.5 | O95: 0 | P95: =VLOOKUP(B95,Species!B$3:AF$552,31,FALSE) -> Perennial Cool Season Rush | Q95: =VLOOKUP(B95,Species!B$3:D$552,3,FALSE) -> Grass | R95: =VLOOKUP(B95,Species!B$3:W$552,22,FALSE) -> 0 | S95: 0 | T95: 0 | U95: 0 | W95: 0 | X95: =VLOOKUP(B95,Species!B$3:F$552,5,FALSE) -> No | Y95: =VLOOKUP(B95,Species!B$3:AC$552,28,FALSE) -> Native | Z95: =VLOOKUP(B95,Species!B$3:AC$552,9,FALSE) ->  | AA95: =VLOOKUP(B95,Species!B$3:AC$552,10,FALSE) -> X | AB95: =VLOOKUP(B95,Species!B$3:AC$552,11,FALSE) -> X | AC95: =VLOOKUP(B95,Species!B$3:AC$552,12,FALSE) -> X | AD95: =VLOOKUP(B95,Species!B$3:AC$552,13,FALSE) -> 0 | AE95: =VLOOKUP(B95,Species!B$3:AC$552,14,FALSE) -> 0 | AF95: =VLOOKUP(B95,Species!B$3:AC$552,15,FALSE) -> 0 | AG95: =VLOOKUP(B95,Species!B$3:AC$552,16,FALSE) -> X | AH95: =VLOOKUP(B95,Species!B$3:AC$552,17,FALSE) -> 0 | AI95: =VLOOKUP(B95,Species!B$3:AC$552,18,FALSE) -> 0 | AJ95: =VLOOKUP(B95,Species!B$3:AC$552,19,FALSE) ->  | AK95: =VLOOKUP(B95,Species!B$3:AC$552,20,FALSE) -> X | AL95: =VLOOKUP(B95,Species!B$3:AJ$552,35,FALSE) -> 0 | AM95: =VLOOKUP(B95,Species!B$3:AH$552,33,FALSE) -> 0 | AN95: =VLOOKUP(B95,Species!B$3:I$552,8,FALSE) -> No | AO95: =VLOOKUP(B95,Species!B$3:BC$552,54,FALSE) -> 0 | AP95: =VLOOKUP(B95,Species!B$3:BE$552,55,FALSE) -> 0 | AQ95: =VLOOKUP(B95,Species!B$3:BE$552,56,FALSE) -> 0 | AY95: =HYPERLINK(VLOOKUP(B95,Species!B$3:BF$552,57,FALSE)) -> http://plants.usda.gov/java/profile?symbol=CATR7 | AZ95: =VLOOKUP(B95,Species!B$3:C$552,2,FALSE) -> Juncus tenuis | BA95: 0 | BB95: 0.000 | BC95: 0
B96: =Species!$B86 -> Prairie Cordgrass | C96: Spartina pectinata | H96: 0 | I96: 0.00 | K96: =VLOOKUP(B96,Species!B$3:Y$552,24,FALSE) -> 0 | L96: =VLOOKUP(B96,Species!B$3:AJ$552,35,FALSE) -> 0 | M96: =VLOOKUP(B96,Species!B$3:AD$552,29,FALSE) -> 5 | N96: =VLOOKUP(B96,Species!B$3:AB$552,27,FALSE) -> 107.89 | O96: 0 | P96: =VLOOKUP(B96,Species!B$3:AF$552,31,FALSE) -> Perennial Warm Season Grass | Q96: =VLOOKUP(B96,Species!B$3:D$552,3,FALSE) -> Grass | R96: =VLOOKUP(B96,Species!B$3:W$552,22,FALSE) -> 4.522497704 | S96: 0 | T96: 0 | U96: 0 | W96: 0 | X96: =VLOOKUP(B96,Species!B$3:F$552,5,FALSE) -> Yes | Y96: =VLOOKUP(B96,Species!B$3:AC$552,28,FALSE) -> Native | Z96: =VLOOKUP(B96,Species!B$3:AC$552,9,FALSE) ->  | AA96: =VLOOKUP(B96,Species!B$3:AC$552,10,FALSE) ->  | AB96: =VLOOKUP(B96,Species!B$3:AC$552,11,FALSE) -> X | AC96: =VLOOKUP(B96,Species!B$3:AC$552,12,FALSE) -> 0 | AD96: =VLOOKUP(B96,Species!B$3:AC$552,13,FALSE) -> 0 | AE96: =VLOOKUP(B96,Species!B$3:AC$552,14,FALSE) -> X | AF96: =VLOOKUP(B96,Species!B$3:AC$552,15,FALSE) -> 0 | AG96: =VLOOKUP(B96,Species!B$3:AC$552,16,FALSE) -> 0 | AH96: =VLOOKUP(B96,Species!B$3:AC$552,17,FALSE) -> 0 | AI96: =VLOOKUP(B96,Species!B$3:AC$552,18,FALSE) -> 0 | AJ96: =VLOOKUP(B96,Species!B$3:AC$552,19,FALSE) -> X | AK96: =VLOOKUP(B96,Species!B$3:AC$552,20,FALSE) ->  | AL96: =VLOOKUP(B96,Species!B$3:AJ$552,35,FALSE) -> 0 | AM96: =VLOOKUP(B96,Species!B$3:AH$552,33,FALSE) -> 0 | AN96: =VLOOKUP(B96,Species!B$3:I$552,8,FALSE) -> Yes | AO96: =VLOOKUP(B96,Species!B$3:BC$552,54,FALSE) -> 0 | AP96: =VLOOKUP(B96,Species!B$3:BE$552,55,FALSE) -> 0 | AQ96: =VLOOKUP(B96,Species!B$3:BE$552,56,FALSE) -> 0 | AY96: =HYPERLINK(VLOOKUP(B96,Species!B$3:BF$552,57,FALSE)) -> http://plants.usda.gov/core/profile?symbol=SPPE | AZ96: =VLOOKUP(B96,Species!B$3:C$552,2,FALSE) -> Spartina pectinata | BA96: 0 | BB96: 0.000 | BC96: 0
B97: =Species!$B87 -> Prairie Dropseed | C97: Sporobolus heterolepis | H97: 0 | I97: 0.00 | K97: =VLOOKUP(B97,Species!B$3:Y$552,24,FALSE) -> 0 | L97: =VLOOKUP(B97,Species!B$3:AJ$552,35,FALSE) -> 0 | M97: =VLOOKUP(B97,Species!B$3:AD$552,29,FALSE) -> 6 | N97: =VLOOKUP(B97,Species!B$3:AB$552,27,FALSE) -> 205.8933333 | O97: 0 | P97: =VLOOKUP(B97,Species!B$3:AF$552,31,FALSE) -> Perennial Warm Season Grass | Q97: =VLOOKUP(B97,Species!B$3:D$552,3,FALSE) -> Grass | R97: =VLOOKUP(B97,Species!B$3:W$552,22,FALSE) -> 5.080119376 | S97: 0 | T97: 0 | U97: 0 | W97: 0 | X97: =VLOOKUP(B97,Species!B$3:F$552,5,FALSE) -> Yes | Y97: =VLOOKUP(B97,Species!B$3:AC$552,28,FALSE) -> Native | Z97: =VLOOKUP(B97,Species!B$3:AC$552,9,FALSE) -> X | AA97: =VLOOKUP(B97,Species!B$3:AC$552,10,FALSE) -> X | AB97: =VLOOKUP(B97,Species!B$3:AC$552,11,FALSE) ->  | AC97: =VLOOKUP(B97,Species!B$3:AC$552,12,FALSE) -> X | AD97: =VLOOKUP(B97,Species!B$3:AC$552,13,FALSE) -> X | AE97: =VLOOKUP(B97,Species!B$3:AC$552,14,FALSE) -> 0 | AF97: =VLOOKUP(B97,Species!B$3:AC$552,15,FALSE) -> 0 | AG97: =VLOOKUP(B97,Species!B$3:AC$552,16,FALSE) -> X | AH97: =VLOOKUP(B97,Species!B$3:AC$552,17,FALSE) -> X | AI97: =VLOOKUP(B97,Species!B$3:AC$552,18,FALSE) -> 0 | AJ97: =VLOOKUP(B97,Species!B$3:AC$552,19,FALSE) ->  | AK97: =VLOOKUP(B97,Species!B$3:AC$552,20,FALSE) ->  | AL97: =VLOOKUP(B97,Species!B$3:AJ$552,35,FALSE) -> 0 | AM97: =VLOOKUP(B97,Species!B$3:AH$552,33,FALSE) -> 0 | AN97: =VLOOKUP(B97,Species!B$3:I$552,8,FALSE) -> Yes | AO97: =VLOOKUP(B97,Species!B$3:BC$552,54,FALSE) -> 0 | AP97: =VLOOKUP(B97,Species!B$3:BE$552,55,FALSE) -> 0 | AQ97: =VLOOKUP(B97,Species!B$3:BE$552,56,FALSE) -> 0 | AY97: =HYPERLINK(VLOOKUP(B97,Species!B$3:BF$552,57,FALSE)) -> http://plants.usda.gov/core/profile?symbol=SPHE | AZ97: =VLOOKUP(B97,Species!B$3:C$552,2,FALSE) -> Sporobolus heterolepis | BA97: 0 | BB97: 0.000 | BC97: 0
B98: =Species!$B88 -> Prairie Junegrass | C98: Koeleria macrantha | H98: 0 | I98: 0.00 | K98: =VLOOKUP(B98,Species!B$3:Y$552,24,FALSE) -> 1 | L98: =VLOOKUP(B98,Species!B$3:AJ$552,35,FALSE) -> 0 | M98: =VLOOKUP(B98,Species!B$3:AD$552,29,FALSE) -> 6 | N98: =VLOOKUP(B98,Species!B$3:AB$552,27,FALSE) -> 97.63333333 | O98: 0 | P98: =VLOOKUP(B98,Species!B$3:AF$552,31,FALSE) -> Perennial Cool Season Grass | Q98: =VLOOKUP(B98,Species!B$3:D$552,3,FALSE) -> Grass | R98: =VLOOKUP(B98,Species!B$3:W$552,22,FALSE) -> 53.14508724 | S98: 0 | T98: 0 | U98: 0 | W98: 0 | X98: =VLOOKUP(B98,Species!B$3:F$552,5,FALSE) -> Yes | Y98: =VLOOKUP(B98,Species!B$3:AC$552,28,FALSE) -> Native | Z98: =VLOOKUP(B98,Species!B$3:AC$552,9,FALSE) -> X | AA98: =VLOOKUP(B98,Species!B$3:AC$552,10,FALSE) -> X | AB98: =VLOOKUP(B98,Species!B$3:AC$552,11,FALSE) ->  | AC98: =VLOOKUP(B98,Species!B$3:AC$552,12,FALSE) -> X | AD98: =VLOOKUP(B98,Species!B$3:AC$552,13,FALSE) -> X | AE98: =VLOOKUP(B98,Species!B$3:AC$552,14,FALSE) -> 0 | AF98: =VLOOKUP(B98,Species!B$3:AC$552,15,FALSE) -> 0 | AG98: =VLOOKUP(B98,Species!B$3:AC$552,16,FALSE) -> X | AH98: =VLOOKUP(B98,Species!B$3:AC$552,17,FALSE) -> 0 | AI98: =VLOOKUP(B98,Species!B$3:AC$552,18,FALSE) -> 0 | AJ98: =VLOOKUP(B98,Species!B$3:AC$552,19,FALSE) ->  | AK98: =VLOOKUP(B98,Species!B$3:AC$552,20,FALSE) ->  | AL98: =VLOOKUP(B98,Species!B$3:AJ$552,35,FALSE) -> 0 | AM98: =VLOOKUP(B98,Species!B$3:AH$552,33,FALSE) -> 0 | AN98: =VLOOKUP(B98,Species!B$3:I$552,8,FALSE) -> Yes | AO98: =VLOOKUP(B98,Species!B$3:BC$552,54,FALSE) -> 0 | AP98: =VLOOKUP(B98,Species!B$3:BE$552,55,FALSE) -> 0 | AQ98: =VLOOKUP(B98,Species!B$3:BE$552,56,FALSE) -> 0 | AY98: =HYPERLINK(VLOOKUP(B98,Species!B$3:BF$552,57,FALSE)) -> http://plants.usda.gov/java/profile?symbol=CASC11 | AZ98: =VLOOKUP(B98,Species!B$3:C$552,2,FALSE) -> Koeleria macrantha | BA98: 0 | BB98: 0.000 | BC98: 0
B99: =Species!$B89 -> Prairie Sandreed | C99: Calamovilfa longifolia | H99: 0 | I99: 0.00 | K99: =VLOOKUP(B99,Species!B$3:Y$552,24,FALSE) -> 0 | L99: =VLOOKUP(B99,Species!B$3:AJ$552,35,FALSE) -> 0 | M99: =VLOOKUP(B99,Species!B$3:AD$552,29,FALSE) -> N/A | N99: =VLOOKUP(B99,Species!B$3:AB$552,27,FALSE) -> 337.45 | O99: 0 | P99: =VLOOKUP(B99,Species!B$3:AF$552,31,FALSE) -> Perennial Warm Season Grass | Q99: =VLOOKUP(B99,Species!B$3:D$552,3,FALSE) -> Grass | R99: =VLOOKUP(B99,Species!B$3:W$552,22,FALSE) -> 6.290174472 | S99: 0 | T99: 0 | U99: 0 | W99: 0 | X99: =VLOOKUP(B99,Species!B$3:F$552,5,FALSE) -> Yes | Y99: =VLOOKUP(B99,Species!B$3:AC$552,28,FALSE) -> Introduced | Z99: =VLOOKUP(B99,Species!B$3:AC$552,9,FALSE) -> X | AA99: =VLOOKUP(B99,Species!B$3:AC$552,10,FALSE) ->  | AB99: =VLOOKUP(B99,Species!B$3:AC$552,11,FALSE) ->  | AC99: =VLOOKUP(B99,Species!B$3:AC$552,12,FALSE) -> X | AD99: =VLOOKUP(B99,Species!B$3:AC$552,13,FALSE) -> 0 | AE99: =VLOOKUP(B99,Species!B$3:AC$552,14,FALSE) -> 0 | AF99: =VLOOKUP(B99,Species!B$3:AC$552,15,FALSE) -> 0 | AG99: =VLOOKUP(B99,Species!B$3:AC$552,16,FALSE) -> X | AH99: =VLOOKUP(B99,Species!B$3:AC$552,17,FALSE) -> 0 | AI99: =VLOOKUP(B99,Species!B$3:AC$552,18,FALSE) -> 0 | AJ99: =VLOOKUP(B99,Species!B$3:AC$552,19,FALSE) ->  | AK99: =VLOOKUP(B99,Species!B$3:AC$552,20,FALSE) ->  | AL99: =VLOOKUP(B99,Species!B$3:AJ$552,35,FALSE) -> 0 | AM99: =VLOOKUP(B99,Species!B$3:AH$552,33,FALSE) -> 0 | AN99: =VLOOKUP(B99,Species!B$3:I$552,8,FALSE) -> No | AO99: =VLOOKUP(B99,Species!B$3:BC$552,54,FALSE) -> 0 | AP99: =VLOOKUP(B99,Species!B$3:BE$552,55,FALSE) -> 0 | AQ99: =VLOOKUP(B99,Species!B$3:BE$552,56,FALSE) -> 0 | AY99: =HYPERLINK(VLOOKUP(B99,Species!B$3:BF$552,57,FALSE)) ->  | AZ99: =VLOOKUP(B99,Species!B$3:C$552,2,FALSE) -> Calamovilfa longifolia | BA99: 0 | BB99: 0.000 | BC99: 0
B100: =Species!$B90 -> Prairie Straw Sedge | C100: Carex suberecta | H100: 0 | I100: 0.00 | K100: =VLOOKUP(B100,Species!B$3:Y$552,24,FALSE) -> 0 | L100: =VLOOKUP(B100,Species!B$3:AJ$552,35,FALSE) -> 0 | M100: =VLOOKUP(B100,Species!B$3:AD$552,29,FALSE) -> 0 | N100: =VLOOKUP(B100,Species!B$3:AB$552,27,FALSE) -> 0 | O100: 0 | P100: =VLOOKUP(B100,Species!B$3:AF$552,31,FALSE) -> Perennial Cool Season Sedge | Q100: =VLOOKUP(B100,Species!B$3:D$552,3,FALSE) -> Grass | R100: =VLOOKUP(B100,Species!B$3:W$552,22,FALSE) -> 0 | S100: 0 | T100: 0 | U100: 0 | W100: 0 | X100: =VLOOKUP(B100,Species!B$3:F$552,5,FALSE) -> No | Y100: =VLOOKUP(B100,Species!B$3:AC$552,28,FALSE) -> Native | Z100: =VLOOKUP(B100,Species!B$3:AC$552,9,FALSE) ->  | AA100: =VLOOKUP(B100,Species!B$3:AC$552,10,FALSE) ->  | AB100: =VLOOKUP(B100,Species!B$3:AC$552,11,FALSE) -> X | AC100: =VLOOKUP(B100,Species!B$3:AC$552,12,FALSE) -> 0 | AD100: =VLOOKUP(B100,Species!B$3:AC$552,13,FALSE) -> 0 | AE100: =VLOOKUP(B100,Species!B$3:AC$552,14,FALSE) -> X | AF100: =VLOOKUP(B100,Species!B$3:AC$552,15,FALSE) -> 0 | AG100: =VLOOKUP(B100,Species!B$3:AC$552,16,FALSE) -> X | AH100: =VLOOKUP(B100,Species!B$3:AC$552,17,FALSE) -> 0 | AI100: =VLOOKUP(B100,Species!B$3:AC$552,18,FALSE) -> 0 | AJ100: =VLOOKUP(B100,Species!B$3:AC$552,19,FALSE) -> X | AK100: =VLOOKUP(B100,Species!B$3:AC$552,20,FALSE) ->  | AL100: =VLOOKUP(B100,Species!B$3:AJ$552,35,FALSE) -> 0 | AM100: =VLOOKUP(B100,Species!B$3:AH$552,33,FALSE) -> 0 | AN100: =VLOOKUP(B100,Species!B$3:I$552,8,FALSE) -> No | AO100: =VLOOKUP(B100,Species!B$3:BC$552,54,FALSE) -> 0 | AP100: =VLOOKUP(B100,Species!B$3:BE$552,55,FALSE) -> 0 | AQ100: =VLOOKUP(B100,Species!B$3:BE$552,56,FALSE) -> 0 | AY100: =HYPERLINK(VLOOKUP(B100,Species!B$3:BF$552,57,FALSE)) ->  | AZ100: =VLOOKUP(B100,Species!B$3:C$552,2,FALSE) -> Carex suberecta | BA100: 0 | BB100: 0.000 | BC100: 0
B101: =Species!$B91 -> Prairie Wedgescale | C101: Sphenopholis obtusata | H101: 0 | I101: 0.00 | K101: =VLOOKUP(B101,Species!B$3:Y$552,24,FALSE) -> 0 | L101: =VLOOKUP(B101,Species!B$3:AJ$552,35,FALSE) -> 0 | M101: =VLOOKUP(B101,Species!B$3:AD$552,29,FALSE) -> 5 | N101: =VLOOKUP(B101,Species!B$3:AB$552,27,FALSE) -> 45 | O101: 0 | P101: =VLOOKUP(B101,Species!B$3:AF$552,31,FALSE) -> Perennial Cool Season Grass | Q101: =VLOOKUP(B101,Species!B$3:D$552,3,FALSE) -> Grass | R101: =VLOOKUP(B101,Species!B$3:W$552,22,FALSE) -> 4.591368228 | S101: 0 | T101: 0 | U101: 0 | W101: 0 | X101: =VLOOKUP(B101,Species!B$3:F$552,5,FALSE) -> Yes | Y101: =VLOOKUP(B101,Species!B$3:AC$552,28,FALSE) -> Native | Z101: =VLOOKUP(B101,Species!B$3:AC$552,9,FALSE) -> X | AA101: =VLOOKUP(B101,Species!B$3:AC$552,10,FALSE) -> X | AB101: =VLOOKUP(B101,Species!B$3:AC$552,11,FALSE) ->  | AC101: =VLOOKUP(B101,Species!B$3:AC$552,12,FALSE) -> X | AD101: =VLOOKUP(B101,Species!B$3:AC$552,13,FALSE) -> X | AE101: =VLOOKUP(B101,Species!B$3:AC$552,14,FALSE) -> 0 | AF101: =VLOOKUP(B101,Species!B$3:AC$552,15,FALSE) -> 0 | AG101: =VLOOKUP(B101,Species!B$3:AC$552,16,FALSE) -> 0 | AH101: =VLOOKUP(B101,Species!B$3:AC$552,17,FALSE) -> X | AI101: =VLOOKUP(B101,Species!B$3:AC$552,18,FALSE) -> X | AJ101: =VLOOKUP(B101,Species!B$3:AC$552,19,FALSE) ->  | AK101: =VLOOKUP(B101,Species!B$3:AC$552,20,FALSE) -> X | AL101: =VLOOKUP(B101,Species!B$3:AJ$552,35,FALSE) -> 0 | AM101: =VLOOKUP(B101,Species!B$3:AH$552,33,FALSE) -> 0 | AN101: =VLOOKUP(B101,Species!B$3:I$552,8,FALSE) -> No | AO101: =VLOOKUP(B101,Species!B$3:BC$552,54,FALSE) -> 0 | AP101: =VLOOKUP(B101,Species!B$3:BE$552,55,FALSE) -> 0 | AQ101: =VLOOKUP(B101,Species!B$3:BE$552,56,FALSE) -> 0 | AY101: =HYPERLINK(VLOOKUP(B101,Species!B$3:BF$552,57,FALSE)) -> https://plants.usda.gov/core/profile?symbol=SPOB | AZ101: =VLOOKUP(B101,Species!B$3:C$552,2,FALSE) -> Sphenopholis obtusata | BA101: 0 | BB101: 0.000 | BC101: 0
B102: =Species!$B92 -> Purple Lovegrass | C102: Eragrostis spectabilis | H102: 0 | I102: 0.00 | K102: =VLOOKUP(B102,Species!B$3:Y$552,24,FALSE) -> 0 | L102: =VLOOKUP(B102,Species!B$3:AJ$552,35,FALSE) -> 0 | M102: =VLOOKUP(B102,Species!B$3:AD$552,29,FALSE) -> 3 | N102: =VLOOKUP(B102,Species!B$3:AB$552,27,FALSE) -> 1280 | O102: 0 | P102: =VLOOKUP(B102,Species!B$3:AF$552,31,FALSE) -> Perennial Warm Season Grass | Q102: =VLOOKUP(B102,Species!B$3:D$552,3,FALSE) -> Grass | R102: =VLOOKUP(B102,Species!B$3:W$552,22,FALSE) -> 24.31359045 | S102: 0 | T102: 0 | U102: 0 | W102: 0 | X102: =VLOOKUP(B102,Species!B$3:F$552,5,FALSE) -> Yes | Y102: =VLOOKUP(B102,Species!B$3:AC$552,28,FALSE) -> Native | Z102: =VLOOKUP(B102,Species!B$3:AC$552,9,FALSE) -> X | AA102: =VLOOKUP(B102,Species!B$3:AC$552,10,FALSE) -> X | AB102: =VLOOKUP(B102,Species!B$3:AC$552,11,FALSE) ->  | AC102: =VLOOKUP(B102,Species!B$3:AC$552,12,FALSE) -> X | AD102: =VLOOKUP(B102,Species!B$3:AC$552,13,FALSE) -> X | AE102: =VLOOKUP(B102,Species!B$3:AC$552,14,FALSE) -> 0 | AF102: =VLOOKUP(B102,Species!B$3:AC$552,15,FALSE) -> 0 | AG102: =VLOOKUP(B102,Species!B$3:AC$552,16,FALSE) -> X | AH102: =VLOOKUP(B102,Species!B$3:AC$552,17,FALSE) -> X | AI102: =VLOOKUP(B102,Species!B$3:AC$552,18,FALSE) -> 0 | AJ102: =VLOOKUP(B102,Species!B$3:AC$552,19,FALSE) ->  | AK102: =VLOOKUP(B102,Species!B$3:AC$552,20,FALSE) ->  | AL102: =VLOOKUP(B102,Species!B$3:AJ$552,35,FALSE) -> 0 | AM102: =VLOOKUP(B102,Species!B$3:AH$552,33,FALSE) -> 0 | AN102: =VLOOKUP(B102,Species!B$3:I$552,8,FALSE) -> No | AO102: =VLOOKUP(B102,Species!B$3:BC$552,54,FALSE) -> 0 | AP102: =VLOOKUP(B102,Species!B$3:BE$552,55,FALSE) -> 0 | AQ102: =VLOOKUP(B102,Species!B$3:BE$552,56,FALSE) -> 0 | AY102: =HYPERLINK(VLOOKUP(B102,Species!B$3:BF$552,57,FALSE)) -> http://plants.usda.gov/core/profile?symbol=ERSP | AZ102: =VLOOKUP(B102,Species!B$3:C$552,2,FALSE) -> Eragrostis spectabilis | BA102: 0 | BB102: 0.000 | BC102: 0
B103: =Species!$B93 -> Purpletop (Tridens) | C103: Tridens flavus | H103: 0 | I103: 0.00 | K103: =VLOOKUP(B103,Species!B$3:Y$552,24,FALSE) -> 0 | L103: =VLOOKUP(B103,Species!B$3:AJ$552,35,FALSE) -> 0 | M103: =VLOOKUP(B103,Species!B$3:AD$552,29,FALSE) -> 1 | N103: =VLOOKUP(B103,Species!B$3:AB$552,27,FALSE) -> 28.8175 | O103: 0 | P103: =VLOOKUP(B103,Species!B$3:AF$552,31,FALSE) -> Perennial Warm Season Grass | Q103: =VLOOKUP(B103,Species!B$3:D$552,3,FALSE) -> Grass | R103: =VLOOKUP(B103,Species!B$3:W$552,22,FALSE) -> 10.67493113 | S103: 0 | T103: 0 | U103: 0 | W103: 0 | X103: =VLOOKUP(B103,Species!B$3:F$552,5,FALSE) -> Yes | Y103: =VLOOKUP(B103,Species!B$3:AC$552,28,FALSE) -> Native | Z103: =VLOOKUP(B103,Species!B$3:AC$552,9,FALSE) -> X | AA103: =VLOOKUP(B103,Species!B$3:AC$552,10,FALSE) -> X | AB103: =VLOOKUP(B103,Species!B$3:AC$552,11,FALSE) ->  | AC103: =VLOOKUP(B103,Species!B$3:AC$552,12,FALSE) -> X | AD103: =VLOOKUP(B103,Species!B$3:AC$552,13,FALSE) -> X | AE103: =VLOOKUP(B103,Species!B$3:AC$552,14,FALSE) -> 0 | AF103: =VLOOKUP(B103,Species!B$3:AC$552,15,FALSE) -> 0 | AG103: =VLOOKUP(B103,Species!B$3:AC$552,16,FALSE) -> X | AH103: =VLOOKUP(B103,Species!B$3:AC$552,17,FALSE) -> 0 | AI103: =VLOOKUP(B103,Species!B$3:AC$552,18,FALSE) -> 0 | AJ103: =VLOOKUP(B103,Species!B$3:AC$552,19,FALSE) ->  | AK103: =VLOOKUP(B103,Species!B$3:AC$552,20,FALSE) ->  | AL103: =VLOOKUP(B103,Species!B$3:AJ$552,35,FALSE) -> 0 | AM103: =VLOOKUP(B103,Species!B$3:AH$552,33,FALSE) -> 0 | AN103: =VLOOKUP(B103,Species!B$3:I$552,8,FALSE) -> Yes | AO103: =VLOOKUP(B103,Species!B$3:BC$552,54,FALSE) -> 0 | AP103: =VLOOKUP(B103,Species!B$3:BE$552,55,FALSE) -> 0 | AQ103: =VLOOKUP(B103,Species!B$3:BE$552,56,FALSE) -> 0 | AY103: =HYPERLINK(VLOOKUP(B103,Species!B$3:BF$552,57,FALSE)) -> http://plants.usda.gov/core/profile?symbol=TRFL2 | AZ103: =VLOOKUP(B103,Species!B$3:C$552,2,FALSE) -> Tridens flavus | BA103: 0 | BB103: 0.000 | BC103: 0
B104: =Species!$B94 -> Quill Sedge | C104: Carex tenera | H104: 0 | I104: 0.00 | K104: =VLOOKUP(B104,Species!B$3:Y$552,24,FALSE) -> 0 | L104: =VLOOKUP(B104,Species!B$3:AJ$552,35,FALSE) -> 0 | M104: =VLOOKUP(B104,Species!B$3:AD$552,29,FALSE) -> 10 | N104: =VLOOKUP(B104,Species!B$3:AB$552,27,FALSE) -> 750 | O104: 0 | P104: =VLOOKUP(B104,Species!B$3:AF$552,31,FALSE) -> Perennial Cool Season Sedge | Q104: =VLOOKUP(B104,Species!B$3:D$552,3,FALSE) -> Grass | R104: =VLOOKUP(B104,Species!B$3:W$552,22,FALSE) -> 0 | S104: 0 | T104: 0 | U104: 0 | W104: 0 | X104: =VLOOKUP(B104,Species!B$3:F$552,5,FALSE) -> No | Y104: =VLOOKUP(B104,Species!B$3:AC$552,28,FALSE) -> Native | Z104: =VLOOKUP(B104,Species!B$3:AC$552,9,FALSE) ->  | AA104: =VLOOKUP(B104,Species!B$3:AC$552,10,FALSE) -> X | AB104: =VLOOKUP(B104,Species!B$3:AC$552,11,FALSE) ->  | AC104: =VLOOKUP(B104,Species!B$3:AC$552,12,FALSE) ->  | AD104: =VLOOKUP(B104,Species!B$3:AC$552,13,FALSE) -> X | AE104: =VLOOKUP(B104,Species!B$3:AC$552,14,FALSE) -> 0 | AF104: =VLOOKUP(B104,Species!B$3:AC$552,15,FALSE) -> 0 | AG104: =VLOOKUP(B104,Species!B$3:AC$552,16,FALSE) -> 0 | AH104: =VLOOKUP(B104,Species!B$3:AC$552,17,FALSE) -> 0 | AI104: =VLOOKUP(B104,Species!B$3:AC$552,18,FALSE) -> 0 | AJ104: =VLOOKUP(B104,Species!B$3:AC$552,19,FALSE) ->  | AK104: =VLOOKUP(B104,Species!B$3:AC$552,20,FALSE) -> X | AL104: =VLOOKUP(B104,Species!B$3:AJ$552,35,FALSE) -> 0 | AM104: =VLOOKUP(B104,Species!B$3:AH$552,33,FALSE) -> 0 | AN104: =VLOOKUP(B104,Species!B$3:I$552,8,FALSE) -> No | AO104: =VLOOKUP(B104,Species!B$3:BC$552,54,FALSE) -> 0 | AP104: =VLOOKUP(B104,Species!B$3:BE$552,55,FALSE) -> 0 | AQ104: =VLOOKUP(B104,Species!B$3:BE$552,56,FALSE) -> 0 | AY104: =HYPERLINK(VLOOKUP(B104,Species!B$3:BF$552,57,FALSE)) ->  | AZ104: =VLOOKUP(B104,Species!B$3:C$552,2,FALSE) -> Carex tenera | BA104: 0 | BB104: 0.000 | BC104: 0
B105: =Species!$B95 -> Redtop | C105: Agrostis gigantea | H105: 0 | I105: 0.00 | K105: =VLOOKUP(B105,Species!B$3:Y$552,24,FALSE) -> 1.7 | L105: =VLOOKUP(B105,Species!B$3:AJ$552,35,FALSE) -> 0 | M105: =VLOOKUP(B105,Species!B$3:AD$552,29,FALSE) -> N/A | N105: =VLOOKUP(B105,Species!B$3:AB$552,27,FALSE) -> 13.68 | O105: 0 | P105: =VLOOKUP(B105,Species!B$3:AF$552,31,FALSE) -> Perennial Cool Season Grass | Q105: =VLOOKUP(B105,Species!B$3:D$552,3,FALSE) -> Grass | R105: =VLOOKUP(B105,Species!B$3:W$552,22,FALSE) -> 111.3682277 | S105: 0 | T105: 0 | U105: 0 | W105: 0 | X105: =VLOOKUP(B105,Species!B$3:F$552,5,FALSE) -> Yes | Y105: =VLOOKUP(B105,Species!B$3:AC$552,28,FALSE) -> Introduced | Z105: =VLOOKUP(B105,Species!B$3:AC$552,9,FALSE) -> 0 | AA105: =VLOOKUP(B105,Species!B$3:AC$552,10,FALSE) -> X | AB105: =VLOOKUP(B105,Species!B$3:AC$552,11,FALSE) -> X | AC105: =VLOOKUP(B105,Species!B$3:AC$552,12,FALSE) -> 0 | AD105: =VLOOKUP(B105,Species!B$3:AC$552,13,FALSE) -> 0 | AE105: =VLOOKUP(B105,Species!B$3:AC$552,14,FALSE) -> 0 | AF105: =VLOOKUP(B105,Species!B$3:AC$552,15,FALSE) -> 0 | AG105: =VLOOKUP(B105,Species!B$3:AC$552,16,FALSE) -> 0 | AH105: =VLOOKUP(B105,Species!B$3:AC$552,17,FALSE) -> 0 | AI105: =VLOOKUP(B105,Species!B$3:AC$552,18,FALSE) -> 0 | AJ105: =VLOOKUP(B105,Species!B$3:AC$552,19,FALSE) -> 0 | AK105: =VLOOKUP(B105,Species!B$3:AC$552,20,FALSE) -> 0 | AL105: =VLOOKUP(B105,Species!B$3:AJ$552,35,FALSE) -> 0 | AM105: =VLOOKUP(B105,Species!B$3:AH$552,33,FALSE) -> 0 | AN105: =VLOOKUP(B105,Species!B$3:I$552,8,FALSE) -> Yes | AO105: =VLOOKUP(B105,Species!B$3:BC$552,54,FALSE) -> 0 | AP105: =VLOOKUP(B105,Species!B$3:BE$552,55,FALSE) -> 0 | AQ105: =VLOOKUP(B105,Species!B$3:BE$552,56,FALSE) -> 0 | AY105: =HYPERLINK(VLOOKUP(B105,Species!B$3:BF$552,57,FALSE)) -> https://plants.usda.gov/core/profile?symbol=AGGI2 | AZ105: =VLOOKUP(B105,Species!B$3:C$552,2,FALSE) -> Agrostis gigantea | BA105: 0 | BB105: 0.000 | BC105: 0
B106: =Species!$B96 -> Reed Canarygrass | C106: Phalaris arundinacea | H106: 0 | I106: 0.00 | K106: =VLOOKUP(B106,Species!B$3:Y$552,24,FALSE) -> 4.8 | L106: =VLOOKUP(B106,Species!B$3:AJ$552,35,FALSE) -> 0 | M106: =VLOOKUP(B106,Species!B$3:AD$552,29,FALSE) -> N/A | N106: =VLOOKUP(B106,Species!B$3:AB$552,27,FALSE) -> 0 | O106: 0 | P106: =VLOOKUP(B106,Species!B$3:AF$552,31,FALSE) -> Perennial Cool Season Grass | Q106: =VLOOKUP(B106,Species!B$3:D$552,3,FALSE) -> Grass | R106: =VLOOKUP(B106,Species!B$3:W$552,22,FALSE) -> 12.34894399 | S106: 0 | T106: 0 | U106: 0 | W106: 0 | X106: =VLOOKUP(B106,Species!B$3:F$552,5,FALSE) -> Yes | Y106: =VLOOKUP(B106,Species!B$3:AC$552,28,FALSE) -> Introduced | Z106: =VLOOKUP(B106,Species!B$3:AC$552,9,FALSE) -> 0 | AA106: =VLOOKUP(B106,Species!B$3:AC$552,10,FALSE) -> X | AB106: =VLOOKUP(B106,Species!B$3:AC$552,11,FALSE) -> X | AC106: =VLOOKUP(B106,Species!B$3:AC$552,12,FALSE) -> 0 | AD106: =VLOOKUP(B106,Species!B$3:AC$552,13,FALSE) -> 0 | AE106: =VLOOKUP(B106,Species!B$3:AC$552,14,FALSE) -> 0 | AF106: =VLOOKUP(B106,Species!B$3:AC$552,15,FALSE) -> 0 | AG106: =VLOOKUP(B106,Species!B$3:AC$552,16,FALSE) -> 0 | AH106: =VLOOKUP(B106,Species!B$3:AC$552,17,FALSE) -> 0 | AI106: =VLOOKUP(B106,Species!B$3:AC$552,18,FALSE) -> 0 | AJ106: =VLOOKUP(B106,Species!B$3:AC$552,19,FALSE) -> 0 | AK106: =VLOOKUP(B106,Species!B$3:AC$552,20,FALSE) -> 0 | AL106: =VLOOKUP(B106,Species!B$3:AJ$552,35,FALSE) -> 0 | AM106: =VLOOKUP(B106,Species!B$3:AH$552,33,FALSE) -> 0 | AN106: =VLOOKUP(B106,Species!B$3:I$552,8,FALSE) -> Yes | AO106: =VLOOKUP(B106,Species!B$3:BC$552,54,FALSE) -> 0 | AP106: =VLOOKUP(B106,Species!B$3:BE$552,55,FALSE) -> 0 | AQ106: =VLOOKUP(B106,Species!B$3:BE$552,56,FALSE) -> 0 | AY106: =HYPERLINK(VLOOKUP(B106,Species!B$3:BF$552,57,FALSE)) -> http://plants.usda.gov/core/profile?symbol=PHAR3 | AZ106: =VLOOKUP(B106,Species!B$3:C$552,2,FALSE) -> Phalaris arundinacea | BA106: 0 | BB106: 0.000 | BC106: 0
B107: =Species!$B97 -> River Bulrush | C107: Bolboschoenus fluviatilis | H107: 0 | I107: 0.00 | K107: =VLOOKUP(B107,Species!B$3:Y$552,24,FALSE) -> 0 | L107: =VLOOKUP(B107,Species!B$3:AJ$552,35,FALSE) -> 0 | M107: =VLOOKUP(B107,Species!B$3:AD$552,29,FALSE) -> 6 | N107: =VLOOKUP(B107,Species!B$3:AB$552,27,FALSE) -> 90 | O107: 0 | P107: =VLOOKUP(B107,Species!B$3:AF$552,31,FALSE) -> Perennial Cool Season Sedge | Q107: =VLOOKUP(B107,Species!B$3:D$552,3,FALSE) -> Grass | R107: =VLOOKUP(B107,Species!B$3:W$552,22,FALSE) -> 0 | S107: 0 | T107: 0 | U107: 0 | W107: 0 | X107: =VLOOKUP(B107,Species!B$3:F$552,5,FALSE) -> No | Y107: =VLOOKUP(B107,Species!B$3:AC$552,28,FALSE) -> Native | Z107: =VLOOKUP(B107,Species!B$3:AC$552,9,FALSE) ->  | AA107: =VLOOKUP(B107,Species!B$3:AC$552,10,FALSE) ->  | AB107: =VLOOKUP(B107,Species!B$3:AC$552,11,FALSE) -> X | AC107: =VLOOKUP(B107,Species!B$3:AC$552,12,FALSE) ->  | AD107: =VLOOKUP(B107,Species!B$3:AC$552,13,FALSE) -> 0 | AE107: =VLOOKUP(B107,Species!B$3:AC$552,14,FALSE) -> 0 | AF107: =VLOOKUP(B107,Species!B$3:AC$552,15,FALSE) -> 0 | AG107: =VLOOKUP(B107,Species!B$3:AC$552,16,FALSE) ->  | AH107: =VLOOKUP(B107,Species!B$3:AC$552,17,FALSE) -> 0 | AI107: =VLOOKUP(B107,Species!B$3:AC$552,18,FALSE) -> 0 | AJ107: =VLOOKUP(B107,Species!B$3:AC$552,19,FALSE) -> X | AK107: =VLOOKUP(B107,Species!B$3:AC$552,20,FALSE) ->  | AL107: =VLOOKUP(B107,Species!B$3:AJ$552,35,FALSE) -> 0 | AM107: =VLOOKUP(B107,Species!B$3:AH$552,33,FALSE) -> 0 | AN107: =VLOOKUP(B107,Species!B$3:I$552,8,FALSE) -> No | AO107: =VLOOKUP(B107,Species!B$3:BC$552,54,FALSE) -> 0 | AP107: =VLOOKUP(B107,Species!B$3:BE$552,55,FALSE) -> 0 | AQ107: =VLOOKUP(B107,Species!B$3:BE$552,56,FALSE) -> 0 | AY107: =HYPERLINK(VLOOKUP(B107,Species!B$3:BF$552,57,FALSE)) -> http://plants.usda.gov/java/profile?symbol=BRCI2 | AZ107: =VLOOKUP(B107,Species!B$3:C$552,2,FALSE) -> Bolboschoenus fluviatilis | BA107: 0 | BB107: 0.000 | BC107: 0
B108: =Species!$B98 -> River Oats | C108: Chasmanthium latifolium | H108: 0 | I108: 0.00 | K108: =VLOOKUP(B108,Species!B$3:Y$552,24,FALSE) -> 0 | L108: =VLOOKUP(B108,Species!B$3:AJ$552,35,FALSE) -> 0 | M108: =VLOOKUP(B108,Species!B$3:AD$552,29,FALSE) -> 4 | N108: =VLOOKUP(B108,Species!B$3:AB$552,27,FALSE) -> 92.5 | O108: 0 | P108: =VLOOKUP(B108,Species!B$3:AF$552,31,FALSE) -> Perennial Warm Season Grass | Q108: =VLOOKUP(B108,Species!B$3:D$552,3,FALSE) -> Grass | R108: =VLOOKUP(B108,Species!B$3:W$552,22,FALSE) -> 2.066115702 | S108: 0 | T108: 0 | U108: 0 | W108: 0 | X108: =VLOOKUP(B108,Species!B$3:F$552,5,FALSE) -> Yes | Y108: =VLOOKUP(B108,Species!B$3:AC$552,28,FALSE) -> Native | Z108: =VLOOKUP(B108,Species!B$3:AC$552,9,FALSE) ->  | AA108: =VLOOKUP(B108,Species!B$3:AC$552,10,FALSE) -> X | AB108: =VLOOKUP(B108,Species!B$3:AC$552,11,FALSE) -> X | AC108: =VLOOKUP(B108,Species!B$3:AC$552,12,FALSE) ->  | AD108: =VLOOKUP(B108,Species!B$3:AC$552,13,FALSE) -> X | AE108: =VLOOKUP(B108,Species!B$3:AC$552,14,FALSE) -> X | AF108: =VLOOKUP(B108,Species!B$3:AC$552,15,FALSE) -> 0 | AG108: =VLOOKUP(B108,Species!B$3:AC$552,16,FALSE) -> X | AH108: =VLOOKUP(B108,Species!B$3:AC$552,17,FALSE) -> 0 | AI108: =VLOOKUP(B108,Species!B$3:AC$552,18,FALSE) -> 0 | AJ108: =VLOOKUP(B108,Species!B$3:AC$552,19,FALSE) -> X | AK108: =VLOOKUP(B108,Species!B$3:AC$552,20,FALSE) -> X | AL108: =VLOOKUP(B108,Species!B$3:AJ$552,35,FALSE) -> 0 | AM108: =VLOOKUP(B108,Species!B$3:AH$552,33,FALSE) -> 0 | AN108: =VLOOKUP(B108,Species!B$3:I$552,8,FALSE) -> Yes | AO108: =VLOOKUP(B108,Species!B$3:BC$552,54,FALSE) -> 0 | AP108: =VLOOKUP(B108,Species!B$3:BE$552,55,FALSE) -> 0 | AQ108: =VLOOKUP(B108,Species!B$3:BE$552,56,FALSE) -> 0 | AY108: =HYPERLINK(VLOOKUP(B108,Species!B$3:BF$552,57,FALSE)) -> http://plants.usda.gov/java/profile?symbol=JUCA3 | AZ108: =VLOOKUP(B108,Species!B$3:C$552,2,FALSE) -> Chasmanthium latifolium | BA108: 0 | BB108: 0.000 | BC108: 0
B109: =Species!$B99 -> Rosy Sedge | C109: Carex rosea | H109: 0 | I109: 0.00 | K109: =VLOOKUP(B109,Species!B$3:Y$552,24,FALSE) -> 0 | L109: =VLOOKUP(B109,Species!B$3:AJ$552,35,FALSE) -> 0 | M109: =VLOOKUP(B109,Species!B$3:AD$552,29,FALSE) -> 0 | N109: =VLOOKUP(B109,Species!B$3:AB$552,27,FALSE) -> 1280 | O109: 0 | P109: =VLOOKUP(B109,Species!B$3:AF$552,31,FALSE) -> Perennial Cool Season Sedge | Q109: =VLOOKUP(B109,Species!B$3:D$552,3,FALSE) -> Grass | R109: =VLOOKUP(B109,Species!B$3:W$552,22,FALSE) -> 0 | S109: 0 | T109: 0 | U109: 0 | W109: 0 | X109: =VLOOKUP(B109,Species!B$3:F$552,5,FALSE) -> No | Y109: =VLOOKUP(B109,Species!B$3:AC$552,28,FALSE) -> Native | Z109: =VLOOKUP(B109,Species!B$3:AC$552,9,FALSE) -> X | AA109: =VLOOKUP(B109,Species!B$3:AC$552,10,FALSE) -> X | AB109: =VLOOKUP(B109,Species!B$3:AC$552,11,FALSE) ->  | AC109: =VLOOKUP(B109,Species!B$3:AC$552,12,FALSE) ->  | AD109: =VLOOKUP(B109,Species!B$3:AC$552,13,FALSE) -> 0 | AE109: =VLOOKUP(B109,Species!B$3:AC$552,14,FALSE) -> 0 | AF109: =VLOOKUP(B109,Species!B$3:AC$552,15,FALSE) -> 0 | AG109: =VLOOKUP(B109,Species!B$3:AC$552,16,FALSE) ->  | AH109: =VLOOKUP(B109,Species!B$3:AC$552,17,FALSE) -> 0 | AI109: =VLOOKUP(B109,Species!B$3:AC$552,18,FALSE) -> 0 | AJ109: =VLOOKUP(B109,Species!B$3:AC$552,19,FALSE) ->  | AK109: =VLOOKUP(B109,Species!B$3:AC$552,20,FALSE) -> X | AL109: =VLOOKUP(B109,Species!B$3:AJ$552,35,FALSE) -> 0 | AM109: =VLOOKUP(B109,Species!B$3:AH$552,33,FALSE) -> 0 | AN109: =VLOOKUP(B109,Species!B$3:I$552,8,FALSE) -> No | AO109: =VLOOKUP(B109,Species!B$3:BC$552,54,FALSE) -> 0 | AP109: =VLOOKUP(B109,Species!B$3:BE$552,55,FALSE) -> 0 | AQ109: =VLOOKUP(B109,Species!B$3:BE$552,56,FALSE) -> 0 | AY109: =HYPERLINK(VLOOKUP(B109,Species!B$3:BF$552,57,FALSE)) ->  | AZ109: =VLOOKUP(B109,Species!B$3:C$552,2,FALSE) -> Carex rosea | BA109: 0 | BB109: 0.000 | BC109: 0
B110: =Species!$B100 -> Rough Rush Grass (Rough Dropseed) | C110: Sporobolus clandestinus | H110: 0 | I110: 0.00 | K110: =VLOOKUP(B110,Species!B$3:Y$552,24,FALSE) -> 0 | L110: =VLOOKUP(B110,Species!B$3:AJ$552,35,FALSE) -> 0 | M110: =VLOOKUP(B110,Species!B$3:AD$552,29,FALSE) -> 5 | N110: =VLOOKUP(B110,Species!B$3:AB$552,27,FALSE) -> 46.54 | O110: 0 | P110: =VLOOKUP(B110,Species!B$3:AF$552,31,FALSE) -> Perennial Warm Season Grass | Q110: =VLOOKUP(B110,Species!B$3:D$552,3,FALSE) -> Grass | R110: =VLOOKUP(B110,Species!B$3:W$552,22,FALSE) -> 34.43526171 | S110: 0 | T110: 0 | U110: 0 | W110: 0 | X110: =VLOOKUP(B110,Species!B$3:F$552,5,FALSE) -> Yes | Y110: =VLOOKUP(B110,Species!B$3:AC$552,28,FALSE) -> Native | Z110: =VLOOKUP(B110,Species!B$3:AC$552,9,FALSE) -> X | AA110: =VLOOKUP(B110,Species!B$3:AC$552,10,FALSE) ->  | AB110: =VLOOKUP(B110,Species!B$3:AC$552,11,FALSE) ->  | AC110: =VLOOKUP(B110,Species!B$3:AC$552,12,FALSE) -> X | AD110: =VLOOKUP(B110,Species!B$3:AC$552,13,FALSE) -> 0 | AE110: =VLOOKUP(B110,Species!B$3:AC$552,14,FALSE) -> 0 | AF110: =VLOOKUP(B110,Species!B$3:AC$552,15,FALSE) -> 0 | AG110: =VLOOKUP(B110,Species!B$3:AC$552,16,FALSE) -> X | AH110: =VLOOKUP(B110,Species!B$3:AC$552,17,FALSE) -> X | AI110: =VLOOKUP(B110,Species!B$3:AC$552,18,FALSE) -> 0 | AJ110: =VLOOKUP(B110,Species!B$3:AC$552,19,FALSE) ->  | AK110: =VLOOKUP(B110,Species!B$3:AC$552,20,FALSE) ->  | AL110: =VLOOKUP(B110,Species!B$3:AJ$552,35,FALSE) -> 0 | AM110: =VLOOKUP(B110,Species!B$3:AH$552,33,FALSE) -> 0 | AN110: =VLOOKUP(B110,Species!B$3:I$552,8,FALSE) -> No | AO110: =VLOOKUP(B110,Species!B$3:BC$552,54,FALSE) -> 0 | AP110: =VLOOKUP(B110,Species!B$3:BE$552,55,FALSE) -> 0 | AQ110: =VLOOKUP(B110,Species!B$3:BE$552,56,FALSE) -> 0 | AY110: =HYPERLINK(VLOOKUP(B110,Species!B$3:BF$552,57,FALSE)) -> http://plants.usda.gov/core/profile?symbol=SPCL | AZ110: =VLOOKUP(B110,Species!B$3:C$552,2,FALSE) -> Sporobolus clandestinus | BA110: 0 | BB110: 0.000 | BC110: 0
B111: =Species!$B101 -> Rufous Bulrush | C111: Scirpus pendulus | H111: 0 | I111: 0.00 | K111: =VLOOKUP(B111,Species!B$3:Y$552,24,FALSE) -> 0 | L111: =VLOOKUP(B111,Species!B$3:AJ$552,35,FALSE) -> 0 | M111: =VLOOKUP(B111,Species!B$3:AD$552,29,FALSE) -> 0 | N111: =VLOOKUP(B111,Species!B$3:AB$552,27,FALSE) -> 350 | O111: 0 | P111: =VLOOKUP(B111,Species!B$3:AF$552,31,FALSE) -> Perennial Cool Season Sedge | Q111: =VLOOKUP(B111,Species!B$3:D$552,3,FALSE) -> Grass | R111: =VLOOKUP(B111,Species!B$3:W$552,22,FALSE) -> 0 | S111: 0 | T111: 0 | U111: 0 | W111: 0 | X111: =VLOOKUP(B111,Species!B$3:F$552,5,FALSE) -> Yes | Y111: =VLOOKUP(B111,Species!B$3:AC$552,28,FALSE) -> Native | Z111: =VLOOKUP(B111,Species!B$3:AC$552,9,FALSE) ->  | AA111: =VLOOKUP(B111,Species!B$3:AC$552,10,FALSE) ->  | AB111: =VLOOKUP(B111,Species!B$3:AC$552,11,FALSE) -> X | AC111: =VLOOKUP(B111,Species!B$3:AC$552,12,FALSE) -> X | AD111: =VLOOKUP(B111,Species!B$3:AC$552,13,FALSE) -> 0 | AE111: =VLOOKUP(B111,Species!B$3:AC$552,14,FALSE) -> 0 | AF111: =VLOOKUP(B111,Species!B$3:AC$552,15,FALSE) -> 0 | AG111: =VLOOKUP(B111,Species!B$3:AC$552,16,FALSE) -> X | AH111: =VLOOKUP(B111,Species!B$3:AC$552,17,FALSE) -> 0 | AI111: =VLOOKUP(B111,Species!B$3:AC$552,18,FALSE) -> 0 | AJ111: =VLOOKUP(B111,Species!B$3:AC$552,19,FALSE) -> X | AK111: =VLOOKUP(B111,Species!B$3:AC$552,20,FALSE) ->  | AL111: =VLOOKUP(B111,Species!B$3:AJ$552,35,FALSE) -> 0 | AM111: =VLOOKUP(B111,Species!B$3:AH$552,33,FALSE) -> 0 | AN111: =VLOOKUP(B111,Species!B$3:I$552,8,FALSE) -> No | AO111: =VLOOKUP(B111,Species!B$3:BC$552,54,FALSE) -> 0 | AP111: =VLOOKUP(B111,Species!B$3:BE$552,55,FALSE) -> 0 | AQ111: =VLOOKUP(B111,Species!B$3:BE$552,56,FALSE) -> 0 | AY111: =HYPERLINK(VLOOKUP(B111,Species!B$3:BF$552,57,FALSE)) -> https://plants.usda.gov/core/profile?symbol=SCPE4 | AZ111: =VLOOKUP(B111,Species!B$3:C$552,2,FALSE) -> Scirpus pendulus | BA111: 0 | BB111: 0.000 | BC111: 0
B112: =Species!$B102 -> Sand Dropseed | C112: Sporobolus cryptandrus | H112: 0 | I112: 0.00 | K112: =VLOOKUP(B112,Species!B$3:Y$552,24,FALSE) -> 0 | L112: =VLOOKUP(B112,Species!B$3:AJ$552,35,FALSE) -> 0 | M112: =VLOOKUP(B112,Species!B$3:AD$552,29,FALSE) -> 4 | N112: =VLOOKUP(B112,Species!B$3:AB$552,27,FALSE) -> 16.10666667 | O112: 0 | P112: =VLOOKUP(B112,Species!B$3:AF$552,31,FALSE) -> Perennial Warm Season Grass | Q112: =VLOOKUP(B112,Species!B$3:D$552,3,FALSE) -> Grass | R112: =VLOOKUP(B112,Species!B$3:W$552,22,FALSE) -> 128.5601469 | S112: 0 | T112: 0 | U112: 0 | W112: 0 | X112: =VLOOKUP(B112,Species!B$3:F$552,5,FALSE) -> Yes | Y112: =VLOOKUP(B112,Species!B$3:AC$552,28,FALSE) -> Native | Z112: =VLOOKUP(B112,Species!B$3:AC$552,9,FALSE) -> X | AA112: =VLOOKUP(B112,Species!B$3:AC$552,10,FALSE) ->  | AB112: =VLOOKUP(B112,Species!B$3:AC$552,11,FALSE) ->  | AC112: =VLOOKUP(B112,Species!B$3:AC$552,12,FALSE) -> X | AD112: =VLOOKUP(B112,Species!B$3:AC$552,13,FALSE) -> 0 | AE112: =VLOOKUP(B112,Species!B$3:AC$552,14,FALSE) -> 0 | AF112: =VLOOKUP(B112,Species!B$3:AC$552,15,FALSE) -> X | AG112: =VLOOKUP(B112,Species!B$3:AC$552,16,FALSE) -> X | AH112: =VLOOKUP(B112,Species!B$3:AC$552,17,FALSE) -> 0 | AI112: =VLOOKUP(B112,Species!B$3:AC$552,18,FALSE) -> 0 | AJ112: =VLOOKUP(B112,Species!B$3:AC$552,19,FALSE) ->  | AK112: =VLOOKUP(B112,Species!B$3:AC$552,20,FALSE) ->  | AL112: =VLOOKUP(B112,Species!B$3:AJ$552,35,FALSE) -> 0 | AM112: =VLOOKUP(B112,Species!B$3:AH$552,33,FALSE) -> 0 | AN112: =VLOOKUP(B112,Species!B$3:I$552,8,FALSE) -> Yes | AO112: =VLOOKUP(B112,Species!B$3:BC$552,54,FALSE) -> 0 | AP112: =VLOOKUP(B112,Species!B$3:BE$552,55,FALSE) -> 0 | AQ112: =VLOOKUP(B112,Species!B$3:BE$552,56,FALSE) -> 0 | AY112: =HYPERLINK(VLOOKUP(B112,Species!B$3:BF$552,57,FALSE)) -> http://plants.usda.gov/core/profile?symbol=SPCR | AZ112: =VLOOKUP(B112,Species!B$3:C$552,2,FALSE) -> Sporobolus cryptandrus | BA112: 0 | BB112: 0.000 | BC112: 0
B113: =Species!$B103 -> Sand Lovegrass | C113: Eragrostis trichodes | H113: 0 | I113: 0.00 | K113: =VLOOKUP(B113,Species!B$3:Y$552,24,FALSE) -> 0 | L113: =VLOOKUP(B113,Species!B$3:AJ$552,35,FALSE) -> 0 | M113: =VLOOKUP(B113,Species!B$3:AD$552,29,FALSE) -> 4 | N113: =VLOOKUP(B113,Species!B$3:AB$552,27,FALSE) -> 40.73 | O113: 0 | P113: =VLOOKUP(B113,Species!B$3:AF$552,31,FALSE) -> Perennial Warm Season Grass | Q113: =VLOOKUP(B113,Species!B$3:D$552,3,FALSE) -> Grass | R113: =VLOOKUP(B113,Species!B$3:W$552,22,FALSE) -> 37.3204775 | S113: 0 | T113: 0 | U113: 0 | W113: 0 | X113: =VLOOKUP(B113,Species!B$3:F$552,5,FALSE) -> Yes | Y113: =VLOOKUP(B113,Species!B$3:AC$552,28,FALSE) -> Native | Z113: =VLOOKUP(B113,Species!B$3:AC$552,9,FALSE) -> X | AA113: =VLOOKUP(B113,Species!B$3:AC$552,10,FALSE) -> X | AB113: =VLOOKUP(B113,Species!B$3:AC$552,11,FALSE) ->  | AC113: =VLOOKUP(B113,Species!B$3:AC$552,12,FALSE) -> X | AD113: =VLOOKUP(B113,Species!B$3:AC$552,13,FALSE) -> X | AE113: =VLOOKUP(B113,Species!B$3:AC$552,14,FALSE) -> 0 | AF113: =VLOOKUP(B113,Species!B$3:AC$552,15,FALSE) -> 0 | AG113: =VLOOKUP(B113,Species!B$3:AC$552,16,FALSE) -> X | AH113: =VLOOKUP(B113,Species!B$3:AC$552,17,FALSE) -> X | AI113: =VLOOKUP(B113,Species!B$3:AC$552,18,FALSE) -> X | AJ113: =VLOOKUP(B113,Species!B$3:AC$552,19,FALSE) ->  | AK113: =VLOOKUP(B113,Species!B$3:AC$552,20,FALSE) -> X | AL113: =VLOOKUP(B113,Species!B$3:AJ$552,35,FALSE) -> 0 | AM113: =VLOOKUP(B113,Species!B$3:AH$552,33,FALSE) -> 0 | AN113: =VLOOKUP(B113,Species!B$3:I$552,8,FALSE) -> Yes | AO113: =VLOOKUP(B113,Species!B$3:BC$552,54,FALSE) -> 0 | AP113: =VLOOKUP(B113,Species!B$3:BE$552,55,FALSE) -> 0 | AQ113: =VLOOKUP(B113,Species!B$3:BE$552,56,FALSE) -> 0 | AY113: =HYPERLINK(VLOOKUP(B113,Species!B$3:BF$552,57,FALSE)) -> https://plants.usda.gov/core/profile?symbol=ERTR3 | AZ113: =VLOOKUP(B113,Species!B$3:C$552,2,FALSE) -> Eragrostis trichodes | BA113: 0 | BB113: 0.000 | BC113: 0
B114: =Species!$B104 -> Sartwell's Sedge | C114: Carex sartwellii | H114: 0 | I114: 0.00 | K114: =VLOOKUP(B114,Species!B$3:Y$552,24,FALSE) -> 0 | L114: =VLOOKUP(B114,Species!B$3:AJ$552,35,FALSE) -> 0 | M114: =VLOOKUP(B114,Species!B$3:AD$552,29,FALSE) -> 0 | N114: =VLOOKUP(B114,Species!B$3:AB$552,27,FALSE) -> 1280 | O114: 0 | P114: =VLOOKUP(B114,Species!B$3:AF$552,31,FALSE) -> Perennial Cool Season Sedge | Q114: =VLOOKUP(B114,Species!B$3:D$552,3,FALSE) -> Grass | R114: =VLOOKUP(B114,Species!B$3:W$552,22,FALSE) -> 0 | S114: 0 | T114: 0 | U114: 0 | W114: 0 | X114: =VLOOKUP(B114,Species!B$3:F$552,5,FALSE) -> No | Y114: =VLOOKUP(B114,Species!B$3:AC$552,28,FALSE) -> Native | Z114: =VLOOKUP(B114,Species!B$3:AC$552,9,FALSE) ->  | AA114: =VLOOKUP(B114,Species!B$3:AC$552,10,FALSE) -> X | AB114: =VLOOKUP(B114,Species!B$3:AC$552,11,FALSE) -> X | AC114: =VLOOKUP(B114,Species!B$3:AC$552,12,FALSE) -> 0 | AD114: =VLOOKUP(B114,Species!B$3:AC$552,13,FALSE) -> X | AE114: =VLOOKUP(B114,Species!B$3:AC$552,14,FALSE) -> X | AF114: =VLOOKUP(B114,Species!B$3:AC$552,15,FALSE) -> 0 | AG114: =VLOOKUP(B114,Species!B$3:AC$552,16,FALSE) -> 0 | AH114: =VLOOKUP(B114,Species!B$3:AC$552,17,FALSE) -> 0 | AI114: =VLOOKUP(B114,Species!B$3:AC$552,18,FALSE) -> 0 | AJ114: =VLOOKUP(B114,Species!B$3:AC$552,19,FALSE) -> 0 | AK114: =VLOOKUP(B114,Species!B$3:AC$552,20,FALSE) ->  | AL114: =VLOOKUP(B114,Species!B$3:AJ$552,35,FALSE) -> 0 | AM114: =VLOOKUP(B114,Species!B$3:AH$552,33,FALSE) -> 0 | AN114: =VLOOKUP(B114,Species!B$3:I$552,8,FALSE) -> No | AO114: =VLOOKUP(B114,Species!B$3:BC$552,54,FALSE) -> 0 | AP114: =VLOOKUP(B114,Species!B$3:BE$552,55,FALSE) -> 0 | AQ114: =VLOOKUP(B114,Species!B$3:BE$552,56,FALSE) -> 0 | AY114: =HYPERLINK(VLOOKUP(B114,Species!B$3:BF$552,57,FALSE)) ->  | AZ114: =VLOOKUP(B114,Species!B$3:C$552,2,FALSE) -> Carex sartwellii | BA114: 0 | BB114: 0.000 | BC114: 0
B115: =Species!$B105 -> Schweinitz's Flatsedge | C115: Cyperus schweinitzii | H115: 0 | I115: 0.00 | K115: =VLOOKUP(B115,Species!B$3:Y$552,24,FALSE) -> 0 | L115: =VLOOKUP(B115,Species!B$3:AJ$552,35,FALSE) -> 0 | M115: =VLOOKUP(B115,Species!B$3:AD$552,29,FALSE) -> 0 | N115: =VLOOKUP(B115,Species!B$3:AB$552,27,FALSE) -> 3407 | O115: 0 | P115: =VLOOKUP(B115,Species!B$3:AF$552,31,FALSE) -> Perennial Cool Season Sedge | Q115: =VLOOKUP(B115,Species!B$3:D$552,3,FALSE) -> Grass | R115: =VLOOKUP(B115,Species!B$3:W$552,22,FALSE) -> 0 | S115: 0 | T115: 0 | U115: 0 | W115: 0 | X115: =VLOOKUP(B115,Species!B$3:F$552,5,FALSE) -> No | Y115: =VLOOKUP(B115,Species!B$3:AC$552,28,FALSE) -> Native | Z115: =VLOOKUP(B115,Species!B$3:AC$552,9,FALSE) -> X | AA115: =VLOOKUP(B115,Species!B$3:AC$552,10,FALSE) ->  | AB115: =VLOOKUP(B115,Species!B$3:AC$552,11,FALSE) ->  | AC115: =VLOOKUP(B115,Species!B$3:AC$552,12,FALSE) -> X | AD115: =VLOOKUP(B115,Species!B$3:AC$552,13,FALSE) -> 0 | AE115: =VLOOKUP(B115,Species!B$3:AC$552,14,FALSE) -> 0 | AF115: =VLOOKUP(B115,Species!B$3:AC$552,15,FALSE) -> 0 | AG115: =VLOOKUP(B115,Species!B$3:AC$552,16,FALSE) -> X | AH115: =VLOOKUP(B115,Species!B$3:AC$552,17,FALSE) -> 0 | AI115: =VLOOKUP(B115,Species!B$3:AC$552,18,FALSE) -> 0 | AJ115: =VLOOKUP(B115,Species!B$3:AC$552,19,FALSE) ->  | AK115: =VLOOKUP(B115,Species!B$3:AC$552,20,FALSE) ->  | AL115: =VLOOKUP(B115,Species!B$3:AJ$552,35,FALSE) -> 0 | AM115: =VLOOKUP(B115,Species!B$3:AH$552,33,FALSE) -> 0 | AN115: =VLOOKUP(B115,Species!B$3:I$552,8,FALSE) -> No | AO115: =VLOOKUP(B115,Species!B$3:BC$552,54,FALSE) -> 0 | AP115: =VLOOKUP(B115,Species!B$3:BE$552,55,FALSE) -> 0 | AQ115: =VLOOKUP(B115,Species!B$3:BE$552,56,FALSE) -> 0 | AY115: =HYPERLINK(VLOOKUP(B115,Species!B$3:BF$552,57,FALSE)) ->  | AZ115: =VLOOKUP(B115,Species!B$3:C$552,2,FALSE) -> Cyperus schweinitzii | BA115: 0 | BB115: 0.000 | BC115: 0
B116: =Species!$B106 -> Scribner's Rosette Grass | C116: Dichanthelium oligosanthes var. scribnerianum | H116: 0 | I116: 0.00 | K116: =VLOOKUP(B116,Species!B$3:Y$552,24,FALSE) -> 0 | L116: =VLOOKUP(B116,Species!B$3:AJ$552,35,FALSE) -> 0 | M116: =VLOOKUP(B116,Species!B$3:AD$552,29,FALSE) -> 0 | N116: =VLOOKUP(B116,Species!B$3:AB$552,27,FALSE) -> 800 | O116: 0 | P116: =VLOOKUP(B116,Species!B$3:AF$552,31,FALSE) -> Perennial Cool Season Grass | Q116: =VLOOKUP(B116,Species!B$3:D$552,3,FALSE) -> Grass | R116: =VLOOKUP(B116,Species!B$3:W$552,22,FALSE) -> 0 | S116: 0 | T116: 0 | U116: 0 | W116: 0 | X116: =VLOOKUP(B116,Species!B$3:F$552,5,FALSE) -> No | Y116: =VLOOKUP(B116,Species!B$3:AC$552,28,FALSE) -> Native | Z116: =VLOOKUP(B116,Species!B$3:AC$552,9,FALSE) -> X | AA116: =VLOOKUP(B116,Species!B$3:AC$552,10,FALSE) ->  | AB116: =VLOOKUP(B116,Species!B$3:AC$552,11,FALSE) ->  | AC116: =VLOOKUP(B116,Species!B$3:AC$552,12,FALSE) -> X | AD116: =VLOOKUP(B116,Species!B$3:AC$552,13,FALSE) -> 0 | AE116: =VLOOKUP(B116,Species!B$3:AC$552,14,FALSE) -> 0 | AF116: =VLOOKUP(B116,Species!B$3:AC$552,15,FALSE) -> 0 | AG116: =VLOOKUP(B116,Species!B$3:AC$552,16,FALSE) -> X | AH116: =VLOOKUP(B116,Species!B$3:AC$552,17,FALSE) -> 0 | AI116: =VLOOKUP(B116,Species!B$3:AC$552,18,FALSE) -> 0 | AJ116: =VLOOKUP(B116,Species!B$3:AC$552,19,FALSE) ->  | AK116: =VLOOKUP(B116,Species!B$3:AC$552,20,FALSE) ->  | AL116: =VLOOKUP(B116,Species!B$3:AJ$552,35,FALSE) -> 0 | AM116: =VLOOKUP(B116,Species!B$3:AH$552,33,FALSE) -> 0 | AN116: =VLOOKUP(B116,Species!B$3:I$552,8,FALSE) -> No | AO116: =VLOOKUP(B116,Species!B$3:BC$552,54,FALSE) -> 0 | AP116: =VLOOKUP(B116,Species!B$3:BE$552,55,FALSE) -> 0 | AQ116: =VLOOKUP(B116,Species!B$3:BE$552,56,FALSE) -> 0 | AY116: =HYPERLINK(VLOOKUP(B116,Species!B$3:BF$552,57,FALSE)) ->  | AZ116: =VLOOKUP(B116,Species!B$3:C$552,2,FALSE) -> Dichanthelium oligosanthes var. scribnerianum | BA116: 0 | BB116: 0.000 | BC116: 0
B117: =Species!$B107 -> Shallow Sedge | C117: Carex lurida | H117: 0 | I117: 0.00 | K117: =VLOOKUP(B117,Species!B$3:Y$552,24,FALSE) -> 0 | L117: =VLOOKUP(B117,Species!B$3:AJ$552,35,FALSE) -> 0 | M117: =VLOOKUP(B117,Species!B$3:AD$552,29,FALSE) -> 0 | N117: =VLOOKUP(B117,Species!B$3:AB$552,27,FALSE) -> 150 | O117: 0 | P117: =VLOOKUP(B117,Species!B$3:AF$552,31,FALSE) -> Perennial Cool Season Sedge | Q117: =VLOOKUP(B117,Species!B$3:D$552,3,FALSE) -> Grass | R117: =VLOOKUP(B117,Species!B$3:W$552,22,FALSE) -> 0 | S117: 0 | T117: 0 | U117: 0 | W117: 0 | X117: =VLOOKUP(B117,Species!B$3:F$552,5,FALSE) -> No | Y117: =VLOOKUP(B117,Species!B$3:AC$552,28,FALSE) -> Native | Z117: =VLOOKUP(B117,Species!B$3:AC$552,9,FALSE) ->  | AA117: =VLOOKUP(B117,Species!B$3:AC$552,10,FALSE) ->  | AB117: =VLOOKUP(B117,Species!B$3:AC$552,11,FALSE) -> X | AC117: =VLOOKUP(B117,Species!B$3:AC$552,12,FALSE) -> 0 | AD117: =VLOOKUP(B117,Species!B$3:AC$552,13,FALSE) -> 0 | AE117: =VLOOKUP(B117,Species!B$3:AC$552,14,FALSE) -> X | AF117: =VLOOKUP(B117,Species!B$3:AC$552,15,FALSE) -> 0 | AG117: =VLOOKUP(B117,Species!B$3:AC$552,16,FALSE) -> 0 | AH117: =VLOOKUP(B117,Species!B$3:AC$552,17,FALSE) -> 0 | AI117: =VLOOKUP(B117,Species!B$3:AC$552,18,FALSE) -> 0 | AJ117: =VLOOKUP(B117,Species!B$3:AC$552,19,FALSE) -> X | AK117: =VLOOKUP(B117,Species!B$3:AC$552,20,FALSE) ->  | AL117: =VLOOKUP(B117,Species!B$3:AJ$552,35,FALSE) -> 0 | AM117: =VLOOKUP(B117,Species!B$3:AH$552,33,FALSE) -> 0 | AN117: =VLOOKUP(B117,Species!B$3:I$552,8,FALSE) -> No | AO117: =VLOOKUP(B117,Species!B$3:BC$552,54,FALSE) -> 0 | AP117: =VLOOKUP(B117,Species!B$3:BE$552,55,FALSE) -> 0 | AQ117: =VLOOKUP(B117,Species!B$3:BE$552,56,FALSE) -> 0 | AY117: =HYPERLINK(VLOOKUP(B117,Species!B$3:BF$552,57,FALSE)) -> http://plants.usda.gov/core/profile?symbol=CALU5 | AZ117: =VLOOKUP(B117,Species!B$3:C$552,2,FALSE) -> Carex lurida | BA117: 0 | BB117: 0.000 | BC117: 0
B118: =Species!$B108 -> Shortbeak Sedge | C118: Carex brevior | H118: 0 | I118: 0.00 | K118: =VLOOKUP(B118,Species!B$3:Y$552,24,FALSE) -> 0 | L118: =VLOOKUP(B118,Species!B$3:AJ$552,35,FALSE) -> 0 | M118: =VLOOKUP(B118,Species!B$3:AD$552,29,FALSE) -> 4 | N118: =VLOOKUP(B118,Species!B$3:AB$552,27,FALSE) -> 188.5 | O118: 0 | P118: =VLOOKUP(B118,Species!B$3:AF$552,31,FALSE) -> Perennial Cool Season Sedge | Q118: =VLOOKUP(B118,Species!B$3:D$552,3,FALSE) -> Grass | R118: =VLOOKUP(B118,Species!B$3:W$552,22,FALSE) -> 0 | S118: 0 | T118: 0 | U118: 0 | W118: 0 | X118: =VLOOKUP(B118,Species!B$3:F$552,5,FALSE) -> No | Y118: =VLOOKUP(B118,Species!B$3:AC$552,28,FALSE) -> Native | Z118: =VLOOKUP(B118,Species!B$3:AC$552,9,FALSE) -> X | AA118: =VLOOKUP(B118,Species!B$3:AC$552,10,FALSE) ->  | AB118: =VLOOKUP(B118,Species!B$3:AC$552,11,FALSE) ->  | AC118: =VLOOKUP(B118,Species!B$3:AC$552,12,FALSE) -> X | AD118: =VLOOKUP(B118,Species!B$3:AC$552,13,FALSE) -> 0 | AE118: =VLOOKUP(B118,Species!B$3:AC$552,14,FALSE) -> 0 | AF118: =VLOOKUP(B118,Species!B$3:AC$552,15,FALSE) -> 0 | AG118: =VLOOKUP(B118,Species!B$3:AC$552,16,FALSE) -> 0 | AH118: =VLOOKUP(B118,Species!B$3:AC$552,17,FALSE) -> 0 | AI118: =VLOOKUP(B118,Species!B$3:AC$552,18,FALSE) -> 0 | AJ118: =VLOOKUP(B118,Species!B$3:AC$552,19,FALSE) ->  | AK118: =VLOOKUP(B118,Species!B$3:AC$552,20,FALSE) ->  | AL118: =VLOOKUP(B118,Species!B$3:AJ$552,35,FALSE) -> 0 | AM118: =VLOOKUP(B118,Species!B$3:AH$552,33,FALSE) -> 0 | AN118: =VLOOKUP(B118,Species!B$3:I$552,8,FALSE) -> No | AO118: =VLOOKUP(B118,Species!B$3:BC$552,54,FALSE) -> 0 | AP118: =VLOOKUP(B118,Species!B$3:BE$552,55,FALSE) -> 0 | AQ118: =VLOOKUP(B118,Species!B$3:BE$552,56,FALSE) -> 0 | AY118: =HYPERLINK(VLOOKUP(B118,Species!B$3:BF$552,57,FALSE)) ->  | AZ118: =VLOOKUP(B118,Species!B$3:C$552,2,FALSE) -> Carex brevior | BA118: 0 | BB118: 0.000 | BC118: 0
B119: =Species!$B109 -> Short's Sedge | C119: Carex shortiana | H119: 0 | I119: 0.00 | K119: =VLOOKUP(B119,Species!B$3:Y$552,24,FALSE) -> 0 | L119: =VLOOKUP(B119,Species!B$3:AJ$552,35,FALSE) -> 0 | M119: =VLOOKUP(B119,Species!B$3:AD$552,29,FALSE) -> 0 | N119: =VLOOKUP(B119,Species!B$3:AB$552,27,FALSE) -> 145 | O119: 0 | P119: =VLOOKUP(B119,Species!B$3:AF$552,31,FALSE) -> Perennial Cool Season Sedge | Q119: =VLOOKUP(B119,Species!B$3:D$552,3,FALSE) -> Grass | R119: =VLOOKUP(B119,Species!B$3:W$552,22,FALSE) -> 6.24426079 | S119: 0 | T119: 0 | U119: 0 | W119: 0 | X119: =VLOOKUP(B119,Species!B$3:F$552,5,FALSE) -> Yes | Y119: =VLOOKUP(B119,Species!B$3:AC$552,28,FALSE) -> Native | Z119: =VLOOKUP(B119,Species!B$3:AC$552,9,FALSE) ->  | AA119: =VLOOKUP(B119,Species!B$3:AC$552,10,FALSE) -> X | AB119: =VLOOKUP(B119,Species!B$3:AC$552,11,FALSE) -> X | AC119: =VLOOKUP(B119,Species!B$3:AC$552,12,FALSE) ->  | AD119: =VLOOKUP(B119,Species!B$3:AC$552,13,FALSE) -> X | AE119: =VLOOKUP(B119,Species!B$3:AC$552,14,FALSE) -> X | AF119: =VLOOKUP(B119,Species!B$3:AC$552,15,FALSE) -> 0 | AG119: =VLOOKUP(B119,Species!B$3:AC$552,16,FALSE) -> X | AH119: =VLOOKUP(B119,Species!B$3:AC$552,17,FALSE) -> 0 | AI119: =VLOOKUP(B119,Species!B$3:AC$552,18,FALSE) -> 0 | AJ119: =VLOOKUP(B119,Species!B$3:AC$552,19,FALSE) ->  | AK119: =VLOOKUP(B119,Species!B$3:AC$552,20,FALSE) -> X | AL119: =VLOOKUP(B119,Species!B$3:AJ$552,35,FALSE) -> 0 | AM119: =VLOOKUP(B119,Species!B$3:AH$552,33,FALSE) -> 0 | AN119: =VLOOKUP(B119,Species!B$3:I$552,8,FALSE) -> No | AO119: =VLOOKUP(B119,Species!B$3:BC$552,54,FALSE) -> 0 | AP119: =VLOOKUP(B119,Species!B$3:BE$552,55,FALSE) -> 0 | AQ119: =VLOOKUP(B119,Species!B$3:BE$552,56,FALSE) -> 0 | AY119: =HYPERLINK(VLOOKUP(B119,Species!B$3:BF$552,57,FALSE)) -> http://plants.usda.gov/core/profile?symbol=CASH2 | AZ119: =VLOOKUP(B119,Species!B$3:C$552,2,FALSE) -> Carex shortiana | BA119: 0 | BB119: 0.000 | BC119: 0
B120: =Species!$B110 -> Sideoats Grama | C120: Bouteloua curtipendula | H120: 0 | I120: 0.00 | K120: =VLOOKUP(B120,Species!B$3:Y$552,24,FALSE) -> 7.5 | L120: =VLOOKUP(B120,Species!B$3:AJ$552,35,FALSE) -> 0 | M120: =VLOOKUP(B120,Species!B$3:AD$552,29,FALSE) -> 7 | N120: =VLOOKUP(B120,Species!B$3:AB$552,27,FALSE) -> 13.912 | O120: 0 | P120: =VLOOKUP(B120,Species!B$3:AF$552,31,FALSE) -> Perennial Warm Season Grass | Q120: =VLOOKUP(B120,Species!B$3:D$552,3,FALSE) -> Grass | R120: =VLOOKUP(B120,Species!B$3:W$552,22,FALSE) -> 3.764921947 | S120: 0 | T120: 0 | U120: 0 | W120: 0 | X120: =VLOOKUP(B120,Species!B$3:F$552,5,FALSE) -> Yes | Y120: =VLOOKUP(B120,Species!B$3:AC$552,28,FALSE) -> Native | Z120: =VLOOKUP(B120,Species!B$3:AC$552,9,FALSE) -> X | AA120: =VLOOKUP(B120,Species!B$3:AC$552,10,FALSE) -> X | AB120: =VLOOKUP(B120,Species!B$3:AC$552,11,FALSE) ->  | AC120: =VLOOKUP(B120,Species!B$3:AC$552,12,FALSE) -> X | AD120: =VLOOKUP(B120,Species!B$3:AC$552,13,FALSE) -> X | AE120: =VLOOKUP(B120,Species!B$3:AC$552,14,FALSE) -> 0 | AF120: =VLOOKUP(B120,Species!B$3:AC$552,15,FALSE) -> 0 | AG120: =VLOOKUP(B120,Species!B$3:AC$552,16,FALSE) -> X | AH120: =VLOOKUP(B120,Species!B$3:AC$552,17,FALSE) -> X | AI120: =VLOOKUP(B120,Species!B$3:AC$552,18,FALSE) -> 0 | AJ120: =VLOOKUP(B120,Species!B$3:AC$552,19,FALSE) ->  | AK120: =VLOOKUP(B120,Species!B$3:AC$552,20,FALSE) ->  | AL120: =VLOOKUP(B120,Species!B$3:AJ$552,35,FALSE) -> 0 | AM120: =VLOOKUP(B120,Species!B$3:AH$552,33,FALSE) -> 0 | AN120: =VLOOKUP(B120,Species!B$3:I$552,8,FALSE) -> Yes | AO120: =VLOOKUP(B120,Species!B$3:BC$552,54,FALSE) -> 0 | AP120: =VLOOKUP(B120,Species!B$3:BE$552,55,FALSE) -> 0 | AQ120: =VLOOKUP(B120,Species!B$3:BE$552,56,FALSE) -> 0 | AY120: =HYPERLINK(VLOOKUP(B120,Species!B$3:BF$552,57,FALSE)) -> http://plants.usda.gov/core/profile?symbol=BOCU | AZ120: =VLOOKUP(B120,Species!B$3:C$552,2,FALSE) -> Bouteloua curtipendula | BA120: 0 | BB120: 0.000 | BC120: 0
B121: =Species!$B111 -> Sixweeks Fescue | C121: Vulpia octoflora | H121: 0 | I121: 0.00 | K121: =VLOOKUP(B121,Species!B$3:Y$552,24,FALSE) -> 0 | L121: =VLOOKUP(B121,Species!B$3:AJ$552,35,FALSE) -> 0 | M121: =VLOOKUP(B121,Species!B$3:AD$552,29,FALSE) -> 0 | N121: =VLOOKUP(B121,Species!B$3:AB$552,27,FALSE) -> 0 | O121: 0 | P121: =VLOOKUP(B121,Species!B$3:AF$552,31,FALSE) -> Annual Cool Season Grass | Q121: =VLOOKUP(B121,Species!B$3:D$552,3,FALSE) -> Grass | R121: =VLOOKUP(B121,Species!B$3:W$552,22,FALSE) -> 0 | S121: 0 | T121: 0 | U121: 0 | W121: 0 | X121: =VLOOKUP(B121,Species!B$3:F$552,5,FALSE) -> No | Y121: =VLOOKUP(B121,Species!B$3:AC$552,28,FALSE) -> Native | Z121: =VLOOKUP(B121,Species!B$3:AC$552,9,FALSE) -> X | AA121: =VLOOKUP(B121,Species!B$3:AC$552,10,FALSE) -> X | AB121: =VLOOKUP(B121,Species!B$3:AC$552,11,FALSE) -> 0 | AC121: =VLOOKUP(B121,Species!B$3:AC$552,12,FALSE) -> X | AD121: =VLOOKUP(B121,Species!B$3:AC$552,13,FALSE) -> X | AE121: =VLOOKUP(B121,Species!B$3:AC$552,14,FALSE) -> 0 | AF121: =VLOOKUP(B121,Species!B$3:AC$552,15,FALSE) -> 0 | AG121: =VLOOKUP(B121,Species!B$3:AC$552,16,FALSE) -> X | AH121: =VLOOKUP(B121,Species!B$3:AC$552,17,FALSE) -> X | AI121: =VLOOKUP(B121,Species!B$3:AC$552,18,FALSE) -> 0 | AJ121: =VLOOKUP(B121,Species!B$3:AC$552,19,FALSE) -> 0 | AK121: =VLOOKUP(B121,Species!B$3:AC$552,20,FALSE) -> 0 | AL121: =VLOOKUP(B121,Species!B$3:AJ$552,35,FALSE) -> 0 | AM121: =VLOOKUP(B121,Species!B$3:AH$552,33,FALSE) -> 0 | AN121: =VLOOKUP(B121,Species!B$3:I$552,8,FALSE) -> No | AO121: =VLOOKUP(B121,Species!B$3:BC$552,54,FALSE) -> 0 | AP121: =VLOOKUP(B121,Species!B$3:BE$552,55,FALSE) -> 0 | AQ121: =VLOOKUP(B121,Species!B$3:BE$552,56,FALSE) -> 0 | AY121: =HYPERLINK(VLOOKUP(B121,Species!B$3:BF$552,57,FALSE)) -> http://plants.usda.gov/core/profile?symbol=VUOC | AZ121: =VLOOKUP(B121,Species!B$3:C$552,2,FALSE) -> Vulpia octoflora | BA121: 0 | BB121: 0.000 | BC121: 0
B122: =Species!$B112 -> Slender Looseflower Sedge | C122: Carex gracilescens | H122: 0 | I122: 0.00 | K122: =VLOOKUP(B122,Species!B$3:Y$552,24,FALSE) -> 0 | L122: =VLOOKUP(B122,Species!B$3:AJ$552,35,FALSE) -> 0 | M122: =VLOOKUP(B122,Species!B$3:AD$552,29,FALSE) -> 0 | N122: =VLOOKUP(B122,Species!B$3:AB$552,27,FALSE) -> 1440 | O122: 0 | P122: =VLOOKUP(B122,Species!B$3:AF$552,31,FALSE) -> Perennial Cool Season Sedge | Q122: =VLOOKUP(B122,Species!B$3:D$552,3,FALSE) -> Grass | R122: =VLOOKUP(B122,Species!B$3:W$552,22,FALSE) -> 0 | S122: 0 | T122: 0 | U122: 0 | W122: 0 | X122: =VLOOKUP(B122,Species!B$3:F$552,5,FALSE) -> No | Y122: =VLOOKUP(B122,Species!B$3:AC$552,28,FALSE) -> Native | Z122: =VLOOKUP(B122,Species!B$3:AC$552,9,FALSE) -> X | AA122: =VLOOKUP(B122,Species!B$3:AC$552,10,FALSE) -> X | AB122: =VLOOKUP(B122,Species!B$3:AC$552,11,FALSE) ->  | AC122: =VLOOKUP(B122,Species!B$3:AC$552,12,FALSE) ->  | AD122: =VLOOKUP(B122,Species!B$3:AC$552,13,FALSE) -> 0 | AE122: =VLOOKUP(B122,Species!B$3:AC$552,14,FALSE) -> 0 | AF122: =VLOOKUP(B122,Species!B$3:AC$552,15,FALSE) -> 0 | AG122: =VLOOKUP(B122,Species!B$3:AC$552,16,FALSE) ->  | AH122: =VLOOKUP(B122,Species!B$3:AC$552,17,FALSE) -> 0 | AI122: =VLOOKUP(B122,Species!B$3:AC$552,18,FALSE) -> 0 | AJ122: =VLOOKUP(B122,Species!B$3:AC$552,19,FALSE) ->  | AK122: =VLOOKUP(B122,Species!B$3:AC$552,20,FALSE) -> X | AL122: =VLOOKUP(B122,Species!B$3:AJ$552,35,FALSE) -> 0 | AM122: =VLOOKUP(B122,Species!B$3:AH$552,33,FALSE) -> 0 | AN122: =VLOOKUP(B122,Species!B$3:I$552,8,FALSE) -> No | AO122: =VLOOKUP(B122,Species!B$3:BC$552,54,FALSE) -> 0 | AP122: =VLOOKUP(B122,Species!B$3:BE$552,55,FALSE) -> 0 | AQ122: =VLOOKUP(B122,Species!B$3:BE$552,56,FALSE) -> 0 | AY122: =HYPERLINK(VLOOKUP(B122,Species!B$3:BF$552,57,FALSE)) ->  | AZ122: =VLOOKUP(B122,Species!B$3:C$552,2,FALSE) -> Carex gracilescens | BA122: 0 | BB122: 0.000 | BC122: 0
B123: =Species!$B113 -> Slender Spikerush | C123: Eleocharis acicularis | H123: 0 | I123: 0.00 | K123: =VLOOKUP(B123,Species!B$3:Y$552,24,FALSE) -> 0 | L123: =VLOOKUP(B123,Species!B$3:AJ$552,35,FALSE) -> 0 | M123: =VLOOKUP(B123,Species!B$3:AD$552,29,FALSE) -> 5 | N123: =VLOOKUP(B123,Species!B$3:AB$552,27,FALSE) -> 480 | O123: 0 | P123: =VLOOKUP(B123,Species!B$3:AF$552,31,FALSE) -> Perennial Cool Season Sedge | Q123: =VLOOKUP(B123,Species!B$3:D$552,3,FALSE) -> Grass | R123: =VLOOKUP(B123,Species!B$3:W$552,22,FALSE) -> 0 | S123: 0 | T123: 0 | U123: 0 | W123: 0 | X123: =VLOOKUP(B123,Species!B$3:F$552,5,FALSE) -> No | Y123: =VLOOKUP(B123,Species!B$3:AC$552,28,FALSE) -> Native | Z123: =VLOOKUP(B123,Species!B$3:AC$552,9,FALSE) ->  | AA123: =VLOOKUP(B123,Species!B$3:AC$552,10,FALSE) ->  | AB123: =VLOOKUP(B123,Species!B$3:AC$552,11,FALSE) -> X | AC123: =VLOOKUP(B123,Species!B$3:AC$552,12,FALSE) -> X | AD123: =VLOOKUP(B123,Species!B$3:AC$552,13,FALSE) -> 0 | AE123: =VLOOKUP(B123,Species!B$3:AC$552,14,FALSE) -> 0 | AF123: =VLOOKUP(B123,Species!B$3:AC$552,15,FALSE) -> 0 | AG123: =VLOOKUP(B123,Species!B$3:AC$552,16,FALSE) ->  | AH123: =VLOOKUP(B123,Species!B$3:AC$552,17,FALSE) -> 0 | AI123: =VLOOKUP(B123,Species!B$3:AC$552,18,FALSE) -> 0 | AJ123: =VLOOKUP(B123,Species!B$3:AC$552,19,FALSE) -> X | AK123: =VLOOKUP(B123,Species!B$3:AC$552,20,FALSE) ->  | AL123: =VLOOKUP(B123,Species!B$3:AJ$552,35,FALSE) -> 0 | AM123: =VLOOKUP(B123,Species!B$3:AH$552,33,FALSE) -> 0 | AN123: =VLOOKUP(B123,Species!B$3:I$552,8,FALSE) -> No | AO123: =VLOOKUP(B123,Species!B$3:BC$552,54,FALSE) -> 0 | AP123: =VLOOKUP(B123,Species!B$3:BE$552,55,FALSE) -> 0 | AQ123: =VLOOKUP(B123,Species!B$3:BE$552,56,FALSE) -> 0 | AY123: =HYPERLINK(VLOOKUP(B123,Species!B$3:BF$552,57,FALSE)) -> http://plants.usda.gov/java/profile?symbol=ELPA3 | AZ123: =VLOOKUP(B123,Species!B$3:C$552,2,FALSE) -> Eleocharis acicularis | BA123: 0 | BB123: 0.000 | BC123: 0
B124: =Species!$B114 -> Slender Wheatgrass | C124: Elymus trachycaulus | H124: 0 | I124: 0.00 | K124: =VLOOKUP(B124,Species!B$3:Y$552,24,FALSE) -> 0 | L124: =VLOOKUP(B124,Species!B$3:AJ$552,35,FALSE) -> 0 | M124: =VLOOKUP(B124,Species!B$3:AD$552,29,FALSE) -> N/A | N124: =VLOOKUP(B124,Species!B$3:AB$552,27,FALSE) -> 4.65 | O124: 0 | P124: =VLOOKUP(B124,Species!B$3:AF$552,31,FALSE) -> Perennial Cool Season Grass | Q124: =VLOOKUP(B124,Species!B$3:D$552,3,FALSE) -> Grass | R124: =VLOOKUP(B124,Species!B$3:W$552,22,FALSE) -> 3.099173554 | S124: 0 | T124: 0 | U124: 0 | W124: 0 | X124: =VLOOKUP(B124,Species!B$3:F$552,5,FALSE) -> Yes | Y124: =VLOOKUP(B124,Species!B$3:AC$552,28,FALSE) -> Introduced | Z124: =VLOOKUP(B124,Species!B$3:AC$552,9,FALSE) -> X | AA124: =VLOOKUP(B124,Species!B$3:AC$552,10,FALSE) -> X | AB124: =VLOOKUP(B124,Species!B$3:AC$552,11,FALSE) ->  | AC124: =VLOOKUP(B124,Species!B$3:AC$552,12,FALSE) -> X | AD124: =VLOOKUP(B124,Species!B$3:AC$552,13,FALSE) -> 0 | AE124: =VLOOKUP(B124,Species!B$3:AC$552,14,FALSE) -> 0 | AF124: =VLOOKUP(B124,Species!B$3:AC$552,15,FALSE) -> 0 | AG124: =VLOOKUP(B124,Species!B$3:AC$552,16,FALSE) -> X | AH124: =VLOOKUP(B124,Species!B$3:AC$552,17,FALSE) -> 0 | AI124: =VLOOKUP(B124,Species!B$3:AC$552,18,FALSE) -> 0 | AJ124: =VLOOKUP(B124,Species!B$3:AC$552,19,FALSE) ->  | AK124: =VLOOKUP(B124,Species!B$3:AC$552,20,FALSE) -> X | AL124: =VLOOKUP(B124,Species!B$3:AJ$552,35,FALSE) -> 0 | AM124: =VLOOKUP(B124,Species!B$3:AH$552,33,FALSE) -> 0 | AN124: =VLOOKUP(B124,Species!B$3:I$552,8,FALSE) -> No | AO124: =VLOOKUP(B124,Species!B$3:BC$552,54,FALSE) -> 0 | AP124: =VLOOKUP(B124,Species!B$3:BE$552,55,FALSE) -> 0 | AQ124: =VLOOKUP(B124,Species!B$3:BE$552,56,FALSE) -> 0 | AY124: =HYPERLINK(VLOOKUP(B124,Species!B$3:BF$552,57,FALSE)) -> http://plants.usda.gov/core/profile?symbol=ELTR7 | AZ124: =VLOOKUP(B124,Species!B$3:C$552,2,FALSE) -> Elymus trachycaulus | BA124: 0 | BB124: 0.000 | BC124: 0
B125: =Species!$B115 -> Smooth Brome | C125: Bromus inermis | H125: 0 | I125: 0.00 | K125: =VLOOKUP(B125,Species!B$3:Y$552,24,FALSE) -> 8 | L125: =VLOOKUP(B125,Species!B$3:AJ$552,35,FALSE) -> 0 | M125: =VLOOKUP(B125,Species!B$3:AD$552,29,FALSE) -> N/A | N125: =VLOOKUP(B125,Species!B$3:AB$552,27,FALSE) -> 4.36 | O125: 0 | P125: =VLOOKUP(B125,Species!B$3:AF$552,31,FALSE) -> Perennial Cool Season Grass | Q125: =VLOOKUP(B125,Species!B$3:D$552,3,FALSE) -> Grass | R125: =VLOOKUP(B125,Species!B$3:W$552,22,FALSE) -> 3.280073462 | S125: 0 | T125: 0 | U125: 0 | W125: 0 | X125: =VLOOKUP(B125,Species!B$3:F$552,5,FALSE) -> Yes | Y125: =VLOOKUP(B125,Species!B$3:AC$552,28,FALSE) -> Introduced | Z125: =VLOOKUP(B125,Species!B$3:AC$552,9,FALSE) -> X | AA125: =VLOOKUP(B125,Species!B$3:AC$552,10,FALSE) -> X | AB125: =VLOOKUP(B125,Species!B$3:AC$552,11,FALSE) -> 0 | AC125: =VLOOKUP(B125,Species!B$3:AC$552,12,FALSE) -> 0 | AD125: =VLOOKUP(B125,Species!B$3:AC$552,13,FALSE) -> 0 | AE125: =VLOOKUP(B125,Species!B$3:AC$552,14,FALSE) -> 0 | AF125: =VLOOKUP(B125,Species!B$3:AC$552,15,FALSE) -> 0 | AG125: =VLOOKUP(B125,Species!B$3:AC$552,16,FALSE) -> 0 | AH125: =VLOOKUP(B125,Species!B$3:AC$552,17,FALSE) -> 0 | AI125: =VLOOKUP(B125,Species!B$3:AC$552,18,FALSE) -> 0 | AJ125: =VLOOKUP(B125,Species!B$3:AC$552,19,FALSE) -> 0 | AK125: =VLOOKUP(B125,Species!B$3:AC$552,20,FALSE) -> 0 | AL125: =VLOOKUP(B125,Species!B$3:AJ$552,35,FALSE) -> 0 | AM125: =VLOOKUP(B125,Species!B$3:AH$552,33,FALSE) -> 0 | AN125: =VLOOKUP(B125,Species!B$3:I$552,8,FALSE) -> Yes | AO125: =VLOOKUP(B125,Species!B$3:BC$552,54,FALSE) -> 0 | AP125: =VLOOKUP(B125,Species!B$3:BE$552,55,FALSE) -> 0 | AQ125: =VLOOKUP(B125,Species!B$3:BE$552,56,FALSE) -> 0 | AY125: =HYPERLINK(VLOOKUP(B125,Species!B$3:BF$552,57,FALSE)) -> https://plants.usda.gov/core/profile?symbol=BRIN2 | AZ125: =VLOOKUP(B125,Species!B$3:C$552,2,FALSE) -> Bromus inermis | BA125: 0 | BB125: 0.000 | BC125: 0
B126: =Species!$B116 -> Smoothcone Sedge | C126: Carex laeviconica | H126: 0 | I126: 0.00 | K126: =VLOOKUP(B126,Species!B$3:Y$552,24,FALSE) -> 0 | L126: =VLOOKUP(B126,Species!B$3:AJ$552,35,FALSE) -> 0 | M126: =VLOOKUP(B126,Species!B$3:AD$552,29,FALSE) -> 0 | N126: =VLOOKUP(B126,Species!B$3:AB$552,27,FALSE) -> 180 | O126: 0 | P126: =VLOOKUP(B126,Species!B$3:AF$552,31,FALSE) -> Perennial Cool Season Sedge | Q126: =VLOOKUP(B126,Species!B$3:D$552,3,FALSE) -> Grass | R126: =VLOOKUP(B126,Species!B$3:W$552,22,FALSE) -> 0 | S126: 0 | T126: 0 | U126: 0 | W126: 0 | X126: =VLOOKUP(B126,Species!B$3:F$552,5,FALSE) -> No | Y126: =VLOOKUP(B126,Species!B$3:AC$552,28,FALSE) -> Native | Z126: =VLOOKUP(B126,Species!B$3:AC$552,9,FALSE) ->  | AA126: =VLOOKUP(B126,Species!B$3:AC$552,10,FALSE) ->  | AB126: =VLOOKUP(B126,Species!B$3:AC$552,11,FALSE) -> X | AC126: =VLOOKUP(B126,Species!B$3:AC$552,12,FALSE) -> 0 | AD126: =VLOOKUP(B126,Species!B$3:AC$552,13,FALSE) -> X | AE126: =VLOOKUP(B126,Species!B$3:AC$552,14,FALSE) -> X | AF126: =VLOOKUP(B126,Species!B$3:AC$552,15,FALSE) -> 0 | AG126: =VLOOKUP(B126,Species!B$3:AC$552,16,FALSE) -> 0 | AH126: =VLOOKUP(B126,Species!B$3:AC$552,17,FALSE) -> 0 | AI126: =VLOOKUP(B126,Species!B$3:AC$552,18,FALSE) -> 0 | AJ126: =VLOOKUP(B126,Species!B$3:AC$552,19,FALSE) -> X | AK126: =VLOOKUP(B126,Species!B$3:AC$552,20,FALSE) ->  | AL126: =VLOOKUP(B126,Species!B$3:AJ$552,35,FALSE) -> 0 | AM126: =VLOOKUP(B126,Species!B$3:AH$552,33,FALSE) -> 0 | AN126: =VLOOKUP(B126,Species!B$3:I$552,8,FALSE) -> No | AO126: =VLOOKUP(B126,Species!B$3:BC$552,54,FALSE) -> 0 | AP126: =VLOOKUP(B126,Species!B$3:BE$552,55,FALSE) -> 0 | AQ126: =VLOOKUP(B126,Species!B$3:BE$552,56,FALSE) -> 0 | AY126: =HYPERLINK(VLOOKUP(B126,Species!B$3:BF$552,57,FALSE)) ->  | AZ126: =VLOOKUP(B126,Species!B$3:C$552,2,FALSE) -> Carex laeviconica | BA126: 0 | BB126: 0.000 | BC126: 0
B127: =Species!$B117 -> Soft Fox Sedge | C127: Carex conjuncta | H127: 0 | I127: 0.00 | K127: =VLOOKUP(B127,Species!B$3:Y$552,24,FALSE) -> 0 | L127: =VLOOKUP(B127,Species!B$3:AJ$552,35,FALSE) -> 0 | M127: =VLOOKUP(B127,Species!B$3:AD$552,29,FALSE) -> 0 | N127: =VLOOKUP(B127,Species!B$3:AB$552,27,FALSE) -> 450 | O127: 0 | P127: =VLOOKUP(B127,Species!B$3:AF$552,31,FALSE) -> Perennial Cool Season Sedge | Q127: =VLOOKUP(B127,Species!B$3:D$552,3,FALSE) -> Grass | R127: =VLOOKUP(B127,Species!B$3:W$552,22,FALSE) -> 0 | S127: 0 | T127: 0 | U127: 0 | W127: 0 | X127: =VLOOKUP(B127,Species!B$3:F$552,5,FALSE) -> No | Y127: =VLOOKUP(B127,Species!B$3:AC$552,28,FALSE) -> Native | Z127: =VLOOKUP(B127,Species!B$3:AC$552,9,FALSE) ->  | AA127: =VLOOKUP(B127,Species!B$3:AC$552,10,FALSE) -> X | AB127: =VLOOKUP(B127,Species!B$3:AC$552,11,FALSE) -> X | AC127: =VLOOKUP(B127,Species!B$3:AC$552,12,FALSE) -> 0 | AD127: =VLOOKUP(B127,Species!B$3:AC$552,13,FALSE) -> X | AE127: =VLOOKUP(B127,Species!B$3:AC$552,14,FALSE) -> X | AF127: =VLOOKUP(B127,Species!B$3:AC$552,15,FALSE) -> 0 | AG127: =VLOOKUP(B127,Species!B$3:AC$552,16,FALSE) -> 0 | AH127: =VLOOKUP(B127,Species!B$3:AC$552,17,FALSE) -> 0 | AI127: =VLOOKUP(B127,Species!B$3:AC$552,18,FALSE) -> 0 | AJ127: =VLOOKUP(B127,Species!B$3:AC$552,19,FALSE) ->  | AK127: =VLOOKUP(B127,Species!B$3:AC$552,20,FALSE) -> X | AL127: =VLOOKUP(B127,Species!B$3:AJ$552,35,FALSE) -> 0 | AM127: =VLOOKUP(B127,Species!B$3:AH$552,33,FALSE) -> 0 | AN127: =VLOOKUP(B127,Species!B$3:I$552,8,FALSE) -> No | AO127: =VLOOKUP(B127,Species!B$3:BC$552,54,FALSE) -> 0 | AP127: =VLOOKUP(B127,Species!B$3:BE$552,55,FALSE) -> 0 | AQ127: =VLOOKUP(B127,Species!B$3:BE$552,56,FALSE) -> 0 | AY127: =HYPERLINK(VLOOKUP(B127,Species!B$3:BF$552,57,FALSE)) ->  | AZ127: =VLOOKUP(B127,Species!B$3:C$552,2,FALSE) -> Carex conjuncta | BA127: 0 | BB127: 0.000 | BC127: 0
B128: =Species!$B118 -> Softstem Bulrush | C128: Schoenoplectus tabernaemontani | H128: 0 | I128: 0.00 | K128: =VLOOKUP(B128,Species!B$3:Y$552,24,FALSE) -> 0 | L128: =VLOOKUP(B128,Species!B$3:AJ$552,35,FALSE) -> 0 | M128: =VLOOKUP(B128,Species!B$3:AD$552,29,FALSE) -> 5 | N128: =VLOOKUP(B128,Species!B$3:AB$552,27,FALSE) -> 150 | O128: 0 | P128: =VLOOKUP(B128,Species!B$3:AF$552,31,FALSE) -> Perennial Cool Season Sedge | Q128: =VLOOKUP(B128,Species!B$3:D$552,3,FALSE) -> Grass | R128: =VLOOKUP(B128,Species!B$3:W$552,22,FALSE) -> 0 | S128: 0 | T128: 0 | U128: 0 | W128: 0 | X128: =VLOOKUP(B128,Species!B$3:F$552,5,FALSE) -> No | Y128: =VLOOKUP(B128,Species!B$3:AC$552,28,FALSE) -> Native | Z128: =VLOOKUP(B128,Species!B$3:AC$552,9,FALSE) ->  | AA128: =VLOOKUP(B128,Species!B$3:AC$552,10,FALSE) ->  | AB128: =VLOOKUP(B128,Species!B$3:AC$552,11,FALSE) -> X | AC128: =VLOOKUP(B128,Species!B$3:AC$552,12,FALSE) ->  | AD128: =VLOOKUP(B128,Species!B$3:AC$552,13,FALSE) -> 0 | AE128: =VLOOKUP(B128,Species!B$3:AC$552,14,FALSE) -> 0 | AF128: =VLOOKUP(B128,Species!B$3:AC$552,15,FALSE) -> 0 | AG128: =VLOOKUP(B128,Species!B$3:AC$552,16,FALSE) ->  | AH128: =VLOOKUP(B128,Species!B$3:AC$552,17,FALSE) -> 0 | AI128: =VLOOKUP(B128,Species!B$3:AC$552,18,FALSE) -> 0 | AJ128: =VLOOKUP(B128,Species!B$3:AC$552,19,FALSE) -> X | AK128: =VLOOKUP(B128,Species!B$3:AC$552,20,FALSE) ->  | AL128: =VLOOKUP(B128,Species!B$3:AJ$552,35,FALSE) -> 0 | AM128: =VLOOKUP(B128,Species!B$3:AH$552,33,FALSE) -> 0 | AN128: =VLOOKUP(B128,Species!B$3:I$552,8,FALSE) -> No | AO128: =VLOOKUP(B128,Species!B$3:BC$552,54,FALSE) -> 0 | AP128: =VLOOKUP(B128,Species!B$3:BE$552,55,FALSE) -> 0 | AQ128: =VLOOKUP(B128,Species!B$3:BE$552,56,FALSE) -> 0 | AY128: =HYPERLINK(VLOOKUP(B128,Species!B$3:BF$552,57,FALSE)) ->  | AZ128: =VLOOKUP(B128,Species!B$3:C$552,2,FALSE) -> Schoenoplectus tabernaemontani | BA128: 0 | BB128: 0.000 | BC128: 0
B129: =Species!$B119 -> Southern Crabgrass | C129: Digitaria ciliaris | H129: 0 | I129: 0.00 | K129: =VLOOKUP(B129,Species!B$3:Y$552,24,FALSE) -> 2.2 | L129: =VLOOKUP(B129,Species!B$3:AJ$552,35,FALSE) -> 0 | M129: =VLOOKUP(B129,Species!B$3:AD$552,29,FALSE) -> N/A | N129: =VLOOKUP(B129,Species!B$3:AB$552,27,FALSE) -> 0 | O129: 0 | P129: =VLOOKUP(B129,Species!B$3:AF$552,31,FALSE) -> Annual Warm Season Grass | Q129: =VLOOKUP(B129,Species!B$3:D$552,3,FALSE) -> Grass | R129: =VLOOKUP(B129,Species!B$3:W$552,22,FALSE) -> 18.36547291 | S129: 0 | T129: 0 | U129: 0 | W129: 0 | X129: =VLOOKUP(B129,Species!B$3:F$552,5,FALSE) -> Yes | Y129: =VLOOKUP(B129,Species!B$3:AC$552,28,FALSE) -> Introduced | Z129: =VLOOKUP(B129,Species!B$3:AC$552,9,FALSE) -> X | AA129: =VLOOKUP(B129,Species!B$3:AC$552,10,FALSE) -> X | AB129: =VLOOKUP(B129,Species!B$3:AC$552,11,FALSE) -> 0 | AC129: =VLOOKUP(B129,Species!B$3:AC$552,12,FALSE) -> 0 | AD129: =VLOOKUP(B129,Species!B$3:AC$552,13,FALSE) -> 0 | AE129: =VLOOKUP(B129,Species!B$3:AC$552,14,FALSE) -> 0 | AF129: =VLOOKUP(B129,Species!B$3:AC$552,15,FALSE) -> 0 | AG129: =VLOOKUP(B129,Species!B$3:AC$552,16,FALSE) -> 0 | AH129: =VLOOKUP(B129,Species!B$3:AC$552,17,FALSE) -> 0 | AI129: =VLOOKUP(B129,Species!B$3:AC$552,18,FALSE) -> 0 | AJ129: =VLOOKUP(B129,Species!B$3:AC$552,19,FALSE) -> 0 | AK129: =VLOOKUP(B129,Species!B$3:AC$552,20,FALSE) -> 0 | AL129: =VLOOKUP(B129,Species!B$3:AJ$552,35,FALSE) -> 0 | AM129: =VLOOKUP(B129,Species!B$3:AH$552,33,FALSE) -> 0 | AN129: =VLOOKUP(B129,Species!B$3:I$552,8,FALSE) -> No | AO129: =VLOOKUP(B129,Species!B$3:BC$552,54,FALSE) -> 0 | AP129: =VLOOKUP(B129,Species!B$3:BE$552,55,FALSE) -> 0 | AQ129: =VLOOKUP(B129,Species!B$3:BE$552,56,FALSE) -> 0 | AY129: =HYPERLINK(VLOOKUP(B129,Species!B$3:BF$552,57,FALSE)) -> http://plants.usda.gov/core/profile?symbol=DICI | AZ129: =VLOOKUP(B129,Species!B$3:C$552,2,FALSE) -> Digitaria ciliaris | BA129: 0 | BB129: 0.000 | BC129: 0
B130: =Species!$B120 -> Splitbeard Bluestem | C130: Andropogon ternarius | H130: 0 | I130: 0.00 | K130: =VLOOKUP(B130,Species!B$3:Y$552,24,FALSE) -> 0 | L130: =VLOOKUP(B130,Species!B$3:AJ$552,35,FALSE) -> 0 | M130: =VLOOKUP(B130,Species!B$3:AD$552,29,FALSE) -> 5 | N130: =VLOOKUP(B130,Species!B$3:AB$552,27,FALSE) -> 65 | O130: 0 | P130: =VLOOKUP(B130,Species!B$3:AF$552,31,FALSE) -> Perennial Warm Season Grass | Q130: =VLOOKUP(B130,Species!B$3:D$552,3,FALSE) -> Grass | R130: =VLOOKUP(B130,Species!B$3:W$552,22,FALSE) -> 4.958677686 | S130: 0 | T130: 0 | U130: 0 | W130: 0 | X130: =VLOOKUP(B130,Species!B$3:F$552,5,FALSE) -> Yes | Y130: =VLOOKUP(B130,Species!B$3:AC$552,28,FALSE) -> Native | Z130: =VLOOKUP(B130,Species!B$3:AC$552,9,FALSE) -> X | AA130: =VLOOKUP(B130,Species!B$3:AC$552,10,FALSE) -> 0 | AB130: =VLOOKUP(B130,Species!B$3:AC$552,11,FALSE) -> 0 | AC130: =VLOOKUP(B130,Species!B$3:AC$552,12,FALSE) -> X | AD130: =VLOOKUP(B130,Species!B$3:AC$552,13,FALSE) -> 0 | AE130: =VLOOKUP(B130,Species!B$3:AC$552,14,FALSE) -> 0 | AF130: =VLOOKUP(B130,Species!B$3:AC$552,15,FALSE) -> X | AG130: =VLOOKUP(B130,Species!B$3:AC$552,16,FALSE) -> 0 | AH130: =VLOOKUP(B130,Species!B$3:AC$552,17,FALSE) -> X | AI130: =VLOOKUP(B130,Species!B$3:AC$552,18,FALSE) -> 0 | AJ130: =VLOOKUP(B130,Species!B$3:AC$552,19,FALSE) -> 0 | AK130: =VLOOKUP(B130,Species!B$3:AC$552,20,FALSE) -> 0 | AL130: =VLOOKUP(B130,Species!B$3:AJ$552,35,FALSE) -> 0 | AM130: =VLOOKUP(B130,Species!B$3:AH$552,33,FALSE) -> 0 | AN130: =VLOOKUP(B130,Species!B$3:I$552,8,FALSE) -> Yes | AO130: =VLOOKUP(B130,Species!B$3:BC$552,54,FALSE) -> 0 | AP130: =VLOOKUP(B130,Species!B$3:BE$552,55,FALSE) -> 0 | AQ130: =VLOOKUP(B130,Species!B$3:BE$552,56,FALSE) -> 0 | AY130: =HYPERLINK(VLOOKUP(B130,Species!B$3:BF$552,57,FALSE)) -> http://plants.usda.gov/core/profile?symbol=ANTE2 | AZ130: =VLOOKUP(B130,Species!B$3:C$552,2,FALSE) -> Andropogon ternarius | BA130: 0 | BB130: 0.000 | BC130: 0
B131: =Species!$B121 -> Sprengel's Sedge | C131: Carex sprengelii | H131: 0 | I131: 0.00 | K131: =VLOOKUP(B131,Species!B$3:Y$552,24,FALSE) -> 0 | L131: =VLOOKUP(B131,Species!B$3:AJ$552,35,FALSE) -> 0 | M131: =VLOOKUP(B131,Species!B$3:AD$552,29,FALSE) -> 0 | N131: =VLOOKUP(B131,Species!B$3:AB$552,27,FALSE) -> 768 | O131: 0 | P131: =VLOOKUP(B131,Species!B$3:AF$552,31,FALSE) -> Perennial Cool Season Sedge | Q131: =VLOOKUP(B131,Species!B$3:D$552,3,FALSE) -> Grass | R131: =VLOOKUP(B131,Species!B$3:W$552,22,FALSE) -> 0 | S131: 0 | T131: 0 | U131: 0 | W131: 0 | X131: =VLOOKUP(B131,Species!B$3:F$552,5,FALSE) -> No | Y131: =VLOOKUP(B131,Species!B$3:AC$552,28,FALSE) -> Native | Z131: =VLOOKUP(B131,Species!B$3:AC$552,9,FALSE) -> 0 | AA131: =VLOOKUP(B131,Species!B$3:AC$552,10,FALSE) -> X | AB131: =VLOOKUP(B131,Species!B$3:AC$552,11,FALSE) ->  | AC131: =VLOOKUP(B131,Species!B$3:AC$552,12,FALSE) -> X | AD131: =VLOOKUP(B131,Species!B$3:AC$552,13,FALSE) -> 0 | AE131: =VLOOKUP(B131,Species!B$3:AC$552,14,FALSE) -> 0 | AF131: =VLOOKUP(B131,Species!B$3:AC$552,15,FALSE) -> 0 | AG131: =VLOOKUP(B131,Species!B$3:AC$552,16,FALSE) -> X | AH131: =VLOOKUP(B131,Species!B$3:AC$552,17,FALSE) -> 0 | AI131: =VLOOKUP(B131,Species!B$3:AC$552,18,FALSE) -> 0 | AJ131: =VLOOKUP(B131,Species!B$3:AC$552,19,FALSE) -> 0 | AK131: =VLOOKUP(B131,Species!B$3:AC$552,20,FALSE) -> X | AL131: =VLOOKUP(B131,Species!B$3:AJ$552,35,FALSE) -> 0 | AM131: =VLOOKUP(B131,Species!B$3:AH$552,33,FALSE) -> 0 | AN131: =VLOOKUP(B131,Species!B$3:I$552,8,FALSE) -> No | AO131: =VLOOKUP(B131,Species!B$3:BC$552,54,FALSE) -> 0 | AP131: =VLOOKUP(B131,Species!B$3:BE$552,55,FALSE) -> 0 | AQ131: =VLOOKUP(B131,Species!B$3:BE$552,56,FALSE) -> 0 | AY131: =HYPERLINK(VLOOKUP(B131,Species!B$3:BF$552,57,FALSE)) ->  | AZ131: =VLOOKUP(B131,Species!B$3:C$552,2,FALSE) -> Carex sprengelii | BA131: 0 | BB131: 0.000 | BC131: 0
B132: =Species!$B122 -> Squarrose Sedge | C132: Carex squarrosa | H132: 0 | I132: 0.00 | K132: =VLOOKUP(B132,Species!B$3:Y$552,24,FALSE) -> 0 | L132: =VLOOKUP(B132,Species!B$3:AJ$552,35,FALSE) -> 0 | M132: =VLOOKUP(B132,Species!B$3:AD$552,29,FALSE) -> 6 | N132: =VLOOKUP(B132,Species!B$3:AB$552,27,FALSE) -> 312.5 | O132: 0 | P132: =VLOOKUP(B132,Species!B$3:AF$552,31,FALSE) -> Perennial Cool Season Sedge | Q132: =VLOOKUP(B132,Species!B$3:D$552,3,FALSE) -> Grass | R132: =VLOOKUP(B132,Species!B$3:W$552,22,FALSE) -> 0 | S132: 0 | T132: 0 | U132: 0 | W132: 0 | X132: =VLOOKUP(B132,Species!B$3:F$552,5,FALSE) -> No | Y132: =VLOOKUP(B132,Species!B$3:AC$552,28,FALSE) -> Native | Z132: =VLOOKUP(B132,Species!B$3:AC$552,9,FALSE) ->  | AA132: =VLOOKUP(B132,Species!B$3:AC$552,10,FALSE) -> X | AB132: =VLOOKUP(B132,Species!B$3:AC$552,11,FALSE) -> X | AC132: =VLOOKUP(B132,Species!B$3:AC$552,12,FALSE) ->  | AD132: =VLOOKUP(B132,Species!B$3:AC$552,13,FALSE) -> X | AE132: =VLOOKUP(B132,Species!B$3:AC$552,14,FALSE) -> X | AF132: =VLOOKUP(B132,Species!B$3:AC$552,15,FALSE) -> 0 | AG132: =VLOOKUP(B132,Species!B$3:AC$552,16,FALSE) -> 0 | AH132: =VLOOKUP(B132,Species!B$3:AC$552,17,FALSE) -> 0 | AI132: =VLOOKUP(B132,Species!B$3:AC$552,18,FALSE) -> 0 | AJ132: =VLOOKUP(B132,Species!B$3:AC$552,19,FALSE) -> X | AK132: =VLOOKUP(B132,Species!B$3:AC$552,20,FALSE) -> X | AL132: =VLOOKUP(B132,Species!B$3:AJ$552,35,FALSE) -> 0 | AM132: =VLOOKUP(B132,Species!B$3:AH$552,33,FALSE) -> 0 | AN132: =VLOOKUP(B132,Species!B$3:I$552,8,FALSE) -> No | AO132: =VLOOKUP(B132,Species!B$3:BC$552,54,FALSE) -> 0 | AP132: =VLOOKUP(B132,Species!B$3:BE$552,55,FALSE) -> 0 | AQ132: =VLOOKUP(B132,Species!B$3:BE$552,56,FALSE) -> 0 | AY132: =HYPERLINK(VLOOKUP(B132,Species!B$3:BF$552,57,FALSE)) -> http://plants.usda.gov/core/profile?symbol=CASQ2 | AZ132: =VLOOKUP(B132,Species!B$3:C$552,2,FALSE) -> Carex squarrosa | BA132: 0 | BB132: 0.000 | BC132: 0
B133: =Species!$B123 -> Streambank Wildrye | C133: Elymus riparius | H133: 0 | I133: 0.00 | K133: =VLOOKUP(B133,Species!B$3:Y$552,24,FALSE) -> 0 | L133: =VLOOKUP(B133,Species!B$3:AJ$552,35,FALSE) -> 0 | M133: =VLOOKUP(B133,Species!B$3:AD$552,29,FALSE) -> 7 | N133: =VLOOKUP(B133,Species!B$3:AB$552,27,FALSE) -> 33.94666667 | O133: 0 | P133: =VLOOKUP(B133,Species!B$3:AF$552,31,FALSE) -> Perennial Cool Season Grass | Q133: =VLOOKUP(B133,Species!B$3:D$552,3,FALSE) -> Grass | R133: =VLOOKUP(B133,Species!B$3:W$552,22,FALSE) -> 0 | S133: 0 | T133: 0 | U133: 0 | W133: 0 | X133: =VLOOKUP(B133,Species!B$3:F$552,5,FALSE) -> No | Y133: =VLOOKUP(B133,Species!B$3:AC$552,28,FALSE) -> Native | Z133: =VLOOKUP(B133,Species!B$3:AC$552,9,FALSE) ->  | AA133: =VLOOKUP(B133,Species!B$3:AC$552,10,FALSE) -> X | AB133: =VLOOKUP(B133,Species!B$3:AC$552,11,FALSE) ->  | AC133: =VLOOKUP(B133,Species!B$3:AC$552,12,FALSE) ->  | AD133: =VLOOKUP(B133,Species!B$3:AC$552,13,FALSE) -> 0 | AE133: =VLOOKUP(B133,Species!B$3:AC$552,14,FALSE) -> 0 | AF133: =VLOOKUP(B133,Species!B$3:AC$552,15,FALSE) -> 0 | AG133: =VLOOKUP(B133,Species!B$3:AC$552,16,FALSE) -> X | AH133: =VLOOKUP(B133,Species!B$3:AC$552,17,FALSE) -> 0 | AI133: =VLOOKUP(B133,Species!B$3:AC$552,18,FALSE) -> 0 | AJ133: =VLOOKUP(B133,Species!B$3:AC$552,19,FALSE) ->  | AK133: =VLOOKUP(B133,Species!B$3:AC$552,20,FALSE) -> X | AL133: =VLOOKUP(B133,Species!B$3:AJ$552,35,FALSE) -> 0 | AM133: =VLOOKUP(B133,Species!B$3:AH$552,33,FALSE) -> 0 | AN133: =VLOOKUP(B133,Species!B$3:I$552,8,FALSE) -> No | AO133: =VLOOKUP(B133,Species!B$3:BC$552,54,FALSE) -> 0 | AP133: =VLOOKUP(B133,Species!B$3:BE$552,55,FALSE) -> 0 | AQ133: =VLOOKUP(B133,Species!B$3:BE$552,56,FALSE) -> 0 | AY133: =HYPERLINK(VLOOKUP(B133,Species!B$3:BF$552,57,FALSE)) -> http://plants.usda.gov/core/profile?symbol=ELRI | AZ133: =VLOOKUP(B133,Species!B$3:C$552,2,FALSE) -> Elymus riparius | BA133: 0 | BB133: 0.000 | BC133: 0
B134: =Species!$B124 -> Switchgrass | C134: Panicum virgatum | H134: 0 | I134: 0.00 | K134: =VLOOKUP(B134,Species!B$3:Y$552,24,FALSE) -> 4.7 | L134: =VLOOKUP(B134,Species!B$3:AJ$552,35,FALSE) -> 0 | M134: =VLOOKUP(B134,Species!B$3:AD$552,29,FALSE) -> 4 | N134: =VLOOKUP(B134,Species!B$3:AB$552,27,FALSE) -> 13.7 | O134: 0 | P134: =VLOOKUP(B134,Species!B$3:AF$552,31,FALSE) -> Perennial Warm Season Grass | Q134: =VLOOKUP(B134,Species!B$3:D$552,3,FALSE) -> Grass | R134: =VLOOKUP(B134,Species!B$3:W$552,22,FALSE) -> 5.968778696 | S134: 0 | T134: 0 | U134: 0 | W134: 0 | X134: =VLOOKUP(B134,Species!B$3:F$552,5,FALSE) -> Yes | Y134: =VLOOKUP(B134,Species!B$3:AC$552,28,FALSE) -> Native | Z134: =VLOOKUP(B134,Species!B$3:AC$552,9,FALSE) -> X | AA134: =VLOOKUP(B134,Species!B$3:AC$552,10,FALSE) -> X | AB134: =VLOOKUP(B134,Species!B$3:AC$552,11,FALSE) -> X | AC134: =VLOOKUP(B134,Species!B$3:AC$552,12,FALSE) -> X | AD134: =VLOOKUP(B134,Species!B$3:AC$552,13,FALSE) -> X | AE134: =VLOOKUP(B134,Species!B$3:AC$552,14,FALSE) -> X | AF134: =VLOOKUP(B134,Species!B$3:AC$552,15,FALSE) -> 0 | AG134: =VLOOKUP(B134,Species!B$3:AC$552,16,FALSE) -> X | AH134: =VLOOKUP(B134,Species!B$3:AC$552,17,FALSE) -> X | AI134: =VLOOKUP(B134,Species!B$3:AC$552,18,FALSE) -> 0 | AJ134: =VLOOKUP(B134,Species!B$3:AC$552,19,FALSE) -> X | AK134: =VLOOKUP(B134,Species!B$3:AC$552,20,FALSE) ->  | AL134: =VLOOKUP(B134,Species!B$3:AJ$552,35,FALSE) -> 0 | AM134: =VLOOKUP(B134,Species!B$3:AH$552,33,FALSE) -> 0 | AN134: =VLOOKUP(B134,Species!B$3:I$552,8,FALSE) -> Yes | AO134: =VLOOKUP(B134,Species!B$3:BC$552,54,FALSE) -> 0 | AP134: =VLOOKUP(B134,Species!B$3:BE$552,55,FALSE) -> 0 | AQ134: =VLOOKUP(B134,Species!B$3:BE$552,56,FALSE) -> 0 | AY134: =HYPERLINK(VLOOKUP(B134,Species!B$3:BF$552,57,FALSE)) -> http://plants.usda.gov/core/profile?symbol=PAVI2 | AZ134: =VLOOKUP(B134,Species!B$3:C$552,2,FALSE) -> Panicum virgatum | BA134: 0 | BB134: 0.000 | BC134: 0
B135: =Species!$B125 -> Tall Fescue | C135: Festuca arundinacea, Schedonorus arundinaceus | H135: 0 | I135: 0.00 | K135: =VLOOKUP(B135,Species!B$3:Y$552,24,FALSE) -> 10 | L135: =VLOOKUP(B135,Species!B$3:AJ$552,35,FALSE) -> 0 | M135: =VLOOKUP(B135,Species!B$3:AD$552,29,FALSE) -> N/A | N135: =VLOOKUP(B135,Species!B$3:AB$552,27,FALSE) -> 2.3 | O135: 0 | P135: =VLOOKUP(B135,Species!B$3:AF$552,31,FALSE) -> Perennial Cool Season Grass | Q135: =VLOOKUP(B135,Species!B$3:D$552,3,FALSE) -> Grass | R135: =VLOOKUP(B135,Species!B$3:W$552,22,FALSE) -> 5.211202938 | S135: 0 | T135: 0 | U135: 0 | W135: 0 | X135: =VLOOKUP(B135,Species!B$3:F$552,5,FALSE) -> Yes | Y135: =VLOOKUP(B135,Species!B$3:AC$552,28,FALSE) -> Introduced | Z135: =VLOOKUP(B135,Species!B$3:AC$552,9,FALSE) -> X | AA135: =VLOOKUP(B135,Species!B$3:AC$552,10,FALSE) -> X | AB135: =VLOOKUP(B135,Species!B$3:AC$552,11,FALSE) -> 0 | AC135: =VLOOKUP(B135,Species!B$3:AC$552,12,FALSE) -> 0 | AD135: =VLOOKUP(B135,Species!B$3:AC$552,13,FALSE) -> 0 | AE135: =VLOOKUP(B135,Species!B$3:AC$552,14,FALSE) -> 0 | AF135: =VLOOKUP(B135,Species!B$3:AC$552,15,FALSE) -> 0 | AG135: =VLOOKUP(B135,Species!B$3:AC$552,16,FALSE) -> 0 | AH135: =VLOOKUP(B135,Species!B$3:AC$552,17,FALSE) -> 0 | AI135: =VLOOKUP(B135,Species!B$3:AC$552,18,FALSE) -> 0 | AJ135: =VLOOKUP(B135,Species!B$3:AC$552,19,FALSE) -> 0 | AK135: =VLOOKUP(B135,Species!B$3:AC$552,20,FALSE) -> 0 | AL135: =VLOOKUP(B135,Species!B$3:AJ$552,35,FALSE) -> 0 | AM135: =VLOOKUP(B135,Species!B$3:AH$552,33,FALSE) -> 0 | AN135: =VLOOKUP(B135,Species!B$3:I$552,8,FALSE) -> Yes | AO135: =VLOOKUP(B135,Species!B$3:BC$552,54,FALSE) -> 0 | AP135: =VLOOKUP(B135,Species!B$3:BE$552,55,FALSE) -> 0 | AQ135: =VLOOKUP(B135,Species!B$3:BE$552,56,FALSE) -> 0 | AY135: =HYPERLINK(VLOOKUP(B135,Species!B$3:BF$552,57,FALSE)) -> http://plants.usda.gov/core/profile?symbol=SCAR7 | AZ135: =VLOOKUP(B135,Species!B$3:C$552,2,FALSE) -> Festuca arundinacea, Schedonorus arundinaceus | BA135: 0 | BB135: 0.000 | BC135: 0
B136: =Species!$B126 -> Tall Nutgrass | C136: Scleria triglomerata | H136: 0 | I136: 0.00 | K136: =VLOOKUP(B136,Species!B$3:Y$552,24,FALSE) -> 0 | L136: =VLOOKUP(B136,Species!B$3:AJ$552,35,FALSE) -> 0 | M136: =VLOOKUP(B136,Species!B$3:AD$552,29,FALSE) -> 0 | N136: =VLOOKUP(B136,Species!B$3:AB$552,27,FALSE) -> 0 | O136: 0 | P136: =VLOOKUP(B136,Species!B$3:AF$552,31,FALSE) -> Perennial Cool Season Sedge | Q136: =VLOOKUP(B136,Species!B$3:D$552,3,FALSE) -> Grass | R136: =VLOOKUP(B136,Species!B$3:W$552,22,FALSE) -> 0 | S136: 0 | T136: 0 | U136: 0 | W136: 0 | X136: =VLOOKUP(B136,Species!B$3:F$552,5,FALSE) -> No | Y136: =VLOOKUP(B136,Species!B$3:AC$552,28,FALSE) -> Native | Z136: =VLOOKUP(B136,Species!B$3:AC$552,9,FALSE) -> X | AA136: =VLOOKUP(B136,Species!B$3:AC$552,10,FALSE) -> X | AB136: =VLOOKUP(B136,Species!B$3:AC$552,11,FALSE) -> X | AC136: =VLOOKUP(B136,Species!B$3:AC$552,12,FALSE) -> X | AD136: =VLOOKUP(B136,Species!B$3:AC$552,13,FALSE) -> X | AE136: =VLOOKUP(B136,Species!B$3:AC$552,14,FALSE) -> X | AF136: =VLOOKUP(B136,Species!B$3:AC$552,15,FALSE) -> 0 | AG136: =VLOOKUP(B136,Species!B$3:AC$552,16,FALSE) -> X | AH136: =VLOOKUP(B136,Species!B$3:AC$552,17,FALSE) -> X | AI136: =VLOOKUP(B136,Species!B$3:AC$552,18,FALSE) -> 0 | AJ136: =VLOOKUP(B136,Species!B$3:AC$552,19,FALSE) -> 0 | AK136: =VLOOKUP(B136,Species!B$3:AC$552,20,FALSE) -> 0 | AL136: =VLOOKUP(B136,Species!B$3:AJ$552,35,FALSE) -> 0 | AM136: =VLOOKUP(B136,Species!B$3:AH$552,33,FALSE) -> 0 | AN136: =VLOOKUP(B136,Species!B$3:I$552,8,FALSE) -> No | AO136: =VLOOKUP(B136,Species!B$3:BC$552,54,FALSE) -> 0 | AP136: =VLOOKUP(B136,Species!B$3:BE$552,55,FALSE) -> 0 | AQ136: =VLOOKUP(B136,Species!B$3:BE$552,56,FALSE) -> 0 | AY136: =HYPERLINK(VLOOKUP(B136,Species!B$3:BF$552,57,FALSE)) -> http://plants.usda.gov/core/profile?symbol=SCTR | AZ136: =VLOOKUP(B136,Species!B$3:C$552,2,FALSE) -> Scleria triglomerata | BA136: 0 | BB136: 0.000 | BC136: 0
B137: =Species!$B127 -> Thin Paspalum | C137: Paspalum setaceum | H137: 0 | I137: 0.00 | K137: =VLOOKUP(B137,Species!B$3:Y$552,24,FALSE) -> 0 | L137: =VLOOKUP(B137,Species!B$3:AJ$552,35,FALSE) -> 0 | M137: =VLOOKUP(B137,Species!B$3:AD$552,29,FALSE) -> 0 | N137: =VLOOKUP(B137,Species!B$3:AB$552,27,FALSE) -> 800 | O137: 0 | P137: =VLOOKUP(B137,Species!B$3:AF$552,31,FALSE) -> Perennial Cool Season Grass | Q137: =VLOOKUP(B137,Species!B$3:D$552,3,FALSE) -> Grass | R137: =VLOOKUP(B137,Species!B$3:W$552,22,FALSE) -> 0 | S137: 0 | T137: 0 | U137: 0 | W137: 0 | X137: =VLOOKUP(B137,Species!B$3:F$552,5,FALSE) -> No | Y137: =VLOOKUP(B137,Species!B$3:AC$552,28,FALSE) -> Native | Z137: =VLOOKUP(B137,Species!B$3:AC$552,9,FALSE) -> X | AA137: =VLOOKUP(B137,Species!B$3:AC$552,10,FALSE) ->  | AB137: =VLOOKUP(B137,Species!B$3:AC$552,11,FALSE) ->  | AC137: =VLOOKUP(B137,Species!B$3:AC$552,12,FALSE) -> X | AD137: =VLOOKUP(B137,Species!B$3:AC$552,13,FALSE) -> 0 | AE137: =VLOOKUP(B137,Species!B$3:AC$552,14,FALSE) -> 0 | AF137: =VLOOKUP(B137,Species!B$3:AC$552,15,FALSE) -> X | AG137: =VLOOKUP(B137,Species!B$3:AC$552,16,FALSE) ->  | AH137: =VLOOKUP(B137,Species!B$3:AC$552,17,FALSE) -> 0 | AI137: =VLOOKUP(B137,Species!B$3:AC$552,18,FALSE) -> 0 | AJ137: =VLOOKUP(B137,Species!B$3:AC$552,19,FALSE) ->  | AK137: =VLOOKUP(B137,Species!B$3:AC$552,20,FALSE) ->  | AL137: =VLOOKUP(B137,Species!B$3:AJ$552,35,FALSE) -> 0 | AM137: =VLOOKUP(B137,Species!B$3:AH$552,33,FALSE) -> 0 | AN137: =VLOOKUP(B137,Species!B$3:I$552,8,FALSE) -> No | AO137: =VLOOKUP(B137,Species!B$3:BC$552,54,FALSE) -> 0 | AP137: =VLOOKUP(B137,Species!B$3:BE$552,55,FALSE) -> 0 | AQ137: =VLOOKUP(B137,Species!B$3:BE$552,56,FALSE) -> 0 | AY137: =HYPERLINK(VLOOKUP(B137,Species!B$3:BF$552,57,FALSE)) ->  | AZ137: =VLOOKUP(B137,Species!B$3:C$552,2,FALSE) -> Paspalum setaceum | BA137: 0 | BB137: 0.000 | BC137: 0
B138: =Species!$B128 -> Three-way Sedge | C138: Dulichium arundinaceum | H138: 0 | I138: 0.00 | K138: =VLOOKUP(B138,Species!B$3:Y$552,24,FALSE) -> 0 | L138: =VLOOKUP(B138,Species!B$3:AJ$552,35,FALSE) -> 0 | M138: =VLOOKUP(B138,Species!B$3:AD$552,29,FALSE) -> 0 | N138: =VLOOKUP(B138,Species!B$3:AB$552,27,FALSE) -> 800 | O138: 0 | P138: =VLOOKUP(B138,Species!B$3:AF$552,31,FALSE) -> Perennial Cool Season Sedge | Q138: =VLOOKUP(B138,Species!B$3:D$552,3,FALSE) -> Grass | R138: =VLOOKUP(B138,Species!B$3:W$552,22,FALSE) -> 0 | S138: 0 | T138: 0 | U138: 0 | W138: 0 | X138: =VLOOKUP(B138,Species!B$3:F$552,5,FALSE) -> No | Y138: =VLOOKUP(B138,Species!B$3:AC$552,28,FALSE) -> Native | Z138: =VLOOKUP(B138,Species!B$3:AC$552,9,FALSE) ->  | AA138: =VLOOKUP(B138,Species!B$3:AC$552,10,FALSE) ->  | AB138: =VLOOKUP(B138,Species!B$3:AC$552,11,FALSE) -> X | AC138: =VLOOKUP(B138,Species!B$3:AC$552,12,FALSE) ->  | AD138: =VLOOKUP(B138,Species!B$3:AC$552,13,FALSE) -> 0 | AE138: =VLOOKUP(B138,Species!B$3:AC$552,14,FALSE) -> 0 | AF138: =VLOOKUP(B138,Species!B$3:AC$552,15,FALSE) -> 0 | AG138: =VLOOKUP(B138,Species!B$3:AC$552,16,FALSE) ->  | AH138: =VLOOKUP(B138,Species!B$3:AC$552,17,FALSE) -> 0 | AI138: =VLOOKUP(B138,Species!B$3:AC$552,18,FALSE) -> 0 | AJ138: =VLOOKUP(B138,Species!B$3:AC$552,19,FALSE) -> X | AK138: =VLOOKUP(B138,Species!B$3:AC$552,20,FALSE) ->  | AL138: =VLOOKUP(B138,Species!B$3:AJ$552,35,FALSE) -> 0 | AM138: =VLOOKUP(B138,Species!B$3:AH$552,33,FALSE) -> 0 | AN138: =VLOOKUP(B138,Species!B$3:I$552,8,FALSE) -> No | AO138: =VLOOKUP(B138,Species!B$3:BC$552,54,FALSE) -> 0 | AP138: =VLOOKUP(B138,Species!B$3:BE$552,55,FALSE) -> 0 | AQ138: =VLOOKUP(B138,Species!B$3:BE$552,56,FALSE) -> 0 | AY138: =HYPERLINK(VLOOKUP(B138,Species!B$3:BF$552,57,FALSE)) ->  | AZ138: =VLOOKUP(B138,Species!B$3:C$552,2,FALSE) -> Dulichium arundinaceum | BA138: 0 | BB138: 0.000 | BC138: 0
B139: =Species!$B129 -> Timothy | C139: Phleum pratense | H139: 0 | I139: 0.00 | K139: =VLOOKUP(B139,Species!B$3:Y$552,24,FALSE) -> 3.1 | L139: =VLOOKUP(B139,Species!B$3:AJ$552,35,FALSE) -> 0 | M139: =VLOOKUP(B139,Species!B$3:AD$552,29,FALSE) -> N/A | N139: =VLOOKUP(B139,Species!B$3:AB$552,27,FALSE) -> 2.46 | O139: 0 | P139: =VLOOKUP(B139,Species!B$3:AF$552,31,FALSE) -> Perennial Cool Season Grass | Q139: =VLOOKUP(B139,Species!B$3:D$552,3,FALSE) -> Grass | R139: =VLOOKUP(B139,Species!B$3:W$552,22,FALSE) -> 26.70339761 | S139: 0 | T139: 0 | U139: 0 | W139: 0 | X139: =VLOOKUP(B139,Species!B$3:F$552,5,FALSE) -> Yes | Y139: =VLOOKUP(B139,Species!B$3:AC$552,28,FALSE) -> Introduced | Z139: =VLOOKUP(B139,Species!B$3:AC$552,9,FALSE) -> 0 | AA139: =VLOOKUP(B139,Species!B$3:AC$552,10,FALSE) -> X | AB139: =VLOOKUP(B139,Species!B$3:AC$552,11,FALSE) -> 0 | AC139: =VLOOKUP(B139,Species!B$3:AC$552,12,FALSE) -> 0 | AD139: =VLOOKUP(B139,Species!B$3:AC$552,13,FALSE) -> 0 | AE139: =VLOOKUP(B139,Species!B$3:AC$552,14,FALSE) -> 0 | AF139: =VLOOKUP(B139,Species!B$3:AC$552,15,FALSE) -> 0 | AG139: =VLOOKUP(B139,Species!B$3:AC$552,16,FALSE) -> 0 | AH139: =VLOOKUP(B139,Species!B$3:AC$552,17,FALSE) -> 0 | AI139: =VLOOKUP(B139,Species!B$3:AC$552,18,FALSE) -> 0 | AJ139: =VLOOKUP(B139,Species!B$3:AC$552,19,FALSE) -> 0 | AK139: =VLOOKUP(B139,Species!B$3:AC$552,20,FALSE) -> 0 | AL139: =VLOOKUP(B139,Species!B$3:AJ$552,35,FALSE) -> 0 | AM139: =VLOOKUP(B139,Species!B$3:AH$552,33,FALSE) -> 0 | AN139: =VLOOKUP(B139,Species!B$3:I$552,8,FALSE) -> No | AO139: =VLOOKUP(B139,Species!B$3:BC$552,54,FALSE) -> 0 | AP139: =VLOOKUP(B139,Species!B$3:BE$552,55,FALSE) -> 0 | AQ139: =VLOOKUP(B139,Species!B$3:BE$552,56,FALSE) -> 0 | AY139: =HYPERLINK(VLOOKUP(B139,Species!B$3:BF$552,57,FALSE)) -> http://plants.usda.gov/core/profile?symbol=PHPR3 | AZ139: =VLOOKUP(B139,Species!B$3:C$552,2,FALSE) -> Phleum pratense | BA139: 0 | BB139: 0.000 | BC139: 0
B140: =Species!$B130 -> Torrey's Rush | C140: Juncus torreyi | H140: 0 | I140: 0.00 | K140: =VLOOKUP(B140,Species!B$3:Y$552,24,FALSE) -> 0 | L140: =VLOOKUP(B140,Species!B$3:AJ$552,35,FALSE) -> 0 | M140: =VLOOKUP(B140,Species!B$3:AD$552,29,FALSE) -> 4 | N140: =VLOOKUP(B140,Species!B$3:AB$552,27,FALSE) -> 960 | O140: 0 | P140: =VLOOKUP(B140,Species!B$3:AF$552,31,FALSE) -> Perennial Cool Season Rush | Q140: =VLOOKUP(B140,Species!B$3:D$552,3,FALSE) -> Grass | R140: =VLOOKUP(B140,Species!B$3:W$552,22,FALSE) -> 0 | S140: 0 | T140: 0 | U140: 0 | W140: 0 | X140: =VLOOKUP(B140,Species!B$3:F$552,5,FALSE) -> No | Y140: =VLOOKUP(B140,Species!B$3:AC$552,28,FALSE) -> Native | Z140: =VLOOKUP(B140,Species!B$3:AC$552,9,FALSE) ->  | AA140: =VLOOKUP(B140,Species!B$3:AC$552,10,FALSE) ->  | AB140: =VLOOKUP(B140,Species!B$3:AC$552,11,FALSE) -> X | AC140: =VLOOKUP(B140,Species!B$3:AC$552,12,FALSE) -> X | AD140: =VLOOKUP(B140,Species!B$3:AC$552,13,FALSE) -> 0 | AE140: =VLOOKUP(B140,Species!B$3:AC$552,14,FALSE) -> 0 | AF140: =VLOOKUP(B140,Species!B$3:AC$552,15,FALSE) -> 0 | AG140: =VLOOKUP(B140,Species!B$3:AC$552,16,FALSE) ->  | AH140: =VLOOKUP(B140,Species!B$3:AC$552,17,FALSE) -> 0 | AI140: =VLOOKUP(B140,Species!B$3:AC$552,18,FALSE) -> 0 | AJ140: =VLOOKUP(B140,Species!B$3:AC$552,19,FALSE) -> X | AK140: =VLOOKUP(B140,Species!B$3:AC$552,20,FALSE) ->  | AL140: =VLOOKUP(B140,Species!B$3:AJ$552,35,FALSE) -> 0 | AM140: =VLOOKUP(B140,Species!B$3:AH$552,33,FALSE) -> 0 | AN140: =VLOOKUP(B140,Species!B$3:I$552,8,FALSE) -> No | AO140: =VLOOKUP(B140,Species!B$3:BC$552,54,FALSE) -> 0 | AP140: =VLOOKUP(B140,Species!B$3:BE$552,55,FALSE) -> 0 | AQ140: =VLOOKUP(B140,Species!B$3:BE$552,56,FALSE) -> 0 | AY140: =HYPERLINK(VLOOKUP(B140,Species!B$3:BF$552,57,FALSE)) -> http://plants.usda.gov/java/profile?symbol=CAST16 | AZ140: =VLOOKUP(B140,Species!B$3:C$552,2,FALSE) -> Juncus torreyi | BA140: 0 | BB140: 0.000 | BC140: 0
B141: =Species!$B131 -> Troublesome Sedge | C141: Carex molesta | H141: 0 | I141: =IF((D141>0)<>(F141>0)<>(G141>0),((D141*R141)+(F141*B$2)+S141),"0.00") -> 0.00 | J141: =IF((F141<0.001),((E141+I141)/(PLSft2Total1+PLSft2Total2)),"0.00") ->  | K141: =VLOOKUP(B141,Species!B$3:Y$552,24,FALSE) -> 0 | L141: =VLOOKUP(B141,Species!B$3:AJ$552,35,FALSE) -> 0 | M141: =VLOOKUP(B141,Species!B$3:AD$552,29,FALSE) -> 3 | N141: =VLOOKUP(B141,Species!B$3:AB$552,27,FALSE) -> 180 | O141: 0 | P141: =VLOOKUP(B141,Species!B$3:AF$552,31,FALSE) -> Perennial Cool Season Sedge | Q141: =VLOOKUP(B141,Species!B$3:D$552,3,FALSE) -> Grass | R141: =VLOOKUP(B141,Species!B$3:W$552,22,FALSE) -> 0 | S141: 0 | T141: 0 | U141: 0 | W141: 0 | X141: =VLOOKUP(B141,Species!B$3:F$552,5,FALSE) -> No | Y141: =VLOOKUP(B141,Species!B$3:AC$552,28,FALSE) -> Native | Z141: =VLOOKUP(B141,Species!B$3:AC$552,9,FALSE) -> 0 | AA141: =VLOOKUP(B141,Species!B$3:AC$552,10,FALSE) -> X | AB141: =VLOOKUP(B141,Species!B$3:AC$552,11,FALSE) -> X | AC141: =VLOOKUP(B141,Species!B$3:AC$552,12,FALSE) -> 0 | AD141: =VLOOKUP(B141,Species!B$3:AC$552,13,FALSE) -> X | AE141: =VLOOKUP(B141,Species!B$3:AC$552,14,FALSE) -> X | AF141: =VLOOKUP(B141,Species!B$3:AC$552,15,FALSE) -> 0 | AG141: =VLOOKUP(B141,Species!B$3:AC$552,16,FALSE) -> 0 | AH141: =VLOOKUP(B141,Species!B$3:AC$552,17,FALSE) -> 0 | AI141: =VLOOKUP(B141,Species!B$3:AC$552,18,FALSE) -> 0 | AJ141: =VLOOKUP(B141,Species!B$3:AC$552,19,FALSE) ->  | AK141: =VLOOKUP(B141,Species!B$3:AC$552,20,FALSE) -> X | AL141: =VLOOKUP(B141,Species!B$3:AJ$552,35,FALSE) -> 0 | AM141: =VLOOKUP(B141,Species!B$3:AH$552,33,FALSE) -> 0 | AN141: =VLOOKUP(B141,Species!B$3:I$552,8,FALSE) -> No | AO141: =VLOOKUP(B141,Species!B$3:BC$552,54,FALSE) -> 0 | AP141: =VLOOKUP(B141,Species!B$3:BE$552,55,FALSE) -> 0 | AQ141: =VLOOKUP(B141,Species!B$3:BE$552,56,FALSE) -> 0 | AR141: =IF(OR(D141>0,E141>0,F141>0,G141>0),"X","") ->  | AY141: =HYPERLINK(VLOOKUP(B141,Species!B$3:BF$552,57,FALSE)) -> http://plants.usda.gov/core/profile?symbol=CAMO11 | AZ141: =VLOOKUP(B141,Species!B$3:C$552,2,FALSE) -> Carex molesta | BA141: 0 | BB141: 0.000 | BC141: 0
B142: =Species!$B132 -> Tussock Sedge | C142: =HYPERLINK(AY142,AZ142) -> Carex stricta | H142: 0 | I142: 0.00 | K142: =VLOOKUP(B142,Species!B$3:Y$552,24,FALSE) -> 0 | L142: =VLOOKUP(B142,Species!B$3:AJ$552,35,FALSE) -> 0 | M142: =VLOOKUP(B142,Species!B$3:AD$552,29,FALSE) -> 10 | N142: =VLOOKUP(B142,Species!B$3:AB$552,27,FALSE) -> 900 | O142: 0 | P142: =VLOOKUP(B142,Species!B$3:AF$552,31,FALSE) -> Perennial Cool Season Sedge | Q142: =VLOOKUP(B142,Species!B$3:D$552,3,FALSE) -> Grass | R142: =VLOOKUP(B142,Species!B$3:W$552,22,FALSE) -> 0 | S142: 0 | T142: 0 | U142: 0 | W142: 0 | X142: =VLOOKUP(B142,Species!B$3:F$552,5,FALSE) -> No | Y142: =VLOOKUP(B142,Species!B$3:AC$552,28,FALSE) -> Native | Z142: =VLOOKUP(B142,Species!B$3:AC$552,9,FALSE) ->  | AA142: =VLOOKUP(B142,Species!B$3:AC$552,10,FALSE) ->  | AB142: =VLOOKUP(B142,Species!B$3:AC$552,11,FALSE) -> X | AC142: =VLOOKUP(B142,Species!B$3:AC$552,12,FALSE) -> 0 | AD142: =VLOOKUP(B142,Species!B$3:AC$552,13,FALSE) -> 0 | AE142: =VLOOKUP(B142,Species!B$3:AC$552,14,FALSE) -> 0 | AF142: =VLOOKUP(B142,Species!B$3:AC$552,15,FALSE) -> 0 | AG142: =VLOOKUP(B142,Species!B$3:AC$552,16,FALSE) -> 0 | AH142: =VLOOKUP(B142,Species!B$3:AC$552,17,FALSE) -> 0 | AI142: =VLOOKUP(B142,Species!B$3:AC$552,18,FALSE) -> 0 | AJ142: =VLOOKUP(B142,Species!B$3:AC$552,19,FALSE) -> X | AK142: =VLOOKUP(B142,Species!B$3:AC$552,20,FALSE) -> 0 | AL142: =VLOOKUP(B142,Species!B$3:AJ$552,35,FALSE) -> 0 | AM142: =VLOOKUP(B142,Species!B$3:AH$552,33,FALSE) -> 0 | AN142: =VLOOKUP(B142,Species!B$3:I$552,8,FALSE) -> No | AO142: =VLOOKUP(B142,Species!B$3:BC$552,54,FALSE) -> 0 | AP142: =VLOOKUP(B142,Species!B$3:BE$552,55,FALSE) -> 0 | AQ142: =VLOOKUP(B142,Species!B$3:BE$552,56,FALSE) -> 0 | AY142: =HYPERLINK(VLOOKUP(B142,Species!B$3:BF$552,57,FALSE)) -> http://plants.usda.gov/core/profile?symbol=CAST8 | AZ142: =VLOOKUP(B142,Species!B$3:C$552,2,FALSE) -> Carex stricta | BA142: =IF((G142>0),(K142*G142),0) -> 0 | BB142: =IF((E142>0)<>(F142>0),((U142/R142)+(K142*G142)),"0.000") -> 0.000 | BC142: =SUM(BA142:BB142) -> 0
B143: =Species!$B133 -> Virginia Wildrye | C143: Elymus virginicus | H143: =BC143 -> 0 | I143: 0.00 | K143: =VLOOKUP(B143,Species!B$3:Y$552,24,FALSE) -> 15 | L143: =VLOOKUP(B143,Species!B$3:AJ$552,35,FALSE) -> 0 | M143: =VLOOKUP(B143,Species!B$3:AD$552,29,FALSE) -> 5 | N143: =VLOOKUP(B143,Species!B$3:AB$552,27,FALSE) -> 41.426 | O143: 0 | P143: =VLOOKUP(B143,Species!B$3:AF$552,31,FALSE) -> Perennial Cool Season Grass | Q143: =VLOOKUP(B143,Species!B$3:D$552,3,FALSE) -> Grass | R143: =VLOOKUP(B143,Species!B$3:W$552,22,FALSE) -> 1.831955923 | S143: 0 | T143: 0 | U143: 0 | W143: 0 | X143: =VLOOKUP(B143,Species!B$3:F$552,5,FALSE) -> Yes | Y143: =VLOOKUP(B143,Species!B$3:AC$552,28,FALSE) -> Native | Z143: =VLOOKUP(B143,Species!B$3:AC$552,9,FALSE) ->  | AA143: =VLOOKUP(B143,Species!B$3:AC$552,10,FALSE) -> X | AB143: =VLOOKUP(B143,Species!B$3:AC$552,11,FALSE) -> X | AC143: =VLOOKUP(B143,Species!B$3:AC$552,12,FALSE) ->  | AD143: =VLOOKUP(B143,Species!B$3:AC$552,13,FALSE) -> X | AE143: =VLOOKUP(B143,Species!B$3:AC$552,14,FALSE) -> X | AF143: =VLOOKUP(B143,Species!B$3:AC$552,15,FALSE) -> 0 | AG143: =VLOOKUP(B143,Species!B$3:AC$552,16,FALSE) -> X | AH143: =VLOOKUP(B143,Species!B$3:AC$552,17,FALSE) -> X | AI143: =VLOOKUP(B143,Species!B$3:AC$552,18,FALSE) -> 0 | AJ143: =VLOOKUP(B143,Species!B$3:AC$552,19,FALSE) -> X | AK143: =VLOOKUP(B143,Species!B$3:AC$552,20,FALSE) -> X | AL143: =VLOOKUP(B143,Species!B$3:AJ$552,35,FALSE) -> 0 | AM143: =VLOOKUP(B143,Species!B$3:AH$552,33,FALSE) -> 0 | AN143: =VLOOKUP(B143,Species!B$3:I$552,8,FALSE) -> Yes | AO143: =VLOOKUP(B143,Species!B$3:BC$552,54,FALSE) -> 0 | AP143: =VLOOKUP(B143,Species!B$3:BE$552,55,FALSE) -> 0 | AQ143: =VLOOKUP(B143,Species!B$3:BE$552,56,FALSE) -> 0 | AY143: =HYPERLINK(VLOOKUP(B143,Species!B$3:BF$552,57,FALSE)) -> http://plants.usda.gov/core/profile?symbol=ELVI3 | AZ143: =VLOOKUP(B143,Species!B$3:C$552,2,FALSE) -> Elymus virginicus | BA143: 0 | BB143: 0.000 | BC143: 0
B144: =Species!$B134 -> Water Sedge | C144: Carex aquatilis | H144: 0 | I144: 0.00 | K144: =VLOOKUP(B144,Species!B$3:Y$552,24,FALSE) -> 0 | L144: =VLOOKUP(B144,Species!B$3:AJ$552,35,FALSE) -> 0 | M144: =VLOOKUP(B144,Species!B$3:AD$552,29,FALSE) -> 10 | N144: =VLOOKUP(B144,Species!B$3:AB$552,27,FALSE) -> 800 | O144: 0 | P144: =VLOOKUP(B144,Species!B$3:AF$552,31,FALSE) -> Perennial Cool Season Sedge | Q144: =VLOOKUP(B144,Species!B$3:D$552,3,FALSE) -> Grass | R144: =VLOOKUP(B144,Species!B$3:W$552,22,FALSE) -> 0 | S144: 0 | T144: 0 | U144: 0 | W144: 0 | X144: =VLOOKUP(B144,Species!B$3:F$552,5,FALSE) -> No | Y144: =VLOOKUP(B144,Species!B$3:AC$552,28,FALSE) -> Native | Z144: =VLOOKUP(B144,Species!B$3:AC$552,9,FALSE) ->  | AA144: =VLOOKUP(B144,Species!B$3:AC$552,10,FALSE) ->  | AB144: =VLOOKUP(B144,Species!B$3:AC$552,11,FALSE) -> X | AC144: =VLOOKUP(B144,Species!B$3:AC$552,12,FALSE) -> 0 | AD144: =VLOOKUP(B144,Species!B$3:AC$552,13,FALSE) -> 0 | AE144: =VLOOKUP(B144,Species!B$3:AC$552,14,FALSE) -> 0 | AF144: =VLOOKUP(B144,Species!B$3:AC$552,15,FALSE) -> 0 | AG144: =VLOOKUP(B144,Species!B$3:AC$552,16,FALSE) ->  | AH144: =VLOOKUP(B144,Species!B$3:AC$552,17,FALSE) -> 0 | AI144: =VLOOKUP(B144,Species!B$3:AC$552,18,FALSE) -> 0 | AJ144: =VLOOKUP(B144,Species!B$3:AC$552,19,FALSE) -> X | AK144: =VLOOKUP(B144,Species!B$3:AC$552,20,FALSE) ->  | AL144: =VLOOKUP(B144,Species!B$3:AJ$552,35,FALSE) -> 0 | AM144: =VLOOKUP(B144,Species!B$3:AH$552,33,FALSE) -> 0 | AN144: =VLOOKUP(B144,Species!B$3:I$552,8,FALSE) -> No | AO144: =VLOOKUP(B144,Species!B$3:BC$552,54,FALSE) -> 0 | AP144: =VLOOKUP(B144,Species!B$3:BE$552,55,FALSE) -> 0 | AQ144: =VLOOKUP(B144,Species!B$3:BE$552,56,FALSE) -> 0 | AY144: =HYPERLINK(VLOOKUP(B144,Species!B$3:BF$552,57,FALSE)) ->  | AZ144: =VLOOKUP(B144,Species!B$3:C$552,2,FALSE) -> Carex aquatilis | BA144: 0 | BB144: 0.000 | BC144: 0
B145: =Species!$B135 -> Western Wheatgrass | C145: Elymus smithii | H145: 0 | I145: 0.00 | K145: =VLOOKUP(B145,Species!B$3:Y$552,24,FALSE) -> 0 | L145: =VLOOKUP(B145,Species!B$3:AJ$552,35,FALSE) -> 0 | M145: =VLOOKUP(B145,Species!B$3:AD$552,29,FALSE) -> 0 | N145: =VLOOKUP(B145,Species!B$3:AB$552,27,FALSE) -> 8.43 | O145: 0 | P145: =VLOOKUP(B145,Species!B$3:AF$552,31,FALSE) -> Perennial Cool Season Grass | Q145: =VLOOKUP(B145,Species!B$3:D$552,3,FALSE) -> Grass | R145: =VLOOKUP(B145,Species!B$3:W$552,22,FALSE) -> 2.525252525 | S145: 0 | T145: 0 | U145: 0 | W145: 0 | X145: =VLOOKUP(B145,Species!B$3:F$552,5,FALSE) -> Yes | Y145: =VLOOKUP(B145,Species!B$3:AC$552,28,FALSE) -> Native | Z145: =VLOOKUP(B145,Species!B$3:AC$552,9,FALSE) -> X | AA145: =VLOOKUP(B145,Species!B$3:AC$552,10,FALSE) -> X | AB145: =VLOOKUP(B145,Species!B$3:AC$552,11,FALSE) -> X | AC145: =VLOOKUP(B145,Species!B$3:AC$552,12,FALSE) -> X | AD145: =VLOOKUP(B145,Species!B$3:AC$552,13,FALSE) -> X | AE145: =VLOOKUP(B145,Species!B$3:AC$552,14,FALSE) -> X | AF145: =VLOOKUP(B145,Species!B$3:AC$552,15,FALSE) -> 0 | AG145: =VLOOKUP(B145,Species!B$3:AC$552,16,FALSE) -> X | AH145: =VLOOKUP(B145,Species!B$3:AC$552,17,FALSE) -> 0 | AI145: =VLOOKUP(B145,Species!B$3:AC$552,18,FALSE) -> 0 | AJ145: =VLOOKUP(B145,Species!B$3:AC$552,19,FALSE) -> X | AK145: =VLOOKUP(B145,Species!B$3:AC$552,20,FALSE) ->  | AL145: =VLOOKUP(B145,Species!B$3:AJ$552,35,FALSE) -> 0 | AM145: =VLOOKUP(B145,Species!B$3:AH$552,33,FALSE) -> 0 | AN145: =VLOOKUP(B145,Species!B$3:I$552,8,FALSE) -> Yes | AO145: =VLOOKUP(B145,Species!B$3:BC$552,54,FALSE) -> 0 | AP145: =VLOOKUP(B145,Species!B$3:BE$552,55,FALSE) -> 0 | AQ145: =VLOOKUP(B145,Species!B$3:BE$552,56,FALSE) -> 0 | AY145: =HYPERLINK(VLOOKUP(B145,Species!B$3:BF$552,57,FALSE)) -> http://plants.usda.gov/core/profile?symbol=PASM | AZ145: =VLOOKUP(B145,Species!B$3:C$552,2,FALSE) -> Elymus smithii | BA145: 0 | BB145: 0.000 | BC145: 0
B146: =Species!$B136 -> Wheat Sedge | C146: Carex atherodes | H146: 0 | I146: 0.00 | K146: =VLOOKUP(B146,Species!B$3:Y$552,24,FALSE) -> 0 | L146: =VLOOKUP(B146,Species!B$3:AJ$552,35,FALSE) -> 0 | M146: =VLOOKUP(B146,Species!B$3:AD$552,29,FALSE) -> 0 | N146: =VLOOKUP(B146,Species!B$3:AB$552,27,FALSE) -> 640 | O146: 0 | P146: =VLOOKUP(B146,Species!B$3:AF$552,31,FALSE) -> Perennial Cool Season Sedge | Q146: =VLOOKUP(B146,Species!B$3:D$552,3,FALSE) -> Grass | R146: =VLOOKUP(B146,Species!B$3:W$552,22,FALSE) -> 0 | S146: 0 | T146: 0 | U146: 0 | W146: 0 | X146: =VLOOKUP(B146,Species!B$3:F$552,5,FALSE) -> No | Y146: =VLOOKUP(B146,Species!B$3:AC$552,28,FALSE) -> Native | Z146: =VLOOKUP(B146,Species!B$3:AC$552,9,FALSE) ->  | AA146: =VLOOKUP(B146,Species!B$3:AC$552,10,FALSE) ->  | AB146: =VLOOKUP(B146,Species!B$3:AC$552,11,FALSE) -> X | AC146: =VLOOKUP(B146,Species!B$3:AC$552,12,FALSE) -> 0 | AD146: =VLOOKUP(B146,Species!B$3:AC$552,13,FALSE) -> 0 | AE146: =VLOOKUP(B146,Species!B$3:AC$552,14,FALSE) -> X | AF146: =VLOOKUP(B146,Species!B$3:AC$552,15,FALSE) -> 0 | AG146: =VLOOKUP(B146,Species!B$3:AC$552,16,FALSE) -> 0 | AH146: =VLOOKUP(B146,Species!B$3:AC$552,17,FALSE) -> 0 | AI146: =VLOOKUP(B146,Species!B$3:AC$552,18,FALSE) -> 0 | AJ146: =VLOOKUP(B146,Species!B$3:AC$552,19,FALSE) -> 0 | AK146: =VLOOKUP(B146,Species!B$3:AC$552,20,FALSE) -> X | AL146: =VLOOKUP(B146,Species!B$3:AJ$552,35,FALSE) -> 0 | AM146: =VLOOKUP(B146,Species!B$3:AH$552,33,FALSE) -> 0 | AN146: =VLOOKUP(B146,Species!B$3:I$552,8,FALSE) -> No | AO146: =VLOOKUP(B146,Species!B$3:BC$552,54,FALSE) -> 0 | AP146: =VLOOKUP(B146,Species!B$3:BE$552,55,FALSE) -> 0 | AQ146: =VLOOKUP(B146,Species!B$3:BE$552,56,FALSE) -> 0 | AY146: =HYPERLINK(VLOOKUP(B146,Species!B$3:BF$552,57,FALSE)) ->  | AZ146: =VLOOKUP(B146,Species!B$3:C$552,2,FALSE) -> Carex atherodes | BA146: 0 | BB146: 0.000 | BC146: 0
B147: =Species!$B137 -> Winter Bentgrass | C147: Agrostis hyemalis | H147: 0 | I147: 0.00 | K147: =VLOOKUP(B147,Species!B$3:Y$552,24,FALSE) -> 0 | L147: =VLOOKUP(B147,Species!B$3:AJ$552,35,FALSE) -> 0 | M147: =VLOOKUP(B147,Species!B$3:AD$552,29,FALSE) -> 3 | N147: =VLOOKUP(B147,Species!B$3:AB$552,27,FALSE) -> 0 | O147: 0 | P147: =VLOOKUP(B147,Species!B$3:AF$552,31,FALSE) -> Perennial Cool Season Grass | Q147: =VLOOKUP(B147,Species!B$3:D$552,3,FALSE) -> Grass | R147: =VLOOKUP(B147,Species!B$3:W$552,22,FALSE) -> 195.1331497 | S147: 0 | T147: 0 | U147: 0 | W147: 0 | X147: =VLOOKUP(B147,Species!B$3:F$552,5,FALSE) -> Yes | Y147: =VLOOKUP(B147,Species!B$3:AC$552,28,FALSE) -> Native | Z147: =VLOOKUP(B147,Species!B$3:AC$552,9,FALSE) -> 0 | AA147: =VLOOKUP(B147,Species!B$3:AC$552,10,FALSE) -> X | AB147: =VLOOKUP(B147,Species!B$3:AC$552,11,FALSE) -> X | AC147: =VLOOKUP(B147,Species!B$3:AC$552,12,FALSE) -> X | AD147: =VLOOKUP(B147,Species!B$3:AC$552,13,FALSE) -> X | AE147: =VLOOKUP(B147,Species!B$3:AC$552,14,FALSE) -> X | AF147: =VLOOKUP(B147,Species!B$3:AC$552,15,FALSE) -> 0 | AG147: =VLOOKUP(B147,Species!B$3:AC$552,16,FALSE) -> X | AH147: =VLOOKUP(B147,Species!B$3:AC$552,17,FALSE) -> 0 | AI147: =VLOOKUP(B147,Species!B$3:AC$552,18,FALSE) -> 0 | AJ147: =VLOOKUP(B147,Species!B$3:AC$552,19,FALSE) -> 0 | AK147: =VLOOKUP(B147,Species!B$3:AC$552,20,FALSE) -> 0 | AL147: =VLOOKUP(B147,Species!B$3:AJ$552,35,FALSE) -> 0 | AM147: =VLOOKUP(B147,Species!B$3:AH$552,33,FALSE) -> 0 | AN147: =VLOOKUP(B147,Species!B$3:I$552,8,FALSE) -> No | AO147: =VLOOKUP(B147,Species!B$3:BC$552,54,FALSE) -> 0 | AP147: =VLOOKUP(B147,Species!B$3:BE$552,55,FALSE) -> 0 | AQ147: =VLOOKUP(B147,Species!B$3:BE$552,56,FALSE) -> 0 | AY147: =HYPERLINK(VLOOKUP(B147,Species!B$3:BF$552,57,FALSE)) -> http://plants.usda.gov/core/profile?symbol=AGHY | AZ147: =VLOOKUP(B147,Species!B$3:C$552,2,FALSE) -> Agrostis hyemalis | BA147: 0 | BB147: 0.000 | BC147: 0
B148: =Species!$B138 -> Wirestem Muhly | C148: Muhlenbergia mexicana | H148: 0 | I148: 0.00 | K148: =VLOOKUP(B148,Species!B$3:Y$552,24,FALSE) -> 0 | L148: =VLOOKUP(B148,Species!B$3:AJ$552,35,FALSE) -> 0 | M148: =VLOOKUP(B148,Species!B$3:AD$552,29,FALSE) -> 6 | N148: =VLOOKUP(B148,Species!B$3:AB$552,27,FALSE) -> 375 | O148: 0 | P148: =VLOOKUP(B148,Species!B$3:AF$552,31,FALSE) -> Perennial Warm Season Grass | Q148: =VLOOKUP(B148,Species!B$3:D$552,3,FALSE) -> Grass | R148: =VLOOKUP(B148,Species!B$3:W$552,22,FALSE) -> 0 | S148: 0 | T148: 0 | U148: 0 | W148: 0 | X148: =VLOOKUP(B148,Species!B$3:F$552,5,FALSE) -> No | Y148: =VLOOKUP(B148,Species!B$3:AC$552,28,FALSE) -> Native | Z148: =VLOOKUP(B148,Species!B$3:AC$552,9,FALSE) ->  | AA148: =VLOOKUP(B148,Species!B$3:AC$552,10,FALSE) ->  | AB148: =VLOOKUP(B148,Species!B$3:AC$552,11,FALSE) -> X | AC148: =VLOOKUP(B148,Species!B$3:AC$552,12,FALSE) -> X | AD148: =VLOOKUP(B148,Species!B$3:AC$552,13,FALSE) -> 0 | AE148: =VLOOKUP(B148,Species!B$3:AC$552,14,FALSE) -> 0 | AF148: =VLOOKUP(B148,Species!B$3:AC$552,15,FALSE) -> 0 | AG148: =VLOOKUP(B148,Species!B$3:AC$552,16,FALSE) -> X | AH148: =VLOOKUP(B148,Species!B$3:AC$552,17,FALSE) -> 0 | AI148: =VLOOKUP(B148,Species!B$3:AC$552,18,FALSE) -> 0 | AJ148: =VLOOKUP(B148,Species!B$3:AC$552,19,FALSE) -> X | AK148: =VLOOKUP(B148,Species!B$3:AC$552,20,FALSE) -> X | AL148: =VLOOKUP(B148,Species!B$3:AJ$552,35,FALSE) -> 0 | AM148: =VLOOKUP(B148,Species!B$3:AH$552,33,FALSE) -> 0 | AN148: =VLOOKUP(B148,Species!B$3:I$552,8,FALSE) -> No | AO148: =VLOOKUP(B148,Species!B$3:BC$552,54,FALSE) -> 0 | AP148: =VLOOKUP(B148,Species!B$3:BE$552,55,FALSE) -> 0 | AQ148: =VLOOKUP(B148,Species!B$3:BE$552,56,FALSE) -> 0 | AY148: =HYPERLINK(VLOOKUP(B148,Species!B$3:BF$552,57,FALSE)) -> http://plants.usda.gov/java/profile?symbol=CAFR3 | AZ148: =VLOOKUP(B148,Species!B$3:C$552,2,FALSE) -> Muhlenbergia mexicana | BA148: 0 | BB148: 0.000 | BC148: 0
B149: =Species!$B139 -> Woolgrass | C149: Scirpus cyperinus | H149: 0 | I149: 0.00 | J149: =IF((F149<0.001),((E149+I149)/(PLSft2Total1+PLSft2Total2)),"0.00") ->  | K149: =VLOOKUP(B149,Species!B$3:Y$552,24,FALSE) -> 0 | L149: =VLOOKUP(B149,Species!B$3:AJ$552,35,FALSE) -> 0 | M149: =VLOOKUP(B149,Species!B$3:AD$552,29,FALSE) -> 5 | N149: =VLOOKUP(B149,Species!B$3:AB$552,27,FALSE) -> 122.5 | O149: 0 | P149: =VLOOKUP(B149,Species!B$3:AF$552,31,FALSE) -> Perennial Cool Season Sedge | Q149: =VLOOKUP(B149,Species!B$3:D$552,3,FALSE) -> Grass | R149: =VLOOKUP(B149,Species!B$3:W$552,22,FALSE) -> 0 | S149: 0 | T149: 0 | U149: 0 | W149: 0 | X149: =VLOOKUP(B149,Species!B$3:F$552,5,FALSE) -> No | Y149: =VLOOKUP(B149,Species!B$3:AC$552,28,FALSE) -> Native | Z149: =VLOOKUP(B149,Species!B$3:AC$552,9,FALSE) ->  | AA149: =VLOOKUP(B149,Species!B$3:AC$552,10,FALSE) ->  | AB149: =VLOOKUP(B149,Species!B$3:AC$552,11,FALSE) -> X | AC149: =VLOOKUP(B149,Species!B$3:AC$552,12,FALSE) -> X | AD149: =VLOOKUP(B149,Species!B$3:AC$552,13,FALSE) -> 0 | AE149: =VLOOKUP(B149,Species!B$3:AC$552,14,FALSE) -> 0 | AF149: =VLOOKUP(B149,Species!B$3:AC$552,15,FALSE) -> 0 | AG149: =VLOOKUP(B149,Species!B$3:AC$552,16,FALSE) -> X | AH149: =VLOOKUP(B149,Species!B$3:AC$552,17,FALSE) -> 0 | AI149: =VLOOKUP(B149,Species!B$3:AC$552,18,FALSE) -> 0 | AJ149: =VLOOKUP(B149,Species!B$3:AC$552,19,FALSE) -> X | AK149: =VLOOKUP(B149,Species!B$3:AC$552,20,FALSE) ->  | AL149: =VLOOKUP(B149,Species!B$3:AJ$552,35,FALSE) -> 0 | AM149: =VLOOKUP(B149,Species!B$3:AH$552,33,FALSE) -> 0 | AN149: =VLOOKUP(B149,Species!B$3:I$552,8,FALSE) -> No | AO149: =VLOOKUP(B149,Species!B$3:BC$552,54,FALSE) -> 0 | AP149: =VLOOKUP(B149,Species!B$3:BE$552,55,FALSE) -> 0 | AQ149: =VLOOKUP(B149,Species!B$3:BE$552,56,FALSE) -> 0 | AY149: =HYPERLINK(VLOOKUP(B149,Species!B$3:BF$552,57,FALSE)) -> http://plants.usda.gov/java/profile?symbol=BRKA2 | AZ149: =VLOOKUP(B149,Species!B$3:C$552,2,FALSE) -> Scirpus cyperinus | BA149: 0 | BB149: 0.000 | BC149: 0
B150: =Species!$B140 -> Woolly Sedge | C150: Carex pellita | H150: 0 | I150: 0.00 | J150: =IF((F150<0.001),((E150+I150)/(PLSft2Total1+PLSft2Total2)),"0.00") ->  | K150: =VLOOKUP(B150,Species!B$3:Y$552,24,FALSE) -> 0 | L150: =VLOOKUP(B150,Species!B$3:AJ$552,35,FALSE) -> 0 | M150: =VLOOKUP(B150,Species!B$3:AD$552,29,FALSE) -> 5 | N150: =VLOOKUP(B150,Species!B$3:AB$552,27,FALSE) -> 1280 | O150: =((N150*(D150+H150))) -> 0 | P150: =VLOOKUP(B150,Species!B$3:AF$552,31,FALSE) -> Perennial Cool Season Sedge | Q150: =VLOOKUP(B150,Species!B$3:D$552,3,FALSE) -> Grass | R150: =VLOOKUP(B150,Species!B$3:W$552,22,FALSE) -> 0 | S150: =(G150*K150)*R150 -> 0 | T150: =D150+H150 -> 0 | U150: =I150+E150 -> 0 | V150: =J150+F150 ->  | W150: =H150+D150 -> 0 | X150: =VLOOKUP(B150,Species!B$3:F$552,5,FALSE) -> No | Y150: =VLOOKUP(B150,Species!B$3:AC$552,28,FALSE) -> Native | Z150: =VLOOKUP(B150,Species!B$3:AC$552,9,FALSE) ->  | AA150: =VLOOKUP(B150,Species!B$3:AC$552,10,FALSE) ->  | AB150: =VLOOKUP(B150,Species!B$3:AC$552,11,FALSE) -> X | AC150: =VLOOKUP(B150,Species!B$3:AC$552,12,FALSE) -> 0 | AD150: =VLOOKUP(B150,Species!B$3:AC$552,13,FALSE) -> 0 | AE150: =VLOOKUP(B150,Species!B$3:AC$552,14,FALSE) -> X | AF150: =VLOOKUP(B150,Species!B$3:AC$552,15,FALSE) -> 0 | AG150: =VLOOKUP(B150,Species!B$3:AC$552,16,FALSE) ->  | AH150: =VLOOKUP(B150,Species!B$3:AC$552,17,FALSE) -> 0 | AI150: =VLOOKUP(B150,Species!B$3:AC$552,18,FALSE) -> 0 | AJ150: =VLOOKUP(B150,Species!B$3:AC$552,19,FALSE) -> X | AK150: =VLOOKUP(B150,Species!B$3:AC$552,20,FALSE) ->  | AL150: =VLOOKUP(B150,Species!B$3:AJ$552,35,FALSE) -> 0 | AM150: =VLOOKUP(B150,Species!B$3:AH$552,33,FALSE) -> 0 | AN150: =VLOOKUP(B150,Species!B$3:I$552,8,FALSE) -> No | AO150: =VLOOKUP(B150,Species!B$3:BC$552,54,FALSE) -> 0 | AP150: =VLOOKUP(B150,Species!B$3:BE$552,55,FALSE) -> 0 | AQ150: =VLOOKUP(B150,Species!B$3:BE$552,56,FALSE) -> 0 | AY150: =HYPERLINK(VLOOKUP(B150,Species!B$3:BF$552,57,FALSE)) ->  | AZ150: =VLOOKUP(B150,Species!B$3:C$552,2,FALSE) -> Carex pellita | BA150: 0 | BB150: 0.000 | BC150: 0
B151: =Species!$B141 -> Yellowfruit Sedge | C151: Carex annectens | H151: 0 | I151: 0.00 | K151: =VLOOKUP(B151,Species!B$3:Y$552,24,FALSE) -> 0 | L151: =VLOOKUP(B151,Species!B$3:AJ$552,35,FALSE) -> 0 | M151: =VLOOKUP(B151,Species!B$3:AD$552,29,FALSE) -> 4 | N151: =VLOOKUP(B151,Species!B$3:AB$552,27,FALSE) -> 265 | O151: =((N151*(D151+H151))) -> 0 | P151: =VLOOKUP(B151,Species!B$3:AF$552,31,FALSE) -> Perennial Cool Season Sedge | Q151: =VLOOKUP(B151,Species!B$3:D$552,3,FALSE) -> Grass | R151: =VLOOKUP(B151,Species!B$3:W$552,22,FALSE) -> 0 | S151: =(G151*K151)*R151 -> 0 | T151: =D151+H151 -> 0 | U151: =I151+E151 -> 0 | V151: =J151+F151 ->  | W151: =H151+D151 -> 0 | X151: =VLOOKUP(B151,Species!B$3:F$552,5,FALSE) -> Yes | Y151: =VLOOKUP(B151,Species!B$3:AC$552,28,FALSE) -> Native | Z151: =VLOOKUP(B151,Species!B$3:AC$552,9,FALSE) ->  | AA151: =VLOOKUP(B151,Species!B$3:AC$552,10,FALSE) ->  | AB151: =VLOOKUP(B151,Species!B$3:AC$552,11,FALSE) -> X | AC151: =VLOOKUP(B151,Species!B$3:AC$552,12,FALSE) -> 0 | AD151: =VLOOKUP(B151,Species!B$3:AC$552,13,FALSE) -> X | AE151: =VLOOKUP(B151,Species!B$3:AC$552,14,FALSE) -> X | AF151: =VLOOKUP(B151,Species!B$3:AC$552,15,FALSE) -> 0 | AG151: =VLOOKUP(B151,Species!B$3:AC$552,16,FALSE) -> 0 | AH151: =VLOOKUP(B151,Species!B$3:AC$552,17,FALSE) -> 0 | AI151: =VLOOKUP(B151,Species!B$3:AC$552,18,FALSE) -> X | AJ151: =VLOOKUP(B151,Species!B$3:AC$552,19,FALSE) -> X | AK151: =VLOOKUP(B151,Species!B$3:AC$552,20,FALSE) ->  | AL151: =VLOOKUP(B151,Species!B$3:AJ$552,35,FALSE) -> 0 | AM151: =VLOOKUP(B151,Species!B$3:AH$552,33,FALSE) -> 0 | AN151: =VLOOKUP(B151,Species!B$3:I$552,8,FALSE) -> No | AO151: =VLOOKUP(B151,Species!B$3:BC$552,54,FALSE) -> 0 | AP151: =VLOOKUP(B151,Species!B$3:BE$552,55,FALSE) -> 0 | AQ151: =VLOOKUP(B151,Species!B$3:BE$552,56,FALSE) -> 0 | AY151: =HYPERLINK(VLOOKUP(B151,Species!B$3:BF$552,57,FALSE)) -> https://plants.usda.gov/core/profile?symbol=CAAN6 | AZ151: =VLOOKUP(B151,Species!B$3:C$552,2,FALSE) -> Carex annectens | BA151: =IF((G151>0),(K151*G151),0) -> 0 | BB151: =IF((E151>0)<>(F151>0),((U151/R151)+(K151*G151)),"0.000") -> 0.000 | BC151: =SUM(BA151:BB151) -> 0
B152: =Species!$B142 -> Forbs / Legumes (1.0 lbs) | C152: =HYPERLINK(AY152,AZ152) -> various | H152: =BC152 -> 0 | I152: =IF((D152>0)<>(F152>0)<>(G152>0),((D152*R152)+(F152*B$2)+S152),"0.00") -> 0.00 | J152: =IF((F152<0.001),((E152+I152)/(PLSft2Total1+PLSft2Total2)),"0.00") ->  | K152: =VLOOKUP(B152,Species!B$3:Y$552,24,FALSE) -> 1 | L152: =VLOOKUP(B152,Species!B$3:AJ$552,35,FALSE) -> 0 | M152: =VLOOKUP(B152,Species!B$3:AD$552,29,FALSE) -> 0 | N152: =VLOOKUP(B152,Species!B$3:AB$552,27,FALSE) -> 60 | O152: =((N152*(D152+H152))) -> 0 | P152: =VLOOKUP(B152,Species!B$3:AF$552,31,FALSE) -> A / B / P Forbs, Legumes | Q152: =VLOOKUP(B152,Species!B$3:D$552,3,FALSE) -> Forb | R152: =VLOOKUP(B152,Species!B$3:W$552,22,FALSE) -> 0 | S152: =(G152*K152)*R152 -> 0 | T152: =D152+H152 -> 0 | U152: =I152+E152 -> 0 | V152: =J152+F152 ->  | W152: =H152+D152 -> 0 | X152: =VLOOKUP(B152,Species!B$3:F$552,5,FALSE) -> Yes | Y152: =VLOOKUP(B152,Species!B$3:AC$552,28,FALSE) -> Native | Z152: =VLOOKUP(B152,Species!B$3:AC$552,9,FALSE) -> X | AA152: =VLOOKUP(B152,Species!B$3:AC$552,10,FALSE) -> X | AB152: =VLOOKUP(B152,Species!B$3:AC$552,11,FALSE) -> X | AC152: =VLOOKUP(B152,Species!B$3:AC$552,12,FALSE) -> X | AD152: =VLOOKUP(B152,Species!B$3:AC$552,13,FALSE) -> X | AE152: =VLOOKUP(B152,Species!B$3:AC$552,14,FALSE) -> X | AF152: =VLOOKUP(B152,Species!B$3:AC$552,15,FALSE) -> X | AG152: =VLOOKUP(B152,Species!B$3:AC$552,16,FALSE) -> X | AH152: =VLOOKUP(B152,Species!B$3:AC$552,17,FALSE) -> X | AI152: =VLOOKUP(B152,Species!B$3:AC$552,18,FALSE) -> X | AJ152: =VLOOKUP(B152,Species!B$3:AC$552,19,FALSE) -> X | AK152: =VLOOKUP(B152,Species!B$3:AC$552,20,FALSE) -> X | AL152: =VLOOKUP(B152,Species!B$3:AJ$552,35,FALSE) -> 0 | AM152: =VLOOKUP(B152,Species!B$3:AH$552,33,FALSE) -> 0 | AN152: =VLOOKUP(B152,Species!B$3:I$552,8,FALSE) -> Yes | AO152: =VLOOKUP(B152,Species!B$3:BC$552,54,FALSE) -> 0 | AP152: =VLOOKUP(B152,Species!B$3:BE$552,55,FALSE) -> 0 | AQ152: =VLOOKUP(B152,Species!B$3:BE$552,56,FALSE) -> 0 | AR152: =IF(OR(D152>0,E152>0,F152>0,G152>0),"X","") ->  | AY152: =HYPERLINK(VLOOKUP(B152,Species!B$3:BF$552,57,FALSE)) ->  | AZ152: =VLOOKUP(B152,Species!B$3:C$552,2,FALSE) -> various | BA152: 0 | BB152: 0.000 | BC152: 0
B153: =Species!$B143 -> Forbs / Legumes (3.0 lbs) | C153: various | H153: =BC153 -> 0 | I153: 0.00 | K153: =VLOOKUP(B153,Species!B$3:Y$552,24,FALSE) -> 3 | L153: =VLOOKUP(B153,Species!B$3:AJ$552,35,FALSE) -> 0 | M153: =VLOOKUP(B153,Species!B$3:AD$552,29,FALSE) -> 0 | N153: =VLOOKUP(B153,Species!B$3:AB$552,27,FALSE) -> 60 | O153: 0 | P153: =VLOOKUP(B153,Species!B$3:AF$552,31,FALSE) -> A / B / P Forbs, Legumes | Q153: =VLOOKUP(B153,Species!B$3:D$552,3,FALSE) -> Forb | R153: =VLOOKUP(B153,Species!B$3:W$552,22,FALSE) -> 0 | S153: 0 | T153: 0 | U153: 0 | W153: 0 | X153: =VLOOKUP(B153,Species!B$3:F$552,5,FALSE) -> Yes | Y153: =VLOOKUP(B153,Species!B$3:AC$552,28,FALSE) -> Native | Z153: =VLOOKUP(B153,Species!B$3:AC$552,9,FALSE) -> X | AA153: =VLOOKUP(B153,Species!B$3:AC$552,10,FALSE) -> X | AB153: =VLOOKUP(B153,Species!B$3:AC$552,11,FALSE) -> X | AC153: =VLOOKUP(B153,Species!B$3:AC$552,12,FALSE) -> X | AD153: =VLOOKUP(B153,Species!B$3:AC$552,13,FALSE) -> X | AE153: =VLOOKUP(B153,Species!B$3:AC$552,14,FALSE) -> X | AF153: =VLOOKUP(B153,Species!B$3:AC$552,15,FALSE) -> X | AG153: =VLOOKUP(B153,Species!B$3:AC$552,16,FALSE) -> X | AH153: =VLOOKUP(B153,Species!B$3:AC$552,17,FALSE) -> X | AI153: =VLOOKUP(B153,Species!B$3:AC$552,18,FALSE) -> X | AJ153: =VLOOKUP(B153,Species!B$3:AC$552,19,FALSE) -> X | AK153: =VLOOKUP(B153,Species!B$3:AC$552,20,FALSE) -> X | AL153: =VLOOKUP(B153,Species!B$3:AJ$552,35,FALSE) -> 0 | AM153: =VLOOKUP(B153,Species!B$3:AH$552,33,FALSE) -> 0 | AN153: =VLOOKUP(B153,Species!B$3:I$552,8,FALSE) -> Yes | AO153: =VLOOKUP(B153,Species!B$3:BC$552,54,FALSE) -> 0 | AP153: =VLOOKUP(B153,Species!B$3:BE$552,55,FALSE) -> 0 | AQ153: =VLOOKUP(B153,Species!B$3:BE$552,56,FALSE) -> 0 | AY153: =HYPERLINK(VLOOKUP(B153,Species!B$3:BF$552,57,FALSE)) ->  | AZ153: =VLOOKUP(B153,Species!B$3:C$552,2,FALSE) -> various | BA153: 0 | BB153: =IF((E153>0)<>(F153>0),((U153/R153)+(K153*G153)),"0.000") -> 0.000 | BC153: =SUM(BA153:BB153) -> 0
B154: =Species!$B144 -> Forbs / Legumes (4.5 lbs) | C154: various | H154: =BC154 -> 0 | I154: 0.00 | K154: =VLOOKUP(B154,Species!B$3:Y$552,24,FALSE) -> 4.5 | L154: =VLOOKUP(B154,Species!B$3:AJ$552,35,FALSE) -> 0 | M154: =VLOOKUP(B154,Species!B$3:AD$552,29,FALSE) -> 0 | N154: =VLOOKUP(B154,Species!B$3:AB$552,27,FALSE) -> 60 | O154: 0 | P154: =VLOOKUP(B154,Species!B$3:AF$552,31,FALSE) -> A / B / P Forbs, Legumes | Q154: =VLOOKUP(B154,Species!B$3:D$552,3,FALSE) -> Forb | R154: =VLOOKUP(B154,Species!B$3:W$552,22,FALSE) -> 0 | S154: 0 | T154: 0 | U154: 0 | W154: 0 | X154: =VLOOKUP(B154,Species!B$3:F$552,5,FALSE) -> Yes | Y154: =VLOOKUP(B154,Species!B$3:AC$552,28,FALSE) -> Native | Z154: =VLOOKUP(B154,Species!B$3:AC$552,9,FALSE) -> X | AA154: =VLOOKUP(B154,Species!B$3:AC$552,10,FALSE) -> X | AB154: =VLOOKUP(B154,Species!B$3:AC$552,11,FALSE) -> X | AC154: =VLOOKUP(B154,Species!B$3:AC$552,12,FALSE) -> X | AD154: =VLOOKUP(B154,Species!B$3:AC$552,13,FALSE) -> X | AE154: =VLOOKUP(B154,Species!B$3:AC$552,14,FALSE) -> X | AF154: =VLOOKUP(B154,Species!B$3:AC$552,15,FALSE) -> X | AG154: =VLOOKUP(B154,Species!B$3:AC$552,16,FALSE) -> X | AH154: =VLOOKUP(B154,Species!B$3:AC$552,17,FALSE) -> X | AI154: =VLOOKUP(B154,Species!B$3:AC$552,18,FALSE) -> X | AJ154: =VLOOKUP(B154,Species!B$3:AC$552,19,FALSE) -> X | AK154: =VLOOKUP(B154,Species!B$3:AC$552,20,FALSE) -> X | AL154: =VLOOKUP(B154,Species!B$3:AJ$552,35,FALSE) -> 0 | AM154: =VLOOKUP(B154,Species!B$3:AH$552,33,FALSE) -> 0 | AN154: =VLOOKUP(B154,Species!B$3:I$552,8,FALSE) -> Yes | AO154: =VLOOKUP(B154,Species!B$3:BC$552,54,FALSE) -> 0 | AP154: =VLOOKUP(B154,Species!B$3:BE$552,55,FALSE) -> 0 | AQ154: =VLOOKUP(B154,Species!B$3:BE$552,56,FALSE) -> 0 | AY154: =HYPERLINK(VLOOKUP(B154,Species!B$3:BF$552,57,FALSE)) ->  | AZ154: =VLOOKUP(B154,Species!B$3:C$552,2,FALSE) -> various | BA154: 0 | BB154: 0.000 | BC154: 0
B155: =Species!$B145 -> Forbs / Legumes (5.0 lbs) | C155: various | H155: 0 | I155: 0.00 | K155: =VLOOKUP(B155,Species!B$3:Y$552,24,FALSE) -> 5 | L155: =VLOOKUP(B155,Species!B$3:AJ$552,35,FALSE) -> 0 | M155: =VLOOKUP(B155,Species!B$3:AD$552,29,FALSE) -> 0 | N155: =VLOOKUP(B155,Species!B$3:AB$552,27,FALSE) -> 60 | O155: 0 | P155: =VLOOKUP(B155,Species!B$3:AF$552,31,FALSE) -> A / B / P Forbs, Legumes | Q155: =VLOOKUP(B155,Species!B$3:D$552,3,FALSE) -> Forb | R155: =VLOOKUP(B155,Species!B$3:W$552,22,FALSE) -> 0 | S155: 0 | T155: 0 | U155: 0 | W155: 0 | X155: =VLOOKUP(B155,Species!B$3:F$552,5,FALSE) -> Yes | Y155: =VLOOKUP(B155,Species!B$3:AC$552,28,FALSE) -> Native | Z155: =VLOOKUP(B155,Species!B$3:AC$552,9,FALSE) -> X | AA155: =VLOOKUP(B155,Species!B$3:AC$552,10,FALSE) -> X | AB155: =VLOOKUP(B155,Species!B$3:AC$552,11,FALSE) -> X | AC155: =VLOOKUP(B155,Species!B$3:AC$552,12,FALSE) -> X | AD155: =VLOOKUP(B155,Species!B$3:AC$552,13,FALSE) -> X | AE155: =VLOOKUP(B155,Species!B$3:AC$552,14,FALSE) -> X | AF155: =VLOOKUP(B155,Species!B$3:AC$552,15,FALSE) -> X | AG155: =VLOOKUP(B155,Species!B$3:AC$552,16,FALSE) -> X | AH155: =VLOOKUP(B155,Species!B$3:AC$552,17,FALSE) -> X | AI155: =VLOOKUP(B155,Species!B$3:AC$552,18,FALSE) -> X | AJ155: =VLOOKUP(B155,Species!B$3:AC$552,19,FALSE) -> X | AK155: =VLOOKUP(B155,Species!B$3:AC$552,20,FALSE) -> X | AL155: =VLOOKUP(B155,Species!B$3:AJ$552,35,FALSE) -> 0 | AM155: =VLOOKUP(B155,Species!B$3:AH$552,33,FALSE) -> 0 | AN155: =VLOOKUP(B155,Species!B$3:I$552,8,FALSE) -> Yes | AO155: =VLOOKUP(B155,Species!B$3:BC$552,54,FALSE) -> 0 | AP155: =VLOOKUP(B155,Species!B$3:BE$552,55,FALSE) -> 0 | AQ155: =VLOOKUP(B155,Species!B$3:BE$552,56,FALSE) -> 0 | AY155: =HYPERLINK(VLOOKUP(B155,Species!B$3:BF$552,57,FALSE)) ->  | AZ155: =VLOOKUP(B155,Species!B$3:C$552,2,FALSE) -> various | BA155: 0 | BB155: =IF((E155>0)<>(F155>0),((U155/R155)+(K155*G155)),"0.000") -> 0.000 | BC155: =SUM(BA155:BB155) -> 0
B156: =Species!$B146 -> Forbs / Legumes (open) | C156: various | H156: 0 | I156: 0.00 | K156: =VLOOKUP(B156,Species!B$3:Y$552,24,FALSE) -> 0 | L156: =VLOOKUP(B156,Species!B$3:AJ$552,35,FALSE) -> 0 | M156: =VLOOKUP(B156,Species!B$3:AD$552,29,FALSE) -> 0 | N156: =VLOOKUP(B156,Species!B$3:AB$552,27,FALSE) -> 60 | O156: 0 | P156: =VLOOKUP(B156,Species!B$3:AF$552,31,FALSE) -> A / B / P Forbs, Legumes | Q156: =VLOOKUP(B156,Species!B$3:D$552,3,FALSE) -> Forb | R156: =VLOOKUP(B156,Species!B$3:W$552,22,FALSE) -> 10 | S156: 0 | T156: 0 | U156: 0 | W156: 0 | X156: =VLOOKUP(B156,Species!B$3:F$552,5,FALSE) -> Yes | Y156: =VLOOKUP(B156,Species!B$3:AC$552,28,FALSE) -> Native | Z156: =VLOOKUP(B156,Species!B$3:AC$552,9,FALSE) -> X | AA156: =VLOOKUP(B156,Species!B$3:AC$552,10,FALSE) -> X | AB156: =VLOOKUP(B156,Species!B$3:AC$552,11,FALSE) -> X | AC156: =VLOOKUP(B156,Species!B$3:AC$552,12,FALSE) -> X | AD156: =VLOOKUP(B156,Species!B$3:AC$552,13,FALSE) -> X | AE156: =VLOOKUP(B156,Species!B$3:AC$552,14,FALSE) -> X | AF156: =VLOOKUP(B156,Species!B$3:AC$552,15,FALSE) -> X | AG156: =VLOOKUP(B156,Species!B$3:AC$552,16,FALSE) -> X | AH156: =VLOOKUP(B156,Species!B$3:AC$552,17,FALSE) -> X | AI156: =VLOOKUP(B156,Species!B$3:AC$552,18,FALSE) -> X | AJ156: =VLOOKUP(B156,Species!B$3:AC$552,19,FALSE) -> X | AK156: =VLOOKUP(B156,Species!B$3:AC$552,20,FALSE) -> X | AL156: =VLOOKUP(B156,Species!B$3:AJ$552,35,FALSE) -> 0 | AM156: =VLOOKUP(B156,Species!B$3:AH$552,33,FALSE) -> 0 | AN156: =VLOOKUP(B156,Species!B$3:I$552,8,FALSE) -> Yes | AO156: =VLOOKUP(B156,Species!B$3:BC$552,54,FALSE) -> 0 | AP156: =VLOOKUP(B156,Species!B$3:BE$552,55,FALSE) -> 0 | AQ156: =VLOOKUP(B156,Species!B$3:BE$552,56,FALSE) -> 0 | AY156: =HYPERLINK(VLOOKUP(B156,Species!B$3:BF$552,57,FALSE)) ->  | AZ156: =VLOOKUP(B156,Species!B$3:C$552,2,FALSE) -> various | BA156: 0 | BB156: 0.000 | BC156: 0
B157: =Species!$B147 -> Adam and Eve Orchid | C157: Aplectrum hyemale | H157: 0 | I157: 0.00 | K157: =VLOOKUP(B157,Species!B$3:Y$552,24,FALSE) -> 0 | L157: =VLOOKUP(B157,Species!B$3:AJ$552,35,FALSE) -> 1 | M157: =VLOOKUP(B157,Species!B$3:AD$552,29,FALSE) -> 0 | N157: =VLOOKUP(B157,Species!B$3:AB$552,27,FALSE) -> 0 | O157: 0 | P157: =VLOOKUP(B157,Species!B$3:AF$552,31,FALSE) -> Perennial Forb | Q157: =VLOOKUP(B157,Species!B$3:D$552,3,FALSE) -> Forb | R157: =VLOOKUP(B157,Species!B$3:W$552,22,FALSE) -> 0 | S157: 0 | T157: 0 | U157: 0 | W157: 0 | X157: =VLOOKUP(B157,Species!B$3:F$552,5,FALSE) -> No | Y157: =VLOOKUP(B157,Species!B$3:AC$552,28,FALSE) -> Native | Z157: =VLOOKUP(B157,Species!B$3:AC$552,9,FALSE) -> 0 | AA157: =VLOOKUP(B157,Species!B$3:AC$552,10,FALSE) -> X | AB157: =VLOOKUP(B157,Species!B$3:AC$552,11,FALSE) -> 0 | AC157: =VLOOKUP(B157,Species!B$3:AC$552,12,FALSE) -> 0 | AD157: =VLOOKUP(B157,Species!B$3:AC$552,13,FALSE) -> 0 | AE157: =VLOOKUP(B157,Species!B$3:AC$552,14,FALSE) -> 0 | AF157: =VLOOKUP(B157,Species!B$3:AC$552,15,FALSE) -> 0 | AG157: =VLOOKUP(B157,Species!B$3:AC$552,16,FALSE) -> 0 | AH157: =VLOOKUP(B157,Species!B$3:AC$552,17,FALSE) -> 0 | AI157: =VLOOKUP(B157,Species!B$3:AC$552,18,FALSE) -> 0 | AJ157: =VLOOKUP(B157,Species!B$3:AC$552,19,FALSE) -> 0 | AK157: =VLOOKUP(B157,Species!B$3:AC$552,20,FALSE) -> X | AL157: =VLOOKUP(B157,Species!B$3:AJ$552,35,FALSE) -> 1 | AM157: =VLOOKUP(B157,Species!B$3:AH$552,33,FALSE) -> Red / Orange | AN157: =VLOOKUP(B157,Species!B$3:I$552,8,FALSE) -> No | AO157: =VLOOKUP(B157,Species!B$3:BC$552,54,FALSE) -> 0 | AP157: =VLOOKUP(B157,Species!B$3:BE$552,55,FALSE) -> 0 | AQ157: =VLOOKUP(B157,Species!B$3:BE$552,56,FALSE) -> 0 | AY157: =HYPERLINK(VLOOKUP(B157,Species!B$3:BF$552,57,FALSE)) ->  | AZ157: =VLOOKUP(B157,Species!B$3:C$552,2,FALSE) -> Aplectrum hyemale | BA157: 0 | BB157: 0.000 | BC157: 0
B158: =Species!$B148 -> Alfalfa | C158: Medicago sativa | H158: 0 | I158: 0.00 | K158: =VLOOKUP(B158,Species!B$3:Y$552,24,FALSE) -> 7.5 | L158: =VLOOKUP(B158,Species!B$3:AJ$552,35,FALSE) -> 1 | M158: =VLOOKUP(B158,Species!B$3:AD$552,29,FALSE) -> N/A | N158: =VLOOKUP(B158,Species!B$3:AB$552,27,FALSE) -> 4.9 | O158: 0 | P158: =VLOOKUP(B158,Species!B$3:AF$552,31,FALSE) -> Perennial Forb, Legume | Q158: =VLOOKUP(B158,Species!B$3:D$552,3,FALSE) -> Forb | R158: =VLOOKUP(B158,Species!B$3:W$552,22,FALSE) -> 5.20661157 | S158: 0 | T158: 0 | U158: 0 | W158: 0 | X158: =VLOOKUP(B158,Species!B$3:F$552,5,FALSE) -> Yes | Y158: =VLOOKUP(B158,Species!B$3:AC$552,28,FALSE) -> Introduced | Z158: =VLOOKUP(B158,Species!B$3:AC$552,9,FALSE) -> X | AA158: =VLOOKUP(B158,Species!B$3:AC$552,10,FALSE) -> X | AB158: =VLOOKUP(B158,Species!B$3:AC$552,11,FALSE) -> 0 | AC158: =VLOOKUP(B158,Species!B$3:AC$552,12,FALSE) -> 0 | AD158: =VLOOKUP(B158,Species!B$3:AC$552,13,FALSE) -> 0 | AE158: =VLOOKUP(B158,Species!B$3:AC$552,14,FALSE) -> 0 | AF158: =VLOOKUP(B158,Species!B$3:AC$552,15,FALSE) -> 0 | AG158: =VLOOKUP(B158,Species!B$3:AC$552,16,FALSE) -> 0 | AH158: =VLOOKUP(B158,Species!B$3:AC$552,17,FALSE) -> 0 | AI158: =VLOOKUP(B158,Species!B$3:AC$552,18,FALSE) -> 0 | AJ158: =VLOOKUP(B158,Species!B$3:AC$552,19,FALSE) -> 0 | AK158: =VLOOKUP(B158,Species!B$3:AC$552,20,FALSE) -> 0 | AL158: =VLOOKUP(B158,Species!B$3:AJ$552,35,FALSE) -> 1 | AM158: =VLOOKUP(B158,Species!B$3:AH$552,33,FALSE) -> Blue / Purple | AN158: =VLOOKUP(B158,Species!B$3:I$552,8,FALSE) -> Yes | AO158: =VLOOKUP(B158,Species!B$3:BC$552,54,FALSE) -> 0 | AP158: =VLOOKUP(B158,Species!B$3:BE$552,55,FALSE) -> X | AQ158: =VLOOKUP(B158,Species!B$3:BE$552,56,FALSE) -> 0 | AY158: =HYPERLINK(VLOOKUP(B158,Species!B$3:BF$552,57,FALSE)) -> http://plants.usda.gov/core/profile?symbol=MESA | AZ158: =VLOOKUP(B158,Species!B$3:C$552,2,FALSE) -> Medicago sativa | BA158: 0 | BB158: 0.000 | BC158: 0
B159: =Species!$B149 -> Allegheny Monkeyflower | C159: Mimulus ringens | H159: 0 | I159: 0.00 | K159: =VLOOKUP(B159,Species!B$3:Y$552,24,FALSE) -> 0 | L159: =VLOOKUP(B159,Species!B$3:AJ$552,35,FALSE) -> 2 | M159: =VLOOKUP(B159,Species!B$3:AD$552,29,FALSE) -> 5 | N159: =VLOOKUP(B159,Species!B$3:AB$552,27,FALSE) -> 501.09 | O159: 0 | P159: =VLOOKUP(B159,Species!B$3:AF$552,31,FALSE) -> Perennial Forb | Q159: =VLOOKUP(B159,Species!B$3:D$552,3,FALSE) -> Forb | R159: =VLOOKUP(B159,Species!B$3:W$552,22,FALSE) -> 0 | S159: 0 | T159: 0 | U159: 0 | W159: 0 | X159: =VLOOKUP(B159,Species!B$3:F$552,5,FALSE) -> No | Y159: =VLOOKUP(B159,Species!B$3:AC$552,28,FALSE) -> Native | Z159: =VLOOKUP(B159,Species!B$3:AC$552,9,FALSE) ->  | AA159: =VLOOKUP(B159,Species!B$3:AC$552,10,FALSE) ->  | AB159: =VLOOKUP(B159,Species!B$3:AC$552,11,FALSE) -> X | AC159: =VLOOKUP(B159,Species!B$3:AC$552,12,FALSE) -> 0 | AD159: =VLOOKUP(B159,Species!B$3:AC$552,13,FALSE) -> 0 | AE159: =VLOOKUP(B159,Species!B$3:AC$552,14,FALSE) -> X | AF159: =VLOOKUP(B159,Species!B$3:AC$552,15,FALSE) -> 0 | AG159: =VLOOKUP(B159,Species!B$3:AC$552,16,FALSE) -> 0 | AH159: =VLOOKUP(B159,Species!B$3:AC$552,17,FALSE) -> 0 | AI159: =VLOOKUP(B159,Species!B$3:AC$552,18,FALSE) -> 0 | AJ159: =VLOOKUP(B159,Species!B$3:AC$552,19,FALSE) -> X | AK159: =VLOOKUP(B159,Species!B$3:AC$552,20,FALSE) -> 0 | AL159: =VLOOKUP(B159,Species!B$3:AJ$552,35,FALSE) -> 2 | AM159: =VLOOKUP(B159,Species!B$3:AH$552,33,FALSE) -> Blue / Purple | AN159: =VLOOKUP(B159,Species!B$3:I$552,8,FALSE) -> No | AO159: =VLOOKUP(B159,Species!B$3:BC$552,54,FALSE) -> 0 | AP159: =VLOOKUP(B159,Species!B$3:BE$552,55,FALSE) -> 0 | AQ159: =VLOOKUP(B159,Species!B$3:BE$552,56,FALSE) -> 0 | AY159: =HYPERLINK(VLOOKUP(B159,Species!B$3:BF$552,57,FALSE)) -> http://plants.usda.gov/core/profile?symbol=MIRI | AZ159: =VLOOKUP(B159,Species!B$3:C$552,2,FALSE) -> Mimulus ringens | BA159: 0 | BB159: 0.000 | BC159: 0
B160: =Species!$B150 -> Alsike Clover | C160: Trifolium hybridum | H160: 0 | I160: 0.00 | K160: =VLOOKUP(B160,Species!B$3:Y$552,24,FALSE) -> 3.2 | L160: =VLOOKUP(B160,Species!B$3:AJ$552,35,FALSE) -> 2 | M160: =VLOOKUP(B160,Species!B$3:AD$552,29,FALSE) -> N/A | N160: =VLOOKUP(B160,Species!B$3:AB$552,27,FALSE) -> 5.13 | O160: 0 | P160: =VLOOKUP(B160,Species!B$3:AF$552,31,FALSE) -> Annual / Perennial Forb, Legume | Q160: =VLOOKUP(B160,Species!B$3:D$552,3,FALSE) -> Forb | R160: =VLOOKUP(B160,Species!B$3:W$552,22,FALSE) -> 15.61983471 | S160: 0 | T160: 0 | U160: 0 | W160: 0 | X160: =VLOOKUP(B160,Species!B$3:F$552,5,FALSE) -> Yes | Y160: =VLOOKUP(B160,Species!B$3:AC$552,28,FALSE) -> Introduced | Z160: =VLOOKUP(B160,Species!B$3:AC$552,9,FALSE) -> 0 | AA160: =VLOOKUP(B160,Species!B$3:AC$552,10,FALSE) -> X | AB160: =VLOOKUP(B160,Species!B$3:AC$552,11,FALSE) -> X | AC160: =VLOOKUP(B160,Species!B$3:AC$552,12,FALSE) -> 0 | AD160: =VLOOKUP(B160,Species!B$3:AC$552,13,FALSE) -> 0 | AE160: =VLOOKUP(B160,Species!B$3:AC$552,14,FALSE) -> 0 | AF160: =VLOOKUP(B160,Species!B$3:AC$552,15,FALSE) -> 0 | AG160: =VLOOKUP(B160,Species!B$3:AC$552,16,FALSE) -> 0 | AH160: =VLOOKUP(B160,Species!B$3:AC$552,17,FALSE) -> 0 | AI160: =VLOOKUP(B160,Species!B$3:AC$552,18,FALSE) -> 0 | AJ160: =VLOOKUP(B160,Species!B$3:AC$552,19,FALSE) -> 0 | AK160: =VLOOKUP(B160,Species!B$3:AC$552,20,FALSE) -> 0 | AL160: =VLOOKUP(B160,Species!B$3:AJ$552,35,FALSE) -> 2 | AM160: =VLOOKUP(B160,Species!B$3:AH$552,33,FALSE) -> White | AN160: =VLOOKUP(B160,Species!B$3:I$552,8,FALSE) -> Yes | AO160: =VLOOKUP(B160,Species!B$3:BC$552,54,FALSE) -> 0 | AP160: =VLOOKUP(B160,Species!B$3:BE$552,55,FALSE) -> X | AQ160: =VLOOKUP(B160,Species!B$3:BE$552,56,FALSE) -> 0 | AY160: =HYPERLINK(VLOOKUP(B160,Species!B$3:BF$552,57,FALSE)) -> http://plants.usda.gov/core/profile?symbol=TRHY | AZ160: =VLOOKUP(B160,Species!B$3:C$552,2,FALSE) -> Trifolium hybridum | BA160: 0 | BB160: 0.000 | BC160: 0
B161: =Species!$B151 -> Alumroot | C161: Heuchera richardsonii | H161: 0 | I161: 0.00 | K161: =VLOOKUP(B161,Species!B$3:Y$552,24,FALSE) -> 0 | L161: =VLOOKUP(B161,Species!B$3:AJ$552,35,FALSE) -> 1 | M161: =VLOOKUP(B161,Species!B$3:AD$552,29,FALSE) -> 6 | N161: =VLOOKUP(B161,Species!B$3:AB$552,27,FALSE) -> 1550.415 | O161: 0 | P161: =VLOOKUP(B161,Species!B$3:AF$552,31,FALSE) -> Perennial Forb | Q161: =VLOOKUP(B161,Species!B$3:D$552,3,FALSE) -> Forb | R161: =VLOOKUP(B161,Species!B$3:W$552,22,FALSE) -> 257.1166208 | S161: 0 | T161: 0 | U161: 0 | W161: 0 | X161: =VLOOKUP(B161,Species!B$3:F$552,5,FALSE) -> Yes | Y161: =VLOOKUP(B161,Species!B$3:AC$552,28,FALSE) -> Native | Z161: =VLOOKUP(B161,Species!B$3:AC$552,9,FALSE) -> X | AA161: =VLOOKUP(B161,Species!B$3:AC$552,10,FALSE) -> X | AB161: =VLOOKUP(B161,Species!B$3:AC$552,11,FALSE) ->  | AC161: =VLOOKUP(B161,Species!B$3:AC$552,12,FALSE) -> X | AD161: =VLOOKUP(B161,Species!B$3:AC$552,13,FALSE) -> X | AE161: =VLOOKUP(B161,Species!B$3:AC$552,14,FALSE) -> 0 | AF161: =VLOOKUP(B161,Species!B$3:AC$552,15,FALSE) -> 0 | AG161: =VLOOKUP(B161,Species!B$3:AC$552,16,FALSE) -> 0 | AH161: =VLOOKUP(B161,Species!B$3:AC$552,17,FALSE) -> X | AI161: =VLOOKUP(B161,Species!B$3:AC$552,18,FALSE) -> 0 | AJ161: =VLOOKUP(B161,Species!B$3:AC$552,19,FALSE) ->  | AK161: =VLOOKUP(B161,Species!B$3:AC$552,20,FALSE) -> 0 | AL161: =VLOOKUP(B161,Species!B$3:AJ$552,35,FALSE) -> 1 | AM161: =VLOOKUP(B161,Species!B$3:AH$552,33,FALSE) -> Green | AN161: =VLOOKUP(B161,Species!B$3:I$552,8,FALSE) -> No | AO161: =VLOOKUP(B161,Species!B$3:BC$552,54,FALSE) -> 0 | AP161: =VLOOKUP(B161,Species!B$3:BE$552,55,FALSE) -> 0 | AQ161: =VLOOKUP(B161,Species!B$3:BE$552,56,FALSE) -> 0 | AY161: =HYPERLINK(VLOOKUP(B161,Species!B$3:BF$552,57,FALSE)) -> http://plants.usda.gov/core/profile?symbol=HERI | AZ161: =VLOOKUP(B161,Species!B$3:C$552,2,FALSE) -> Heuchera richardsonii | BA161: 0 | BB161: 0.000 | BC161: 0
